Workbook

Sheet 1552_2G_PwrTable (hidden)
A1: DO NOT EDIT: | B1: This worksheet contain data for the "1552_ 2GHz_Client_Access" worksheet.
C3: SITE 1 | L3: Allowed Powers List for 1 Tx: | M3: =INDEX(A12:BJ68,B9,10) ->  | P3: Final List
J4: Max Power (1 Tx) = | K4: =INDEX(A12:BJ68,B8,E8) ->  | M4: =INDEX(A12:BJ68,B9,9) ->  | P4: PL1 = | Q4: =IF(B6=0,-99,K4+3) -> 
A5: Reg Domain index | B5: =#REF! ->  | J5: PL sequence = | K5: =MATCH(K4,M3:M10,-1) ->  | M5: =INDEX(A12:BJ68,B9,8) ->  | P5: PL2 = | Q5: =IF(B6=0,-99,INDEX(M3:M10,K5+1)+3) -> 
A6: Channel index | B6: =#REF! ->  | M6: =INDEX(A12:BJ68,B9,7) ->  | P6: PL3 = | Q6: =IF(B6=0,-99,INDEX(M3:M10,K5+2)+3) -> 
A7: Antenna gain index | B7: =#REF! ->  | D7: Rate index | E7: =#REF! ->  | M7: =INDEX(A12:BJ68,B9,6) ->  | P7: PL4 = | Q7: =IF(B6=0,-99,INDEX(M3:M10,K5+3)+3) -> 
A8: Max Pwr Row | B8: =IF(B5<5,(-4+6*B5+3*B7), (-10+6*B5+6*B6+3*B7)) ->  | D8: Rate Column | E8: =IF(E7<5,6,10+E7) ->  | M8: =INDEX(A12:BJ68,B9,6) ->  | P8: PL5 = | Q8: =IF(B6=0,-99,INDEX(M3:M10,K5+4)+3) -> 
A9: Allowed Pwr Row | B9: =B8+1 ->  | M9: =INDEX(A12:BJ68,B9,6) -> 
M10: =INDEX(A12:BJ68,B9,6) -> 
A11: 1 | B11: 2 | C11: 3 | D11: 4 | E11: 5 | F11: 6 | G11: 7 | H11: 8 | I11: 9 | J11: 10 | K11: 11 | L11: 12 | M11: 13 | N11: 14 | O11: 15 | P11: 16 | Q11: 17 | R11: 18 | S11: 19 | T11: 20 | U11: 21 | V11: 22 | W11: 23 | X11: 24 | Y11: 25 | Z11: 26 | AA11: 27 | AB11: 28 | AC11: 29 | AD11: 30 | AE11: 31 | AF11: 32 | AG11: 33 | AH11: 34 | AI11: 35 | AJ11: 36 | AK11: 37 | AL11: 38
A12: Rate Type | F12: CCK | G12: OFDM | O12: LBF | W12: HT20 | AE12: HT20 | AM12: HT40 | AU12: HT40 | BC12: Non-HT40 Duplicate
A13: Rate Index | F13: 3 | G13: 4 | H13: 5 | I13: 6 | J13: 7 | K13: 8 | L13: 9 | M13: 10 | N13: 11 | O13: 12 | P13: 13 | Q13: 14 | R13: 15 | S13: 16 | T13: 17 | U13: 18 | V13: 19 | W13: 20 | X13: 21 | Y13: 22 | Z13: 23 | AA13: 24 | AB13: 25 | AC13: 26 | AD13: 27 | AE13: 28 | AF13: 29 | AG13: 30 | AH13: 31 | AI13: 32 | AJ13: 33 | AK13: 34 | AL13: 35 | AM13: 36 | AN13: 37 | AO13: 38 | AP13: 39 | AQ13: 40 | AR13: 41 | AS13: 42 | AT13: 43 | AU13: 44 | AV13: 45 | AW13: 46 | AX13: 47 | AY13: 48 | AZ13: 49 | BA13: 50 | BB13: 51 | BC13: 52 | BD13: 53 | BE13: 54 | BF13: 55 | BG13: 56 | BH13: 57 | BI13: 58 | BJ13: 59
B14: Domain | C14: Start Ch | D14: Stop Ch | E14: Ant Gain | F14: ALL | G14: 6 | H14: 9 | I14: 12 | J14: 18 | K14: 24 | L14: 36 | M14: 48 | N14: 54 | O14: 6 | P14: 9 | Q14: 12 | R14: 18 | S14: 24 | T14: 36 | U14: 48 | V14: 54 | W14: M0 | X14: M1 | Y14: M2 | Z14: M3 | AA14: M4 | AB14: M5 | AC14: M6 | AD14: M7 | AE14: M8 | AF14: M9 | AG14: M10 | AH14: M11 | AI14: M12 | AJ14: M13 | AK14: M14 | AL14: M15 | AM14: M0 | AN14: M1 | AO14: M2 | AP14: M3 | AQ14: M4 | AR14: M5 | AS14: M6 | AT14: M7 | AU14: M8 | AV14: M9 | AW14: M10 | AX14: M11 | AY14: M12 | AZ14: M13 | BA14: M14 | BB14: M15 | BC14: 6 | BD14: 9 | BE14: 12 | BF14: 18 | BG14: 24 | BH14: 36 | BI14: 48 | BJ14: 54
A15: Single Antenna | B15: E | C15: 1 | D15: 13 | E15: 2 | F15: 15 | G15: 15 | H15: 15 | I15: 15 | J15: 15 | K15: 15 | L15: 15 | M15: 15 | N15: 15 | O15: 12 | P15: 12 | Q15: 12 | R15: 12 | S15: 12 | T15: 12 | U15: 12 | V15: 12 | W15: 15 | X15: 15 | Y15: 15 | Z15: 15 | AA15: 15 | AB15: 15 | AC15: 15 | AD15: 14 | AE15: 15 | AF15: 15 | AG15: 15 | AH15: 15 | AI15: 15 | AJ15: 15 | AK15: 15 | AL15: 14 | AM15: 15 | AN15: 15 | AO15: 15 | AP15: 15 | AQ15: 15 | AR15: 15 | AS15: 15 | AT15: 14 | AU15: 15 | AV15: 15 | AW15: 15 | AX15: 15 | AY15: 15 | AZ15: 15 | BA15: 15 | BB15: 14 | BC15: 15 | BD15: 15 | BE15: 15 | BF15: 15 | BG15: 15 | BH15: 15 | BI15: 15 | BJ15: 14
A16: Dual Antenna | B16: E | C16: 1 | D16: 13 | E16: 2 | F16: 15 | G16: 15 | H16: 15 | I16: 15 | J16: 15 | K16: 15 | L16: 15 | M16: 15 | N16: 15 | O16: 12 | P16: 12 | Q16: 12 | R16: 12 | S16: 12 | T16: 12 | U16: 12 | V16: 12 | W16: 15 | X16: 15 | Y16: 15 | Z16: 15 | AA16: 15 | AB16: 15 | AC16: 15 | AD16: 14 | AE16: 15 | AF16: 15 | AG16: 15 | AH16: 15 | AI16: 15 | AJ16: 15 | AK16: 15 | AL16: 14 | AM16: 15 | AN16: 15 | AO16: 15 | AP16: 15 | AQ16: 15 | AR16: 15 | AS16: 15 | AT16: 14 | AU16: 15 | AV16: 15 | AW16: 15 | AX16: 15 | AY16: 15 | AZ16: 15 | BA16: 15 | BB16: 14 | BC16: 15 | BD16: 15 | BE16: 15 | BF16: 15 | BG16: 15 | BH16: 15 | BI16: 15 | BJ16: 14
A17: Allowed Powers List | B17: E | C17: 1 | D17: 13 | E17: 2 | F17: 3 | G17: 6 | H17: 9 | I17: 12 | J17: 15 | K17: 0 | L17: 0 | M17: 0 | N17: 0 | O17: 0 | P17: 0 | Q17: 0 | R17: 0 | S17: 0 | T17: 0 | U17: 0 | V17: 0 | W17: 0 | X17: 0 | Y17: 0 | Z17: 0 | AA17: 0 | AB17: 0 | AC17: 0 | AD17: 0 | AE17: 0 | AF17: 0 | AG17: 0 | AH17: 0 | AI17: 0 | AJ17: 0 | AK17: 0 | AL17: 0 | AM17: 0 | AN17: 0 | AO17: 0 | AP17: 0 | AQ17: 0 | AR17: 0 | AS17: 0 | AT17: 0 | AU17: 0 | AV17: 0 | AW17: 0 | AX17: 0 | AY17: 0 | AZ17: 0 | BA17: 0 | BB17: 0 | BC17: 0 | BD17: 0 | BE17: 0 | BF17: 0 | BG17: 0 | BH17: 0 | BI17: 0 | BJ17: 0
A18: Single Antenna | B18: E | C18: 1 | D18: 13 | E18: 4 | F18: 15 | G18: 15 | H18: 15 | I18: 15 | J18: 15 | K18: 15 | L18: 15 | M18: 15 | N18: 15 | O18: 10 | P18: 10 | Q18: 10 | R18: 10 | S18: 10 | T18: 10 | U18: 10 | V18: 10 | W18: 15 | X18: 15 | Y18: 15 | Z18: 15 | AA18: 15 | AB18: 15 | AC18: 15 | AD18: 14 | AE18: 15 | AF18: 15 | AG18: 15 | AH18: 15 | AI18: 15 | AJ18: 15 | AK18: 15 | AL18: 14 | AM18: 15 | AN18: 15 | AO18: 15 | AP18: 15 | AQ18: 15 | AR18: 15 | AS18: 15 | AT18: 14 | AU18: 15 | AV18: 15 | AW18: 15 | AX18: 15 | AY18: 15 | AZ18: 15 | BA18: 15 | BB18: 14 | BC18: 15 | BD18: 15 | BE18: 15 | BF18: 15 | BG18: 15 | BH18: 15 | BI18: 15 | BJ18: 14
A19: Dual Antenna | B19: E | C19: 1 | D19: 13 | E19: 4 | F19: 13 | G19: 13 | H19: 13 | I19: 13 | J19: 13 | K19: 13 | L19: 13 | M19: 13 | N19: 13 | O19: 10 | P19: 10 | Q19: 10 | R19: 10 | S19: 10 | T19: 10 | U19: 10 | V19: 10 | W19: 13 | X19: 13 | Y19: 13 | Z19: 13 | AA19: 13 | AB19: 13 | AC19: 13 | AD19: 13 | AE19: 13 | AF19: 13 | AG19: 13 | AH19: 13 | AI19: 13 | AJ19: 13 | AK19: 13 | AL19: 13 | AM19: 13 | AN19: 13 | AO19: 13 | AP19: 13 | AQ19: 13 | AR19: 13 | AS19: 13 | AT19: 13 | AU19: 13 | AV19: 13 | AW19: 13 | AX19: 13 | AY19: 13 | AZ19: 13 | BA19: 13 | BB19: 13 | BC19: 13 | BD19: 13 | BE19: 13 | BF19: 13 | BG19: 13 | BH19: 13 | BI19: 13 | BJ19: 13
A20: Allowed Powers List | B20: E | C20: 1 | D20: 13 | E20: 4 | F20: 3 | G20: 6 | H20: 9 | I20: 12 | J20: 15 | K20: 0 | L20: 0 | M20: 0 | N20: 0 | O20: 0 | P20: 0 | Q20: 0 | R20: 0 | S20: 0 | T20: 0 | U20: 0 | V20: 0 | W20: 0 | X20: 0 | Y20: 0 | Z20: 0 | AA20: 0 | AB20: 0 | AC20: 0 | AD20: 0 | AE20: 0 | AF20: 0 | AG20: 0 | AH20: 0 | AI20: 0 | AJ20: 0 | AK20: 0 | AL20: 0 | AM20: 0 | AN20: 0 | AO20: 0 | AP20: 0 | AQ20: 0 | AR20: 0 | AS20: 0 | AT20: 0 | AU20: 0 | AV20: 0 | AW20: 0 | AX20: 0 | AY20: 0 | AZ20: 0 | BA20: 0 | BB20: 0 | BC20: 0 | BD20: 0 | BE20: 0 | BF20: 0 | BG20: 0 | BH20: 0 | BI20: 0 | BJ20: 0
A21: Single Antenna | B21: K | C21: 1 | D21: 11 | E21: 2 | F21: 20 | G21: 22 | H21: 22 | I21: 22 | J21: 22 | K21: 22 | L21: 22 | M21: 22 | N21: 22 | O21: 21 | P21: 21 | Q21: 21 | R21: 21 | S21: 21 | T21: 21 | U21: 21 | V21: 21 | W21: 22 | X21: 22 | Y21: 22 | Z21: 22 | AA21: 22 | AB21: 22 | AC21: 22 | AD21: 22 | AE21: 22 | AF21: 22 | AG21: 22 | AH21: 22 | AI21: 22 | AJ21: 22 | AK21: 22 | AL21: 22 | AM21: 22 | AN21: 22 | AO21: 22 | AP21: 22 | AQ21: 22 | AR21: 22 | AS21: 22 | AT21: 22 | AU21: 22 | AV21: 22 | AW21: 22 | AX21: 22 | AY21: 22 | AZ21: 22 | BA21: 22 | BB21: 22 | BC21: 22 | BD21: 22 | BE21: 22 | BF21: 22 | BG21: 22 | BH21: 22 | BI21: 22 | BJ21: 22
A22: Dual Antenna | B22: K | C22: 1 | D22: 11 | E22: 2 | F22: 17 | G22: 19 | H22: 19 | I22: 19 | J22: 19 | K22: 19 | L22: 19 | M22: 19 | N22: 19 | O22: 18 | P22: 18 | Q22: 18 | R22: 18 | S22: 18 | T22: 18 | U22: 18 | V22: 18 | W22: 19 | X22: 19 | Y22: 19 | Z22: 19 | AA22: 19 | AB22: 19 | AC22: 19 | AD22: 19 | AE22: 19 | AF22: 19 | AG22: 19 | AH22: 19 | AI22: 19 | AJ22: 19 | AK22: 19 | AL22: 19 | AM22: 19 | AN22: 19 | AO22: 19 | AP22: 19 | AQ22: 19 | AR22: 19 | AS22: 19 | AT22: 19 | AU22: 19 | AV22: 19 | AW22: 19 | AX22: 19 | AY22: 19 | AZ22: 19 | BA22: 19 | BB22: 19 | BC22: 19 | BD22: 19 | BE22: 19 | BF22: 19 | BG22: 19 | BH22: 19 | BI22: 19 | BJ22: 19
A23: Allowed Powers List | B23: K | C23: 1 | D23: 11 | E23: 2 | F23: 13 | G23: 16 | H23: 19 | I23: 22 | J23: 25 | K23: 0 | L23: 0 | M23: 0 | N23: 0 | O23: 0 | P23: 0 | Q23: 0 | R23: 0 | S23: 0 | T23: 0 | U23: 0 | V23: 0 | W23: 0 | X23: 0 | Y23: 0 | Z23: 0 | AA23: 0 | AB23: 0 | AC23: 0 | AD23: 0 | AE23: 0 | AF23: 0 | AG23: 0 | AH23: 0 | AI23: 0 | AJ23: 0 | AK23: 0 | AL23: 0 | AM23: 0 | AN23: 0 | AO23: 0 | AP23: 0 | AQ23: 0 | AR23: 0 | AS23: 0 | AT23: 0 | AU23: 0 | AV23: 0 | AW23: 0 | AX23: 0 | AY23: 0 | AZ23: 0 | BA23: 0 | BB23: 0 | BC23: 0 | BD23: 0 | BE23: 0 | BF23: 0 | BG23: 0 | BH23: 0 | BI23: 0 | BJ23: 0
A24: Single Antenna | B24: K | C24: 1 | D24: 11 | E24: 4 | F24: 20 | G24: 22 | H24: 22 | I24: 22 | J24: 22 | K24: 22 | L24: 22 | M24: 22 | N24: 22 | O24: 21 | P24: 21 | Q24: 21 | R24: 21 | S24: 21 | T24: 21 | U24: 21 | V24: 21 | W24: 22 | X24: 22 | Y24: 22 | Z24: 22 | AA24: 22 | AB24: 22 | AC24: 22 | AD24: 22 | AE24: 22 | AF24: 22 | AG24: 22 | AH24: 22 | AI24: 22 | AJ24: 22 | AK24: 22 | AL24: 22 | AM24: 22 | AN24: 22 | AO24: 22 | AP24: 22 | AQ24: 22 | AR24: 22 | AS24: 22 | AT24: 22 | AU24: 22 | AV24: 22 | AW24: 22 | AX24: 22 | AY24: 22 | AZ24: 22 | BA24: 22 | BB24: 22 | BC24: 22 | BD24: 22 | BE24: 22 | BF24: 22 | BG24: 22 | BH24: 22 | BI24: 22 | BJ24: 22
A25: Dual Antenna | B25: K | C25: 1 | D25: 11 | E25: 4 | F25: 17 | G25: 19 | H25: 19 | I25: 19 | J25: 19 | K25: 19 | L25: 19 | M25: 19 | N25: 19 | O25: 18 | P25: 18 | Q25: 18 | R25: 18 | S25: 18 | T25: 18 | U25: 18 | V25: 18 | W25: 19 | X25: 19 | Y25: 19 | Z25: 19 | AA25: 19 | AB25: 19 | AC25: 19 | AD25: 19 | AE25: 19 | AF25: 19 | AG25: 19 | AH25: 19 | AI25: 19 | AJ25: 19 | AK25: 19 | AL25: 19 | AM25: 19 | AN25: 19 | AO25: 19 | AP25: 19 | AQ25: 19 | AR25: 19 | AS25: 19 | AT25: 19 | AU25: 19 | AV25: 19 | AW25: 19 | AX25: 19 | AY25: 19 | AZ25: 19 | BA25: 19 | BB25: 19 | BC25: 19 | BD25: 19 | BE25: 19 | BF25: 19 | BG25: 19 | BH25: 19 | BI25: 19 | BJ25: 19
A26: Allowed Powers List | B26: K | C26: 1 | D26: 11 | E26: 4 | F26: 13 | G26: 16 | H26: 19 | I26: 22 | J26: 25 | K26: 0 | L26: 0 | M26: 0 | N26: 0 | O26: 0 | P26: 0 | Q26: 0 | R26: 0 | S26: 0 | T26: 0 | U26: 0 | V26: 0 | W26: 0 | X26: 0 | Y26: 0 | Z26: 0 | AA26: 0 | AB26: 0 | AC26: 0 | AD26: 0 | AE26: 0 | AF26: 0 | AG26: 0 | AH26: 0 | AI26: 0 | AJ26: 0 | AK26: 0 | AL26: 0 | AM26: 0 | AN26: 0 | AO26: 0 | AP26: 0 | AQ26: 0 | AR26: 0 | AS26: 0 | AT26: 0 | AU26: 0 | AV26: 0 | AW26: 0 | AX26: 0 | AY26: 0 | AZ26: 0 | BA26: 0 | BB26: 0 | BC26: 0 | BD26: 0 | BE26: 0 | BF26: 0 | BG26: 0 | BH26: 0 | BI26: 0 | BJ26: 0
A27: Single Antenna | B27: Q | C27: 1 | D27: 13 | E27: 2 | F27: 15 | G27: 15 | H27: 15 | I27: 15 | J27: 15 | K27: 15 | L27: 15 | M27: 15 | N27: 15 | O27: 15 | P27: 15 | Q27: 15 | R27: 15 | S27: 15 | T27: 15 | U27: 15 | V27: 15 | W27: 15 | X27: 15 | Y27: 15 | Z27: 15 | AA27: 15 | AB27: 15 | AC27: 15 | AD27: 14 | AE27: 15 | AF27: 15 | AG27: 15 | AH27: 15 | AI27: 15 | AJ27: 15 | AK27: 15 | AL27: 14 | AM27: 15 | AN27: 15 | AO27: 15 | AP27: 15 | AQ27: 15 | AR27: 15 | AS27: 15 | AT27: 14 | AU27: 15 | AV27: 15 | AW27: 15 | AX27: 15 | AY27: 15 | AZ27: 15 | BA27: 15 | BB27: 14 | BC27: 15 | BD27: 15 | BE27: 15 | BF27: 15 | BG27: 15 | BH27: 15 | BI27: 15 | BJ27: 14
A28: Dual Antenna | B28: Q | C28: 1 | D28: 13 | E28: 2 | F28: 15 | G28: 15 | H28: 15 | I28: 15 | J28: 15 | K28: 15 | L28: 15 | M28: 15 | N28: 15 | O28: 15 | P28: 15 | Q28: 15 | R28: 15 | S28: 15 | T28: 15 | U28: 15 | V28: 15 | W28: 15 | X28: 15 | Y28: 15 | Z28: 15 | AA28: 15 | AB28: 15 | AC28: 15 | AD28: 14 | AE28: 15 | AF28: 15 | AG28: 15 | AH28: 15 | AI28: 15 | AJ28: 15 | AK28: 15 | AL28: 14 | AM28: 15 | AN28: 15 | AO28: 15 | AP28: 15 | AQ28: 15 | AR28: 15 | AS28: 15 | AT28: 14 | AU28: 15 | AV28: 15 | AW28: 15 | AX28: 15 | AY28: 15 | AZ28: 15 | BA28: 15 | BB28: 14 | BC28: 15 | BD28: 15 | BE28: 15 | BF28: 15 | BG28: 15 | BH28: 15 | BI28: 15 | BJ28: 14
A29: Allowed Powers List | B29: Q | C29: 1 | D29: 13 | E29: 2 | F29: 3 | G29: 6 | H29: 9 | I29: 12 | J29: 15 | K29: 0 | L29: 0 | M29: 0 | N29: 0 | O29: 0 | P29: 0 | Q29: 0 | R29: 0 | S29: 0 | T29: 0 | U29: 0 | V29: 0 | W29: 0 | X29: 0 | Y29: 0 | Z29: 0 | AA29: 0 | AB29: 0 | AC29: 0 | AD29: 0 | AE29: 0 | AF29: 0 | AG29: 0 | AH29: 0 | AI29: 0 | AJ29: 0 | AK29: 0 | AL29: 0 | AM29: 0 | AN29: 0 | AO29: 0 | AP29: 0 | AQ29: 0 | AR29: 0 | AS29: 0 | AT29: 0 | AU29: 0 | AV29: 0 | AW29: 0 | AX29: 0 | AY29: 0 | AZ29: 0 | BA29: 0 | BB29: 0 | BC29: 0 | BD29: 0 | BE29: 0 | BF29: 0 | BG29: 0 | BH29: 0 | BI29: 0 | BJ29: 0
A30: Single Antenna | B30: Q | C30: 1 | D30: 13 | E30: 4 | F30: 15 | G30: 15 | H30: 15 | I30: 15 | J30: 15 | K30: 15 | L30: 15 | M30: 15 | N30: 15 | O30: 14 | P30: 14 | Q30: 14 | R30: 14 | S30: 14 | T30: 14 | U30: 14 | V30: 14 | W30: 15 | X30: 15 | Y30: 15 | Z30: 15 | AA30: 15 | AB30: 15 | AC30: 15 | AD30: 14 | AE30: 15 | AF30: 15 | AG30: 15 | AH30: 15 | AI30: 15 | AJ30: 15 | AK30: 15 | AL30: 14 | AM30: 15 | AN30: 15 | AO30: 15 | AP30: 15 | AQ30: 15 | AR30: 15 | AS30: 15 | AT30: 14 | AU30: 15 | AV30: 15 | AW30: 15 | AX30: 15 | AY30: 15 | AZ30: 15 | BA30: 15 | BB30: 14 | BC30: 15 | BD30: 15 | BE30: 15 | BF30: 15 | BG30: 15 | BH30: 15 | BI30: 15 | BJ30: 14
A31: Dual Antenna | B31: Q | C31: 1 | D31: 13 | E31: 4 | F31: 15 | G31: 15 | H31: 15 | I31: 15 | J31: 15 | K31: 15 | L31: 15 | M31: 15 | N31: 15 | O31: 14 | P31: 14 | Q31: 14 | R31: 14 | S31: 14 | T31: 14 | U31: 14 | V31: 14 | W31: 15 | X31: 15 | Y31: 15 | Z31: 15 | AA31: 15 | AB31: 15 | AC31: 15 | AD31: 14 | AE31: 15 | AF31: 15 | AG31: 15 | AH31: 15 | AI31: 15 | AJ31: 15 | AK31: 15 | AL31: 14 | AM31: 15 | AN31: 15 | AO31: 15 | AP31: 15 | AQ31: 15 | AR31: 15 | AS31: 15 | AT31: 14 | AU31: 15 | AV31: 15 | AW31: 15 | AX31: 15 | AY31: 15 | AZ31: 15 | BA31: 15 | BB31: 14 | BC31: 15 | BD31: 15 | BE31: 15 | BF31: 15 | BG31: 15 | BH31: 15 | BI31: 15 | BJ31: 14
A32: Allowed Powers List | B32: Q | C32: 1 | D32: 13 | E32: 4 | F32: 3 | G32: 6 | H32: 9 | I32: 12 | J32: 15 | K32: 0 | L32: 0 | M32: 0 | N32: 0 | O32: 0 | P32: 0 | Q32: 0 | R32: 0 | S32: 0 | T32: 0 | U32: 0 | V32: 0 | W32: 0 | X32: 0 | Y32: 0 | Z32: 0 | AA32: 0 | AB32: 0 | AC32: 0 | AD32: 0 | AE32: 0 | AF32: 0 | AG32: 0 | AH32: 0 | AI32: 0 | AJ32: 0 | AK32: 0 | AL32: 0 | AM32: 0 | AN32: 0 | AO32: 0 | AP32: 0 | AQ32: 0 | AR32: 0 | AS32: 0 | AT32: 0 | AU32: 0 | AV32: 0 | AW32: 0 | AX32: 0 | AY32: 0 | AZ32: 0 | BA32: 0 | BB32: 0 | BC32: 0 | BD32: 0 | BE32: 0 | BF32: 0 | BG32: 0 | BH32: 0 | BI32: 0 | BJ32: 0
A33: Single Antenna | B33: R | C33: 1 | D33: 13 | E33: 2 | F33: 15 | G33: 15 | H33: 15 | I33: 15 | J33: 15 | K33: 15 | L33: 15 | M33: 15 | N33: 15 | O33: 15 | P33: 15 | Q33: 15 | R33: 15 | S33: 15 | T33: 15 | U33: 15 | V33: 15 | W33: 15 | X33: 15 | Y33: 15 | Z33: 15 | AA33: 15 | AB33: 15 | AC33: 15 | AD33: 14 | AE33: 15 | AF33: 15 | AG33: 15 | AH33: 15 | AI33: 15 | AJ33: 15 | AK33: 15 | AL33: 14 | AM33: 15 | AN33: 15 | AO33: 15 | AP33: 15 | AQ33: 15 | AR33: 15 | AS33: 15 | AT33: 14 | AU33: 15 | AV33: 15 | AW33: 15 | AX33: 15 | AY33: 15 | AZ33: 15 | BA33: 15 | BB33: 14 | BC33: 15 | BD33: 15 | BE33: 15 | BF33: 15 | BG33: 15 | BH33: 15 | BI33: 15 | BJ33: 14
A34: Dual Antenna | B34: R | C34: 1 | D34: 13 | E34: 2 | F34: 15 | G34: 15 | H34: 15 | I34: 15 | J34: 15 | K34: 15 | L34: 15 | M34: 15 | N34: 15 | O34: 15 | P34: 15 | Q34: 15 | R34: 15 | S34: 15 | T34: 15 | U34: 15 | V34: 15 | W34: 15 | X34: 15 | Y34: 15 | Z34: 15 | AA34: 15 | AB34: 15 | AC34: 15 | AD34: 14 | AE34: 15 | AF34: 15 | AG34: 15 | AH34: 15 | AI34: 15 | AJ34: 15 | AK34: 15 | AL34: 14 | AM34: 15 | AN34: 15 | AO34: 15 | AP34: 15 | AQ34: 15 | AR34: 15 | AS34: 15 | AT34: 14 | AU34: 15 | AV34: 15 | AW34: 15 | AX34: 15 | AY34: 15 | AZ34: 15 | BA34: 15 | BB34: 14 | BC34: 15 | BD34: 15 | BE34: 15 | BF34: 15 | BG34: 15 | BH34: 15 | BI34: 15 | BJ34: 14
A35: Allowed Powers List | B35: R | C35: 1 | D35: 13 | E35: 2 | F35: 3 | G35: 6 | H35: 9 | I35: 12 | J35: 15 | K35: 0 | L35: 0 | M35: 0 | N35: 0 | O35: 0 | P35: 0 | Q35: 0 | R35: 0 | S35: 0 | T35: 0 | U35: 0 | V35: 0 | W35: 0 | X35: 0 | Y35: 0 | Z35: 0 | AA35: 0 | AB35: 0 | AC35: 0 | AD35: 0 | AE35: 0 | AF35: 0 | AG35: 0 | AH35: 0 | AI35: 0 | AJ35: 0 | AK35: 0 | AL35: 0 | AM35: 0 | AN35: 0 | AO35: 0 | AP35: 0 | AQ35: 0 | AR35: 0 | AS35: 0 | AT35: 0 | AU35: 0 | AV35: 0 | AW35: 0 | AX35: 0 | AY35: 0 | AZ35: 0 | BA35: 0 | BB35: 0 | BC35: 0 | BD35: 0 | BE35: 0 | BF35: 0 | BG35: 0 | BH35: 0 | BI35: 0 | BJ35: 0
A36: Single Antenna | B36: R | C36: 1 | D36: 13 | E36: 4 | F36: 15 | G36: 15 | H36: 15 | I36: 15 | J36: 15 | K36: 15 | L36: 15 | M36: 15 | N36: 15 | O36: 15 | P36: 15 | Q36: 15 | R36: 15 | S36: 15 | T36: 15 | U36: 15 | V36: 15 | W36: 15 | X36: 15 | Y36: 15 | Z36: 15 | AA36: 15 | AB36: 15 | AC36: 15 | AD36: 14 | AE36: 15 | AF36: 15 | AG36: 15 | AH36: 15 | AI36: 15 | AJ36: 15 | AK36: 15 | AL36: 14 | AM36: 15 | AN36: 15 | AO36: 15 | AP36: 15 | AQ36: 15 | AR36: 15 | AS36: 15 | AT36: 14 | AU36: 15 | AV36: 15 | AW36: 15 | AX36: 15 | AY36: 15 | AZ36: 15 | BA36: 15 | BB36: 14 | BC36: 15 | BD36: 15 | BE36: 15 | BF36: 15 | BG36: 15 | BH36: 15 | BI36: 15 | BJ36: 14
A37: Dual Antenna | B37: R | C37: 1 | D37: 13 | E37: 4 | F37: 15 | G37: 15 | H37: 15 | I37: 15 | J37: 15 | K37: 15 | L37: 15 | M37: 15 | N37: 15 | O37: 15 | P37: 15 | Q37: 15 | R37: 15 | S37: 15 | T37: 15 | U37: 15 | V37: 15 | W37: 15 | X37: 15 | Y37: 15 | Z37: 15 | AA37: 15 | AB37: 15 | AC37: 15 | AD37: 14 | AE37: 15 | AF37: 15 | AG37: 15 | AH37: 15 | AI37: 15 | AJ37: 15 | AK37: 15 | AL37: 14 | AM37: 15 | AN37: 15 | AO37: 15 | AP37: 15 | AQ37: 15 | AR37: 15 | AS37: 15 | AT37: 14 | AU37: 15 | AV37: 15 | AW37: 15 | AX37: 15 | AY37: 15 | AZ37: 15 | BA37: 15 | BB37: 14 | BC37: 15 | BD37: 15 | BE37: 15 | BF37: 15 | BG37: 15 | BH37: 15 | BI37: 15 | BJ37: 14
A38: Allowed Powers List | B38: R | C38: 1 | D38: 13 | E38: 4 | F38: 3 | G38: 6 | H38: 9 | I38: 12 | J38: 15 | K38: 0 | L38: 0 | M38: 0 | N38: 0 | O38: 0 | P38: 0 | Q38: 0 | R38: 0 | S38: 0 | T38: 0 | U38: 0 | V38: 0 | W38: 0 | X38: 0 | Y38: 0 | Z38: 0 | AA38: 0 | AB38: 0 | AC38: 0 | AD38: 0 | AE38: 0 | AF38: 0 | AG38: 0 | AH38: 0 | AI38: 0 | AJ38: 0 | AK38: 0 | AL38: 0 | AM38: 0 | AN38: 0 | AO38: 0 | AP38: 0 | AQ38: 0 | AR38: 0 | AS38: 0 | AT38: 0 | AU38: 0 | AV38: 0 | AW38: 0 | AX38: 0 | AY38: 0 | AZ38: 0 | BA38: 0 | BB38: 0 | BC38: 0 | BD38: 0 | BE38: 0 | BF38: 0 | BG38: 0 | BH38: 0 | BI38: 0 | BJ38: 0
A39: Single Antenna | B39: A | C39: 1 | D39: 1 | E39: 2 | F39: 25 | G39: 25 | H39: 25 | I39: 25 | J39: 25 | K39: 25 | L39: 25 | M39: 25 | N39: 25 | O39: 22 | P39: 22 | Q39: 22 | R39: 22 | S39: 22 | T39: 22 | U39: 22 | V39: 22 | W39: 24 | X39: 24 | Y39: 24 | Z39: 24 | AA39: 24 | AB39: 24 | AC39: 24 | AD39: 24 | AE39: 24 | AF39: 24 | AG39: 24 | AH39: 24 | AI39: 24 | AJ39: 24 | AK39: 24 | AL39: 24 | AM39: 21 | AN39: 21 | AO39: 21 | AP39: 21 | AQ39: 21 | AR39: 21 | AS39: 21 | AT39: 21 | AU39: 21 | AV39: 21 | AW39: 21 | AX39: 21 | AY39: 21 | AZ39: 21 | BA39: 21 | BB39: 21 | BC39: 20 | BD39: 20 | BE39: 20 | BF39: 20 | BG39: 20 | BH39: 20 | BI39: 20 | BJ39: 20
A40: Dual Antenna | B40: A | C40: 1 | D40: 1 | E40: 2 | F40: 25 | G40: 24 | H40: 24 | I40: 24 | J40: 24 | K40: 24 | L40: 24 | M40: 24 | N40: 24 | O40: 22 | P40: 22 | Q40: 22 | R40: 22 | S40: 22 | T40: 22 | U40: 22 | V40: 22 | W40: 23 | X40: 23 | Y40: 23 | Z40: 23 | AA40: 23 | AB40: 23 | AC40: 23 | AD40: 23 | AE40: 23 | AF40: 23 | AG40: 23 | AH40: 23 | AI40: 23 | AJ40: 23 | AK40: 23 | AL40: 23 | AM40: 20 | AN40: 20 | AO40: 20 | AP40: 20 | AQ40: 20 | AR40: 20 | AS40: 20 | AT40: 20 | AU40: 20 | AV40: 20 | AW40: 20 | AX40: 20 | AY40: 20 | AZ40: 20 | BA40: 20 | BB40: 20 | BC40: 18 | BD40: 18 | BE40: 18 | BF40: 18 | BG40: 18 | BH40: 18 | BI40: 18 | BJ40: 18
A41: Allowed Powers List | B41: A | C41: 1 | D41: 1 | E41: 2 | F41: 13 | G41: 16 | H41: 19 | I41: 22 | J41: 25 | K41: 0 | L41: 0 | M41: 0 | N41: 0 | O41: 0 | P41: 0 | Q41: 0 | R41: 0 | S41: 0 | T41: 0 | U41: 0 | V41: 0 | W41: 0 | X41: 0 | Y41: 0 | Z41: 0 | AA41: 0 | AB41: 0 | AC41: 0 | AD41: 0 | AE41: 0 | AF41: 0 | AG41: 0 | AH41: 0 | AI41: 0 | AJ41: 0 | AK41: 0 | AL41: 0 | AM41: 0 | AN41: 0 | AO41: 0 | AP41: 0 | AQ41: 0 | AR41: 0 | AS41: 0 | AT41: 0 | AU41: 0 | AV41: 0 | AW41: 0 | AX41: 0 | AY41: 0 | AZ41: 0 | BA41: 0 | BB41: 0 | BC41: 0 | BD41: 0 | BE41: 0 | BF41: 0 | BG41: 0 | BH41: 0 | BI41: 0 | BJ41: 0
A42: Single Antenna | B42: A | C42: 1 | D42: 1 | E42: 4 | F42: 25 | G42: 24 | H42: 24 | I42: 24 | J42: 24 | K42: 24 | L42: 24 | M42: 24 | N42: 24 | O42: 22 | P42: 22 | Q42: 22 | R42: 22 | S42: 22 | T42: 22 | U42: 22 | V42: 22 | W42: 23 | X42: 23 | Y42: 23 | Z42: 23 | AA42: 23 | AB42: 23 | AC42: 23 | AD42: 23 | AE42: 23 | AF42: 23 | AG42: 23 | AH42: 23 | AI42: 23 | AJ42: 23 | AK42: 23 | AL42: 23 | AM42: 20 | AN42: 20 | AO42: 20 | AP42: 20 | AQ42: 20 | AR42: 20 | AS42: 20 | AT42: 20 | AU42: 20 | AV42: 20 | AW42: 20 | AX42: 20 | AY42: 20 | AZ42: 20 | BA42: 20 | BB42: 20 | BC42: 19 | BD42: 19 | BE42: 19 | BF42: 19 | BG42: 19 | BH42: 19 | BI42: 19 | BJ42: 19
A43: Dual Antenna | B43: A | C43: 1 | D43: 1 | E43: 4 | F43: 25 | G43: 23 | H43: 23 | I43: 23 | J43: 23 | K43: 23 | L43: 23 | M43: 23 | N43: 23 | O43: 22 | P43: 22 | Q43: 22 | R43: 22 | S43: 22 | T43: 22 | U43: 22 | V43: 22 | W43: 22 | X43: 22 | Y43: 22 | Z43: 22 | AA43: 22 | AB43: 22 | AC43: 22 | AD43: 22 | AE43: 22 | AF43: 22 | AG43: 22 | AH43: 22 | AI43: 22 | AJ43: 22 | AK43: 22 | AL43: 22 | AM43: 19 | AN43: 19 | AO43: 19 | AP43: 19 | AQ43: 19 | AR43: 19 | AS43: 19 | AT43: 19 | AU43: 19 | AV43: 19 | AW43: 19 | AX43: 19 | AY43: 19 | AZ43: 19 | BA43: 19 | BB43: 19 | BC43: 17 | BD43: 17 | BE43: 17 | BF43: 17 | BG43: 17 | BH43: 17 | BI43: 17 | BJ43: 17
A44: Allowed Powers List | B44: A | C44: 1 | D44: 1 | E44: 4 | F44: 13 | G44: 16 | H44: 19 | I44: 22 | J44: 25 | K44: 0 | L44: 0 | M44: 0 | N44: 0 | O44: 0 | P44: 0 | Q44: 0 | R44: 0 | S44: 0 | T44: 0 | U44: 0 | V44: 0 | W44: 0 | X44: 0 | Y44: 0 | Z44: 0 | AA44: 0 | AB44: 0 | AC44: 0 | AD44: 0 | AE44: 0 | AF44: 0 | AG44: 0 | AH44: 0 | AI44: 0 | AJ44: 0 | AK44: 0 | AL44: 0 | AM44: 0 | AN44: 0 | AO44: 0 | AP44: 0 | AQ44: 0 | AR44: 0 | AS44: 0 | AT44: 0 | AU44: 0 | AV44: 0 | AW44: 0 | AX44: 0 | AY44: 0 | AZ44: 0 | BA44: 0 | BB44: 0 | BC44: 0 | BD44: 0 | BE44: 0 | BF44: 0 | BG44: 0 | BH44: 0 | BI44: 0 | BJ44: 0
A45: Single Antenna | B45: A | C45: 2 | D45: 2 | E45: 2 | F45: 25 | G45: 25 | H45: 25 | I45: 25 | J45: 25 | K45: 25 | L45: 25 | M45: 25 | N45: 25 | O45: 23 | P45: 23 | Q45: 23 | R45: 23 | S45: 23 | T45: 23 | U45: 23 | V45: 23 | W45: 25 | X45: 25 | Y45: 25 | Z45: 25 | AA45: 25 | AB45: 25 | AC45: 25 | AD45: 24 | AE45: 25 | AF45: 25 | AG45: 25 | AH45: 25 | AI45: 25 | AJ45: 25 | AK45: 25 | AL45: 24 | AM45: 21 | AN45: 21 | AO45: 21 | AP45: 21 | AQ45: 21 | AR45: 21 | AS45: 21 | AT45: 21 | AU45: 21 | AV45: 21 | AW45: 21 | AX45: 21 | AY45: 21 | AZ45: 21 | BA45: 21 | BB45: 21 | BC45: 20 | BD45: 20 | BE45: 20 | BF45: 20 | BG45: 20 | BH45: 20 | BI45: 20 | BJ45: 20
A46: Dual Antenna | B46: A | C46: 2 | D46: 2 | E46: 2 | F46: 25 | G46: 25 | H46: 25 | I46: 25 | J46: 25 | K46: 25 | L46: 25 | M46: 25 | N46: 25 | O46: 23 | P46: 23 | Q46: 23 | R46: 23 | S46: 23 | T46: 23 | U46: 23 | V46: 23 | W46: 24 | X46: 24 | Y46: 24 | Z46: 24 | AA46: 24 | AB46: 24 | AC46: 24 | AD46: 24 | AE46: 24 | AF46: 24 | AG46: 24 | AH46: 24 | AI46: 24 | AJ46: 24 | AK46: 24 | AL46: 24 | AM46: 20 | AN46: 20 | AO46: 20 | AP46: 20 | AQ46: 20 | AR46: 20 | AS46: 20 | AT46: 20 | AU46: 20 | AV46: 20 | AW46: 20 | AX46: 20 | AY46: 20 | AZ46: 20 | BA46: 20 | BB46: 20 | BC46: 18 | BD46: 18 | BE46: 18 | BF46: 18 | BG46: 18 | BH46: 18 | BI46: 18 | BJ46: 18
A47: Allowed Powers List | B47: A | C47: 2 | D47: 2 | E47: 2 | F47: 13 | G47: 16 | H47: 19 | I47: 22 | J47: 25 | K47: 0 | L47: 0 | M47: 0 | N47: 0 | O47: 0 | P47: 0 | Q47: 0 | R47: 0 | S47: 0 | T47: 0 | U47: 0 | V47: 0 | W47: 0 | X47: 0 | Y47: 0 | Z47: 0 | AA47: 0 | AB47: 0 | AC47: 0 | AD47: 0 | AE47: 0 | AF47: 0 | AG47: 0 | AH47: 0 | AI47: 0 | AJ47: 0 | AK47: 0 | AL47: 0 | AM47: 0 | AN47: 0 | AO47: 0 | AP47: 0 | AQ47: 0 | AR47: 0 | AS47: 0 | AT47: 0 | AU47: 0 | AV47: 0 | AW47: 0 | AX47: 0 | AY47: 0 | AZ47: 0 | BA47: 0 | BB47: 0 | BC47: 0 | BD47: 0 | BE47: 0 | BF47: 0 | BG47: 0 | BH47: 0 | BI47: 0 | BJ47: 0
A48: Single Antenna | B48: A | C48: 2 | D48: 2 | E48: 4 | F48: 25 | G48: 25 | H48: 25 | I48: 25 | J48: 25 | K48: 25 | L48: 25 | M48: 25 | N48: 25 | O48: 23 | P48: 23 | Q48: 23 | R48: 23 | S48: 23 | T48: 23 | U48: 23 | V48: 23 | W48: 24 | X48: 24 | Y48: 24 | Z48: 24 | AA48: 24 | AB48: 24 | AC48: 24 | AD48: 24 | AE48: 24 | AF48: 24 | AG48: 24 | AH48: 24 | AI48: 24 | AJ48: 24 | AK48: 24 | AL48: 24 | AM48: 20 | AN48: 20 | AO48: 20 | AP48: 20 | AQ48: 20 | AR48: 20 | AS48: 20 | AT48: 20 | AU48: 20 | AV48: 20 | AW48: 20 | AX48: 20 | AY48: 20 | AZ48: 20 | BA48: 20 | BB48: 20 | BC48: 19 | BD48: 19 | BE48: 19 | BF48: 19 | BG48: 19 | BH48: 19 | BI48: 19 | BJ48: 19
A49: Dual Antenna | B49: A | C49: 2 | D49: 2 | E49: 4 | F49: 25 | G49: 24 | H49: 24 | I49: 24 | J49: 24 | K49: 24 | L49: 24 | M49: 24 | N49: 24 | O49: 23 | P49: 23 | Q49: 23 | R49: 23 | S49: 23 | T49: 23 | U49: 23 | V49: 23 | W49: 23 | X49: 23 | Y49: 23 | Z49: 23 | AA49: 23 | AB49: 23 | AC49: 23 | AD49: 23 | AE49: 23 | AF49: 23 | AG49: 23 | AH49: 23 | AI49: 23 | AJ49: 23 | AK49: 23 | AL49: 23 | AM49: 19 | AN49: 19 | AO49: 19 | AP49: 19 | AQ49: 19 | AR49: 19 | AS49: 19 | AT49: 19 | AU49: 19 | AV49: 19 | AW49: 19 | AX49: 19 | AY49: 19 | AZ49: 19 | BA49: 19 | BB49: 19 | BC49: 17 | BD49: 17 | BE49: 17 | BF49: 17 | BG49: 17 | BH49: 17 | BI49: 17 | BJ49: 17
A50: Allowed Powers List | B50: A | C50: 2 | D50: 2 | E50: 4 | F50: 13 | G50: 16 | H50: 19 | I50: 22 | J50: 25 | K50: 0 | L50: 0 | M50: 0 | N50: 0 | O50: 0 | P50: 0 | Q50: 0 | R50: 0 | S50: 0 | T50: 0 | U50: 0 | V50: 0 | W50: 0 | X50: 0 | Y50: 0 | Z50: 0 | AA50: 0 | AB50: 0 | AC50: 0 | AD50: 0 | AE50: 0 | AF50: 0 | AG50: 0 | AH50: 0 | AI50: 0 | AJ50: 0 | AK50: 0 | AL50: 0 | AM50: 0 | AN50: 0 | AO50: 0 | AP50: 0 | AQ50: 0 | AR50: 0 | AS50: 0 | AT50: 0 | AU50: 0 | AV50: 0 | AW50: 0 | AX50: 0 | AY50: 0 | AZ50: 0 | BA50: 0 | BB50: 0 | BC50: 0 | BD50: 0 | BE50: 0 | BF50: 0 | BG50: 0 | BH50: 0 | BI50: 0 | BJ50: 0
A51: Single Antenna | B51: A | C51: 3 | D51: 9 | E51: 2 | F51: 25 | G51: 25 | H51: 25 | I51: 25 | J51: 25 | K51: 25 | L51: 25 | M51: 25 | N51: 25 | O51: 25 | P51: 25 | Q51: 25 | R51: 25 | S51: 25 | T51: 25 | U51: 25 | V51: 25 | W51: 25 | X51: 25 | Y51: 25 | Z51: 25 | AA51: 25 | AB51: 25 | AC51: 25 | AD51: 24 | AE51: 25 | AF51: 25 | AG51: 25 | AH51: 25 | AI51: 25 | AJ51: 25 | AK51: 25 | AL51: 24 | AM51: 24 | AN51: 24 | AO51: 24 | AP51: 24 | AQ51: 24 | AR51: 24 | AS51: 24 | AT51: 24 | AU51: 24 | AV51: 24 | AW51: 24 | AX51: 24 | AY51: 24 | AZ51: 24 | BA51: 24 | BB51: 24 | BC51: 23 | BD51: 23 | BE51: 23 | BF51: 23 | BG51: 23 | BH51: 23 | BI51: 23 | BJ51: 23
A52: Dual Antenna | B52: A | C52: 3 | D52: 9 | E52: 2 | F52: 25 | G52: 25 | H52: 25 | I52: 25 | J52: 25 | K52: 25 | L52: 25 | M52: 25 | N52: 25 | O52: 25 | P52: 25 | Q52: 25 | R52: 25 | S52: 25 | T52: 25 | U52: 25 | V52: 25 | W52: 25 | X52: 25 | Y52: 25 | Z52: 25 | AA52: 25 | AB52: 25 | AC52: 25 | AD52: 24 | AE52: 25 | AF52: 25 | AG52: 25 | AH52: 25 | AI52: 25 | AJ52: 25 | AK52: 25 | AL52: 24 | AM52: 24 | AN52: 24 | AO52: 24 | AP52: 24 | AQ52: 24 | AR52: 24 | AS52: 24 | AT52: 24 | AU52: 24 | AV52: 24 | AW52: 24 | AX52: 24 | AY52: 24 | AZ52: 24 | BA52: 24 | BB52: 24 | BC52: 22 | BD52: 22 | BE52: 22 | BF52: 22 | BG52: 22 | BH52: 22 | BI52: 22 | BJ52: 22
A53: Allowed Powers List | B53: A | C53: 3 | D53: 9 | E53: 2 | F53: 13 | G53: 16 | H53: 19 | I53: 22 | J53: 25 | K53: 0 | L53: 0 | M53: 0 | N53: 0 | O53: 0 | P53: 0 | Q53: 0 | R53: 0 | S53: 0 | T53: 0 | U53: 0 | V53: 0 | W53: 0 | X53: 0 | Y53: 0 | Z53: 0 | AA53: 0 | AB53: 0 | AC53: 0 | AD53: 0 | AE53: 0 | AF53: 0 | AG53: 0 | AH53: 0 | AI53: 0 | AJ53: 0 | AK53: 0 | AL53: 0 | AM53: 0 | AN53: 0 | AO53: 0 | AP53: 0 | AQ53: 0 | AR53: 0 | AS53: 0 | AT53: 0 | AU53: 0 | AV53: 0 | AW53: 0 | AX53: 0 | AY53: 0 | AZ53: 0 | BA53: 0 | BB53: 0 | BC53: 0 | BD53: 0 | BE53: 0 | BF53: 0 | BG53: 0 | BH53: 0 | BI53: 0 | BJ53: 0
A54: Single Antenna | B54: A | C54: 3 | D54: 9 | E54: 4 | F54: 25 | G54: 25 | H54: 25 | I54: 25 | J54: 25 | K54: 25 | L54: 25 | M54: 25 | N54: 25 | O54: 25 | P54: 25 | Q54: 25 | R54: 25 | S54: 25 | T54: 25 | U54: 25 | V54: 25 | W54: 25 | X54: 25 | Y54: 25 | Z54: 25 | AA54: 25 | AB54: 25 | AC54: 25 | AD54: 24 | AE54: 25 | AF54: 25 | AG54: 25 | AH54: 25 | AI54: 25 | AJ54: 25 | AK54: 25 | AL54: 24 | AM54: 24 | AN54: 24 | AO54: 24 | AP54: 24 | AQ54: 24 | AR54: 24 | AS54: 24 | AT54: 24 | AU54: 24 | AV54: 24 | AW54: 24 | AX54: 24 | AY54: 24 | AZ54: 24 | BA54: 24 | BB54: 24 | BC54: 22 | BD54: 22 | BE54: 22 | BF54: 22 | BG54: 22 | BH54: 22 | BI54: 22 | BJ54: 22
A55: Dual Antenna | B55: A | C55: 3 | D55: 9 | E55: 4 | F55: 25 | G55: 25 | H55: 25 | I55: 25 | J55: 25 | K55: 25 | L55: 25 | M55: 25 | N55: 25 | O55: 25 | P55: 25 | Q55: 25 | R55: 25 | S55: 25 | T55: 25 | U55: 25 | V55: 25 | W55: 25 | X55: 25 | Y55: 25 | Z55: 25 | AA55: 25 | AB55: 25 | AC55: 25 | AD55: 24 | AE55: 25 | AF55: 25 | AG55: 25 | AH55: 25 | AI55: 25 | AJ55: 25 | AK55: 25 | AL55: 24 | AM55: 23 | AN55: 23 | AO55: 23 | AP55: 23 | AQ55: 23 | AR55: 23 | AS55: 23 | AT55: 23 | AU55: 23 | AV55: 23 | AW55: 23 | AX55: 23 | AY55: 23 | AZ55: 23 | BA55: 23 | BB55: 23 | BC55: 21 | BD55: 21 | BE55: 21 | BF55: 21 | BG55: 21 | BH55: 21 | BI55: 21 | BJ55: 21
A56: Allowed Powers List | B56: A | C56: 3 | D56: 9 | E56: 4 | F56: 13 | G56: 16 | H56: 19 | I56: 22 | J56: 25 | K56: 0 | L56: 0 | M56: 0 | N56: 0 | O56: 0 | P56: 0 | Q56: 0 | R56: 0 | S56: 0 | T56: 0 | U56: 0 | V56: 0 | W56: 0 | X56: 0 | Y56: 0 | Z56: 0 | AA56: 0 | AB56: 0 | AC56: 0 | AD56: 0 | AE56: 0 | AF56: 0 | AG56: 0 | AH56: 0 | AI56: 0 | AJ56: 0 | AK56: 0 | AL56: 0 | AM56: 0 | AN56: 0 | AO56: 0 | AP56: 0 | AQ56: 0 | AR56: 0 | AS56: 0 | AT56: 0 | AU56: 0 | AV56: 0 | AW56: 0 | AX56: 0 | AY56: 0 | AZ56: 0 | BA56: 0 | BB56: 0 | BC56: 0 | BD56: 0 | BE56: 0 | BF56: 0 | BG56: 0 | BH56: 0 | BI56: 0 | BJ56: 0
A57: Single Antenna | B57: A | C57: 10 | D57: 10 | E57: 2 | F57: 25 | G57: 25 | H57: 25 | I57: 25 | J57: 25 | K57: 25 | L57: 25 | M57: 25 | N57: 25 | O57: 23 | P57: 23 | Q57: 23 | R57: 23 | S57: 23 | T57: 23 | U57: 23 | V57: 23 | W57: 25 | X57: 25 | Y57: 25 | Z57: 25 | AA57: 25 | AB57: 25 | AC57: 25 | AD57: 24 | AE57: 25 | AF57: 25 | AG57: 25 | AH57: 25 | AI57: 25 | AJ57: 25 | AK57: 25 | AL57: 24 | AM57: 21 | AN57: 21 | AO57: 21 | AP57: 21 | AQ57: 21 | AR57: 21 | AS57: 21 | AT57: 21 | AU57: 21 | AV57: 21 | AW57: 21 | AX57: 21 | AY57: 21 | AZ57: 21 | BA57: 21 | BB57: 21 | BC57: 21 | BD57: 21 | BE57: 21 | BF57: 21 | BG57: 21 | BH57: 21 | BI57: 21 | BJ57: 21
A58: Dual Antenna | B58: A | C58: 10 | D58: 10 | E58: 2 | F58: 25 | G58: 24 | H58: 24 | I58: 24 | J58: 24 | K58: 24 | L58: 24 | M58: 24 | N58: 24 | O58: 23 | P58: 23 | Q58: 23 | R58: 23 | S58: 23 | T58: 23 | U58: 23 | V58: 23 | W58: 24 | X58: 24 | Y58: 24 | Z58: 24 | AA58: 24 | AB58: 24 | AC58: 24 | AD58: 24 | AE58: 24 | AF58: 24 | AG58: 24 | AH58: 24 | AI58: 24 | AJ58: 24 | AK58: 24 | AL58: 24 | AM58: 19 | AN58: 19 | AO58: 19 | AP58: 19 | AQ58: 19 | AR58: 19 | AS58: 19 | AT58: 19 | AU58: 19 | AV58: 19 | AW58: 19 | AX58: 19 | AY58: 19 | AZ58: 19 | BA58: 19 | BB58: 19 | BC58: 19 | BD58: 19 | BE58: 19 | BF58: 19 | BG58: 19 | BH58: 19 | BI58: 19 | BJ58: 19
A59: Allowed Powers List | B59: A | C59: 10 | D59: 10 | E59: 2 | F59: 13 | G59: 16 | H59: 19 | I59: 22 | J59: 25 | K59: 0 | L59: 0 | M59: 0 | N59: 0 | O59: 0 | P59: 0 | Q59: 0 | R59: 0 | S59: 0 | T59: 0 | U59: 0 | V59: 0 | W59: 0 | X59: 0 | Y59: 0 | Z59: 0 | AA59: 0 | AB59: 0 | AC59: 0 | AD59: 0 | AE59: 0 | AF59: 0 | AG59: 0 | AH59: 0 | AI59: 0 | AJ59: 0 | AK59: 0 | AL59: 0 | AM59: 0 | AN59: 0 | AO59: 0 | AP59: 0 | AQ59: 0 | AR59: 0 | AS59: 0 | AT59: 0 | AU59: 0 | AV59: 0 | AW59: 0 | AX59: 0 | AY59: 0 | AZ59: 0 | BA59: 0 | BB59: 0 | BC59: 0 | BD59: 0 | BE59: 0 | BF59: 0 | BG59: 0 | BH59: 0 | BI59: 0 | BJ59: 0
A60: Single Antenna | B60: A | C60: 10 | D60: 10 | E60: 4 | F60: 25 | G60: 25 | H60: 25 | I60: 25 | J60: 25 | K60: 25 | L60: 25 | M60: 25 | N60: 25 | O60: 21 | P60: 21 | Q60: 21 | R60: 21 | S60: 21 | T60: 21 | U60: 21 | V60: 21 | W60: 24 | X60: 24 | Y60: 24 | Z60: 24 | AA60: 24 | AB60: 24 | AC60: 24 | AD60: 24 | AE60: 24 | AF60: 24 | AG60: 24 | AH60: 24 | AI60: 24 | AJ60: 24 | AK60: 24 | AL60: 24 | AM60: 20 | AN60: 20 | AO60: 20 | AP60: 20 | AQ60: 20 | AR60: 20 | AS60: 20 | AT60: 20 | AU60: 20 | AV60: 20 | AW60: 20 | AX60: 20 | AY60: 20 | AZ60: 20 | BA60: 20 | BB60: 20 | BC60: 20 | BD60: 20 | BE60: 20 | BF60: 20 | BG60: 20 | BH60: 20 | BI60: 20 | BJ60: 20
A61: Dual Antenna | B61: A | C61: 10 | D61: 10 | E61: 4 | F61: 25 | G61: 23 | H61: 23 | I61: 23 | J61: 23 | K61: 23 | L61: 23 | M61: 23 | N61: 23 | O61: 21 | P61: 21 | Q61: 21 | R61: 21 | S61: 21 | T61: 21 | U61: 21 | V61: 21 | W61: 23 | X61: 23 | Y61: 23 | Z61: 23 | AA61: 23 | AB61: 23 | AC61: 23 | AD61: 23 | AE61: 23 | AF61: 23 | AG61: 23 | AH61: 23 | AI61: 23 | AJ61: 23 | AK61: 23 | AL61: 23 | AM61: 18 | AN61: 18 | AO61: 18 | AP61: 18 | AQ61: 18 | AR61: 18 | AS61: 18 | AT61: 18 | AU61: 18 | AV61: 18 | AW61: 18 | AX61: 18 | AY61: 18 | AZ61: 18 | BA61: 18 | BB61: 18 | BC61: 18 | BD61: 18 | BE61: 18 | BF61: 18 | BG61: 18 | BH61: 18 | BI61: 18 | BJ61: 18
A62: Allowed Powers List | B62: A | C62: 10 | D62: 10 | E62: 4 | F62: 13 | G62: 16 | H62: 19 | I62: 22 | J62: 25 | K62: 0 | L62: 0 | M62: 0 | N62: 0 | O62: 0 | P62: 0 | Q62: 0 | R62: 0 | S62: 0 | T62: 0 | U62: 0 | V62: 0 | W62: 0 | X62: 0 | Y62: 0 | Z62: 0 | AA62: 0 | AB62: 0 | AC62: 0 | AD62: 0 | AE62: 0 | AF62: 0 | AG62: 0 | AH62: 0 | AI62: 0 | AJ62: 0 | AK62: 0 | AL62: 0 | AM62: 0 | AN62: 0 | AO62: 0 | AP62: 0 | AQ62: 0 | AR62: 0 | AS62: 0 | AT62: 0 | AU62: 0 | AV62: 0 | AW62: 0 | AX62: 0 | AY62: 0 | AZ62: 0 | BA62: 0 | BB62: 0 | BC62: 0 | BD62: 0 | BE62: 0 | BF62: 0 | BG62: 0 | BH62: 0 | BI62: 0 | BJ62: 0
A63: Single Antenna | B63: A | C63: 11 | D63: 11 | E63: 2 | F63: 25 | G63: 25 | H63: 25 | I63: 25 | J63: 25 | K63: 25 | L63: 25 | M63: 25 | N63: 25 | O63: 22 | P63: 22 | Q63: 22 | R63: 22 | S63: 22 | T63: 22 | U63: 22 | V63: 22 | W63: 25 | X63: 25 | Y63: 25 | Z63: 25 | AA63: 25 | AB63: 25 | AC63: 25 | AD63: 24 | AE63: 25 | AF63: 25 | AG63: 25 | AH63: 25 | AI63: 25 | AJ63: 25 | AK63: 25 | AL63: 24 | AM63: 21 | AN63: 21 | AO63: 21 | AP63: 21 | AQ63: 21 | AR63: 21 | AS63: 21 | AT63: 21 | AU63: 21 | AV63: 21 | AW63: 21 | AX63: 21 | AY63: 21 | AZ63: 21 | BA63: 21 | BB63: 21 | BC63: 21 | BD63: 21 | BE63: 21 | BF63: 21 | BG63: 21 | BH63: 21 | BI63: 21 | BJ63: 21
A64: Dual Antenna | B64: A | C64: 11 | D64: 11 | E64: 2 | F64: 25 | G64: 23 | H64: 23 | I64: 23 | J64: 23 | K64: 23 | L64: 23 | M64: 23 | N64: 23 | O64: 22 | P64: 22 | Q64: 22 | R64: 22 | S64: 22 | T64: 22 | U64: 22 | V64: 22 | W64: 23 | X64: 23 | Y64: 23 | Z64: 23 | AA64: 23 | AB64: 23 | AC64: 23 | AD64: 23 | AE64: 23 | AF64: 23 | AG64: 23 | AH64: 23 | AI64: 23 | AJ64: 23 | AK64: 23 | AL64: 23 | AM64: 19 | AN64: 19 | AO64: 19 | AP64: 19 | AQ64: 19 | AR64: 19 | AS64: 19 | AT64: 19 | AU64: 19 | AV64: 19 | AW64: 19 | AX64: 19 | AY64: 19 | AZ64: 19 | BA64: 19 | BB64: 19 | BC64: 19 | BD64: 19 | BE64: 19 | BF64: 19 | BG64: 19 | BH64: 19 | BI64: 19 | BJ64: 19
A65: Allowed Powers List | B65: A | C65: 11 | D65: 11 | E65: 2 | F65: 13 | G65: 16 | H65: 19 | I65: 22 | J65: 25 | K65: 0 | L65: 0 | M65: 0 | N65: 0 | O65: 0 | P65: 0 | Q65: 0 | R65: 0 | S65: 0 | T65: 0 | U65: 0 | V65: 0 | W65: 0 | X65: 0 | Y65: 0 | Z65: 0 | AA65: 0 | AB65: 0 | AC65: 0 | AD65: 0 | AE65: 0 | AF65: 0 | AG65: 0 | AH65: 0 | AI65: 0 | AJ65: 0 | AK65: 0 | AL65: 0 | AM65: 0 | AN65: 0 | AO65: 0 | AP65: 0 | AQ65: 0 | AR65: 0 | AS65: 0 | AT65: 0 | AU65: 0 | AV65: 0 | AW65: 0 | AX65: 0 | AY65: 0 | AZ65: 0 | BA65: 0 | BB65: 0 | BC65: 0 | BD65: 0 | BE65: 0 | BF65: 0 | BG65: 0 | BH65: 0 | BI65: 0 | BJ65: 0
A66: Single Antenna | B66: A | C66: 11 | D66: 11 | E66: 4 | F66: 25 | G66: 24 | H66: 24 | I66: 24 | J66: 24 | K66: 24 | L66: 24 | M66: 24 | N66: 24 | O66: 20 | P66: 20 | Q66: 20 | R66: 20 | S66: 20 | T66: 20 | U66: 20 | V66: 20 | W66: 24 | X66: 24 | Y66: 24 | Z66: 24 | AA66: 24 | AB66: 24 | AC66: 24 | AD66: 24 | AE66: 24 | AF66: 24 | AG66: 24 | AH66: 24 | AI66: 24 | AJ66: 24 | AK66: 24 | AL66: 24 | AM66: 20 | AN66: 20 | AO66: 20 | AP66: 20 | AQ66: 20 | AR66: 20 | AS66: 20 | AT66: 20 | AU66: 20 | AV66: 20 | AW66: 20 | AX66: 20 | AY66: 20 | AZ66: 20 | BA66: 20 | BB66: 20 | BC66: 20 | BD66: 20 | BE66: 20 | BF66: 20 | BG66: 20 | BH66: 20 | BI66: 20 | BJ66: 20
A67: Dual Antenna | B67: A | C67: 11 | D67: 11 | E67: 4 | F67: 25 | G67: 22 | H67: 22 | I67: 22 | J67: 22 | K67: 22 | L67: 22 | M67: 22 | N67: 22 | O67: 20 | P67: 20 | Q67: 20 | R67: 20 | S67: 20 | T67: 20 | U67: 20 | V67: 20 | W67: 22 | X67: 22 | Y67: 22 | Z67: 22 | AA67: 22 | AB67: 22 | AC67: 22 | AD67: 22 | AE67: 22 | AF67: 22 | AG67: 22 | AH67: 22 | AI67: 22 | AJ67: 22 | AK67: 22 | AL67: 22 | AM67: 18 | AN67: 18 | AO67: 18 | AP67: 18 | AQ67: 18 | AR67: 18 | AS67: 18 | AT67: 18 | AU67: 18 | AV67: 18 | AW67: 18 | AX67: 18 | AY67: 18 | AZ67: 18 | BA67: 18 | BB67: 18 | BC67: 18 | BD67: 18 | BE67: 18 | BF67: 18 | BG67: 18 | BH67: 18 | BI67: 18 | BJ67: 18
A68: Allowed Powers List | B68: A | C68: 11 | D68: 11 | E68: 4 | F68: 13 | G68: 16 | H68: 19 | I68: 22 | J68: 25 | K68: 0 | L68: 0 | M68: 0 | N68: 0 | O68: 0 | P68: 0 | Q68: 0 | R68: 0 | S68: 0 | T68: 0 | U68: 0 | V68: 0 | W68: 0 | X68: 0 | Y68: 0 | Z68: 0 | AA68: 0 | AB68: 0 | AC68: 0 | AD68: 0 | AE68: 0 | AF68: 0 | AG68: 0 | AH68: 0 | AI68: 0 | AJ68: 0 | AK68: 0 | AL68: 0 | AM68: 0 | AN68: 0 | AO68: 0 | AP68: 0 | AQ68: 0 | AR68: 0 | AS68: 0 | AT68: 0 | AU68: 0 | AV68: 0 | AW68: 0 | AX68: 0 | AY68: 0 | AZ68: 0 | BA68: 0 | BB68: 0 | BC68: 0 | BD68: 0 | BE68: 0 | BF68: 0 | BG68: 0 | BH68: 0 | BI68: 0 | BJ68: 0

Sheet 1552_5G_BH_PwrTable (hidden)
A1: DO NOT EDIT: | B1: This worksheet contain data for the "1552_Backhaul" worksheet.
C3: SITE 1 | L3: Allowed Powers List for 1 Tx: | M3: =INDEX(A20:BI202,B9,9) ->  | P3: Final List
J4: Max Power (1 Tx) = | K4: =INDEX(A20:BI202,B8,E8) ->  | M4: =INDEX(A20:BI202,B9,8) ->  | P4: PL1 = | Q4: =K4+3 -> 
A5: Reg Domain index | B5: =#REF! ->  | J5: PL sequence = | K5: =MATCH(K4,M3:M10,-1) ->  | M5: =INDEX(A20:BI202,B9,7) ->  | P5: PL2 = | Q5: =INDEX(M3:M10,K5+1)+3 -> 
A6: Channel index | B6: =#REF! ->  | M6: =INDEX(A20:BI202,B9,6) ->  | P6: PL3 = | Q6: =INDEX(M3:M10,K5+2)+3 -> 
A7: Antenna gain index | B7: =#REF! ->  | D7: Rate index | E7: =#REF! ->  | M7: =INDEX(A20:BI202,B9,5) ->  | P7: PL4 = | Q7: =INDEX(M3:M10,K5+3)+3 -> 
A8: Max Pwr Row | B8: =-22+18*B5+6*B6+3*B7 ->  | D8: Rate Column | E8: =13+E7 ->  | M8: =INDEX(A20:BI202,B9,5) ->  | P8: PL5 = | Q8: =INDEX(M3:M10,K5+4)+3 -> 
A9: Allowed Pwr Row | B9: =B8+1 ->  | M9: =INDEX(A20:BI202,B9,5) -> 
M10: =INDEX(A20:BI202,B9,5) -> 
C11: SITE 2 | L11: Allowed Powers List for 1 Tx: | M11: =INDEX(A20:BI202,B17,9) ->  | P11: Final List
J12: Max Power (1Tx) = | K12: =INDEX(A20:BI202,B16,E16) ->  | M12: =INDEX(A20:BI202,B17,8) ->  | P12: PL1 = | Q12: =K12+3 -> 
A13: Reg Domain index | B13: =#REF! ->  | J13: PL sequence = | K13: =MATCH(K12,M11:M18,-1) ->  | M13: =INDEX(A20:BI202,B17,7) ->  | P13: PL2 = | Q13: =INDEX(M11:M18,K13+1)+3 -> 
A14: Channel index | B14: =#REF! ->  | M14: =INDEX(A20:BI202,B17,6) ->  | P14: PL3 = | Q14: =INDEX(M11:M18,K13+2)+3 -> 
A15: Antenna gain index | B15: =#REF! ->  | D15: Rate index | E15: =#REF! ->  | M15: =INDEX(A20:BI202,B17,5) ->  | P15: PL4 = | Q15: =INDEX(M11:M18,K13+3)+3 -> 
A16: Max Pwr Row | B16: =-22+18*B13+6*B14+3*B15 ->  | D16: Rate Column | E16: =13+E15 ->  | M16: =INDEX(A20:BI202,B17,5) ->  | P16: PL5 = | Q16: =INDEX(M11:M18,K13+4)+3 -> 
A17: Allowed Pwr Row | B17: =B16+1 ->  | M17: =INDEX(A20:BI202,B17,5) -> 
M18: =INDEX(A20:BI2010,B17,5) -> 
A20: Rate Type | E20: CCK | F20: OFDM | N20: LBF | V20: HT20 | AD20: HT20 | AL20: HT40 | AT20: HT40 | BB20: Non-HT40 Duplicate
A21: Rate Index | E21: 0 | F21: 0 | G21: 0 | H21: 0 | I21: 0 | J21: 0 | K21: 0 | L21: 0 | M21: 0 | N21: 1 | O21: 2 | P21: 3 | Q21: 4 | R21: 5 | S21: 6 | T21: 7 | U21: 8 | V21: 9 | W21: 10 | X21: 11 | Y21: 12 | Z21: 13 | AA21: 14 | AB21: 15 | AC21: 16 | AD21: 17 | AE21: 18 | AF21: 19 | AG21: 20 | AH21: 21 | AI21: 22 | AJ21: 23 | AK21: 24 | AL21: 25 | AM21: 26 | AN21: 27 | AO21: 28 | AP21: 29 | AQ21: 30 | AR21: 31 | AS21: 32 | AT21: 33 | AU21: 34 | AV21: 35 | AW21: 36 | AX21: 37 | AY21: 38 | AZ21: 39 | BA21: 40 | BB21: 0 | BC21: 0 | BD21: 0 | BE21: 0 | BF21: 0 | BG21: 0 | BH21: 0 | BI21: 0
B22: Reg Domain | C22: Channel | D22: Ant Gain | E22: ALL | F22: 6 | G22: 9 | H22: 12 | I22: 18 | J22: 24 | K22: 36 | L22: 48 | M22: 54 | N22: 6 | O22: 9 | P22: 12 | Q22: 18 | R22: 24 | S22: 36 | T22: 48 | U22: 54 | V22: M0 | W22: M1 | X22: M2 | Y22: M3 | Z22: M4 | AA22: M5 | AB22: M6 | AC22: M7 | AD22: M8 | AE22: M9 | AF22: M10 | AG22: M11 | AH22: M12 | AI22: M13 | AJ22: M14 | AK22: M15 | AL22: M0 | AM22: M1 | AN22: M2 | AO22: M3 | AP22: M4 | AQ22: M5 | AR22: M6 | AS22: M7 | AT22: M8 | AU22: M9 | AV22: M10 | AW22: M11 | AX22: M12 | AY22: M13 | AZ22: M14 | BA22: M15 | BB22: 6 | BC22: 9 | BD22: 12 | BE22: 18 | BF22: 24 | BG22: 36 | BH22: 48 | BI22: 54
A23: Single Antenna | B23: A | C23: Unii 2 | D23: 4 | E23: -99 | F23: -99 | G23: -99 | H23: -99 | I23: -99 | J23: -99 | K23: -99 | L23: -99 | M23: -99 | N23: -99 | O23: -99 | P23: -99 | Q23: -99 | R23: -99 | S23: -99 | T23: -99 | U23: -99 | V23: -99 | W23: -99 | X23: -99 | Y23: -99 | Z23: -99 | AA23: -99 | AB23: -99 | AC23: -99 | AD23: -99 | AE23: -99 | AF23: -99 | AG23: -99 | AH23: -99 | AI23: -99 | AJ23: -99 | AK23: -99 | AL23: -99 | AM23: -99 | AN23: -99 | AO23: -99 | AP23: -99 | AQ23: -99 | AR23: -99 | AS23: -99 | AT23: -99 | AU23: -99 | AV23: -99 | AW23: -99 | AX23: -99 | AY23: -99 | AZ23: -99 | BA23: -99 | BB23: -99 | BC23: -99 | BD23: -99 | BE23: -99 | BF23: -99 | BG23: -99 | BH23: -99 | BI23: -99
A24: Dual Antenna | B24: A | C24: Unii 2 | D24: 4 | E24: -99 | F24: -99 | G24: -99 | H24: -99 | I24: -99 | J24: -99 | K24: -99 | L24: -99 | M24: -99 | N24: -99 | O24: -99 | P24: -99 | Q24: -99 | R24: -99 | S24: -99 | T24: -99 | U24: -99 | V24: -99 | W24: -99 | X24: -99 | Y24: -99 | Z24: -99 | AA24: -99 | AB24: -99 | AC24: -99 | AD24: -99 | AE24: -99 | AF24: -99 | AG24: -99 | AH24: -99 | AI24: -99 | AJ24: -99 | AK24: -99 | AL24: -99 | AM24: -99 | AN24: -99 | AO24: -99 | AP24: -99 | AQ24: -99 | AR24: -99 | AS24: -99 | AT24: -99 | AU24: -99 | AV24: -99 | AW24: -99 | AX24: -99 | AY24: -99 | AZ24: -99 | BA24: -99 | BB24: -99 | BC24: -99 | BD24: -99 | BE24: -99 | BF24: -99 | BG24: -99 | BH24: -99 | BI24: -99
A25: Allowed Powers List | B25: A | C25: Unii 2 | D25: 4 | E25: -99 | F25: -99 | G25: -99 | H25: -99 | I25: -99 | J25: -99 | K25: -99 | L25: -99 | M25: -99 | N25: -99 | O25: -99 | P25: -99 | Q25: -99 | R25: -99 | S25: -99 | T25: -99 | U25: -99 | V25: -99 | W25: -99 | X25: -99 | Y25: -99 | Z25: -99 | AA25: -99 | AB25: -99 | AC25: -99 | AD25: -99 | AE25: -99 | AF25: -99 | AG25: -99 | AH25: -99 | AI25: -99 | AJ25: -99 | AK25: -99 | AL25: -99 | AM25: -99 | AN25: -99 | AO25: -99 | AP25: -99 | AQ25: -99 | AR25: -99 | AS25: -99 | AT25: -99 | AU25: -99 | AV25: -99 | AW25: -99 | AX25: -99 | AY25: -99 | AZ25: -99 | BA25: -99 | BB25: -99 | BC25: -99 | BD25: -99 | BE25: -99 | BF25: -99 | BG25: -99 | BH25: -99 | BI25: -99
A26: Single Antenna | B26: A | C26: Unii 2 | D26: 7 | E26: -99 | F26: -99 | G26: -99 | H26: -99 | I26: -99 | J26: -99 | K26: -99 | L26: -99 | M26: -99 | N26: -99 | O26: -99 | P26: -99 | Q26: -99 | R26: -99 | S26: -99 | T26: -99 | U26: -99 | V26: -99 | W26: -99 | X26: -99 | Y26: -99 | Z26: -99 | AA26: -99 | AB26: -99 | AC26: -99 | AD26: -99 | AE26: -99 | AF26: -99 | AG26: -99 | AH26: -99 | AI26: -99 | AJ26: -99 | AK26: -99 | AL26: -99 | AM26: -99 | AN26: -99 | AO26: -99 | AP26: -99 | AQ26: -99 | AR26: -99 | AS26: -99 | AT26: -99 | AU26: -99 | AV26: -99 | AW26: -99 | AX26: -99 | AY26: -99 | AZ26: -99 | BA26: -99 | BB26: -99 | BC26: -99 | BD26: -99 | BE26: -99 | BF26: -99 | BG26: -99 | BH26: -99 | BI26: -99
A27: Dual Antenna | B27: A | C27: Unii 2 | D27: 7 | E27: -99 | F27: -99 | G27: -99 | H27: -99 | I27: -99 | J27: -99 | K27: -99 | L27: -99 | M27: -99 | N27: -99 | O27: -99 | P27: -99 | Q27: -99 | R27: -99 | S27: -99 | T27: -99 | U27: -99 | V27: -99 | W27: -99 | X27: -99 | Y27: -99 | Z27: -99 | AA27: -99 | AB27: -99 | AC27: -99 | AD27: -99 | AE27: -99 | AF27: -99 | AG27: -99 | AH27: -99 | AI27: -99 | AJ27: -99 | AK27: -99 | AL27: -99 | AM27: -99 | AN27: -99 | AO27: -99 | AP27: -99 | AQ27: -99 | AR27: -99 | AS27: -99 | AT27: -99 | AU27: -99 | AV27: -99 | AW27: -99 | AX27: -99 | AY27: -99 | AZ27: -99 | BA27: -99 | BB27: -99 | BC27: -99 | BD27: -99 | BE27: -99 | BF27: -99 | BG27: -99 | BH27: -99 | BI27: -99
A28: Allowed Powers List | B28: A | C28: Unii 2 | D28: 7 | E28: -99 | F28: -99 | G28: -99 | H28: -99 | I28: -99 | J28: -99 | K28: -99 | L28: -99 | M28: -99 | N28: -99 | O28: -99 | P28: -99 | Q28: -99 | R28: -99 | S28: -99 | T28: -99 | U28: -99 | V28: -99 | W28: -99 | X28: -99 | Y28: -99 | Z28: -99 | AA28: -99 | AB28: -99 | AC28: -99 | AD28: -99 | AE28: -99 | AF28: -99 | AG28: -99 | AH28: -99 | AI28: -99 | AJ28: -99 | AK28: -99 | AL28: -99 | AM28: -99 | AN28: -99 | AO28: -99 | AP28: -99 | AQ28: -99 | AR28: -99 | AS28: -99 | AT28: -99 | AU28: -99 | AV28: -99 | AW28: -99 | AX28: -99 | AY28: -99 | AZ28: -99 | BA28: -99 | BB28: -99 | BC28: -99 | BD28: -99 | BE28: -99 | BF28: -99 | BG28: -99 | BH28: -99 | BI28: -99
A29: Single Antenna | B29: A | C29: Unii 2ext | D29: 4 | E29: -99 | F29: -99 | G29: -99 | H29: -99 | I29: -99 | J29: -99 | K29: -99 | L29: -99 | M29: -99 | N29: -99 | O29: -99 | P29: -99 | Q29: -99 | R29: -99 | S29: -99 | T29: -99 | U29: -99 | V29: -99 | W29: -99 | X29: -99 | Y29: -99 | Z29: -99 | AA29: -99 | AB29: -99 | AC29: -99 | AD29: -99 | AE29: -99 | AF29: -99 | AG29: -99 | AH29: -99 | AI29: -99 | AJ29: -99 | AK29: -99 | AL29: -99 | AM29: -99 | AN29: -99 | AO29: -99 | AP29: -99 | AQ29: -99 | AR29: -99 | AS29: -99 | AT29: -99 | AU29: -99 | AV29: -99 | AW29: -99 | AX29: -99 | AY29: -99 | AZ29: -99 | BA29: -99 | BB29: -99 | BC29: -99 | BD29: -99 | BE29: -99 | BF29: -99 | BG29: -99 | BH29: -99 | BI29: -99
A30: Dual Antenna | B30: A | C30: Unii 2ext | D30: 4 | E30: -99 | F30: -99 | G30: -99 | H30: -99 | I30: -99 | J30: -99 | K30: -99 | L30: -99 | M30: -99 | N30: -99 | O30: -99 | P30: -99 | Q30: -99 | R30: -99 | S30: -99 | T30: -99 | U30: -99 | V30: -99 | W30: -99 | X30: -99 | Y30: -99 | Z30: -99 | AA30: -99 | AB30: -99 | AC30: -99 | AD30: -99 | AE30: -99 | AF30: -99 | AG30: -99 | AH30: -99 | AI30: -99 | AJ30: -99 | AK30: -99 | AL30: -99 | AM30: -99 | AN30: -99 | AO30: -99 | AP30: -99 | AQ30: -99 | AR30: -99 | AS30: -99 | AT30: -99 | AU30: -99 | AV30: -99 | AW30: -99 | AX30: -99 | AY30: -99 | AZ30: -99 | BA30: -99 | BB30: -99 | BC30: -99 | BD30: -99 | BE30: -99 | BF30: -99 | BG30: -99 | BH30: -99 | BI30: -99
A31: Allowed Powers List | B31: A | C31: Unii 2ext | D31: 4 | E31: -99 | F31: -99 | G31: -99 | H31: -99 | I31: -99 | J31: -99 | K31: -99 | L31: -99 | M31: -99 | N31: -99 | O31: -99 | P31: -99 | Q31: -99 | R31: -99 | S31: -99 | T31: -99 | U31: -99 | V31: -99 | W31: -99 | X31: -99 | Y31: -99 | Z31: -99 | AA31: -99 | AB31: -99 | AC31: -99 | AD31: -99 | AE31: -99 | AF31: -99 | AG31: -99 | AH31: -99 | AI31: -99 | AJ31: -99 | AK31: -99 | AL31: -99 | AM31: -99 | AN31: -99 | AO31: -99 | AP31: -99 | AQ31: -99 | AR31: -99 | AS31: -99 | AT31: -99 | AU31: -99 | AV31: -99 | AW31: -99 | AX31: -99 | AY31: -99 | AZ31: -99 | BA31: -99 | BB31: -99 | BC31: -99 | BD31: -99 | BE31: -99 | BF31: -99 | BG31: -99 | BH31: -99 | BI31: -99
A32: Single Antenna | B32: A | C32: Unii 2ext | D32: 7 | E32: -99 | F32: -99 | G32: -99 | H32: -99 | I32: -99 | J32: -99 | K32: -99 | L32: -99 | M32: -99 | N32: -99 | O32: -99 | P32: -99 | Q32: -99 | R32: -99 | S32: -99 | T32: -99 | U32: -99 | V32: -99 | W32: -99 | X32: -99 | Y32: -99 | Z32: -99 | AA32: -99 | AB32: -99 | AC32: -99 | AD32: -99 | AE32: -99 | AF32: -99 | AG32: -99 | AH32: -99 | AI32: -99 | AJ32: -99 | AK32: -99 | AL32: -99 | AM32: -99 | AN32: -99 | AO32: -99 | AP32: -99 | AQ32: -99 | AR32: -99 | AS32: -99 | AT32: -99 | AU32: -99 | AV32: -99 | AW32: -99 | AX32: -99 | AY32: -99 | AZ32: -99 | BA32: -99 | BB32: -99 | BC32: -99 | BD32: -99 | BE32: -99 | BF32: -99 | BG32: -99 | BH32: -99 | BI32: -99
A33: Dual Antenna | B33: A | C33: Unii 2ext | D33: 7 | E33: -99 | F33: -99 | G33: -99 | H33: -99 | I33: -99 | J33: -99 | K33: -99 | L33: -99 | M33: -99 | N33: -99 | O33: -99 | P33: -99 | Q33: -99 | R33: -99 | S33: -99 | T33: -99 | U33: -99 | V33: -99 | W33: -99 | X33: -99 | Y33: -99 | Z33: -99 | AA33: -99 | AB33: -99 | AC33: -99 | AD33: -99 | AE33: -99 | AF33: -99 | AG33: -99 | AH33: -99 | AI33: -99 | AJ33: -99 | AK33: -99 | AL33: -99 | AM33: -99 | AN33: -99 | AO33: -99 | AP33: -99 | AQ33: -99 | AR33: -99 | AS33: -99 | AT33: -99 | AU33: -99 | AV33: -99 | AW33: -99 | AX33: -99 | AY33: -99 | AZ33: -99 | BA33: -99 | BB33: -99 | BC33: -99 | BD33: -99 | BE33: -99 | BF33: -99 | BG33: -99 | BH33: -99 | BI33: -99
A34: Allowed Powers List | B34: A | C34: Unii 2ext | D34: 7 | E34: -99 | F34: -99 | G34: -99 | H34: -99 | I34: -99 | J34: -99 | K34: -99 | L34: -99 | M34: -99 | N34: -99 | O34: -99 | P34: -99 | Q34: -99 | R34: -99 | S34: -99 | T34: -99 | U34: -99 | V34: -99 | W34: -99 | X34: -99 | Y34: -99 | Z34: -99 | AA34: -99 | AB34: -99 | AC34: -99 | AD34: -99 | AE34: -99 | AF34: -99 | AG34: -99 | AH34: -99 | AI34: -99 | AJ34: -99 | AK34: -99 | AL34: -99 | AM34: -99 | AN34: -99 | AO34: -99 | AP34: -99 | AQ34: -99 | AR34: -99 | AS34: -99 | AT34: -99 | AU34: -99 | AV34: -99 | AW34: -99 | AX34: -99 | AY34: -99 | AZ34: -99 | BA34: -99 | BB34: -99 | BC34: -99 | BD34: -99 | BE34: -99 | BF34: -99 | BG34: -99 | BH34: -99 | BI34: -99
A35: Single Antenna | B35: A | C35: Upper ISM | D35: 4 | E35: 0 | F35: 25 | G35: 25 | H35: 25 | I35: 25 | J35: 25 | K35: 24 | L35: 23 | M35: 22 | N35: 0 | O35: 0 | P35: 0 | Q35: 0 | R35: 0 | S35: 0 | T35: 0 | U35: 0 | V35: 24 | W35: 24 | X35: 24 | Y35: 24 | Z35: 24 | AA35: 23 | AB35: 22 | AC35: 20 | AD35: 0 | AE35: 0 | AF35: 0 | AG35: 0 | AH35: 0 | AI35: 0 | AJ35: 0 | AK35: 0 | AL35: 24 | AM35: 24 | AN35: 24 | AO35: 24 | AP35: 24 | AQ35: 23 | AR35: 22 | AS35: 20 | AT35: 0 | AU35: 0 | AV35: 0 | AW35: 0 | AX35: 0 | AY35: 0 | AZ35: 0 | BA35: 0 | BB35: 25 | BC35: 25 | BD35: 25 | BE35: 25 | BF35: 25 | BG35: 24 | BH35: 23 | BI35: 22
A36: Dual Antenna | B36: A | C36: Upper ISM | D36: 4 | E36: 0 | F36: 25 | G36: 25 | H36: 25 | I36: 25 | J36: 25 | K36: 24 | L36: 23 | M36: 22 | N36: 25 | O36: 25 | P36: 25 | Q36: 25 | R36: 25 | S36: 24 | T36: 23 | U36: 22 | V36: 24 | W36: 24 | X36: 24 | Y36: 24 | Z36: 24 | AA36: 23 | AB36: 22 | AC36: 20 | AD36: 24 | AE36: 24 | AF36: 24 | AG36: 24 | AH36: 24 | AI36: 23 | AJ36: 22 | AK36: 20 | AL36: 24 | AM36: 24 | AN36: 24 | AO36: 24 | AP36: 24 | AQ36: 23 | AR36: 22 | AS36: 20 | AT36: 24 | AU36: 24 | AV36: 24 | AW36: 24 | AX36: 24 | AY36: 23 | AZ36: 22 | BA36: 20 | BB36: 25 | BC36: 25 | BD36: 25 | BE36: 25 | BF36: 25 | BG36: 24 | BH36: 23 | BI36: 22
A37: Allowed Powers List | B37: A | C37: Upper ISM | D37: 4 | E37: 13 | F37: 16 | G37: 19 | H37: 22 | I37: 25 | J37: 0 | K37: 0 | L37: 0 | M37: 0 | N37: 0 | O37: 0 | P37: 0 | Q37: 0 | R37: 0 | S37: 0 | T37: 0 | U37: 0 | V37: 0 | W37: 0 | X37: 0 | Y37: 0 | Z37: 0 | AA37: 0 | AB37: 0 | AC37: 0 | AD37: 0 | AE37: 0 | AF37: 0 | AG37: 0 | AH37: 0 | AI37: 0 | AJ37: 0 | AK37: 0 | AL37: 0 | AM37: 0 | AN37: 0 | AO37: 0 | AP37: 0 | AQ37: 0 | AR37: 0 | AS37: 0 | AT37: 0 | AU37: 0 | AV37: 0 | AW37: 0 | AX37: 0 | AY37: 0 | AZ37: 0 | BA37: 0 | BB37: 0 | BC37: 0 | BD37: 0 | BE37: 0 | BF37: 0 | BG37: 0 | BH37: 0 | BI37: 0
A38: Single Antenna | B38: A | C38: Upper ISM | D38: 7 | E38: 0 | F38: 25 | G38: 25 | H38: 25 | I38: 25 | J38: 25 | K38: 24 | L38: 23 | M38: 22 | N38: 0 | O38: 0 | P38: 0 | Q38: 0 | R38: 0 | S38: 0 | T38: 0 | U38: 0 | V38: 24 | W38: 24 | X38: 24 | Y38: 24 | Z38: 24 | AA38: 23 | AB38: 22 | AC38: 20 | AD38: 0 | AE38: 0 | AF38: 0 | AG38: 0 | AH38: 0 | AI38: 0 | AJ38: 0 | AK38: 0 | AL38: 24 | AM38: 24 | AN38: 24 | AO38: 24 | AP38: 24 | AQ38: 23 | AR38: 22 | AS38: 20 | AT38: 0 | AU38: 0 | AV38: 0 | AW38: 0 | AX38: 0 | AY38: 0 | AZ38: 0 | BA38: 0 | BB38: 25 | BC38: 25 | BD38: 25 | BE38: 25 | BF38: 25 | BG38: 24 | BH38: 23 | BI38: 22
A39: Dual Antenna | B39: A | C39: Upper ISM | D39: 7 | E39: 0 | F39: 25 | G39: 25 | H39: 25 | I39: 25 | J39: 25 | K39: 24 | L39: 23 | M39: 22 | N39: 23 | O39: 23 | P39: 23 | Q39: 23 | R39: 23 | S39: 23 | T39: 23 | U39: 22 | V39: 24 | W39: 24 | X39: 24 | Y39: 24 | Z39: 24 | AA39: 23 | AB39: 22 | AC39: 20 | AD39: 24 | AE39: 24 | AF39: 24 | AG39: 24 | AH39: 24 | AI39: 23 | AJ39: 22 | AK39: 20 | AL39: 24 | AM39: 24 | AN39: 24 | AO39: 24 | AP39: 24 | AQ39: 23 | AR39: 22 | AS39: 20 | AT39: 24 | AU39: 24 | AV39: 24 | AW39: 24 | AX39: 24 | AY39: 23 | AZ39: 22 | BA39: 20 | BB39: 25 | BC39: 25 | BD39: 25 | BE39: 25 | BF39: 25 | BG39: 24 | BH39: 23 | BI39: 22
A40: Allowed Powers List | B40: A | C40: Upper ISM | D40: 7 | E40: 13 | F40: 16 | G40: 19 | H40: 22 | I40: 25 | J40: 0 | K40: 0 | L40: 0 | M40: 0 | N40: 0 | O40: 0 | P40: 0 | Q40: 0 | R40: 0 | S40: 0 | T40: 0 | U40: 0 | V40: 0 | W40: 0 | X40: 0 | Y40: 0 | Z40: 0 | AA40: 0 | AB40: 0 | AC40: 0 | AD40: 0 | AE40: 0 | AF40: 0 | AG40: 0 | AH40: 0 | AI40: 0 | AJ40: 0 | AK40: 0 | AL40: 0 | AM40: 0 | AN40: 0 | AO40: 0 | AP40: 0 | AQ40: 0 | AR40: 0 | AS40: 0 | AT40: 0 | AU40: 0 | AV40: 0 | AW40: 0 | AX40: 0 | AY40: 0 | AZ40: 0 | BA40: 0 | BB40: 0 | BC40: 0 | BD40: 0 | BE40: 0 | BF40: 0 | BG40: 0 | BH40: 0 | BI40: 0
A41: Single Antenna | B41: C | C41: Unii 2 | D41: 4 | E41: -99 | F41: -99 | G41: -99 | H41: -99 | I41: -99 | J41: -99 | K41: -99 | L41: -99 | M41: -99 | N41: -99 | O41: -99 | P41: -99 | Q41: -99 | R41: -99 | S41: -99 | T41: -99 | U41: -99 | V41: -99 | W41: -99 | X41: -99 | Y41: -99 | Z41: -99 | AA41: -99 | AB41: -99 | AC41: -99 | AD41: -99 | AE41: -99 | AF41: -99 | AG41: -99 | AH41: -99 | AI41: -99 | AJ41: -99 | AK41: -99 | AL41: -99 | AM41: -99 | AN41: -99 | AO41: -99 | AP41: -99 | AQ41: -99 | AR41: -99 | AS41: -99 | AT41: -99 | AU41: -99 | AV41: -99 | AW41: -99 | AX41: -99 | AY41: -99 | AZ41: -99 | BA41: -99 | BB41: -99 | BC41: -99 | BD41: -99 | BE41: -99 | BF41: -99 | BG41: -99 | BH41: -99 | BI41: -99
A42: Dual Antenna | B42: C | C42: Unii 2 | D42: 4 | E42: -99 | F42: -99 | G42: -99 | H42: -99 | I42: -99 | J42: -99 | K42: -99 | L42: -99 | M42: -99 | N42: -99 | O42: -99 | P42: -99 | Q42: -99 | R42: -99 | S42: -99 | T42: -99 | U42: -99 | V42: -99 | W42: -99 | X42: -99 | Y42: -99 | Z42: -99 | AA42: -99 | AB42: -99 | AC42: -99 | AD42: -99 | AE42: -99 | AF42: -99 | AG42: -99 | AH42: -99 | AI42: -99 | AJ42: -99 | AK42: -99 | AL42: -99 | AM42: -99 | AN42: -99 | AO42: -99 | AP42: -99 | AQ42: -99 | AR42: -99 | AS42: -99 | AT42: -99 | AU42: -99 | AV42: -99 | AW42: -99 | AX42: -99 | AY42: -99 | AZ42: -99 | BA42: -99 | BB42: -99 | BC42: -99 | BD42: -99 | BE42: -99 | BF42: -99 | BG42: -99 | BH42: -99 | BI42: -99
A43: Allowed Powers List | B43: C | C43: Unii 2 | D43: 4 | E43: -99 | F43: -99 | G43: -99 | H43: -99 | I43: -99 | J43: -99 | K43: -99 | L43: -99 | M43: -99 | N43: -99 | O43: -99 | P43: -99 | Q43: -99 | R43: -99 | S43: -99 | T43: -99 | U43: -99 | V43: -99 | W43: -99 | X43: -99 | Y43: -99 | Z43: -99 | AA43: -99 | AB43: -99 | AC43: -99 | AD43: -99 | AE43: -99 | AF43: -99 | AG43: -99 | AH43: -99 | AI43: -99 | AJ43: -99 | AK43: -99 | AL43: -99 | AM43: -99 | AN43: -99 | AO43: -99 | AP43: -99 | AQ43: -99 | AR43: -99 | AS43: -99 | AT43: -99 | AU43: -99 | AV43: -99 | AW43: -99 | AX43: -99 | AY43: -99 | AZ43: -99 | BA43: -99 | BB43: -99 | BC43: -99 | BD43: -99 | BE43: -99 | BF43: -99 | BG43: -99 | BH43: -99 | BI43: -99
A44: Single Antenna | B44: C | C44: Unii 2 | D44: 7 | E44: -99 | F44: -99 | G44: -99 | H44: -99 | I44: -99 | J44: -99 | K44: -99 | L44: -99 | M44: -99 | N44: -99 | O44: -99 | P44: -99 | Q44: -99 | R44: -99 | S44: -99 | T44: -99 | U44: -99 | V44: -99 | W44: -99 | X44: -99 | Y44: -99 | Z44: -99 | AA44: -99 | AB44: -99 | AC44: -99 | AD44: -99 | AE44: -99 | AF44: -99 | AG44: -99 | AH44: -99 | AI44: -99 | AJ44: -99 | AK44: -99 | AL44: -99 | AM44: -99 | AN44: -99 | AO44: -99 | AP44: -99 | AQ44: -99 | AR44: -99 | AS44: -99 | AT44: -99 | AU44: -99 | AV44: -99 | AW44: -99 | AX44: -99 | AY44: -99 | AZ44: -99 | BA44: -99 | BB44: -99 | BC44: -99 | BD44: -99 | BE44: -99 | BF44: -99 | BG44: -99 | BH44: -99 | BI44: -99
A45: Dual Antenna | B45: C | C45: Unii 2 | D45: 7 | E45: -99 | F45: -99 | G45: -99 | H45: -99 | I45: -99 | J45: -99 | K45: -99 | L45: -99 | M45: -99 | N45: -99 | O45: -99 | P45: -99 | Q45: -99 | R45: -99 | S45: -99 | T45: -99 | U45: -99 | V45: -99 | W45: -99 | X45: -99 | Y45: -99 | Z45: -99 | AA45: -99 | AB45: -99 | AC45: -99 | AD45: -99 | AE45: -99 | AF45: -99 | AG45: -99 | AH45: -99 | AI45: -99 | AJ45: -99 | AK45: -99 | AL45: -99 | AM45: -99 | AN45: -99 | AO45: -99 | AP45: -99 | AQ45: -99 | AR45: -99 | AS45: -99 | AT45: -99 | AU45: -99 | AV45: -99 | AW45: -99 | AX45: -99 | AY45: -99 | AZ45: -99 | BA45: -99 | BB45: -99 | BC45: -99 | BD45: -99 | BE45: -99 | BF45: -99 | BG45: -99 | BH45: -99 | BI45: -99
A46: Allowed Powers List | B46: C | C46: Unii 2 | D46: 7 | E46: -99 | F46: -99 | G46: -99 | H46: -99 | I46: -99 | J46: -99 | K46: -99 | L46: -99 | M46: -99 | N46: -99 | O46: -99 | P46: -99 | Q46: -99 | R46: -99 | S46: -99 | T46: -99 | U46: -99 | V46: -99 | W46: -99 | X46: -99 | Y46: -99 | Z46: -99 | AA46: -99 | AB46: -99 | AC46: -99 | AD46: -99 | AE46: -99 | AF46: -99 | AG46: -99 | AH46: -99 | AI46: -99 | AJ46: -99 | AK46: -99 | AL46: -99 | AM46: -99 | AN46: -99 | AO46: -99 | AP46: -99 | AQ46: -99 | AR46: -99 | AS46: -99 | AT46: -99 | AU46: -99 | AV46: -99 | AW46: -99 | AX46: -99 | AY46: -99 | AZ46: -99 | BA46: -99 | BB46: -99 | BC46: -99 | BD46: -99 | BE46: -99 | BF46: -99 | BG46: -99 | BH46: -99 | BI46: -99
A47: Single Antenna | B47: C | C47: Unii 2ext | D47: 4 | E47: -99 | F47: -99 | G47: -99 | H47: -99 | I47: -99 | J47: -99 | K47: -99 | L47: -99 | M47: -99 | N47: -99 | O47: -99 | P47: -99 | Q47: -99 | R47: -99 | S47: -99 | T47: -99 | U47: -99 | V47: -99 | W47: -99 | X47: -99 | Y47: -99 | Z47: -99 | AA47: -99 | AB47: -99 | AC47: -99 | AD47: -99 | AE47: -99 | AF47: -99 | AG47: -99 | AH47: -99 | AI47: -99 | AJ47: -99 | AK47: -99 | AL47: -99 | AM47: -99 | AN47: -99 | AO47: -99 | AP47: -99 | AQ47: -99 | AR47: -99 | AS47: -99 | AT47: -99 | AU47: -99 | AV47: -99 | AW47: -99 | AX47: -99 | AY47: -99 | AZ47: -99 | BA47: -99 | BB47: -99 | BC47: -99 | BD47: -99 | BE47: -99 | BF47: -99 | BG47: -99 | BH47: -99 | BI47: -99
A48: Dual Antenna | B48: C | C48: Unii 2ext | D48: 4 | E48: -99 | F48: -99 | G48: -99 | H48: -99 | I48: -99 | J48: -99 | K48: -99 | L48: -99 | M48: -99 | N48: -99 | O48: -99 | P48: -99 | Q48: -99 | R48: -99 | S48: -99 | T48: -99 | U48: -99 | V48: -99 | W48: -99 | X48: -99 | Y48: -99 | Z48: -99 | AA48: -99 | AB48: -99 | AC48: -99 | AD48: -99 | AE48: -99 | AF48: -99 | AG48: -99 | AH48: -99 | AI48: -99 | AJ48: -99 | AK48: -99 | AL48: -99 | AM48: -99 | AN48: -99 | AO48: -99 | AP48: -99 | AQ48: -99 | AR48: -99 | AS48: -99 | AT48: -99 | AU48: -99 | AV48: -99 | AW48: -99 | AX48: -99 | AY48: -99 | AZ48: -99 | BA48: -99 | BB48: -99 | BC48: -99 | BD48: -99 | BE48: -99 | BF48: -99 | BG48: -99 | BH48: -99 | BI48: -99
A49: Allowed Powers List | B49: C | C49: Unii 2ext | D49: 4 | E49: -99 | F49: -99 | G49: -99 | H49: -99 | I49: -99 | J49: -99 | K49: -99 | L49: -99 | M49: -99 | N49: -99 | O49: -99 | P49: -99 | Q49: -99 | R49: -99 | S49: -99 | T49: -99 | U49: -99 | V49: -99 | W49: -99 | X49: -99 | Y49: -99 | Z49: -99 | AA49: -99 | AB49: -99 | AC49: -99 | AD49: -99 | AE49: -99 | AF49: -99 | AG49: -99 | AH49: -99 | AI49: -99 | AJ49: -99 | AK49: -99 | AL49: -99 | AM49: -99 | AN49: -99 | AO49: -99 | AP49: -99 | AQ49: -99 | AR49: -99 | AS49: -99 | AT49: -99 | AU49: -99 | AV49: -99 | AW49: -99 | AX49: -99 | AY49: -99 | AZ49: -99 | BA49: -99 | BB49: -99 | BC49: -99 | BD49: -99 | BE49: -99 | BF49: -99 | BG49: -99 | BH49: -99 | BI49: -99
A50: Single Antenna | B50: C | C50: Unii 2ext | D50: 7 | E50: -99 | F50: -99 | G50: -99 | H50: -99 | I50: -99 | J50: -99 | K50: -99 | L50: -99 | M50: -99 | N50: -99 | O50: -99 | P50: -99 | Q50: -99 | R50: -99 | S50: -99 | T50: -99 | U50: -99 | V50: -99 | W50: -99 | X50: -99 | Y50: -99 | Z50: -99 | AA50: -99 | AB50: -99 | AC50: -99 | AD50: -99 | AE50: -99 | AF50: -99 | AG50: -99 | AH50: -99 | AI50: -99 | AJ50: -99 | AK50: -99 | AL50: -99 | AM50: -99 | AN50: -99 | AO50: -99 | AP50: -99 | AQ50: -99 | AR50: -99 | AS50: -99 | AT50: -99 | AU50: -99 | AV50: -99 | AW50: -99 | AX50: -99 | AY50: -99 | AZ50: -99 | BA50: -99 | BB50: -99 | BC50: -99 | BD50: -99 | BE50: -99 | BF50: -99 | BG50: -99 | BH50: -99 | BI50: -99
A51: Dual Antenna | B51: C | C51: Unii 2ext | D51: 7 | E51: -99 | F51: -99 | G51: -99 | H51: -99 | I51: -99 | J51: -99 | K51: -99 | L51: -99 | M51: -99 | N51: -99 | O51: -99 | P51: -99 | Q51: -99 | R51: -99 | S51: -99 | T51: -99 | U51: -99 | V51: -99 | W51: -99 | X51: -99 | Y51: -99 | Z51: -99 | AA51: -99 | AB51: -99 | AC51: -99 | AD51: -99 | AE51: -99 | AF51: -99 | AG51: -99 | AH51: -99 | AI51: -99 | AJ51: -99 | AK51: -99 | AL51: -99 | AM51: -99 | AN51: -99 | AO51: -99 | AP51: -99 | AQ51: -99 | AR51: -99 | AS51: -99 | AT51: -99 | AU51: -99 | AV51: -99 | AW51: -99 | AX51: -99 | AY51: -99 | AZ51: -99 | BA51: -99 | BB51: -99 | BC51: -99 | BD51: -99 | BE51: -99 | BF51: -99 | BG51: -99 | BH51: -99 | BI51: -99
A52: Allowed Powers List | B52: C | C52: Unii 2ext | D52: 7 | E52: -99 | F52: -99 | G52: -99 | H52: -99 | I52: -99 | J52: -99 | K52: -99 | L52: -99 | M52: -99 | N52: -99 | O52: -99 | P52: -99 | Q52: -99 | R52: -99 | S52: -99 | T52: -99 | U52: -99 | V52: -99 | W52: -99 | X52: -99 | Y52: -99 | Z52: -99 | AA52: -99 | AB52: -99 | AC52: -99 | AD52: -99 | AE52: -99 | AF52: -99 | AG52: -99 | AH52: -99 | AI52: -99 | AJ52: -99 | AK52: -99 | AL52: -99 | AM52: -99 | AN52: -99 | AO52: -99 | AP52: -99 | AQ52: -99 | AR52: -99 | AS52: -99 | AT52: -99 | AU52: -99 | AV52: -99 | AW52: -99 | AX52: -99 | AY52: -99 | AZ52: -99 | BA52: -99 | BB52: -99 | BC52: -99 | BD52: -99 | BE52: -99 | BF52: -99 | BG52: -99 | BH52: -99 | BI52: -99
A53: Single Antenna | B53: C | C53: Upper ISM | D53: 4 | E53: 0 | F53: 25 | G53: 25 | H53: 25 | I53: 25 | J53: 25 | K53: 24 | L53: 23 | M53: 22 | N53: 0 | O53: 0 | P53: 0 | Q53: 0 | R53: 0 | S53: 0 | T53: 0 | U53: 0 | V53: 24 | W53: 24 | X53: 24 | Y53: 23 | Z53: 23 | AA53: 23 | AB53: 22 | AC53: 20 | AD53: 0 | AE53: 0 | AF53: 0 | AG53: 0 | AH53: 0 | AI53: 0 | AJ53: 0 | AK53: 0 | AL53: 23 | AM53: 23 | AN53: 23 | AO53: 23 | AP53: 23 | AQ53: 23 | AR53: 22 | AS53: 20 | AT53: 0 | AU53: 0 | AV53: 0 | AW53: 0 | AX53: 0 | AY53: 0 | AZ53: 0 | BA53: 0 | BB53: 25 | BC53: 25 | BD53: 25 | BE53: 25 | BF53: 25 | BG53: 24 | BH53: 23 | BI53: 22
A54: Dual Antenna | B54: C | C54: Upper ISM | D54: 4 | E54: 0 | F54: 23 | G54: 23 | H54: 23 | I54: 23 | J54: 23 | K54: 23 | L54: 23 | M54: 22 | N54: 20 | O54: 20 | P54: 20 | Q54: 20 | R54: 20 | S54: 20 | T54: 20 | U54: 20 | V54: 23 | W54: 23 | X54: 23 | Y54: 23 | Z54: 23 | AA54: 23 | AB54: 22 | AC54: 20 | AD54: 23 | AE54: 23 | AF54: 23 | AG54: 23 | AH54: 23 | AI54: 23 | AJ54: 22 | AK54: 20 | AL54: 23 | AM54: 23 | AN54: 23 | AO54: 23 | AP54: 23 | AQ54: 23 | AR54: 22 | AS54: 20 | AT54: 23 | AU54: 23 | AV54: 23 | AW54: 23 | AX54: 23 | AY54: 23 | AZ54: 22 | BA54: 20 | BB54: 23 | BC54: 23 | BD54: 23 | BE54: 23 | BF54: 23 | BG54: 23 | BH54: 23 | BI54: 22
A55: Allowed Powers List | B55: C | C55: Upper ISM | D55: 4 | E55: 13 | F55: 16 | G55: 19 | H55: 22 | I55: 25 | J55: 0 | K55: 0 | L55: 0 | M55: 0 | N55: 0 | O55: 0 | P55: 0 | Q55: 0 | R55: 0 | S55: 0 | T55: 0 | U55: 0 | V55: 0 | W55: 0 | X55: 0 | Y55: 0 | Z55: 0 | AA55: 0 | AB55: 0 | AC55: 0 | AD55: 0 | AE55: 0 | AF55: 0 | AG55: 0 | AH55: 0 | AI55: 0 | AJ55: 0 | AK55: 0 | AL55: 0 | AM55: 0 | AN55: 0 | AO55: 0 | AP55: 0 | AQ55: 0 | AR55: 0 | AS55: 0 | AT55: 0 | AU55: 0 | AV55: 0 | AW55: 0 | AX55: 0 | AY55: 0 | AZ55: 0 | BA55: 0 | BB55: 0 | BC55: 0 | BD55: 0 | BE55: 0 | BF55: 0 | BG55: 0 | BH55: 0 | BI55: 0
A56: Single Antenna | B56: C | C56: Upper ISM | D56: 7 | E56: 0 | F56: 23 | G56: 23 | H56: 23 | I56: 23 | J56: 23 | K56: 23 | L56: 23 | M56: 22 | N56: 0 | O56: 0 | P56: 0 | Q56: 0 | R56: 0 | S56: 0 | T56: 0 | U56: 0 | V56: 23 | W56: 23 | X56: 23 | Y56: 23 | Z56: 23 | AA56: 23 | AB56: 22 | AC56: 20 | AD56: 0 | AE56: 0 | AF56: 0 | AG56: 0 | AH56: 0 | AI56: 0 | AJ56: 0 | AK56: 0 | AL56: 23 | AM56: 23 | AN56: 23 | AO56: 23 | AP56: 23 | AQ56: 23 | AR56: 22 | AS56: 20 | AT56: 0 | AU56: 0 | AV56: 0 | AW56: 0 | AX56: 0 | AY56: 0 | AZ56: 0 | BA56: 0 | BB56: 23 | BC56: 23 | BD56: 23 | BE56: 23 | BF56: 23 | BG56: 23 | BH56: 22 | BI56: 20
A57: Dual Antenna | B57: C | C57: Upper ISM | D57: 7 | E57: 0 | F57: 20 | G57: 20 | H57: 20 | I57: 20 | J57: 20 | K57: 20 | L57: 20 | M57: 20 | N57: 17 | O57: 17 | P57: 17 | Q57: 17 | R57: 17 | S57: 17 | T57: 17 | U57: 17 | V57: 20 | W57: 20 | X57: 20 | Y57: 20 | Z57: 20 | AA57: 20 | AB57: 20 | AC57: 20 | AD57: 20 | AE57: 20 | AF57: 20 | AG57: 20 | AH57: 20 | AI57: 20 | AJ57: 20 | AK57: 20 | AL57: 20 | AM57: 20 | AN57: 20 | AO57: 20 | AP57: 20 | AQ57: 20 | AR57: 20 | AS57: 20 | AT57: 20 | AU57: 20 | AV57: 20 | AW57: 20 | AX57: 20 | AY57: 20 | AZ57: 20 | BA57: 20 | BB57: 20 | BC57: 20 | BD57: 20 | BE57: 20 | BF57: 20 | BG57: 20 | BH57: 20 | BI57: 20
A58: Allowed Powers List | B58: C | C58: Upper ISM | D58: 7 | E58: 13 | F58: 16 | G58: 19 | H58: 22 | I58: 25 | J58: 0 | K58: 0 | L58: 0 | M58: 0 | N58: 0 | O58: 0 | P58: 0 | Q58: 0 | R58: 0 | S58: 0 | T58: 0 | U58: 0 | V58: 0 | W58: 0 | X58: 0 | Y58: 0 | Z58: 0 | AA58: 0 | AB58: 0 | AC58: 0 | AD58: 0 | AE58: 0 | AF58: 0 | AG58: 0 | AH58: 0 | AI58: 0 | AJ58: 0 | AK58: 0 | AL58: 0 | AM58: 0 | AN58: 0 | AO58: 0 | AP58: 0 | AQ58: 0 | AR58: 0 | AS58: 0 | AT58: 0 | AU58: 0 | AV58: 0 | AW58: 0 | AX58: 0 | AY58: 0 | AZ58: 0 | BA58: 0 | BB58: 0 | BC58: 0 | BD58: 0 | BE58: 0 | BF58: 0 | BG58: 0 | BH58: 0 | BI58: 0
A59: Single Antenna | B59: E | C59: Unii 2 | D59: 4 | E59: -99 | F59: -99 | G59: -99 | H59: -99 | I59: -99 | J59: -99 | K59: -99 | L59: -99 | M59: -99 | N59: -99 | O59: -99 | P59: -99 | Q59: -99 | R59: -99 | S59: -99 | T59: -99 | U59: -99 | V59: -99 | W59: -99 | X59: -99 | Y59: -99 | Z59: -99 | AA59: -99 | AB59: -99 | AC59: -99 | AD59: -99 | AE59: -99 | AF59: -99 | AG59: -99 | AH59: -99 | AI59: -99 | AJ59: -99 | AK59: -99 | AL59: -99 | AM59: -99 | AN59: -99 | AO59: -99 | AP59: -99 | AQ59: -99 | AR59: -99 | AS59: -99 | AT59: -99 | AU59: -99 | AV59: -99 | AW59: -99 | AX59: -99 | AY59: -99 | AZ59: -99 | BA59: -99 | BB59: -99 | BC59: -99 | BD59: -99 | BE59: -99 | BF59: -99 | BG59: -99 | BH59: -99 | BI59: -99
A60: Dual Antenna | B60: E | C60: Unii 2 | D60: 4 | E60: -99 | F60: -99 | G60: -99 | H60: -99 | I60: -99 | J60: -99 | K60: -99 | L60: -99 | M60: -99 | N60: -99 | O60: -99 | P60: -99 | Q60: -99 | R60: -99 | S60: -99 | T60: -99 | U60: -99 | V60: -99 | W60: -99 | X60: -99 | Y60: -99 | Z60: -99 | AA60: -99 | AB60: -99 | AC60: -99 | AD60: -99 | AE60: -99 | AF60: -99 | AG60: -99 | AH60: -99 | AI60: -99 | AJ60: -99 | AK60: -99 | AL60: -99 | AM60: -99 | AN60: -99 | AO60: -99 | AP60: -99 | AQ60: -99 | AR60: -99 | AS60: -99 | AT60: -99 | AU60: -99 | AV60: -99 | AW60: -99 | AX60: -99 | AY60: -99 | AZ60: -99 | BA60: -99 | BB60: -99 | BC60: -99 | BD60: -99 | BE60: -99 | BF60: -99 | BG60: -99 | BH60: -99 | BI60: -99
A61: Allowed Powers List | B61: E | C61: Unii 2 | D61: 4 | E61: -99 | F61: -99 | G61: -99 | H61: -99 | I61: -99 | J61: -99 | K61: -99 | L61: -99 | M61: -99 | N61: -99 | O61: -99 | P61: -99 | Q61: -99 | R61: -99 | S61: -99 | T61: -99 | U61: -99 | V61: -99 | W61: -99 | X61: -99 | Y61: -99 | Z61: -99 | AA61: -99 | AB61: -99 | AC61: -99 | AD61: -99 | AE61: -99 | AF61: -99 | AG61: -99 | AH61: -99 | AI61: -99 | AJ61: -99 | AK61: -99 | AL61: -99 | AM61: -99 | AN61: -99 | AO61: -99 | AP61: -99 | AQ61: -99 | AR61: -99 | AS61: -99 | AT61: -99 | AU61: -99 | AV61: -99 | AW61: -99 | AX61: -99 | AY61: -99 | AZ61: -99 | BA61: -99 | BB61: -99 | BC61: -99 | BD61: -99 | BE61: -99 | BF61: -99 | BG61: -99 | BH61: -99 | BI61: -99
A62: Single Antenna | B62: E | C62: Unii 2 | D62: 7 | E62: -99 | F62: -99 | G62: -99 | H62: -99 | I62: -99 | J62: -99 | K62: -99 | L62: -99 | M62: -99 | N62: -99 | O62: -99 | P62: -99 | Q62: -99 | R62: -99 | S62: -99 | T62: -99 | U62: -99 | V62: -99 | W62: -99 | X62: -99 | Y62: -99 | Z62: -99 | AA62: -99 | AB62: -99 | AC62: -99 | AD62: -99 | AE62: -99 | AF62: -99 | AG62: -99 | AH62: -99 | AI62: -99 | AJ62: -99 | AK62: -99 | AL62: -99 | AM62: -99 | AN62: -99 | AO62: -99 | AP62: -99 | AQ62: -99 | AR62: -99 | AS62: -99 | AT62: -99 | AU62: -99 | AV62: -99 | AW62: -99 | AX62: -99 | AY62: -99 | AZ62: -99 | BA62: -99 | BB62: -99 | BC62: -99 | BD62: -99 | BE62: -99 | BF62: -99 | BG62: -99 | BH62: -99 | BI62: -99
A63: Dual Antenna | B63: E | C63: Unii 2 | D63: 7 | E63: -99 | F63: -99 | G63: -99 | H63: -99 | I63: -99 | J63: -99 | K63: -99 | L63: -99 | M63: -99 | N63: -99 | O63: -99 | P63: -99 | Q63: -99 | R63: -99 | S63: -99 | T63: -99 | U63: -99 | V63: -99 | W63: -99 | X63: -99 | Y63: -99 | Z63: -99 | AA63: -99 | AB63: -99 | AC63: -99 | AD63: -99 | AE63: -99 | AF63: -99 | AG63: -99 | AH63: -99 | AI63: -99 | AJ63: -99 | AK63: -99 | AL63: -99 | AM63: -99 | AN63: -99 | AO63: -99 | AP63: -99 | AQ63: -99 | AR63: -99 | AS63: -99 | AT63: -99 | AU63: -99 | AV63: -99 | AW63: -99 | AX63: -99 | AY63: -99 | AZ63: -99 | BA63: -99 | BB63: -99 | BC63: -99 | BD63: -99 | BE63: -99 | BF63: -99 | BG63: -99 | BH63: -99 | BI63: -99
A64: Allowed Powers List | B64: E | C64: Unii 2 | D64: 7 | E64: -99 | F64: -99 | G64: -99 | H64: -99 | I64: -99 | J64: -99 | K64: -99 | L64: -99 | M64: -99 | N64: -99 | O64: -99 | P64: -99 | Q64: -99 | R64: -99 | S64: -99 | T64: -99 | U64: -99 | V64: -99 | W64: -99 | X64: -99 | Y64: -99 | Z64: -99 | AA64: -99 | AB64: -99 | AC64: -99 | AD64: -99 | AE64: -99 | AF64: -99 | AG64: -99 | AH64: -99 | AI64: -99 | AJ64: -99 | AK64: -99 | AL64: -99 | AM64: -99 | AN64: -99 | AO64: -99 | AP64: -99 | AQ64: -99 | AR64: -99 | AS64: -99 | AT64: -99 | AU64: -99 | AV64: -99 | AW64: -99 | AX64: -99 | AY64: -99 | AZ64: -99 | BA64: -99 | BB64: -99 | BC64: -99 | BD64: -99 | BE64: -99 | BF64: -99 | BG64: -99 | BH64: -99 | BI64: -99
A65: Single Antenna | B65: E | C65: Unii 2ext | D65: 4 | E65: 0 | F65: 23 | G65: 23 | H65: 23 | I65: 23 | J65: 23 | K65: 23 | L65: 23 | M65: 22 | N65: 0 | O65: 0 | P65: 0 | Q65: 0 | R65: 0 | S65: 0 | T65: 0 | U65: 0 | V65: 23 | W65: 23 | X65: 23 | Y65: 23 | Z65: 23 | AA65: 23 | AB65: 22 | AC65: 20 | AD65: 0 | AE65: 0 | AF65: 0 | AG65: 0 | AH65: 0 | AI65: 0 | AJ65: 0 | AK65: 0 | AL65: 23 | AM65: 23 | AN65: 23 | AO65: 23 | AP65: 23 | AQ65: 23 | AR65: 22 | AS65: 20 | AT65: 0 | AU65: 0 | AV65: 0 | AW65: 0 | AX65: 0 | AY65: 0 | AZ65: 0 | BA65: 0 | BB65: 23 | BC65: 23 | BD65: 23 | BE65: 23 | BF65: 23 | BG65: 23 | BH65: 23 | BI65: 22
A66: Dual Antenna | B66: E | C66: Unii 2ext | D66: 4 | E66: 0 | F66: 22 | G66: 22 | H66: 22 | I66: 22 | J66: 22 | K66: 22 | L66: 22 | M66: 22 | N66: 19 | O66: 19 | P66: 19 | Q66: 19 | R66: 19 | S66: 19 | T66: 19 | U66: 19 | V66: 22 | W66: 22 | X66: 22 | Y66: 22 | Z66: 22 | AA66: 22 | AB66: 22 | AC66: 20 | AD66: 22 | AE66: 22 | AF66: 22 | AG66: 22 | AH66: 22 | AI66: 22 | AJ66: 22 | AK66: 20 | AL66: 23 | AM66: 23 | AN66: 23 | AO66: 23 | AP66: 23 | AQ66: 23 | AR66: 22 | AS66: 20 | AT66: 23 | AU66: 23 | AV66: 23 | AW66: 23 | AX66: 23 | AY66: 23 | AZ66: 22 | BA66: 20 | BB66: 23 | BC66: 23 | BD66: 23 | BE66: 23 | BF66: 23 | BG66: 23 | BH66: 23 | BI66: 22
A67: Allowed Powers List | B67: E | C67: Unii 2ext | D67: 4 | E67: 7 | F67: 11 | G67: 17 | H67: 20 | I67: 23 | J67: 0 | K67: 0 | L67: 0 | M67: 0 | N67: 0 | O67: 0 | P67: 0 | Q67: 0 | R67: 0 | S67: 0 | T67: 0 | U67: 0 | V67: 0 | W67: 0 | X67: 0 | Y67: 0 | Z67: 0 | AA67: 0 | AB67: 0 | AC67: 0 | AD67: 0 | AE67: 0 | AF67: 0 | AG67: 0 | AH67: 0 | AI67: 0 | AJ67: 0 | AK67: 0 | AL67: 0 | AM67: 0 | AN67: 0 | AO67: 0 | AP67: 0 | AQ67: 0 | AR67: 0 | AS67: 0 | AT67: 0 | AU67: 0 | AV67: 0 | AW67: 0 | AX67: 0 | AY67: 0 | AZ67: 0 | BA67: 0 | BB67: 0 | BC67: 0 | BD67: 0 | BE67: 0 | BF67: 0 | BG67: 0 | BH67: 0 | BI67: 0
A68: Single Antenna | B68: E | C68: Unii 2ext | D68: 7 | E68: 0 | F68: 22 | G68: 22 | H68: 22 | I68: 22 | J68: 22 | K68: 22 | L68: 22 | M68: 22 | N68: 0 | O68: 0 | P68: 0 | Q68: 0 | R68: 0 | S68: 0 | T68: 0 | U68: 0 | V68: 22 | W68: 22 | X68: 22 | Y68: 22 | Z68: 22 | AA68: 22 | AB68: 22 | AC68: 20 | AD68: 0 | AE68: 0 | AF68: 0 | AG68: 0 | AH68: 0 | AI68: 0 | AJ68: 0 | AK68: 0 | AL68: 23 | AM68: 23 | AN68: 23 | AO68: 23 | AP68: 23 | AQ68: 23 | AR68: 22 | AS68: 20 | AT68: 0 | AU68: 0 | AV68: 0 | AW68: 0 | AX68: 0 | AY68: 0 | AZ68: 0 | BA68: 0 | BB68: 23 | BC68: 23 | BD68: 23 | BE68: 23 | BF68: 23 | BG68: 23 | BH68: 23 | BI68: 22
A69: Dual Antenna | B69: E | C69: Unii 2ext | D69: 7 | E69: 0 | F69: 19 | G69: 19 | H69: 19 | I69: 19 | J69: 19 | K69: 19 | L69: 19 | M69: 19 | N69: 16 | O69: 16 | P69: 16 | Q69: 16 | R69: 16 | S69: 16 | T69: 16 | U69: 16 | V69: 19 | W69: 19 | X69: 19 | Y69: 19 | Z69: 19 | AA69: 19 | AB69: 19 | AC69: 19 | AD69: 19 | AE69: 19 | AF69: 19 | AG69: 19 | AH69: 19 | AI69: 19 | AJ69: 19 | AK69: 19 | AL69: 20 | AM69: 20 | AN69: 20 | AO69: 20 | AP69: 20 | AQ69: 20 | AR69: 20 | AS69: 20 | AT69: 20 | AU69: 20 | AV69: 20 | AW69: 20 | AX69: 20 | AY69: 20 | AZ69: 20 | BA69: 20 | BB69: 20 | BC69: 20 | BD69: 20 | BE69: 20 | BF69: 20 | BG69: 20 | BH69: 20 | BI69: 20
A70: Allowed Powers List | B70: E | C70: Unii 2ext | D70: 7 | E70: 7 | F70: 11 | G70: 17 | H70: 20 | I70: 23 | J70: 0 | K70: 0 | L70: 0 | M70: 0 | N70: 0 | O70: 0 | P70: 0 | Q70: 0 | R70: 0 | S70: 0 | T70: 0 | U70: 0 | V70: 0 | W70: 0 | X70: 0 | Y70: 0 | Z70: 0 | AA70: 0 | AB70: 0 | AC70: 0 | AD70: 0 | AE70: 0 | AF70: 0 | AG70: 0 | AH70: 0 | AI70: 0 | AJ70: 0 | AK70: 0 | AL70: 0 | AM70: 0 | AN70: 0 | AO70: 0 | AP70: 0 | AQ70: 0 | AR70: 0 | AS70: 0 | AT70: 0 | AU70: 0 | AV70: 0 | AW70: 0 | AX70: 0 | AY70: 0 | AZ70: 0 | BA70: 0 | BB70: 0 | BC70: 0 | BD70: 0 | BE70: 0 | BF70: 0 | BG70: 0 | BH70: 0 | BI70: 0
A71: Single Antenna | B71: E | C71: Upper ISM | D71: 4 | E71: -99 | F71: -99 | G71: -99 | H71: -99 | I71: -99 | J71: -99 | K71: -99 | L71: -99 | M71: -99 | N71: -99 | O71: -99 | P71: -99 | Q71: -99 | R71: -99 | S71: -99 | T71: -99 | U71: -99 | V71: -99 | W71: -99 | X71: -99 | Y71: -99 | Z71: -99 | AA71: -99 | AB71: -99 | AC71: -99 | AD71: -99 | AE71: -99 | AF71: -99 | AG71: -99 | AH71: -99 | AI71: -99 | AJ71: -99 | AK71: -99 | AL71: -99 | AM71: -99 | AN71: -99 | AO71: -99 | AP71: -99 | AQ71: -99 | AR71: -99 | AS71: -99 | AT71: -99 | AU71: -99 | AV71: -99 | AW71: -99 | AX71: -99 | AY71: -99 | AZ71: -99 | BA71: -99 | BB71: -99 | BC71: -99 | BD71: -99 | BE71: -99 | BF71: -99 | BG71: -99 | BH71: -99 | BI71: -99
A72: Dual Antenna | B72: E | C72: Upper ISM | D72: 4 | E72: -99 | F72: -99 | G72: -99 | H72: -99 | I72: -99 | J72: -99 | K72: -99 | L72: -99 | M72: -99 | N72: -99 | O72: -99 | P72: -99 | Q72: -99 | R72: -99 | S72: -99 | T72: -99 | U72: -99 | V72: -99 | W72: -99 | X72: -99 | Y72: -99 | Z72: -99 | AA72: -99 | AB72: -99 | AC72: -99 | AD72: -99 | AE72: -99 | AF72: -99 | AG72: -99 | AH72: -99 | AI72: -99 | AJ72: -99 | AK72: -99 | AL72: -99 | AM72: -99 | AN72: -99 | AO72: -99 | AP72: -99 | AQ72: -99 | AR72: -99 | AS72: -99 | AT72: -99 | AU72: -99 | AV72: -99 | AW72: -99 | AX72: -99 | AY72: -99 | AZ72: -99 | BA72: -99 | BB72: -99 | BC72: -99 | BD72: -99 | BE72: -99 | BF72: -99 | BG72: -99 | BH72: -99 | BI72: -99
A73: Allowed Powers List | B73: E | C73: Upper ISM | D73: 4 | E73: -99 | F73: -99 | G73: -99 | H73: -99 | I73: -99 | J73: -99 | K73: -99 | L73: -99 | M73: -99 | N73: -99 | O73: -99 | P73: -99 | Q73: -99 | R73: -99 | S73: -99 | T73: -99 | U73: -99 | V73: -99 | W73: -99 | X73: -99 | Y73: -99 | Z73: -99 | AA73: -99 | AB73: -99 | AC73: -99 | AD73: -99 | AE73: -99 | AF73: -99 | AG73: -99 | AH73: -99 | AI73: -99 | AJ73: -99 | AK73: -99 | AL73: -99 | AM73: -99 | AN73: -99 | AO73: -99 | AP73: -99 | AQ73: -99 | AR73: -99 | AS73: -99 | AT73: -99 | AU73: -99 | AV73: -99 | AW73: -99 | AX73: -99 | AY73: -99 | AZ73: -99 | BA73: -99 | BB73: -99 | BC73: -99 | BD73: -99 | BE73: -99 | BF73: -99 | BG73: -99 | BH73: -99 | BI73: -99
A74: Single Antenna | B74: E | C74: Upper ISM | D74: 7 | E74: -99 | F74: -99 | G74: -99 | H74: -99 | I74: -99 | J74: -99 | K74: -99 | L74: -99 | M74: -99 | N74: -99 | O74: -99 | P74: -99 | Q74: -99 | R74: -99 | S74: -99 | T74: -99 | U74: -99 | V74: -99 | W74: -99 | X74: -99 | Y74: -99 | Z74: -99 | AA74: -99 | AB74: -99 | AC74: -99 | AD74: -99 | AE74: -99 | AF74: -99 | AG74: -99 | AH74: -99 | AI74: -99 | AJ74: -99 | AK74: -99 | AL74: -99 | AM74: -99 | AN74: -99 | AO74: -99 | AP74: -99 | AQ74: -99 | AR74: -99 | AS74: -99 | AT74: -99 | AU74: -99 | AV74: -99 | AW74: -99 | AX74: -99 | AY74: -99 | AZ74: -99 | BA74: -99 | BB74: -99 | BC74: -99 | BD74: -99 | BE74: -99 | BF74: -99 | BG74: -99 | BH74: -99 | BI74: -99
A75: Dual Antenna | B75: E | C75: Upper ISM | D75: 7 | E75: -99 | F75: -99 | G75: -99 | H75: -99 | I75: -99 | J75: -99 | K75: -99 | L75: -99 | M75: -99 | N75: -99 | O75: -99 | P75: -99 | Q75: -99 | R75: -99 | S75: -99 | T75: -99 | U75: -99 | V75: -99 | W75: -99 | X75: -99 | Y75: -99 | Z75: -99 | AA75: -99 | AB75: -99 | AC75: -99 | AD75: -99 | AE75: -99 | AF75: -99 | AG75: -99 | AH75: -99 | AI75: -99 | AJ75: -99 | AK75: -99 | AL75: -99 | AM75: -99 | AN75: -99 | AO75: -99 | AP75: -99 | AQ75: -99 | AR75: -99 | AS75: -99 | AT75: -99 | AU75: -99 | AV75: -99 | AW75: -99 | AX75: -99 | AY75: -99 | AZ75: -99 | BA75: -99 | BB75: -99 | BC75: -99 | BD75: -99 | BE75: -99 | BF75: -99 | BG75: -99 | BH75: -99 | BI75: -99
A76: Allowed Powers List | B76: E | C76: Upper ISM | D76: 7 | E76: -99 | F76: -99 | G76: -99 | H76: -99 | I76: -99 | J76: -99 | K76: -99 | L76: -99 | M76: -99 | N76: -99 | O76: -99 | P76: -99 | Q76: -99 | R76: -99 | S76: -99 | T76: -99 | U76: -99 | V76: -99 | W76: -99 | X76: -99 | Y76: -99 | Z76: -99 | AA76: -99 | AB76: -99 | AC76: -99 | AD76: -99 | AE76: -99 | AF76: -99 | AG76: -99 | AH76: -99 | AI76: -99 | AJ76: -99 | AK76: -99 | AL76: -99 | AM76: -99 | AN76: -99 | AO76: -99 | AP76: -99 | AQ76: -99 | AR76: -99 | AS76: -99 | AT76: -99 | AU76: -99 | AV76: -99 | AW76: -99 | AX76: -99 | AY76: -99 | AZ76: -99 | BA76: -99 | BB76: -99 | BC76: -99 | BD76: -99 | BE76: -99 | BF76: -99 | BG76: -99 | BH76: -99 | BI76: -99
A77: Single Antenna | B77: K | C77: Unii 2 | D77: 4 | E77: 0 | F77: 22 | G77: 22 | H77: 22 | I77: 22 | J77: 22 | K77: 22 | L77: 22 | M77: 22 | N77: 0 | O77: 0 | P77: 0 | Q77: 0 | R77: 0 | S77: 0 | T77: 0 | U77: 0 | V77: 22 | W77: 22 | X77: 22 | Y77: 22 | Z77: 22 | AA77: 22 | AB77: 22 | AC77: 20 | AD77: 0 | AE77: 0 | AF77: 0 | AG77: 0 | AH77: 0 | AI77: 0 | AJ77: 0 | AK77: 0 | AL77: 22 | AM77: 22 | AN77: 22 | AO77: 22 | AP77: 22 | AQ77: 22 | AR77: 22 | AS77: 20 | AT77: 0 | AU77: 0 | AV77: 0 | AW77: 0 | AX77: 0 | AY77: 0 | AZ77: 0 | BA77: 0 | BB77: 22 | BC77: 22 | BD77: 22 | BE77: 22 | BF77: 22 | BG77: 22 | BH77: 22 | BI77: 20
A78: Dual Antenna | B78: K | C78: Unii 2 | D78: 4 | E78: 0 | F78: 19 | G78: 19 | H78: 19 | I78: 19 | J78: 19 | K78: 19 | L78: 19 | M78: 19 | N78: 16 | O78: 16 | P78: 16 | Q78: 16 | R78: 16 | S78: 16 | T78: 16 | U78: 16 | V78: 19 | W78: 19 | X78: 19 | Y78: 19 | Z78: 19 | AA78: 19 | AB78: 19 | AC78: 19 | AD78: 19 | AE78: 19 | AF78: 19 | AG78: 19 | AH78: 19 | AI78: 19 | AJ78: 19 | AK78: 19 | AL78: 19 | AM78: 19 | AN78: 19 | AO78: 19 | AP78: 19 | AQ78: 19 | AR78: 19 | AS78: 19 | AT78: 19 | AU78: 19 | AV78: 19 | AW78: 19 | AX78: 19 | AY78: 19 | AZ78: 19 | BA78: 19 | BB78: 19 | BC78: 19 | BD78: 19 | BE78: 19 | BF78: 19 | BG78: 19 | BH78: 19 | BI78: 19
A79: Allowed Powers List | B79: K | C79: Unii 2 | D79: 4 | E79: 7 | F79: 11 | G79: 17 | H79: 20 | I79: 23 | J79: 0 | K79: 0 | L79: 0 | M79: 0 | N79: 0 | O79: 0 | P79: 0 | Q79: 0 | R79: 0 | S79: 0 | T79: 0 | U79: 0 | V79: 0 | W79: 0 | X79: 0 | Y79: 0 | Z79: 0 | AA79: 0 | AB79: 0 | AC79: 0 | AD79: 0 | AE79: 0 | AF79: 0 | AG79: 0 | AH79: 0 | AI79: 0 | AJ79: 0 | AK79: 0 | AL79: 0 | AM79: 0 | AN79: 0 | AO79: 0 | AP79: 0 | AQ79: 0 | AR79: 0 | AS79: 0 | AT79: 0 | AU79: 0 | AV79: 0 | AW79: 0 | AX79: 0 | AY79: 0 | AZ79: 0 | BA79: 0 | BB79: 0 | BC79: 0 | BD79: 0 | BE79: 0 | BF79: 0 | BG79: 0 | BH79: 0 | BI79: 0
A80: Single Antenna | B80: K | C80: Unii 2 | D80: 7 | E80: 0 | F80: 19 | G80: 19 | H80: 19 | I80: 19 | J80: 19 | K80: 19 | L80: 19 | M80: 19 | N80: 0 | O80: 0 | P80: 0 | Q80: 0 | R80: 0 | S80: 0 | T80: 0 | U80: 0 | V80: 19 | W80: 19 | X80: 19 | Y80: 19 | Z80: 19 | AA80: 19 | AB80: 19 | AC80: 19 | AD80: 0 | AE80: 0 | AF80: 0 | AG80: 0 | AH80: 0 | AI80: 0 | AJ80: 0 | AK80: 0 | AL80: 19 | AM80: 19 | AN80: 19 | AO80: 19 | AP80: 19 | AQ80: 19 | AR80: 19 | AS80: 19 | AT80: 0 | AU80: 0 | AV80: 0 | AW80: 0 | AX80: 0 | AY80: 0 | AZ80: 0 | BA80: 0 | BB80: 19 | BC80: 19 | BD80: 19 | BE80: 19 | BF80: 19 | BG80: 19 | BH80: 19 | BI80: 19
A81: Dual Antenna | B81: K | C81: Unii 2 | D81: 7 | E81: 0 | F81: 16 | G81: 16 | H81: 16 | I81: 16 | J81: 16 | K81: 16 | L81: 16 | M81: 16 | N81: 13 | O81: 13 | P81: 13 | Q81: 13 | R81: 13 | S81: 13 | T81: 13 | U81: 13 | V81: 16 | W81: 16 | X81: 16 | Y81: 16 | Z81: 16 | AA81: 16 | AB81: 16 | AC81: 16 | AD81: 16 | AE81: 16 | AF81: 16 | AG81: 16 | AH81: 16 | AI81: 16 | AJ81: 16 | AK81: 16 | AL81: 16 | AM81: 16 | AN81: 16 | AO81: 16 | AP81: 16 | AQ81: 16 | AR81: 16 | AS81: 16 | AT81: 16 | AU81: 16 | AV81: 16 | AW81: 16 | AX81: 16 | AY81: 16 | AZ81: 16 | BA81: 16 | BB81: 16 | BC81: 16 | BD81: 16 | BE81: 16 | BF81: 16 | BG81: 16 | BH81: 16 | BI81: 16
A82: Allowed Powers List | B82: K | C82: Unii 2 | D82: 7 | E82: 7 | F82: 11 | G82: 17 | H82: 20 | I82: 23 | J82: 0 | K82: 0 | L82: 0 | M82: 0 | N82: 0 | O82: 0 | P82: 0 | Q82: 0 | R82: 0 | S82: 0 | T82: 0 | U82: 0 | V82: 0 | W82: 0 | X82: 0 | Y82: 0 | Z82: 0 | AA82: 0 | AB82: 0 | AC82: 0 | AD82: 0 | AE82: 0 | AF82: 0 | AG82: 0 | AH82: 0 | AI82: 0 | AJ82: 0 | AK82: 0 | AL82: 0 | AM82: 0 | AN82: 0 | AO82: 0 | AP82: 0 | AQ82: 0 | AR82: 0 | AS82: 0 | AT82: 0 | AU82: 0 | AV82: 0 | AW82: 0 | AX82: 0 | AY82: 0 | AZ82: 0 | BA82: 0 | BB82: 0 | BC82: 0 | BD82: 0 | BE82: 0 | BF82: 0 | BG82: 0 | BH82: 0 | BI82: 0
A83: Single Antenna | B83: K | C83: Unii 2ext | D83: 4 | E83: 0 | F83: 22 | G83: 22 | H83: 22 | I83: 22 | J83: 22 | K83: 22 | L83: 22 | M83: 22 | N83: 0 | O83: 0 | P83: 0 | Q83: 0 | R83: 0 | S83: 0 | T83: 0 | U83: 0 | V83: 22 | W83: 22 | X83: 22 | Y83: 22 | Z83: 22 | AA83: 22 | AB83: 22 | AC83: 20 | AD83: 0 | AE83: 0 | AF83: 0 | AG83: 0 | AH83: 0 | AI83: 0 | AJ83: 0 | AK83: 0 | AL83: 22 | AM83: 22 | AN83: 22 | AO83: 22 | AP83: 22 | AQ83: 22 | AR83: 22 | AS83: 20 | AT83: 0 | AU83: 0 | AV83: 0 | AW83: 0 | AX83: 0 | AY83: 0 | AZ83: 0 | BA83: 0 | BB83: 22 | BC83: 22 | BD83: 22 | BE83: 22 | BF83: 22 | BG83: 22 | BH83: 22 | BI83: 20
A84: Dual Antenna | B84: K | C84: Unii 2ext | D84: 4 | E84: 0 | F84: 19 | G84: 19 | H84: 19 | I84: 19 | J84: 19 | K84: 19 | L84: 19 | M84: 19 | N84: 16 | O84: 16 | P84: 16 | Q84: 16 | R84: 16 | S84: 16 | T84: 16 | U84: 16 | V84: 19 | W84: 19 | X84: 19 | Y84: 19 | Z84: 19 | AA84: 19 | AB84: 19 | AC84: 19 | AD84: 19 | AE84: 19 | AF84: 19 | AG84: 19 | AH84: 19 | AI84: 19 | AJ84: 19 | AK84: 19 | AL84: 19 | AM84: 19 | AN84: 19 | AO84: 19 | AP84: 19 | AQ84: 19 | AR84: 19 | AS84: 19 | AT84: 19 | AU84: 19 | AV84: 19 | AW84: 19 | AX84: 19 | AY84: 19 | AZ84: 19 | BA84: 19 | BB84: 19 | BC84: 19 | BD84: 19 | BE84: 19 | BF84: 19 | BG84: 19 | BH84: 19 | BI84: 19
A85: Allowed Powers List | B85: K | C85: Unii 2ext | D85: 4 | E85: 7 | F85: 11 | G85: 17 | H85: 20 | I85: 23 | J85: 0 | K85: 0 | L85: 0 | M85: 0 | N85: 0 | O85: 0 | P85: 0 | Q85: 0 | R85: 0 | S85: 0 | T85: 0 | U85: 0 | V85: 0 | W85: 0 | X85: 0 | Y85: 0 | Z85: 0 | AA85: 0 | AB85: 0 | AC85: 0 | AD85: 0 | AE85: 0 | AF85: 0 | AG85: 0 | AH85: 0 | AI85: 0 | AJ85: 0 | AK85: 0 | AL85: 0 | AM85: 0 | AN85: 0 | AO85: 0 | AP85: 0 | AQ85: 0 | AR85: 0 | AS85: 0 | AT85: 0 | AU85: 0 | AV85: 0 | AW85: 0 | AX85: 0 | AY85: 0 | AZ85: 0 | BA85: 0 | BB85: 0 | BC85: 0 | BD85: 0 | BE85: 0 | BF85: 0 | BG85: 0 | BH85: 0 | BI85: 0
A86: Single Antenna | B86: K | C86: Unii 2ext | D86: 7 | E86: 0 | F86: 19 | G86: 19 | H86: 19 | I86: 19 | J86: 19 | K86: 19 | L86: 19 | M86: 19 | N86: 0 | O86: 0 | P86: 0 | Q86: 0 | R86: 0 | S86: 0 | T86: 0 | U86: 0 | V86: 19 | W86: 19 | X86: 19 | Y86: 19 | Z86: 19 | AA86: 19 | AB86: 19 | AC86: 19 | AD86: 0 | AE86: 0 | AF86: 0 | AG86: 0 | AH86: 0 | AI86: 0 | AJ86: 0 | AK86: 0 | AL86: 19 | AM86: 19 | AN86: 19 | AO86: 19 | AP86: 19 | AQ86: 19 | AR86: 19 | AS86: 19 | AT86: 0 | AU86: 0 | AV86: 0 | AW86: 0 | AX86: 0 | AY86: 0 | AZ86: 0 | BA86: 0 | BB86: 19 | BC86: 19 | BD86: 19 | BE86: 19 | BF86: 19 | BG86: 19 | BH86: 19 | BI86: 19
A87: Dual Antenna | B87: K | C87: Unii 2ext | D87: 7 | E87: 0 | F87: 16 | G87: 16 | H87: 16 | I87: 16 | J87: 16 | K87: 16 | L87: 16 | M87: 16 | N87: 13 | O87: 13 | P87: 13 | Q87: 13 | R87: 13 | S87: 13 | T87: 13 | U87: 13 | V87: 16 | W87: 16 | X87: 16 | Y87: 16 | Z87: 16 | AA87: 16 | AB87: 16 | AC87: 16 | AD87: 16 | AE87: 16 | AF87: 16 | AG87: 16 | AH87: 16 | AI87: 16 | AJ87: 16 | AK87: 16 | AL87: 16 | AM87: 16 | AN87: 16 | AO87: 16 | AP87: 16 | AQ87: 16 | AR87: 16 | AS87: 16 | AT87: 16 | AU87: 16 | AV87: 16 | AW87: 16 | AX87: 16 | AY87: 16 | AZ87: 16 | BA87: 16 | BB87: 16 | BC87: 16 | BD87: 16 | BE87: 16 | BF87: 16 | BG87: 16 | BH87: 16 | BI87: 16
A88: Allowed Powers List | B88: K | C88: Unii 2ext | D88: 7 | E88: 7 | F88: 11 | G88: 17 | H88: 20 | I88: 23 | J88: 0 | K88: 0 | L88: 0 | M88: 0 | N88: 0 | O88: 0 | P88: 0 | Q88: 0 | R88: 0 | S88: 0 | T88: 0 | U88: 0 | V88: 0 | W88: 0 | X88: 0 | Y88: 0 | Z88: 0 | AA88: 0 | AB88: 0 | AC88: 0 | AD88: 0 | AE88: 0 | AF88: 0 | AG88: 0 | AH88: 0 | AI88: 0 | AJ88: 0 | AK88: 0 | AL88: 0 | AM88: 0 | AN88: 0 | AO88: 0 | AP88: 0 | AQ88: 0 | AR88: 0 | AS88: 0 | AT88: 0 | AU88: 0 | AV88: 0 | AW88: 0 | AX88: 0 | AY88: 0 | AZ88: 0 | BA88: 0 | BB88: 0 | BC88: 0 | BD88: 0 | BE88: 0 | BF88: 0 | BG88: 0 | BH88: 0 | BI88: 0
A89: Single Antenna | B89: K | C89: Upper ISM | D89: 4 | E89: 0 | F89: 19 | G89: 19 | H89: 19 | I89: 19 | J89: 19 | K89: 19 | L89: 19 | M89: 19 | N89: 0 | O89: 0 | P89: 0 | Q89: 0 | R89: 0 | S89: 0 | T89: 0 | U89: 0 | V89: 19 | W89: 19 | X89: 19 | Y89: 19 | Z89: 19 | AA89: 19 | AB89: 19 | AC89: 19 | AD89: 0 | AE89: 0 | AF89: 0 | AG89: 0 | AH89: 0 | AI89: 0 | AJ89: 0 | AK89: 0 | AL89: 19 | AM89: 19 | AN89: 19 | AO89: 19 | AP89: 19 | AQ89: 19 | AR89: 19 | AS89: 19 | AT89: 0 | AU89: 0 | AV89: 0 | AW89: 0 | AX89: 0 | AY89: 0 | AZ89: 0 | BA89: 0 | BB89: 19 | BC89: 19 | BD89: 19 | BE89: 19 | BF89: 19 | BG89: 19 | BH89: 19 | BI89: 19
A90: Dual Antenna | B90: K | C90: Upper ISM | D90: 4 | E90: 0 | F90: 19 | G90: 19 | H90: 19 | I90: 19 | J90: 19 | K90: 19 | L90: 19 | M90: 19 | N90: 18 | O90: 18 | P90: 18 | Q90: 18 | R90: 18 | S90: 18 | T90: 18 | U90: 18 | V90: 19 | W90: 19 | X90: 19 | Y90: 19 | Z90: 19 | AA90: 19 | AB90: 19 | AC90: 19 | AD90: 19 | AE90: 19 | AF90: 19 | AG90: 19 | AH90: 19 | AI90: 19 | AJ90: 19 | AK90: 19 | AL90: 19 | AM90: 19 | AN90: 19 | AO90: 19 | AP90: 19 | AQ90: 19 | AR90: 19 | AS90: 19 | AT90: 19 | AU90: 19 | AV90: 19 | AW90: 19 | AX90: 19 | AY90: 19 | AZ90: 19 | BA90: 19 | BB90: 19 | BC90: 19 | BD90: 19 | BE90: 19 | BF90: 19 | BG90: 19 | BH90: 19 | BI90: 19
A91: Allowed Powers List | B91: K | C91: Upper ISM | D91: 4 | E91: 13 | F91: 16 | G91: 19 | H91: 22 | I91: 25 | J91: 0 | K91: 0 | L91: 0 | M91: 0 | N91: 0 | O91: 0 | P91: 0 | Q91: 0 | R91: 0 | S91: 0 | T91: 0 | U91: 0 | V91: 0 | W91: 0 | X91: 0 | Y91: 0 | Z91: 0 | AA91: 0 | AB91: 0 | AC91: 0 | AD91: 0 | AE91: 0 | AF91: 0 | AG91: 0 | AH91: 0 | AI91: 0 | AJ91: 0 | AK91: 0 | AL91: 0 | AM91: 0 | AN91: 0 | AO91: 0 | AP91: 0 | AQ91: 0 | AR91: 0 | AS91: 0 | AT91: 0 | AU91: 0 | AV91: 0 | AW91: 0 | AX91: 0 | AY91: 0 | AZ91: 0 | BA91: 0 | BB91: 0 | BC91: 0 | BD91: 0 | BE91: 0 | BF91: 0 | BG91: 0 | BH91: 0 | BI91: 0
A92: Single Antenna | B92: K | C92: Upper ISM | D92: 7 | E92: 0 | F92: 19 | G92: 19 | H92: 19 | I92: 19 | J92: 19 | K92: 19 | L92: 19 | M92: 19 | N92: 0 | O92: 0 | P92: 0 | Q92: 0 | R92: 0 | S92: 0 | T92: 0 | U92: 0 | V92: 19 | W92: 19 | X92: 19 | Y92: 19 | Z92: 19 | AA92: 19 | AB92: 19 | AC92: 19 | AD92: 0 | AE92: 0 | AF92: 0 | AG92: 0 | AH92: 0 | AI92: 0 | AJ92: 0 | AK92: 0 | AL92: 19 | AM92: 19 | AN92: 19 | AO92: 19 | AP92: 19 | AQ92: 19 | AR92: 19 | AS92: 19 | AT92: 0 | AU92: 0 | AV92: 0 | AW92: 0 | AX92: 0 | AY92: 0 | AZ92: 0 | BA92: 0 | BB92: 19 | BC92: 19 | BD92: 19 | BE92: 19 | BF92: 19 | BG92: 19 | BH92: 19 | BI92: 19
A93: Dual Antenna | B93: K | C93: Upper ISM | D93: 7 | E93: 0 | F93: 18 | G93: 18 | H93: 18 | I93: 18 | J93: 18 | K93: 18 | L93: 18 | M93: 18 | N93: 15 | O93: 15 | P93: 15 | Q93: 15 | R93: 15 | S93: 15 | T93: 15 | U93: 15 | V93: 18 | W93: 18 | X93: 18 | Y93: 18 | Z93: 18 | AA93: 18 | AB93: 18 | AC93: 18 | AD93: 18 | AE93: 18 | AF93: 18 | AG93: 18 | AH93: 18 | AI93: 18 | AJ93: 18 | AK93: 18 | AL93: 18 | AM93: 18 | AN93: 18 | AO93: 18 | AP93: 18 | AQ93: 18 | AR93: 18 | AS93: 18 | AT93: 18 | AU93: 18 | AV93: 18 | AW93: 18 | AX93: 18 | AY93: 18 | AZ93: 18 | BA93: 18 | BB93: 18 | BC93: 18 | BD93: 18 | BE93: 18 | BF93: 18 | BG93: 18 | BH93: 18 | BI93: 18
A94: Allowed Powers List | B94: K | C94: Upper ISM | D94: 7 | E94: 13 | F94: 16 | G94: 19 | H94: 22 | I94: 25 | J94: 0 | K94: 0 | L94: 0 | M94: 0 | N94: 0 | O94: 0 | P94: 0 | Q94: 0 | R94: 0 | S94: 0 | T94: 0 | U94: 0 | V94: 0 | W94: 0 | X94: 0 | Y94: 0 | Z94: 0 | AA94: 0 | AB94: 0 | AC94: 0 | AD94: 0 | AE94: 0 | AF94: 0 | AG94: 0 | AH94: 0 | AI94: 0 | AJ94: 0 | AK94: 0 | AL94: 0 | AM94: 0 | AN94: 0 | AO94: 0 | AP94: 0 | AQ94: 0 | AR94: 0 | AS94: 0 | AT94: 0 | AU94: 0 | AV94: 0 | AW94: 0 | AX94: 0 | AY94: 0 | AZ94: 0 | BA94: 0 | BB94: 0 | BC94: 0 | BD94: 0 | BE94: 0 | BF94: 0 | BG94: 0 | BH94: 0 | BI94: 0
A95: Single Antenna | B95: M | C95: Unii 2 | D95: 4 | E95: -99 | F95: -99 | G95: -99 | H95: -99 | I95: -99 | J95: -99 | K95: -99 | L95: -99 | M95: -99 | N95: -99 | O95: -99 | P95: -99 | Q95: -99 | R95: -99 | S95: -99 | T95: -99 | U95: -99 | V95: -99 | W95: -99 | X95: -99 | Y95: -99 | Z95: -99 | AA95: -99 | AB95: -99 | AC95: -99 | AD95: -99 | AE95: -99 | AF95: -99 | AG95: -99 | AH95: -99 | AI95: -99 | AJ95: -99 | AK95: -99 | AL95: -99 | AM95: -99 | AN95: -99 | AO95: -99 | AP95: -99 | AQ95: -99 | AR95: -99 | AS95: -99 | AT95: -99 | AU95: -99 | AV95: -99 | AW95: -99 | AX95: -99 | AY95: -99 | AZ95: -99 | BA95: -99 | BB95: -99 | BC95: -99 | BD95: -99 | BE95: -99 | BF95: -99 | BG95: -99 | BH95: -99 | BI95: -99
A96: Dual Antenna | B96: M | C96: Unii 2 | D96: 4 | E96: -99 | F96: -99 | G96: -99 | H96: -99 | I96: -99 | J96: -99 | K96: -99 | L96: -99 | M96: -99 | N96: -99 | O96: -99 | P96: -99 | Q96: -99 | R96: -99 | S96: -99 | T96: -99 | U96: -99 | V96: -99 | W96: -99 | X96: -99 | Y96: -99 | Z96: -99 | AA96: -99 | AB96: -99 | AC96: -99 | AD96: -99 | AE96: -99 | AF96: -99 | AG96: -99 | AH96: -99 | AI96: -99 | AJ96: -99 | AK96: -99 | AL96: -99 | AM96: -99 | AN96: -99 | AO96: -99 | AP96: -99 | AQ96: -99 | AR96: -99 | AS96: -99 | AT96: -99 | AU96: -99 | AV96: -99 | AW96: -99 | AX96: -99 | AY96: -99 | AZ96: -99 | BA96: -99 | BB96: -99 | BC96: -99 | BD96: -99 | BE96: -99 | BF96: -99 | BG96: -99 | BH96: -99 | BI96: -99
A97: Allowed Powers List | B97: M | C97: Unii 2 | D97: 4 | E97: -99 | F97: -99 | G97: -99 | H97: -99 | I97: -99 | J97: -99 | K97: -99 | L97: -99 | M97: -99 | N97: -99 | O97: -99 | P97: -99 | Q97: -99 | R97: -99 | S97: -99 | T97: -99 | U97: -99 | V97: -99 | W97: -99 | X97: -99 | Y97: -99 | Z97: -99 | AA97: -99 | AB97: -99 | AC97: -99 | AD97: -99 | AE97: -99 | AF97: -99 | AG97: -99 | AH97: -99 | AI97: -99 | AJ97: -99 | AK97: -99 | AL97: -99 | AM97: -99 | AN97: -99 | AO97: -99 | AP97: -99 | AQ97: -99 | AR97: -99 | AS97: -99 | AT97: -99 | AU97: -99 | AV97: -99 | AW97: -99 | AX97: -99 | AY97: -99 | AZ97: -99 | BA97: -99 | BB97: -99 | BC97: -99 | BD97: -99 | BE97: -99 | BF97: -99 | BG97: -99 | BH97: -99 | BI97: -99
A98: Single Antenna | B98: M | C98: Unii 2 | D98: 7 | E98: -99 | F98: -99 | G98: -99 | H98: -99 | I98: -99 | J98: -99 | K98: -99 | L98: -99 | M98: -99 | N98: -99 | O98: -99 | P98: -99 | Q98: -99 | R98: -99 | S98: -99 | T98: -99 | U98: -99 | V98: -99 | W98: -99 | X98: -99 | Y98: -99 | Z98: -99 | AA98: -99 | AB98: -99 | AC98: -99 | AD98: -99 | AE98: -99 | AF98: -99 | AG98: -99 | AH98: -99 | AI98: -99 | AJ98: -99 | AK98: -99 | AL98: -99 | AM98: -99 | AN98: -99 | AO98: -99 | AP98: -99 | AQ98: -99 | AR98: -99 | AS98: -99 | AT98: -99 | AU98: -99 | AV98: -99 | AW98: -99 | AX98: -99 | AY98: -99 | AZ98: -99 | BA98: -99 | BB98: -99 | BC98: -99 | BD98: -99 | BE98: -99 | BF98: -99 | BG98: -99 | BH98: -99 | BI98: -99
A99: Dual Antenna | B99: M | C99: Unii 2 | D99: 7 | E99: -99 | F99: -99 | G99: -99 | H99: -99 | I99: -99 | J99: -99 | K99: -99 | L99: -99 | M99: -99 | N99: -99 | O99: -99 | P99: -99 | Q99: -99 | R99: -99 | S99: -99 | T99: -99 | U99: -99 | V99: -99 | W99: -99 | X99: -99 | Y99: -99 | Z99: -99 | AA99: -99 | AB99: -99 | AC99: -99 | AD99: -99 | AE99: -99 | AF99: -99 | AG99: -99 | AH99: -99 | AI99: -99 | AJ99: -99 | AK99: -99 | AL99: -99 | AM99: -99 | AN99: -99 | AO99: -99 | AP99: -99 | AQ99: -99 | AR99: -99 | AS99: -99 | AT99: -99 | AU99: -99 | AV99: -99 | AW99: -99 | AX99: -99 | AY99: -99 | AZ99: -99 | BA99: -99 | BB99: -99 | BC99: -99 | BD99: -99 | BE99: -99 | BF99: -99 | BG99: -99 | BH99: -99 | BI99: -99
A100: Allowed Powers List | B100: M | C100: Unii 2 | D100: 7 | E100: -99 | F100: -99 | G100: -99 | H100: -99 | I100: -99 | J100: -99 | K100: -99 | L100: -99 | M100: -99 | N100: -99 | O100: -99 | P100: -99 | Q100: -99 | R100: -99 | S100: -99 | T100: -99 | U100: -99 | V100: -99 | W100: -99 | X100: -99 | Y100: -99 | Z100: -99 | AA100: -99 | AB100: -99 | AC100: -99 | AD100: -99 | AE100: -99 | AF100: -99 | AG100: -99 | AH100: -99 | AI100: -99 | AJ100: -99 | AK100: -99 | AL100: -99 | AM100: -99 | AN100: -99 | AO100: -99 | AP100: -99 | AQ100: -99 | AR100: -99 | AS100: -99 | AT100: -99 | AU100: -99 | AV100: -99 | AW100: -99 | AX100: -99 | AY100: -99 | AZ100: -99 | BA100: -99 | BB100: -99 | BC100: -99 | BD100: -99 | BE100: -99 | BF100: -99 | BG100: -99 | BH100: -99 | BI100: -99
A101: Single Antenna | B101: M | C101: Unii 2ext | D101: 4 | E101: 0 | F101: 23 | G101: 23 | H101: 23 | I101: 23 | J101: 23 | K101: 23 | L101: 23 | M101: 22 | N101: 0 | O101: 0 | P101: 0 | Q101: 0 | R101: 0 | S101: 0 | T101: 0 | U101: 0 | V101: 23 | W101: 23 | X101: 23 | Y101: 23 | Z101: 23 | AA101: 23 | AB101: 22 | AC101: 20 | AD101: 0 | AE101: 0 | AF101: 0 | AG101: 0 | AH101: 0 | AI101: 0 | AJ101: 0 | AK101: 0 | AL101: 23 | AM101: 23 | AN101: 23 | AO101: 23 | AP101: 23 | AQ101: 23 | AR101: 22 | AS101: 20 | AT101: 0 | AU101: 0 | AV101: 0 | AW101: 0 | AX101: 0 | AY101: 0 | AZ101: 0 | BA101: 0 | BB101: 23 | BC101: 23 | BD101: 23 | BE101: 23 | BF101: 23 | BG101: 23 | BH101: 23 | BI101: 22
A102: Dual Antenna | B102: M | C102: Unii 2ext | D102: 4 | E102: 0 | F102: 22 | G102: 22 | H102: 22 | I102: 22 | J102: 22 | K102: 22 | L102: 22 | M102: 22 | N102: 19 | O102: 19 | P102: 19 | Q102: 19 | R102: 19 | S102: 19 | T102: 19 | U102: 19 | V102: 22 | W102: 22 | X102: 22 | Y102: 22 | Z102: 22 | AA102: 22 | AB102: 22 | AC102: 20 | AD102: 22 | AE102: 22 | AF102: 22 | AG102: 22 | AH102: 22 | AI102: 22 | AJ102: 22 | AK102: 20 | AL102: 23 | AM102: 23 | AN102: 23 | AO102: 23 | AP102: 23 | AQ102: 23 | AR102: 22 | AS102: 20 | AT102: 23 | AU102: 23 | AV102: 23 | AW102: 23 | AX102: 23 | AY102: 23 | AZ102: 22 | BA102: 20 | BB102: 23 | BC102: 23 | BD102: 23 | BE102: 23 | BF102: 23 | BG102: 23 | BH102: 23 | BI102: 22
A103: Allowed Powers List | B103: M | C103: Unii 2ext | D103: 4 | E103: 7 | F103: 11 | G103: 17 | H103: 20 | I103: 23 | J103: 0 | K103: 0 | L103: 0 | M103: 0 | N103: 0 | O103: 0 | P103: 0 | Q103: 0 | R103: 0 | S103: 0 | T103: 0 | U103: 0 | V103: 0 | W103: 0 | X103: 0 | Y103: 0 | Z103: 0 | AA103: 0 | AB103: 0 | AC103: 0 | AD103: 0 | AE103: 0 | AF103: 0 | AG103: 0 | AH103: 0 | AI103: 0 | AJ103: 0 | AK103: 0 | AL103: 0 | AM103: 0 | AN103: 0 | AO103: 0 | AP103: 0 | AQ103: 0 | AR103: 0 | AS103: 0 | AT103: 0 | AU103: 0 | AV103: 0 | AW103: 0 | AX103: 0 | AY103: 0 | AZ103: 0 | BA103: 0 | BB103: 0 | BC103: 0 | BD103: 0 | BE103: 0 | BF103: 0 | BG103: 0 | BH103: 0 | BI103: 0
A104: Single Antenna | B104: M | C104: Unii 2ext | D104: 7 | E104: 0 | F104: 22 | G104: 22 | H104: 22 | I104: 22 | J104: 22 | K104: 22 | L104: 22 | M104: 22 | N104: 0 | O104: 0 | P104: 0 | Q104: 0 | R104: 0 | S104: 0 | T104: 0 | U104: 0 | V104: 22 | W104: 22 | X104: 22 | Y104: 22 | Z104: 22 | AA104: 22 | AB104: 22 | AC104: 20 | AD104: 0 | AE104: 0 | AF104: 0 | AG104: 0 | AH104: 0 | AI104: 0 | AJ104: 0 | AK104: 0 | AL104: 23 | AM104: 23 | AN104: 23 | AO104: 23 | AP104: 23 | AQ104: 23 | AR104: 22 | AS104: 20 | AT104: 0 | AU104: 0 | AV104: 0 | AW104: 0 | AX104: 0 | AY104: 0 | AZ104: 0 | BA104: 0 | BB104: 20 | BC104: 20 | BD104: 20 | BE104: 20 | BF104: 20 | BG104: 20 | BH104: 20 | BI104: 20
A105: Dual Antenna | B105: M | C105: Unii 2ext | D105: 7 | E105: 0 | F105: 19 | G105: 19 | H105: 19 | I105: 19 | J105: 19 | K105: 19 | L105: 19 | M105: 19 | N105: 16 | O105: 16 | P105: 16 | Q105: 16 | R105: 16 | S105: 16 | T105: 16 | U105: 16 | V105: 19 | W105: 19 | X105: 19 | Y105: 19 | Z105: 19 | AA105: 19 | AB105: 19 | AC105: 19 | AD105: 19 | AE105: 19 | AF105: 19 | AG105: 19 | AH105: 19 | AI105: 19 | AJ105: 19 | AK105: 19 | AL105: 20 | AM105: 20 | AN105: 20 | AO105: 20 | AP105: 20 | AQ105: 20 | AR105: 20 | AS105: 20 | AT105: 20 | AU105: 20 | AV105: 20 | AW105: 20 | AX105: 20 | AY105: 20 | AZ105: 20 | BA105: 20 | BB105: 20 | BC105: 20 | BD105: 20 | BE105: 20 | BF105: 20 | BG105: 20 | BH105: 20 | BI105: 20
A106: Allowed Powers List | B106: M | C106: Unii 2ext | D106: 7 | E106: 7 | F106: 11 | G106: 17 | H106: 20 | I106: 23 | J106: 0 | K106: 0 | L106: 0 | M106: 0 | N106: 0 | O106: 0 | P106: 0 | Q106: 0 | R106: 0 | S106: 0 | T106: 0 | U106: 0 | V106: 0 | W106: 0 | X106: 0 | Y106: 0 | Z106: 0 | AA106: 0 | AB106: 0 | AC106: 0 | AD106: 0 | AE106: 0 | AF106: 0 | AG106: 0 | AH106: 0 | AI106: 0 | AJ106: 0 | AK106: 0 | AL106: 0 | AM106: 0 | AN106: 0 | AO106: 0 | AP106: 0 | AQ106: 0 | AR106: 0 | AS106: 0 | AT106: 0 | AU106: 0 | AV106: 0 | AW106: 0 | AX106: 0 | AY106: 0 | AZ106: 0 | BA106: 0 | BB106: 0 | BC106: 0 | BD106: 0 | BE106: 0 | BF106: 0 | BG106: 0 | BH106: 0 | BI106: 0
A107: Single Antenna | B107: M | C107: Upper ISM | D107: 4 | E107: 0 | F107: 25 | G107: 25 | H107: 25 | I107: 25 | J107: 25 | K107: 24 | L107: 23 | M107: 22 | N107: 0 | O107: 0 | P107: 0 | Q107: 0 | R107: 0 | S107: 0 | T107: 0 | U107: 0 | V107: 24 | W107: 24 | X107: 24 | Y107: 24 | Z107: 24 | AA107: 23 | AB107: 22 | AC107: 20 | AD107: 0 | AE107: 0 | AF107: 0 | AG107: 0 | AH107: 0 | AI107: 0 | AJ107: 0 | AK107: 0 | AL107: 23 | AM107: 23 | AN107: 23 | AO107: 23 | AP107: 23 | AQ107: 23 | AR107: 22 | AS107: 20 | AT107: 0 | AU107: 0 | AV107: 0 | AW107: 0 | AX107: 0 | AY107: 0 | AZ107: 0 | BA107: 0 | BB107: 23 | BC107: 23 | BD107: 23 | BE107: 23 | BF107: 23 | BG107: 23 | BH107: 23 | BI107: 22
A108: Dual Antenna | B108: M | C108: Upper ISM | D108: 4 | E108: 0 | F108: 23 | G108: 23 | H108: 23 | I108: 23 | J108: 23 | K108: 23 | L108: 23 | M108: 22 | N108: 20 | O108: 20 | P108: 20 | Q108: 20 | R108: 20 | S108: 20 | T108: 20 | U108: 20 | V108: 23 | W108: 23 | X108: 23 | Y108: 23 | Z108: 23 | AA108: 23 | AB108: 22 | AC108: 20 | AD108: 23 | AE108: 23 | AF108: 23 | AG108: 23 | AH108: 23 | AI108: 23 | AJ108: 22 | AK108: 20 | AL108: 23 | AM108: 23 | AN108: 23 | AO108: 23 | AP108: 23 | AQ108: 23 | AR108: 22 | AS108: 20 | AT108: 23 | AU108: 23 | AV108: 23 | AW108: 23 | AX108: 23 | AY108: 23 | AZ108: 22 | BA108: 20 | BB108: 23 | BC108: 23 | BD108: 23 | BE108: 23 | BF108: 23 | BG108: 23 | BH108: 23 | BI108: 22
A109: Allowed Powers List | B109: M | C109: Upper ISM | D109: 4 | E109: 13 | F109: 16 | G109: 19 | H109: 22 | I109: 25 | J109: 0 | K109: 0 | L109: 0 | M109: 0 | N109: 0 | O109: 0 | P109: 0 | Q109: 0 | R109: 0 | S109: 0 | T109: 0 | U109: 0 | V109: 0 | W109: 0 | X109: 0 | Y109: 0 | Z109: 0 | AA109: 0 | AB109: 0 | AC109: 0 | AD109: 0 | AE109: 0 | AF109: 0 | AG109: 0 | AH109: 0 | AI109: 0 | AJ109: 0 | AK109: 0 | AL109: 0 | AM109: 0 | AN109: 0 | AO109: 0 | AP109: 0 | AQ109: 0 | AR109: 0 | AS109: 0 | AT109: 0 | AU109: 0 | AV109: 0 | AW109: 0 | AX109: 0 | AY109: 0 | AZ109: 0 | BA109: 0 | BB109: 0 | BC109: 0 | BD109: 0 | BE109: 0 | BF109: 0 | BG109: 0 | BH109: 0 | BI109: 0
A110: Single Antenna | B110: M | C110: Upper ISM | D110: 7 | E110: 0 | F110: 23 | G110: 23 | H110: 23 | I110: 23 | J110: 23 | K110: 23 | L110: 23 | M110: 22 | N110: 0 | O110: 0 | P110: 0 | Q110: 0 | R110: 0 | S110: 0 | T110: 0 | U110: 0 | V110: 23 | W110: 23 | X110: 23 | Y110: 23 | Z110: 23 | AA110: 23 | AB110: 22 | AC110: 20 | AD110: 0 | AE110: 0 | AF110: 0 | AG110: 0 | AH110: 0 | AI110: 0 | AJ110: 0 | AK110: 0 | AL110: 23 | AM110: 23 | AN110: 23 | AO110: 23 | AP110: 23 | AQ110: 23 | AR110: 22 | AS110: 20 | AT110: 0 | AU110: 0 | AV110: 0 | AW110: 0 | AX110: 0 | AY110: 0 | AZ110: 0 | BA110: 0 | BB110: 20 | BC110: 20 | BD110: 20 | BE110: 20 | BF110: 20 | BG110: 20 | BH110: 20 | BI110: 20
A111: Dual Antenna | B111: M | C111: Upper ISM | D111: 7 | E111: 0 | F111: 20 | G111: 20 | H111: 20 | I111: 20 | J111: 20 | K111: 20 | L111: 20 | M111: 20 | N111: 17 | O111: 17 | P111: 17 | Q111: 17 | R111: 17 | S111: 17 | T111: 17 | U111: 17 | V111: 20 | W111: 20 | X111: 20 | Y111: 20 | Z111: 20 | AA111: 20 | AB111: 20 | AC111: 20 | AD111: 20 | AE111: 20 | AF111: 20 | AG111: 20 | AH111: 20 | AI111: 20 | AJ111: 20 | AK111: 20 | AL111: 20 | AM111: 20 | AN111: 20 | AO111: 20 | AP111: 20 | AQ111: 20 | AR111: 20 | AS111: 20 | AT111: 20 | AU111: 20 | AV111: 20 | AW111: 20 | AX111: 20 | AY111: 20 | AZ111: 20 | BA111: 20 | BB111: 20 | BC111: 20 | BD111: 20 | BE111: 20 | BF111: 20 | BG111: 20 | BH111: 20 | BI111: 20
A112: Allowed Powers List | B112: M | C112: Upper ISM | D112: 7 | E112: 13 | F112: 16 | G112: 19 | H112: 22 | I112: 25 | J112: 0 | K112: 0 | L112: 0 | M112: 0 | N112: 0 | O112: 0 | P112: 0 | Q112: 0 | R112: 0 | S112: 0 | T112: 0 | U112: 0 | V112: 0 | W112: 0 | X112: 0 | Y112: 0 | Z112: 0 | AA112: 0 | AB112: 0 | AC112: 0 | AD112: 0 | AE112: 0 | AF112: 0 | AG112: 0 | AH112: 0 | AI112: 0 | AJ112: 0 | AK112: 0 | AL112: 0 | AM112: 0 | AN112: 0 | AO112: 0 | AP112: 0 | AQ112: 0 | AR112: 0 | AS112: 0 | AT112: 0 | AU112: 0 | AV112: 0 | AW112: 0 | AX112: 0 | AY112: 0 | AZ112: 0 | BA112: 0 | BB112: 0 | BC112: 0 | BD112: 0 | BE112: 0 | BF112: 0 | BG112: 0 | BH112: 0 | BI112: 0
A113: Single Antenna | B113: N | C113: Unii 2 | D113: 4 | E113: -99 | F113: -99 | G113: -99 | H113: -99 | I113: -99 | J113: -99 | K113: -99 | L113: -99 | M113: -99 | N113: -99 | O113: -99 | P113: -99 | Q113: -99 | R113: -99 | S113: -99 | T113: -99 | U113: -99 | V113: -99 | W113: -99 | X113: -99 | Y113: -99 | Z113: -99 | AA113: -99 | AB113: -99 | AC113: -99 | AD113: -99 | AE113: -99 | AF113: -99 | AG113: -99 | AH113: -99 | AI113: -99 | AJ113: -99 | AK113: -99 | AL113: -99 | AM113: -99 | AN113: -99 | AO113: -99 | AP113: -99 | AQ113: -99 | AR113: -99 | AS113: -99 | AT113: -99 | AU113: -99 | AV113: -99 | AW113: -99 | AX113: -99 | AY113: -99 | AZ113: -99 | BA113: -99 | BB113: -99 | BC113: -99 | BD113: -99 | BE113: -99 | BF113: -99 | BG113: -99 | BH113: -99 | BI113: -99
A114: Dual Antenna | B114: N | C114: Unii 2 | D114: 4 | E114: -99 | F114: -99 | G114: -99 | H114: -99 | I114: -99 | J114: -99 | K114: -99 | L114: -99 | M114: -99 | N114: -99 | O114: -99 | P114: -99 | Q114: -99 | R114: -99 | S114: -99 | T114: -99 | U114: -99 | V114: -99 | W114: -99 | X114: -99 | Y114: -99 | Z114: -99 | AA114: -99 | AB114: -99 | AC114: -99 | AD114: -99 | AE114: -99 | AF114: -99 | AG114: -99 | AH114: -99 | AI114: -99 | AJ114: -99 | AK114: -99 | AL114: -99 | AM114: -99 | AN114: -99 | AO114: -99 | AP114: -99 | AQ114: -99 | AR114: -99 | AS114: -99 | AT114: -99 | AU114: -99 | AV114: -99 | AW114: -99 | AX114: -99 | AY114: -99 | AZ114: -99 | BA114: -99 | BB114: -99 | BC114: -99 | BD114: -99 | BE114: -99 | BF114: -99 | BG114: -99 | BH114: -99 | BI114: -99
A115: Allowed Powers List | B115: N | C115: Unii 2 | D115: 4 | E115: -99 | F115: -99 | G115: -99 | H115: -99 | I115: -99 | J115: -99 | K115: -99 | L115: -99 | M115: -99 | N115: -99 | O115: -99 | P115: -99 | Q115: -99 | R115: -99 | S115: -99 | T115: -99 | U115: -99 | V115: -99 | W115: -99 | X115: -99 | Y115: -99 | Z115: -99 | AA115: -99 | AB115: -99 | AC115: -99 | AD115: -99 | AE115: -99 | AF115: -99 | AG115: -99 | AH115: -99 | AI115: -99 | AJ115: -99 | AK115: -99 | AL115: -99 | AM115: -99 | AN115: -99 | AO115: -99 | AP115: -99 | AQ115: -99 | AR115: -99 | AS115: -99 | AT115: -99 | AU115: -99 | AV115: -99 | AW115: -99 | AX115: -99 | AY115: -99 | AZ115: -99 | BA115: -99 | BB115: -99 | BC115: -99 | BD115: -99 | BE115: -99 | BF115: -99 | BG115: -99 | BH115: -99 | BI115: -99
A116: Single Antenna | B116: N | C116: Unii 2 | D116: 7 | E116: -99 | F116: -99 | G116: -99 | H116: -99 | I116: -99 | J116: -99 | K116: -99 | L116: -99 | M116: -99 | N116: -99 | O116: -99 | P116: -99 | Q116: -99 | R116: -99 | S116: -99 | T116: -99 | U116: -99 | V116: -99 | W116: -99 | X116: -99 | Y116: -99 | Z116: -99 | AA116: -99 | AB116: -99 | AC116: -99 | AD116: -99 | AE116: -99 | AF116: -99 | AG116: -99 | AH116: -99 | AI116: -99 | AJ116: -99 | AK116: -99 | AL116: -99 | AM116: -99 | AN116: -99 | AO116: -99 | AP116: -99 | AQ116: -99 | AR116: -99 | AS116: -99 | AT116: -99 | AU116: -99 | AV116: -99 | AW116: -99 | AX116: -99 | AY116: -99 | AZ116: -99 | BA116: -99 | BB116: -99 | BC116: -99 | BD116: -99 | BE116: -99 | BF116: -99 | BG116: -99 | BH116: -99 | BI116: -99
A117: Dual Antenna | B117: N | C117: Unii 2 | D117: 7 | E117: -99 | F117: -99 | G117: -99 | H117: -99 | I117: -99 | J117: -99 | K117: -99 | L117: -99 | M117: -99 | N117: -99 | O117: -99 | P117: -99 | Q117: -99 | R117: -99 | S117: -99 | T117: -99 | U117: -99 | V117: -99 | W117: -99 | X117: -99 | Y117: -99 | Z117: -99 | AA117: -99 | AB117: -99 | AC117: -99 | AD117: -99 | AE117: -99 | AF117: -99 | AG117: -99 | AH117: -99 | AI117: -99 | AJ117: -99 | AK117: -99 | AL117: -99 | AM117: -99 | AN117: -99 | AO117: -99 | AP117: -99 | AQ117: -99 | AR117: -99 | AS117: -99 | AT117: -99 | AU117: -99 | AV117: -99 | AW117: -99 | AX117: -99 | AY117: -99 | AZ117: -99 | BA117: -99 | BB117: -99 | BC117: -99 | BD117: -99 | BE117: -99 | BF117: -99 | BG117: -99 | BH117: -99 | BI117: -99
A118: Allowed Powers List | B118: N | C118: Unii 2 | D118: 7 | E118: -99 | F118: -99 | G118: -99 | H118: -99 | I118: -99 | J118: -99 | K118: -99 | L118: -99 | M118: -99 | N118: -99 | O118: -99 | P118: -99 | Q118: -99 | R118: -99 | S118: -99 | T118: -99 | U118: -99 | V118: -99 | W118: -99 | X118: -99 | Y118: -99 | Z118: -99 | AA118: -99 | AB118: -99 | AC118: -99 | AD118: -99 | AE118: -99 | AF118: -99 | AG118: -99 | AH118: -99 | AI118: -99 | AJ118: -99 | AK118: -99 | AL118: -99 | AM118: -99 | AN118: -99 | AO118: -99 | AP118: -99 | AQ118: -99 | AR118: -99 | AS118: -99 | AT118: -99 | AU118: -99 | AV118: -99 | AW118: -99 | AX118: -99 | AY118: -99 | AZ118: -99 | BA118: -99 | BB118: -99 | BC118: -99 | BD118: -99 | BE118: -99 | BF118: -99 | BG118: -99 | BH118: -99 | BI118: -99
A119: Single Antenna | B119: N | C119: Unii 2ext | D119: 4 | E119: -99 | F119: -99 | G119: -99 | H119: -99 | I119: -99 | J119: -99 | K119: -99 | L119: -99 | M119: -99 | N119: -99 | O119: -99 | P119: -99 | Q119: -99 | R119: -99 | S119: -99 | T119: -99 | U119: -99 | V119: -99 | W119: -99 | X119: -99 | Y119: -99 | Z119: -99 | AA119: -99 | AB119: -99 | AC119: -99 | AD119: -99 | AE119: -99 | AF119: -99 | AG119: -99 | AH119: -99 | AI119: -99 | AJ119: -99 | AK119: -99 | AL119: -99 | AM119: -99 | AN119: -99 | AO119: -99 | AP119: -99 | AQ119: -99 | AR119: -99 | AS119: -99 | AT119: -99 | AU119: -99 | AV119: -99 | AW119: -99 | AX119: -99 | AY119: -99 | AZ119: -99 | BA119: -99 | BB119: -99 | BC119: -99 | BD119: -99 | BE119: -99 | BF119: -99 | BG119: -99 | BH119: -99 | BI119: -99
A120: Dual Antenna | B120: N | C120: Unii 2ext | D120: 4 | E120: -99 | F120: -99 | G120: -99 | H120: -99 | I120: -99 | J120: -99 | K120: -99 | L120: -99 | M120: -99 | N120: -99 | O120: -99 | P120: -99 | Q120: -99 | R120: -99 | S120: -99 | T120: -99 | U120: -99 | V120: -99 | W120: -99 | X120: -99 | Y120: -99 | Z120: -99 | AA120: -99 | AB120: -99 | AC120: -99 | AD120: -99 | AE120: -99 | AF120: -99 | AG120: -99 | AH120: -99 | AI120: -99 | AJ120: -99 | AK120: -99 | AL120: -99 | AM120: -99 | AN120: -99 | AO120: -99 | AP120: -99 | AQ120: -99 | AR120: -99 | AS120: -99 | AT120: -99 | AU120: -99 | AV120: -99 | AW120: -99 | AX120: -99 | AY120: -99 | AZ120: -99 | BA120: -99 | BB120: -99 | BC120: -99 | BD120: -99 | BE120: -99 | BF120: -99 | BG120: -99 | BH120: -99 | BI120: -99
A121: Allowed Powers List | B121: N | C121: Unii 2ext | D121: 4 | E121: -99 | F121: -99 | G121: -99 | H121: -99 | I121: -99 | J121: -99 | K121: -99 | L121: -99 | M121: -99 | N121: -99 | O121: -99 | P121: -99 | Q121: -99 | R121: -99 | S121: -99 | T121: -99 | U121: -99 | V121: -99 | W121: -99 | X121: -99 | Y121: -99 | Z121: -99 | AA121: -99 | AB121: -99 | AC121: -99 | AD121: -99 | AE121: -99 | AF121: -99 | AG121: -99 | AH121: -99 | AI121: -99 | AJ121: -99 | AK121: -99 | AL121: -99 | AM121: -99 | AN121: -99 | AO121: -99 | AP121: -99 | AQ121: -99 | AR121: -99 | AS121: -99 | AT121: -99 | AU121: -99 | AV121: -99 | AW121: -99 | AX121: -99 | AY121: -99 | AZ121: -99 | BA121: -99 | BB121: -99 | BC121: -99 | BD121: -99 | BE121: -99 | BF121: -99 | BG121: -99 | BH121: -99 | BI121: -99
A122: Single Antenna | B122: N | C122: Unii 2ext | D122: 7 | E122: -99 | F122: -99 | G122: -99 | H122: -99 | I122: -99 | J122: -99 | K122: -99 | L122: -99 | M122: -99 | N122: -99 | O122: -99 | P122: -99 | Q122: -99 | R122: -99 | S122: -99 | T122: -99 | U122: -99 | V122: -99 | W122: -99 | X122: -99 | Y122: -99 | Z122: -99 | AA122: -99 | AB122: -99 | AC122: -99 | AD122: -99 | AE122: -99 | AF122: -99 | AG122: -99 | AH122: -99 | AI122: -99 | AJ122: -99 | AK122: -99 | AL122: -99 | AM122: -99 | AN122: -99 | AO122: -99 | AP122: -99 | AQ122: -99 | AR122: -99 | AS122: -99 | AT122: -99 | AU122: -99 | AV122: -99 | AW122: -99 | AX122: -99 | AY122: -99 | AZ122: -99 | BA122: -99 | BB122: -99 | BC122: -99 | BD122: -99 | BE122: -99 | BF122: -99 | BG122: -99 | BH122: -99 | BI122: -99
A123: Dual Antenna | B123: N | C123: Unii 2ext | D123: 7 | E123: -99 | F123: -99 | G123: -99 | H123: -99 | I123: -99 | J123: -99 | K123: -99 | L123: -99 | M123: -99 | N123: -99 | O123: -99 | P123: -99 | Q123: -99 | R123: -99 | S123: -99 | T123: -99 | U123: -99 | V123: -99 | W123: -99 | X123: -99 | Y123: -99 | Z123: -99 | AA123: -99 | AB123: -99 | AC123: -99 | AD123: -99 | AE123: -99 | AF123: -99 | AG123: -99 | AH123: -99 | AI123: -99 | AJ123: -99 | AK123: -99 | AL123: -99 | AM123: -99 | AN123: -99 | AO123: -99 | AP123: -99 | AQ123: -99 | AR123: -99 | AS123: -99 | AT123: -99 | AU123: -99 | AV123: -99 | AW123: -99 | AX123: -99 | AY123: -99 | AZ123: -99 | BA123: -99 | BB123: -99 | BC123: -99 | BD123: -99 | BE123: -99 | BF123: -99 | BG123: -99 | BH123: -99 | BI123: -99
A124: Allowed Powers List | B124: N | C124: Unii 2ext | D124: 7 | E124: -99 | F124: -99 | G124: -99 | H124: -99 | I124: -99 | J124: -99 | K124: -99 | L124: -99 | M124: -99 | N124: -99 | O124: -99 | P124: -99 | Q124: -99 | R124: -99 | S124: -99 | T124: -99 | U124: -99 | V124: -99 | W124: -99 | X124: -99 | Y124: -99 | Z124: -99 | AA124: -99 | AB124: -99 | AC124: -99 | AD124: -99 | AE124: -99 | AF124: -99 | AG124: -99 | AH124: -99 | AI124: -99 | AJ124: -99 | AK124: -99 | AL124: -99 | AM124: -99 | AN124: -99 | AO124: -99 | AP124: -99 | AQ124: -99 | AR124: -99 | AS124: -99 | AT124: -99 | AU124: -99 | AV124: -99 | AW124: -99 | AX124: -99 | AY124: -99 | AZ124: -99 | BA124: -99 | BB124: -99 | BC124: -99 | BD124: -99 | BE124: -99 | BF124: -99 | BG124: -99 | BH124: -99 | BI124: -99
A125: Single Antenna | B125: N | C125: Upper ISM | D125: 4 | E125: 0 | F125: 25 | G125: 25 | H125: 25 | I125: 25 | J125: 25 | K125: 24 | L125: 23 | M125: 22 | N125: 0 | O125: 0 | P125: 0 | Q125: 0 | R125: 0 | S125: 0 | T125: 0 | U125: 0 | V125: 24 | W125: 24 | X125: 24 | Y125: 24 | Z125: 24 | AA125: 23 | AB125: 22 | AC125: 20 | AD125: 0 | AE125: 0 | AF125: 0 | AG125: 0 | AH125: 0 | AI125: 0 | AJ125: 0 | AK125: 0 | AL125: 24 | AM125: 24 | AN125: 24 | AO125: 24 | AP125: 24 | AQ125: 23 | AR125: 22 | AS125: 20 | AT125: 0 | AU125: 0 | AV125: 0 | AW125: 0 | AX125: 0 | AY125: 0 | AZ125: 0 | BA125: 0 | BB125: 25 | BC125: 25 | BD125: 25 | BE125: 25 | BF125: 25 | BG125: 24 | BH125: 23 | BI125: 22
A126: Dual Antenna | B126: N | C126: Upper ISM | D126: 4 | E126: 0 | F126: 25 | G126: 25 | H126: 25 | I126: 25 | J126: 25 | K126: 24 | L126: 23 | M126: 22 | N126: 25 | O126: 25 | P126: 25 | Q126: 25 | R126: 25 | S126: 24 | T126: 23 | U126: 22 | V126: 24 | W126: 24 | X126: 24 | Y126: 24 | Z126: 24 | AA126: 23 | AB126: 22 | AC126: 20 | AD126: 24 | AE126: 24 | AF126: 24 | AG126: 24 | AH126: 24 | AI126: 23 | AJ126: 22 | AK126: 20 | AL126: 24 | AM126: 24 | AN126: 24 | AO126: 24 | AP126: 24 | AQ126: 23 | AR126: 22 | AS126: 20 | AT126: 24 | AU126: 24 | AV126: 24 | AW126: 24 | AX126: 24 | AY126: 23 | AZ126: 22 | BA126: 20 | BB126: 25 | BC126: 25 | BD126: 25 | BE126: 25 | BF126: 25 | BG126: 24 | BH126: 23 | BI126: 22
A127: Allowed Powers List | B127: N | C127: Upper ISM | D127: 4 | E127: 13 | F127: 16 | G127: 19 | H127: 22 | I127: 25 | J127: 0 | K127: 0 | L127: 0 | M127: 0 | N127: 0 | O127: 0 | P127: 0 | Q127: 0 | R127: 0 | S127: 0 | T127: 0 | U127: 0 | V127: 0 | W127: 0 | X127: 0 | Y127: 0 | Z127: 0 | AA127: 0 | AB127: 0 | AC127: 0 | AD127: 0 | AE127: 0 | AF127: 0 | AG127: 0 | AH127: 0 | AI127: 0 | AJ127: 0 | AK127: 0 | AL127: 0 | AM127: 0 | AN127: 0 | AO127: 0 | AP127: 0 | AQ127: 0 | AR127: 0 | AS127: 0 | AT127: 0 | AU127: 0 | AV127: 0 | AW127: 0 | AX127: 0 | AY127: 0 | AZ127: 0 | BA127: 0 | BB127: 0 | BC127: 0 | BD127: 0 | BE127: 0 | BF127: 0 | BG127: 0 | BH127: 0 | BI127: 0
A128: Single Antenna | B128: N | C128: Upper ISM | D128: 7 | E128: 0 | F128: 25 | G128: 25 | H128: 25 | I128: 25 | J128: 25 | K128: 24 | L128: 23 | M128: 22 | N128: 0 | O128: 0 | P128: 0 | Q128: 0 | R128: 0 | S128: 0 | T128: 0 | U128: 0 | V128: 24 | W128: 24 | X128: 24 | Y128: 24 | Z128: 24 | AA128: 23 | AB128: 22 | AC128: 20 | AD128: 0 | AE128: 0 | AF128: 0 | AG128: 0 | AH128: 0 | AI128: 0 | AJ128: 0 | AK128: 0 | AL128: 24 | AM128: 24 | AN128: 24 | AO128: 24 | AP128: 24 | AQ128: 23 | AR128: 22 | AS128: 20 | AT128: 0 | AU128: 0 | AV128: 0 | AW128: 0 | AX128: 0 | AY128: 0 | AZ128: 0 | BA128: 0 | BB128: 25 | BC128: 25 | BD128: 25 | BE128: 25 | BF128: 25 | BG128: 24 | BH128: 23 | BI128: 22
A129: Dual Antenna | B129: N | C129: Upper ISM | D129: 7 | E129: 0 | F129: 25 | G129: 25 | H129: 25 | I129: 25 | J129: 25 | K129: 24 | L129: 23 | M129: 22 | N129: 23 | O129: 23 | P129: 23 | Q129: 23 | R129: 23 | S129: 23 | T129: 23 | U129: 22 | V129: 24 | W129: 24 | X129: 24 | Y129: 24 | Z129: 24 | AA129: 23 | AB129: 22 | AC129: 20 | AD129: 24 | AE129: 24 | AF129: 24 | AG129: 24 | AH129: 24 | AI129: 23 | AJ129: 22 | AK129: 20 | AL129: 24 | AM129: 24 | AN129: 24 | AO129: 24 | AP129: 24 | AQ129: 23 | AR129: 22 | AS129: 20 | AT129: 24 | AU129: 24 | AV129: 24 | AW129: 24 | AX129: 24 | AY129: 23 | AZ129: 22 | BA129: 20 | BB129: 25 | BC129: 25 | BD129: 25 | BE129: 25 | BF129: 25 | BG129: 24 | BH129: 23 | BI129: 22
A130: Allowed Powers List | B130: N | C130: Upper ISM | D130: 7 | E130: 13 | F130: 16 | G130: 19 | H130: 22 | I130: 25 | J130: 0 | K130: 0 | L130: 0 | M130: 0 | N130: 0 | O130: 0 | P130: 0 | Q130: 0 | R130: 0 | S130: 0 | T130: 0 | U130: 0 | V130: 0 | W130: 0 | X130: 0 | Y130: 0 | Z130: 0 | AA130: 0 | AB130: 0 | AC130: 0 | AD130: 0 | AE130: 0 | AF130: 0 | AG130: 0 | AH130: 0 | AI130: 0 | AJ130: 0 | AK130: 0 | AL130: 0 | AM130: 0 | AN130: 0 | AO130: 0 | AP130: 0 | AQ130: 0 | AR130: 0 | AS130: 0 | AT130: 0 | AU130: 0 | AV130: 0 | AW130: 0 | AX130: 0 | AY130: 0 | AZ130: 0 | BA130: 0 | BB130: 0 | BC130: 0 | BD130: 0 | BE130: 0 | BF130: 0 | BG130: 0 | BH130: 0 | BI130: 0
A131: Single Antenna | B131: Q | C131: Unii 2 | D131: 4 | E131: -99 | F131: -99 | G131: -99 | H131: -99 | I131: -99 | J131: -99 | K131: -99 | L131: -99 | M131: -99 | N131: -99 | O131: -99 | P131: -99 | Q131: -99 | R131: -99 | S131: -99 | T131: -99 | U131: -99 | V131: -99 | W131: -99 | X131: -99 | Y131: -99 | Z131: -99 | AA131: -99 | AB131: -99 | AC131: -99 | AD131: -99 | AE131: -99 | AF131: -99 | AG131: -99 | AH131: -99 | AI131: -99 | AJ131: -99 | AK131: -99 | AL131: -99 | AM131: -99 | AN131: -99 | AO131: -99 | AP131: -99 | AQ131: -99 | AR131: -99 | AS131: -99 | AT131: -99 | AU131: -99 | AV131: -99 | AW131: -99 | AX131: -99 | AY131: -99 | AZ131: -99 | BA131: -99 | BB131: -99 | BC131: -99 | BD131: -99 | BE131: -99 | BF131: -99 | BG131: -99 | BH131: -99 | BI131: -99
A132: Dual Antenna | B132: Q | C132: Unii 2 | D132: 4 | E132: -99 | F132: -99 | G132: -99 | H132: -99 | I132: -99 | J132: -99 | K132: -99 | L132: -99 | M132: -99 | N132: -99 | O132: -99 | P132: -99 | Q132: -99 | R132: -99 | S132: -99 | T132: -99 | U132: -99 | V132: -99 | W132: -99 | X132: -99 | Y132: -99 | Z132: -99 | AA132: -99 | AB132: -99 | AC132: -99 | AD132: -99 | AE132: -99 | AF132: -99 | AG132: -99 | AH132: -99 | AI132: -99 | AJ132: -99 | AK132: -99 | AL132: -99 | AM132: -99 | AN132: -99 | AO132: -99 | AP132: -99 | AQ132: -99 | AR132: -99 | AS132: -99 | AT132: -99 | AU132: -99 | AV132: -99 | AW132: -99 | AX132: -99 | AY132: -99 | AZ132: -99 | BA132: -99 | BB132: -99 | BC132: -99 | BD132: -99 | BE132: -99 | BF132: -99 | BG132: -99 | BH132: -99 | BI132: -99
A133: Allowed Powers List | B133: Q | C133: Unii 2 | D133: 4 | E133: -99 | F133: -99 | G133: -99 | H133: -99 | I133: -99 | J133: -99 | K133: -99 | L133: -99 | M133: -99 | N133: -99 | O133: -99 | P133: -99 | Q133: -99 | R133: -99 | S133: -99 | T133: -99 | U133: -99 | V133: -99 | W133: -99 | X133: -99 | Y133: -99 | Z133: -99 | AA133: -99 | AB133: -99 | AC133: -99 | AD133: -99 | AE133: -99 | AF133: -99 | AG133: -99 | AH133: -99 | AI133: -99 | AJ133: -99 | AK133: -99 | AL133: -99 | AM133: -99 | AN133: -99 | AO133: -99 | AP133: -99 | AQ133: -99 | AR133: -99 | AS133: -99 | AT133: -99 | AU133: -99 | AV133: -99 | AW133: -99 | AX133: -99 | AY133: -99 | AZ133: -99 | BA133: -99 | BB133: -99 | BC133: -99 | BD133: -99 | BE133: -99 | BF133: -99 | BG133: -99 | BH133: -99 | BI133: -99
A134: Single Antenna | B134: Q | C134: Unii 2 | D134: 7 | E134: -99 | F134: -99 | G134: -99 | H134: -99 | I134: -99 | J134: -99 | K134: -99 | L134: -99 | M134: -99 | N134: -99 | O134: -99 | P134: -99 | Q134: -99 | R134: -99 | S134: -99 | T134: -99 | U134: -99 | V134: -99 | W134: -99 | X134: -99 | Y134: -99 | Z134: -99 | AA134: -99 | AB134: -99 | AC134: -99 | AD134: -99 | AE134: -99 | AF134: -99 | AG134: -99 | AH134: -99 | AI134: -99 | AJ134: -99 | AK134: -99 | AL134: -99 | AM134: -99 | AN134: -99 | AO134: -99 | AP134: -99 | AQ134: -99 | AR134: -99 | AS134: -99 | AT134: -99 | AU134: -99 | AV134: -99 | AW134: -99 | AX134: -99 | AY134: -99 | AZ134: -99 | BA134: -99 | BB134: -99 | BC134: -99 | BD134: -99 | BE134: -99 | BF134: -99 | BG134: -99 | BH134: -99 | BI134: -99
A135: Dual Antenna | B135: Q | C135: Unii 2 | D135: 7 | E135: -99 | F135: -99 | G135: -99 | H135: -99 | I135: -99 | J135: -99 | K135: -99 | L135: -99 | M135: -99 | N135: -99 | O135: -99 | P135: -99 | Q135: -99 | R135: -99 | S135: -99 | T135: -99 | U135: -99 | V135: -99 | W135: -99 | X135: -99 | Y135: -99 | Z135: -99 | AA135: -99 | AB135: -99 | AC135: -99 | AD135: -99 | AE135: -99 | AF135: -99 | AG135: -99 | AH135: -99 | AI135: -99 | AJ135: -99 | AK135: -99 | AL135: -99 | AM135: -99 | AN135: -99 | AO135: -99 | AP135: -99 | AQ135: -99 | AR135: -99 | AS135: -99 | AT135: -99 | AU135: -99 | AV135: -99 | AW135: -99 | AX135: -99 | AY135: -99 | AZ135: -99 | BA135: -99 | BB135: -99 | BC135: -99 | BD135: -99 | BE135: -99 | BF135: -99 | BG135: -99 | BH135: -99 | BI135: -99
A136: Allowed Powers List | B136: Q | C136: Unii 2 | D136: 7 | E136: -99 | F136: -99 | G136: -99 | H136: -99 | I136: -99 | J136: -99 | K136: -99 | L136: -99 | M136: -99 | N136: -99 | O136: -99 | P136: -99 | Q136: -99 | R136: -99 | S136: -99 | T136: -99 | U136: -99 | V136: -99 | W136: -99 | X136: -99 | Y136: -99 | Z136: -99 | AA136: -99 | AB136: -99 | AC136: -99 | AD136: -99 | AE136: -99 | AF136: -99 | AG136: -99 | AH136: -99 | AI136: -99 | AJ136: -99 | AK136: -99 | AL136: -99 | AM136: -99 | AN136: -99 | AO136: -99 | AP136: -99 | AQ136: -99 | AR136: -99 | AS136: -99 | AT136: -99 | AU136: -99 | AV136: -99 | AW136: -99 | AX136: -99 | AY136: -99 | AZ136: -99 | BA136: -99 | BB136: -99 | BC136: -99 | BD136: -99 | BE136: -99 | BF136: -99 | BG136: -99 | BH136: -99 | BI136: -99
A137: Single Antenna | B137: Q | C137: Unii 2ext | D137: 4 | E137: 0 | F137: 22 | G137: 22 | H137: 22 | I137: 22 | J137: 22 | K137: 22 | L137: 22 | M137: 22 | N137: 0 | O137: 0 | P137: 0 | Q137: 0 | R137: 0 | S137: 0 | T137: 0 | U137: 0 | V137: 22 | W137: 22 | X137: 22 | Y137: 22 | Z137: 22 | AA137: 22 | AB137: 22 | AC137: 20 | AD137: 0 | AE137: 0 | AF137: 0 | AG137: 0 | AH137: 0 | AI137: 0 | AJ137: 0 | AK137: 0 | AL137: 22 | AM137: 22 | AN137: 22 | AO137: 22 | AP137: 22 | AQ137: 22 | AR137: 22 | AS137: 20 | AT137: 0 | AU137: 0 | AV137: 0 | AW137: 0 | AX137: 0 | AY137: 0 | AZ137: 0 | BA137: 0 | BB137: 22 | BC137: 22 | BD137: 22 | BE137: 22 | BF137: 22 | BG137: 22 | BH137: 22 | BI137: 20
A138: Dual Antenna | B138: Q | C138: Unii 2ext | D138: 4 | E138: 0 | F138: 19 | G138: 19 | H138: 19 | I138: 19 | J138: 19 | K138: 19 | L138: 19 | M138: 19 | N138: 16 | O138: 16 | P138: 16 | Q138: 16 | R138: 16 | S138: 16 | T138: 16 | U138: 16 | V138: 19 | W138: 19 | X138: 19 | Y138: 19 | Z138: 19 | AA138: 19 | AB138: 19 | AC138: 19 | AD138: 19 | AE138: 19 | AF138: 19 | AG138: 19 | AH138: 19 | AI138: 19 | AJ138: 19 | AK138: 19 | AL138: 19 | AM138: 19 | AN138: 19 | AO138: 19 | AP138: 19 | AQ138: 19 | AR138: 19 | AS138: 19 | AT138: 19 | AU138: 19 | AV138: 19 | AW138: 19 | AX138: 19 | AY138: 19 | AZ138: 19 | BA138: 19 | BB138: 19 | BC138: 19 | BD138: 19 | BE138: 19 | BF138: 19 | BG138: 19 | BH138: 19 | BI138: 19
A139: Allowed Powers List | B139: Q | C139: Unii 2ext | D139: 4 | E139: 7 | F139: 11 | G139: 17 | H139: 20 | I139: 23 | J139: 0 | K139: 0 | L139: 0 | M139: 0 | N139: 0 | O139: 0 | P139: 0 | Q139: 0 | R139: 0 | S139: 0 | T139: 0 | U139: 0 | V139: 0 | W139: 0 | X139: 0 | Y139: 0 | Z139: 0 | AA139: 0 | AB139: 0 | AC139: 0 | AD139: 0 | AE139: 0 | AF139: 0 | AG139: 0 | AH139: 0 | AI139: 0 | AJ139: 0 | AK139: 0 | AL139: 0 | AM139: 0 | AN139: 0 | AO139: 0 | AP139: 0 | AQ139: 0 | AR139: 0 | AS139: 0 | AT139: 0 | AU139: 0 | AV139: 0 | AW139: 0 | AX139: 0 | AY139: 0 | AZ139: 0 | BA139: 0 | BB139: 0 | BC139: 0 | BD139: 0 | BE139: 0 | BF139: 0 | BG139: 0 | BH139: 0 | BI139: 0
A140: Single Antenna | B140: Q | C140: Unii 2ext | D140: 7 | E140: 0 | F140: 19 | G140: 19 | H140: 19 | I140: 19 | J140: 19 | K140: 19 | L140: 19 | M140: 19 | N140: 0 | O140: 0 | P140: 0 | Q140: 0 | R140: 0 | S140: 0 | T140: 0 | U140: 0 | V140: 19 | W140: 19 | X140: 19 | Y140: 19 | Z140: 19 | AA140: 19 | AB140: 19 | AC140: 19 | AD140: 0 | AE140: 0 | AF140: 0 | AG140: 0 | AH140: 0 | AI140: 0 | AJ140: 0 | AK140: 0 | AL140: 19 | AM140: 19 | AN140: 19 | AO140: 19 | AP140: 19 | AQ140: 19 | AR140: 19 | AS140: 19 | AT140: 0 | AU140: 0 | AV140: 0 | AW140: 0 | AX140: 0 | AY140: 0 | AZ140: 0 | BA140: 0 | BB140: 19 | BC140: 19 | BD140: 19 | BE140: 19 | BF140: 19 | BG140: 19 | BH140: 19 | BI140: 19
A141: Dual Antenna | B141: Q | C141: Unii 2ext | D141: 7 | E141: 0 | F141: 16 | G141: 16 | H141: 16 | I141: 16 | J141: 16 | K141: 16 | L141: 16 | M141: 16 | N141: 13 | O141: 13 | P141: 13 | Q141: 13 | R141: 13 | S141: 13 | T141: 13 | U141: 13 | V141: 16 | W141: 16 | X141: 16 | Y141: 16 | Z141: 16 | AA141: 16 | AB141: 16 | AC141: 16 | AD141: 16 | AE141: 16 | AF141: 16 | AG141: 16 | AH141: 16 | AI141: 16 | AJ141: 16 | AK141: 16 | AL141: 16 | AM141: 16 | AN141: 16 | AO141: 16 | AP141: 16 | AQ141: 16 | AR141: 16 | AS141: 16 | AT141: 16 | AU141: 16 | AV141: 16 | AW141: 16 | AX141: 16 | AY141: 16 | AZ141: 16 | BA141: 16 | BB141: 16 | BC141: 16 | BD141: 16 | BE141: 16 | BF141: 16 | BG141: 16 | BH141: 16 | BI141: 16
A142: Allowed Powers List | B142: Q | C142: Unii 2ext | D142: 7 | E142: 7 | F142: 11 | G142: 17 | H142: 20 | I142: 23 | J142: 0 | K142: 0 | L142: 0 | M142: 0 | N142: 0 | O142: 0 | P142: 0 | Q142: 0 | R142: 0 | S142: 0 | T142: 0 | U142: 0 | V142: 0 | W142: 0 | X142: 0 | Y142: 0 | Z142: 0 | AA142: 0 | AB142: 0 | AC142: 0 | AD142: 0 | AE142: 0 | AF142: 0 | AG142: 0 | AH142: 0 | AI142: 0 | AJ142: 0 | AK142: 0 | AL142: 0 | AM142: 0 | AN142: 0 | AO142: 0 | AP142: 0 | AQ142: 0 | AR142: 0 | AS142: 0 | AT142: 0 | AU142: 0 | AV142: 0 | AW142: 0 | AX142: 0 | AY142: 0 | AZ142: 0 | BA142: 0 | BB142: 0 | BC142: 0 | BD142: 0 | BE142: 0 | BF142: 0 | BG142: 0 | BH142: 0 | BI142: 0
A143: Single Antenna | B143: Q | C143: Upper ISM | D143: 4 | E143: -99 | F143: -99 | G143: -99 | H143: -99 | I143: -99 | J143: -99 | K143: -99 | L143: -99 | M143: -99 | N143: -99 | O143: -99 | P143: -99 | Q143: -99 | R143: -99 | S143: -99 | T143: -99 | U143: -99 | V143: -99 | W143: -99 | X143: -99 | Y143: -99 | Z143: -99 | AA143: -99 | AB143: -99 | AC143: -99 | AD143: -99 | AE143: -99 | AF143: -99 | AG143: -99 | AH143: -99 | AI143: -99 | AJ143: -99 | AK143: -99 | AL143: -99 | AM143: -99 | AN143: -99 | AO143: -99 | AP143: -99 | AQ143: -99 | AR143: -99 | AS143: -99 | AT143: -99 | AU143: -99 | AV143: -99 | AW143: -99 | AX143: -99 | AY143: -99 | AZ143: -99 | BA143: -99 | BB143: -99 | BC143: -99 | BD143: -99 | BE143: -99 | BF143: -99 | BG143: -99 | BH143: -99 | BI143: -99
A144: Dual Antenna | B144: Q | C144: Upper ISM | D144: 4 | E144: -99 | F144: -99 | G144: -99 | H144: -99 | I144: -99 | J144: -99 | K144: -99 | L144: -99 | M144: -99 | N144: -99 | O144: -99 | P144: -99 | Q144: -99 | R144: -99 | S144: -99 | T144: -99 | U144: -99 | V144: -99 | W144: -99 | X144: -99 | Y144: -99 | Z144: -99 | AA144: -99 | AB144: -99 | AC144: -99 | AD144: -99 | AE144: -99 | AF144: -99 | AG144: -99 | AH144: -99 | AI144: -99 | AJ144: -99 | AK144: -99 | AL144: -99 | AM144: -99 | AN144: -99 | AO144: -99 | AP144: -99 | AQ144: -99 | AR144: -99 | AS144: -99 | AT144: -99 | AU144: -99 | AV144: -99 | AW144: -99 | AX144: -99 | AY144: -99 | AZ144: -99 | BA144: -99 | BB144: -99 | BC144: -99 | BD144: -99 | BE144: -99 | BF144: -99 | BG144: -99 | BH144: -99 | BI144: -99
A145: Allowed Powers List | B145: Q | C145: Upper ISM | D145: 4 | E145: -99 | F145: -99 | G145: -99 | H145: -99 | I145: -99 | J145: -99 | K145: -99 | L145: -99 | M145: -99 | N145: -99 | O145: -99 | P145: -99 | Q145: -99 | R145: -99 | S145: -99 | T145: -99 | U145: -99 | V145: -99 | W145: -99 | X145: -99 | Y145: -99 | Z145: -99 | AA145: -99 | AB145: -99 | AC145: -99 | AD145: -99 | AE145: -99 | AF145: -99 | AG145: -99 | AH145: -99 | AI145: -99 | AJ145: -99 | AK145: -99 | AL145: -99 | AM145: -99 | AN145: -99 | AO145: -99 | AP145: -99 | AQ145: -99 | AR145: -99 | AS145: -99 | AT145: -99 | AU145: -99 | AV145: -99 | AW145: -99 | AX145: -99 | AY145: -99 | AZ145: -99 | BA145: -99 | BB145: -99 | BC145: -99 | BD145: -99 | BE145: -99 | BF145: -99 | BG145: -99 | BH145: -99 | BI145: -99
A146: Single Antenna | B146: Q | C146: Upper ISM | D146: 7 | E146: -99 | F146: -99 | G146: -99 | H146: -99 | I146: -99 | J146: -99 | K146: -99 | L146: -99 | M146: -99 | N146: -99 | O146: -99 | P146: -99 | Q146: -99 | R146: -99 | S146: -99 | T146: -99 | U146: -99 | V146: -99 | W146: -99 | X146: -99 | Y146: -99 | Z146: -99 | AA146: -99 | AB146: -99 | AC146: -99 | AD146: -99 | AE146: -99 | AF146: -99 | AG146: -99 | AH146: -99 | AI146: -99 | AJ146: -99 | AK146: -99 | AL146: -99 | AM146: -99 | AN146: -99 | AO146: -99 | AP146: -99 | AQ146: -99 | AR146: -99 | AS146: -99 | AT146: -99 | AU146: -99 | AV146: -99 | AW146: -99 | AX146: -99 | AY146: -99 | AZ146: -99 | BA146: -99 | BB146: -99 | BC146: -99 | BD146: -99 | BE146: -99 | BF146: -99 | BG146: -99 | BH146: -99 | BI146: -99
A147: Dual Antenna | B147: Q | C147: Upper ISM | D147: 7 | E147: -99 | F147: -99 | G147: -99 | H147: -99 | I147: -99 | J147: -99 | K147: -99 | L147: -99 | M147: -99 | N147: -99 | O147: -99 | P147: -99 | Q147: -99 | R147: -99 | S147: -99 | T147: -99 | U147: -99 | V147: -99 | W147: -99 | X147: -99 | Y147: -99 | Z147: -99 | AA147: -99 | AB147: -99 | AC147: -99 | AD147: -99 | AE147: -99 | AF147: -99 | AG147: -99 | AH147: -99 | AI147: -99 | AJ147: -99 | AK147: -99 | AL147: -99 | AM147: -99 | AN147: -99 | AO147: -99 | AP147: -99 | AQ147: -99 | AR147: -99 | AS147: -99 | AT147: -99 | AU147: -99 | AV147: -99 | AW147: -99 | AX147: -99 | AY147: -99 | AZ147: -99 | BA147: -99 | BB147: -99 | BC147: -99 | BD147: -99 | BE147: -99 | BF147: -99 | BG147: -99 | BH147: -99 | BI147: -99
A148: Allowed Powers List | B148: Q | C148: Upper ISM | D148: 7 | E148: -99 | F148: -99 | G148: -99 | H148: -99 | I148: -99 | J148: -99 | K148: -99 | L148: -99 | M148: -99 | N148: -99 | O148: -99 | P148: -99 | Q148: -99 | R148: -99 | S148: -99 | T148: -99 | U148: -99 | V148: -99 | W148: -99 | X148: -99 | Y148: -99 | Z148: -99 | AA148: -99 | AB148: -99 | AC148: -99 | AD148: -99 | AE148: -99 | AF148: -99 | AG148: -99 | AH148: -99 | AI148: -99 | AJ148: -99 | AK148: -99 | AL148: -99 | AM148: -99 | AN148: -99 | AO148: -99 | AP148: -99 | AQ148: -99 | AR148: -99 | AS148: -99 | AT148: -99 | AU148: -99 | AV148: -99 | AW148: -99 | AX148: -99 | AY148: -99 | AZ148: -99 | BA148: -99 | BB148: -99 | BC148: -99 | BD148: -99 | BE148: -99 | BF148: -99 | BG148: -99 | BH148: -99 | BI148: -99
A149: Single Antenna | B149: R | C149: Unii 2 | D149: 4 | E149: 0 | F149: 19 | G149: 19 | H149: 19 | I149: 19 | J149: 19 | K149: 19 | L149: 19 | M149: 19 | N149: 0 | O149: 0 | P149: 0 | Q149: 0 | R149: 0 | S149: 0 | T149: 0 | U149: 0 | V149: 19 | W149: 19 | X149: 19 | Y149: 19 | Z149: 19 | AA149: 19 | AB149: 19 | AC149: 19 | AD149: 0 | AE149: 0 | AF149: 0 | AG149: 0 | AH149: 0 | AI149: 0 | AJ149: 0 | AK149: 0 | AL149: 19 | AM149: 19 | AN149: 19 | AO149: 19 | AP149: 19 | AQ149: 19 | AR149: 19 | AS149: 19 | AT149: 0 | AU149: 0 | AV149: 0 | AW149: 0 | AX149: 0 | AY149: 0 | AZ149: 0 | BA149: 0 | BB149: 19 | BC149: 19 | BD149: 19 | BE149: 19 | BF149: 19 | BG149: 19 | BH149: 19 | BI149: 19
A150: Dual Antenna | B150: R | C150: Unii 2 | D150: 4 | E150: 0 | F150: 17 | G150: 17 | H150: 17 | I150: 17 | J150: 17 | K150: 17 | L150: 17 | M150: 17 | N150: 17 | O150: 17 | P150: 17 | Q150: 17 | R150: 17 | S150: 17 | T150: 17 | U150: 17 | V150: 17 | W150: 17 | X150: 17 | Y150: 17 | Z150: 17 | AA150: 17 | AB150: 17 | AC150: 17 | AD150: 17 | AE150: 17 | AF150: 17 | AG150: 17 | AH150: 17 | AI150: 17 | AJ150: 17 | AK150: 17 | AL150: 17 | AM150: 17 | AN150: 17 | AO150: 17 | AP150: 17 | AQ150: 17 | AR150: 17 | AS150: 17 | AT150: 17 | AU150: 17 | AV150: 17 | AW150: 17 | AX150: 17 | AY150: 17 | AZ150: 17 | BA150: 17 | BB150: 17 | BC150: 17 | BD150: 17 | BE150: 17 | BF150: 17 | BG150: 17 | BH150: 17 | BI150: 17
A151: Allowed Powers List | B151: R | C151: Unii 2 | D151: 4 | E151: 7 | F151: 11 | G151: 17 | H151: 20 | I151: 23 | J151: 0 | K151: 0 | L151: 0 | M151: 0 | N151: 0 | O151: 0 | P151: 0 | Q151: 0 | R151: 0 | S151: 0 | T151: 0 | U151: 0 | V151: 0 | W151: 0 | X151: 0 | Y151: 0 | Z151: 0 | AA151: 0 | AB151: 0 | AC151: 0 | AD151: 0 | AE151: 0 | AF151: 0 | AG151: 0 | AH151: 0 | AI151: 0 | AJ151: 0 | AK151: 0 | AL151: 0 | AM151: 0 | AN151: 0 | AO151: 0 | AP151: 0 | AQ151: 0 | AR151: 0 | AS151: 0 | AT151: 0 | AU151: 0 | AV151: 0 | AW151: 0 | AX151: 0 | AY151: 0 | AZ151: 0 | BA151: 0 | BB151: 0 | BC151: 0 | BD151: 0 | BE151: 0 | BF151: 0 | BG151: 0 | BH151: 0 | BI151: 0
A152: Single Antenna | B152: R | C152: Unii 2 | D152: 7 | E152: 0 | F152: 19 | G152: 19 | H152: 19 | I152: 19 | J152: 19 | K152: 19 | L152: 19 | M152: 19 | N152: 0 | O152: 0 | P152: 0 | Q152: 0 | R152: 0 | S152: 0 | T152: 0 | U152: 0 | V152: 19 | W152: 19 | X152: 19 | Y152: 19 | Z152: 19 | AA152: 19 | AB152: 19 | AC152: 19 | AD152: 0 | AE152: 0 | AF152: 0 | AG152: 0 | AH152: 0 | AI152: 0 | AJ152: 0 | AK152: 0 | AL152: 19 | AM152: 19 | AN152: 19 | AO152: 19 | AP152: 19 | AQ152: 19 | AR152: 19 | AS152: 19 | AT152: 0 | AU152: 0 | AV152: 0 | AW152: 0 | AX152: 0 | AY152: 0 | AZ152: 0 | BA152: 0 | BB152: 19 | BC152: 19 | BD152: 19 | BE152: 19 | BF152: 19 | BG152: 19 | BH152: 19 | BI152: 19
A153: Dual Antenna | B153: R | C153: Unii 2 | D153: 7 | E153: 0 | F153: 17 | G153: 17 | H153: 17 | I153: 17 | J153: 17 | K153: 17 | L153: 17 | M153: 17 | N153: 17 | O153: 17 | P153: 17 | Q153: 17 | R153: 17 | S153: 17 | T153: 17 | U153: 17 | V153: 17 | W153: 17 | X153: 17 | Y153: 17 | Z153: 17 | AA153: 17 | AB153: 17 | AC153: 17 | AD153: 17 | AE153: 17 | AF153: 17 | AG153: 17 | AH153: 17 | AI153: 17 | AJ153: 17 | AK153: 17 | AL153: 17 | AM153: 17 | AN153: 17 | AO153: 17 | AP153: 17 | AQ153: 17 | AR153: 17 | AS153: 17 | AT153: 17 | AU153: 17 | AV153: 17 | AW153: 17 | AX153: 17 | AY153: 17 | AZ153: 17 | BA153: 17 | BB153: 17 | BC153: 17 | BD153: 17 | BE153: 17 | BF153: 17 | BG153: 17 | BH153: 17 | BI153: 17
A154: Allowed Powers List | B154: R | C154: Unii 2 | D154: 7 | E154: 7 | F154: 11 | G154: 17 | H154: 20 | I154: 23 | J154: 0 | K154: 0 | L154: 0 | M154: 0 | N154: 0 | O154: 0 | P154: 0 | Q154: 0 | R154: 0 | S154: 0 | T154: 0 | U154: 0 | V154: 0 | W154: 0 | X154: 0 | Y154: 0 | Z154: 0 | AA154: 0 | AB154: 0 | AC154: 0 | AD154: 0 | AE154: 0 | AF154: 0 | AG154: 0 | AH154: 0 | AI154: 0 | AJ154: 0 | AK154: 0 | AL154: 0 | AM154: 0 | AN154: 0 | AO154: 0 | AP154: 0 | AQ154: 0 | AR154: 0 | AS154: 0 | AT154: 0 | AU154: 0 | AV154: 0 | AW154: 0 | AX154: 0 | AY154: 0 | AZ154: 0 | BA154: 0 | BB154: 0 | BC154: 0 | BD154: 0 | BE154: 0 | BF154: 0 | BG154: 0 | BH154: 0 | BI154: 0
A155: Single Antenna | B155: R | C155: Unii 2ext | D155: 4 | E155: 0 | F155: 23 | G155: 23 | H155: 23 | I155: 23 | J155: 23 | K155: 23 | L155: 23 | M155: 22 | N155: 0 | O155: 0 | P155: 0 | Q155: 0 | R155: 0 | S155: 0 | T155: 0 | U155: 0 | V155: 23 | W155: 23 | X155: 23 | Y155: 23 | Z155: 23 | AA155: 23 | AB155: 22 | AC155: 20 | AD155: 0 | AE155: 0 | AF155: 0 | AG155: 0 | AH155: 0 | AI155: 0 | AJ155: 0 | AK155: 0 | AL155: 23 | AM155: 23 | AN155: 23 | AO155: 23 | AP155: 23 | AQ155: 23 | AR155: 22 | AS155: 20 | AT155: 0 | AU155: 0 | AV155: 0 | AW155: 0 | AX155: 0 | AY155: 0 | AZ155: 0 | BA155: 0 | BB155: 23 | BC155: 23 | BD155: 23 | BE155: 23 | BF155: 23 | BG155: 23 | BH155: 23 | BI155: 22
A156: Dual Antenna | B156: R | C156: Unii 2ext | D156: 4 | E156: 0 | F156: 23 | G156: 23 | H156: 23 | I156: 23 | J156: 23 | K156: 23 | L156: 23 | M156: 22 | N156: 23 | O156: 23 | P156: 23 | Q156: 23 | R156: 23 | S156: 23 | T156: 23 | U156: 22 | V156: 23 | W156: 23 | X156: 23 | Y156: 23 | Z156: 23 | AA156: 23 | AB156: 22 | AC156: 20 | AD156: 23 | AE156: 23 | AF156: 23 | AG156: 23 | AH156: 23 | AI156: 23 | AJ156: 22 | AK156: 20 | AL156: 23 | AM156: 23 | AN156: 23 | AO156: 23 | AP156: 23 | AQ156: 23 | AR156: 22 | AS156: 20 | AT156: 23 | AU156: 23 | AV156: 23 | AW156: 23 | AX156: 23 | AY156: 23 | AZ156: 22 | BA156: 20 | BB156: 23 | BC156: 23 | BD156: 23 | BE156: 23 | BF156: 23 | BG156: 23 | BH156: 23 | BI156: 22
A157: Allowed Powers List | B157: R | C157: Unii 2ext | D157: 4 | E157: 7 | F157: 11 | G157: 17 | H157: 20 | I157: 23 | J157: 0 | K157: 0 | L157: 0 | M157: 0 | N157: 0 | O157: 0 | P157: 0 | Q157: 0 | R157: 0 | S157: 0 | T157: 0 | U157: 0 | V157: 0 | W157: 0 | X157: 0 | Y157: 0 | Z157: 0 | AA157: 0 | AB157: 0 | AC157: 0 | AD157: 0 | AE157: 0 | AF157: 0 | AG157: 0 | AH157: 0 | AI157: 0 | AJ157: 0 | AK157: 0 | AL157: 0 | AM157: 0 | AN157: 0 | AO157: 0 | AP157: 0 | AQ157: 0 | AR157: 0 | AS157: 0 | AT157: 0 | AU157: 0 | AV157: 0 | AW157: 0 | AX157: 0 | AY157: 0 | AZ157: 0 | BA157: 0 | BB157: 0 | BC157: 0 | BD157: 0 | BE157: 0 | BF157: 0 | BG157: 0 | BH157: 0 | BI157: 0
A158: Single Antenna | B158: R | C158: Unii 2ext | D158: 7 | E158: 0 | F158: 23 | G158: 23 | H158: 23 | I158: 23 | J158: 23 | K158: 23 | L158: 23 | M158: 22 | N158: 0 | O158: 0 | P158: 0 | Q158: 0 | R158: 0 | S158: 0 | T158: 0 | U158: 0 | V158: 23 | W158: 23 | X158: 23 | Y158: 23 | Z158: 23 | AA158: 23 | AB158: 22 | AC158: 20 | AD158: 0 | AE158: 0 | AF158: 0 | AG158: 0 | AH158: 0 | AI158: 0 | AJ158: 0 | AK158: 0 | AL158: 23 | AM158: 23 | AN158: 23 | AO158: 23 | AP158: 23 | AQ158: 23 | AR158: 22 | AS158: 20 | AT158: 0 | AU158: 0 | AV158: 0 | AW158: 0 | AX158: 0 | AY158: 0 | AZ158: 0 | BA158: 0 | BB158: 23 | BC158: 23 | BD158: 23 | BE158: 23 | BF158: 23 | BG158: 23 | BH158: 23 | BI158: 22
A159: Dual Antenna | B159: R | C159: Unii 2ext | D159: 7 | E159: 0 | F159: 23 | G159: 23 | H159: 23 | I159: 23 | J159: 23 | K159: 23 | L159: 23 | M159: 22 | N159: 23 | O159: 23 | P159: 23 | Q159: 23 | R159: 23 | S159: 23 | T159: 23 | U159: 22 | V159: 23 | W159: 23 | X159: 23 | Y159: 23 | Z159: 23 | AA159: 23 | AB159: 22 | AC159: 20 | AD159: 23 | AE159: 23 | AF159: 23 | AG159: 23 | AH159: 23 | AI159: 23 | AJ159: 22 | AK159: 20 | AL159: 23 | AM159: 23 | AN159: 23 | AO159: 23 | AP159: 23 | AQ159: 23 | AR159: 22 | AS159: 20 | AT159: 23 | AU159: 23 | AV159: 23 | AW159: 23 | AX159: 23 | AY159: 23 | AZ159: 22 | BA159: 20 | BB159: 23 | BC159: 23 | BD159: 23 | BE159: 23 | BF159: 23 | BG159: 23 | BH159: 23 | BI159: 22
A160: Allowed Powers List | B160: R | C160: Unii 2ext | D160: 7 | E160: 7 | F160: 11 | G160: 17 | H160: 20 | I160: 23 | J160: 0 | K160: 0 | L160: 0 | M160: 0 | N160: 0 | O160: 0 | P160: 0 | Q160: 0 | R160: 0 | S160: 0 | T160: 0 | U160: 0 | V160: 0 | W160: 0 | X160: 0 | Y160: 0 | Z160: 0 | AA160: 0 | AB160: 0 | AC160: 0 | AD160: 0 | AE160: 0 | AF160: 0 | AG160: 0 | AH160: 0 | AI160: 0 | AJ160: 0 | AK160: 0 | AL160: 0 | AM160: 0 | AN160: 0 | AO160: 0 | AP160: 0 | AQ160: 0 | AR160: 0 | AS160: 0 | AT160: 0 | AU160: 0 | AV160: 0 | AW160: 0 | AX160: 0 | AY160: 0 | AZ160: 0 | BA160: 0 | BB160: 0 | BC160: 0 | BD160: 0 | BE160: 0 | BF160: 0 | BG160: 0 | BH160: 0 | BI160: 0
A161: Single Antenna | B161: R | C161: Upper ISM | D161: 4 | E161: 0 | F161: 25 | G161: 25 | H161: 25 | I161: 25 | J161: 25 | K161: 24 | L161: 23 | M161: 22 | N161: 0 | O161: 0 | P161: 0 | Q161: 0 | R161: 0 | S161: 0 | T161: 0 | U161: 0 | V161: 24 | W161: 24 | X161: 24 | Y161: 24 | Z161: 24 | AA161: 23 | AB161: 22 | AC161: 20 | AD161: 0 | AE161: 0 | AF161: 0 | AG161: 0 | AH161: 0 | AI161: 0 | AJ161: 0 | AK161: 0 | AL161: 24 | AM161: 24 | AN161: 24 | AO161: 24 | AP161: 24 | AQ161: 23 | AR161: 22 | AS161: 20 | AT161: 0 | AU161: 0 | AV161: 0 | AW161: 0 | AX161: 0 | AY161: 0 | AZ161: 0 | BA161: 0 | BB161: 25 | BC161: 25 | BD161: 25 | BE161: 25 | BF161: 25 | BG161: 24 | BH161: 23 | BI161: 22
A162: Dual Antenna | B162: R | C162: Upper ISM | D162: 4 | E162: 0 | F162: 25 | G162: 25 | H162: 25 | I162: 25 | J162: 25 | K162: 24 | L162: 23 | M162: 22 | N162: 25 | O162: 25 | P162: 25 | Q162: 25 | R162: 25 | S162: 24 | T162: 23 | U162: 22 | V162: 24 | W162: 24 | X162: 24 | Y162: 24 | Z162: 24 | AA162: 23 | AB162: 22 | AC162: 20 | AD162: 24 | AE162: 24 | AF162: 24 | AG162: 24 | AH162: 24 | AI162: 23 | AJ162: 22 | AK162: 20 | AL162: 24 | AM162: 24 | AN162: 24 | AO162: 24 | AP162: 24 | AQ162: 23 | AR162: 22 | AS162: 20 | AT162: 24 | AU162: 24 | AV162: 24 | AW162: 24 | AX162: 24 | AY162: 23 | AZ162: 22 | BA162: 20 | BB162: 25 | BC162: 25 | BD162: 25 | BE162: 25 | BF162: 25 | BG162: 24 | BH162: 23 | BI162: 22
A163: Allowed Powers List | B163: R | C163: Upper ISM | D163: 4 | E163: 13 | F163: 16 | G163: 19 | H163: 22 | I163: 25 | J163: 0 | K163: 0 | L163: 0 | M163: 0 | N163: 0 | O163: 0 | P163: 0 | Q163: 0 | R163: 0 | S163: 0 | T163: 0 | U163: 0 | V163: 0 | W163: 0 | X163: 0 | Y163: 0 | Z163: 0 | AA163: 0 | AB163: 0 | AC163: 0 | AD163: 0 | AE163: 0 | AF163: 0 | AG163: 0 | AH163: 0 | AI163: 0 | AJ163: 0 | AK163: 0 | AL163: 0 | AM163: 0 | AN163: 0 | AO163: 0 | AP163: 0 | AQ163: 0 | AR163: 0 | AS163: 0 | AT163: 0 | AU163: 0 | AV163: 0 | AW163: 0 | AX163: 0 | AY163: 0 | AZ163: 0 | BA163: 0 | BB163: 0 | BC163: 0 | BD163: 0 | BE163: 0 | BF163: 0 | BG163: 0 | BH163: 0 | BI163: 0
A164: Single Antenna | B164: R | C164: Upper ISM | D164: 7 | E164: 0 | F164: 25 | G164: 25 | H164: 25 | I164: 25 | J164: 25 | K164: 24 | L164: 23 | M164: 22 | N164: 0 | O164: 0 | P164: 0 | Q164: 0 | R164: 0 | S164: 0 | T164: 0 | U164: 0 | V164: 24 | W164: 24 | X164: 24 | Y164: 24 | Z164: 24 | AA164: 23 | AB164: 22 | AC164: 20 | AD164: 0 | AE164: 0 | AF164: 0 | AG164: 0 | AH164: 0 | AI164: 0 | AJ164: 0 | AK164: 0 | AL164: 24 | AM164: 24 | AN164: 24 | AO164: 24 | AP164: 24 | AQ164: 23 | AR164: 22 | AS164: 20 | AT164: 0 | AU164: 0 | AV164: 0 | AW164: 0 | AX164: 0 | AY164: 0 | AZ164: 0 | BA164: 0 | BB164: 25 | BC164: 25 | BD164: 25 | BE164: 25 | BF164: 25 | BG164: 24 | BH164: 23 | BI164: 22
A165: Dual Antenna | B165: R | C165: Upper ISM | D165: 7 | E165: 0 | F165: 25 | G165: 25 | H165: 25 | I165: 25 | J165: 25 | K165: 24 | L165: 23 | M165: 22 | N165: 25 | O165: 25 | P165: 25 | Q165: 25 | R165: 25 | S165: 24 | T165: 23 | U165: 22 | V165: 24 | W165: 24 | X165: 24 | Y165: 24 | Z165: 24 | AA165: 23 | AB165: 22 | AC165: 20 | AD165: 24 | AE165: 24 | AF165: 24 | AG165: 24 | AH165: 24 | AI165: 23 | AJ165: 22 | AK165: 20 | AL165: 24 | AM165: 24 | AN165: 24 | AO165: 24 | AP165: 24 | AQ165: 23 | AR165: 22 | AS165: 20 | AT165: 24 | AU165: 24 | AV165: 24 | AW165: 24 | AX165: 24 | AY165: 23 | AZ165: 22 | BA165: 20 | BB165: 25 | BC165: 25 | BD165: 25 | BE165: 25 | BF165: 25 | BG165: 24 | BH165: 23 | BI165: 22
A166: Allowed Powers List | B166: R | C166: Upper ISM | D166: 7 | E166: 13 | F166: 16 | G166: 19 | H166: 22 | I166: 25 | J166: 0 | K166: 0 | L166: 0 | M166: 0 | N166: 0 | O166: 0 | P166: 0 | Q166: 0 | R166: 0 | S166: 0 | T166: 0 | U166: 0 | V166: 0 | W166: 0 | X166: 0 | Y166: 0 | Z166: 0 | AA166: 0 | AB166: 0 | AC166: 0 | AD166: 0 | AE166: 0 | AF166: 0 | AG166: 0 | AH166: 0 | AI166: 0 | AJ166: 0 | AK166: 0 | AL166: 0 | AM166: 0 | AN166: 0 | AO166: 0 | AP166: 0 | AQ166: 0 | AR166: 0 | AS166: 0 | AT166: 0 | AU166: 0 | AV166: 0 | AW166: 0 | AX166: 0 | AY166: 0 | AZ166: 0 | BA166: 0 | BB166: 0 | BC166: 0 | BD166: 0 | BE166: 0 | BF166: 0 | BG166: 0 | BH166: 0 | BI166: 0
A167: Single Antenna | B167: S | C167: Unii 2 | D167: 4 | E167: -99 | F167: -99 | G167: -99 | H167: -99 | I167: -99 | J167: -99 | K167: -99 | L167: -99 | M167: -99 | N167: -99 | O167: -99 | P167: -99 | Q167: -99 | R167: -99 | S167: -99 | T167: -99 | U167: -99 | V167: -99 | W167: -99 | X167: -99 | Y167: -99 | Z167: -99 | AA167: -99 | AB167: -99 | AC167: -99 | AD167: -99 | AE167: -99 | AF167: -99 | AG167: -99 | AH167: -99 | AI167: -99 | AJ167: -99 | AK167: -99 | AL167: -99 | AM167: -99 | AN167: -99 | AO167: -99 | AP167: -99 | AQ167: -99 | AR167: -99 | AS167: -99 | AT167: -99 | AU167: -99 | AV167: -99 | AW167: -99 | AX167: -99 | AY167: -99 | AZ167: -99 | BA167: -99 | BB167: -99 | BC167: -99 | BD167: -99 | BE167: -99 | BF167: -99 | BG167: -99 | BH167: -99 | BI167: -99
A168: Dual Antenna | B168: S | C168: Unii 2 | D168: 4 | E168: -99 | F168: -99 | G168: -99 | H168: -99 | I168: -99 | J168: -99 | K168: -99 | L168: -99 | M168: -99 | N168: -99 | O168: -99 | P168: -99 | Q168: -99 | R168: -99 | S168: -99 | T168: -99 | U168: -99 | V168: -99 | W168: -99 | X168: -99 | Y168: -99 | Z168: -99 | AA168: -99 | AB168: -99 | AC168: -99 | AD168: -99 | AE168: -99 | AF168: -99 | AG168: -99 | AH168: -99 | AI168: -99 | AJ168: -99 | AK168: -99 | AL168: -99 | AM168: -99 | AN168: -99 | AO168: -99 | AP168: -99 | AQ168: -99 | AR168: -99 | AS168: -99 | AT168: -99 | AU168: -99 | AV168: -99 | AW168: -99 | AX168: -99 | AY168: -99 | AZ168: -99 | BA168: -99 | BB168: -99 | BC168: -99 | BD168: -99 | BE168: -99 | BF168: -99 | BG168: -99 | BH168: -99 | BI168: -99
A169: Allowed Powers List | B169: S | C169: Unii 2 | D169: 4 | E169: -99 | F169: -99 | G169: -99 | H169: -99 | I169: -99 | J169: -99 | K169: -99 | L169: -99 | M169: -99 | N169: -99 | O169: -99 | P169: -99 | Q169: -99 | R169: -99 | S169: -99 | T169: -99 | U169: -99 | V169: -99 | W169: -99 | X169: -99 | Y169: -99 | Z169: -99 | AA169: -99 | AB169: -99 | AC169: -99 | AD169: -99 | AE169: -99 | AF169: -99 | AG169: -99 | AH169: -99 | AI169: -99 | AJ169: -99 | AK169: -99 | AL169: -99 | AM169: -99 | AN169: -99 | AO169: -99 | AP169: -99 | AQ169: -99 | AR169: -99 | AS169: -99 | AT169: -99 | AU169: -99 | AV169: -99 | AW169: -99 | AX169: -99 | AY169: -99 | AZ169: -99 | BA169: -99 | BB169: -99 | BC169: -99 | BD169: -99 | BE169: -99 | BF169: -99 | BG169: -99 | BH169: -99 | BI169: -99
A170: Single Antenna | B170: S | C170: Unii 2 | D170: 7 | E170: -99 | F170: -99 | G170: -99 | H170: -99 | I170: -99 | J170: -99 | K170: -99 | L170: -99 | M170: -99 | N170: -99 | O170: -99 | P170: -99 | Q170: -99 | R170: -99 | S170: -99 | T170: -99 | U170: -99 | V170: -99 | W170: -99 | X170: -99 | Y170: -99 | Z170: -99 | AA170: -99 | AB170: -99 | AC170: -99 | AD170: -99 | AE170: -99 | AF170: -99 | AG170: -99 | AH170: -99 | AI170: -99 | AJ170: -99 | AK170: -99 | AL170: -99 | AM170: -99 | AN170: -99 | AO170: -99 | AP170: -99 | AQ170: -99 | AR170: -99 | AS170: -99 | AT170: -99 | AU170: -99 | AV170: -99 | AW170: -99 | AX170: -99 | AY170: -99 | AZ170: -99 | BA170: -99 | BB170: -99 | BC170: -99 | BD170: -99 | BE170: -99 | BF170: -99 | BG170: -99 | BH170: -99 | BI170: -99
A171: Dual Antenna | B171: S | C171: Unii 2 | D171: 7 | E171: -99 | F171: -99 | G171: -99 | H171: -99 | I171: -99 | J171: -99 | K171: -99 | L171: -99 | M171: -99 | N171: -99 | O171: -99 | P171: -99 | Q171: -99 | R171: -99 | S171: -99 | T171: -99 | U171: -99 | V171: -99 | W171: -99 | X171: -99 | Y171: -99 | Z171: -99 | AA171: -99 | AB171: -99 | AC171: -99 | AD171: -99 | AE171: -99 | AF171: -99 | AG171: -99 | AH171: -99 | AI171: -99 | AJ171: -99 | AK171: -99 | AL171: -99 | AM171: -99 | AN171: -99 | AO171: -99 | AP171: -99 | AQ171: -99 | AR171: -99 | AS171: -99 | AT171: -99 | AU171: -99 | AV171: -99 | AW171: -99 | AX171: -99 | AY171: -99 | AZ171: -99 | BA171: -99 | BB171: -99 | BC171: -99 | BD171: -99 | BE171: -99 | BF171: -99 | BG171: -99 | BH171: -99 | BI171: -99
A172: Allowed Powers List | B172: S | C172: Unii 2 | D172: 7 | E172: -99 | F172: -99 | G172: -99 | H172: -99 | I172: -99 | J172: -99 | K172: -99 | L172: -99 | M172: -99 | N172: -99 | O172: -99 | P172: -99 | Q172: -99 | R172: -99 | S172: -99 | T172: -99 | U172: -99 | V172: -99 | W172: -99 | X172: -99 | Y172: -99 | Z172: -99 | AA172: -99 | AB172: -99 | AC172: -99 | AD172: -99 | AE172: -99 | AF172: -99 | AG172: -99 | AH172: -99 | AI172: -99 | AJ172: -99 | AK172: -99 | AL172: -99 | AM172: -99 | AN172: -99 | AO172: -99 | AP172: -99 | AQ172: -99 | AR172: -99 | AS172: -99 | AT172: -99 | AU172: -99 | AV172: -99 | AW172: -99 | AX172: -99 | AY172: -99 | AZ172: -99 | BA172: -99 | BB172: -99 | BC172: -99 | BD172: -99 | BE172: -99 | BF172: -99 | BG172: -99 | BH172: -99 | BI172: -99
A173: Single Antenna | B173: S | C173: Unii 2ext | D173: 4 | E173: -99 | F173: -99 | G173: -99 | H173: -99 | I173: -99 | J173: -99 | K173: -99 | L173: -99 | M173: -99 | N173: -99 | O173: -99 | P173: -99 | Q173: -99 | R173: -99 | S173: -99 | T173: -99 | U173: -99 | V173: -99 | W173: -99 | X173: -99 | Y173: -99 | Z173: -99 | AA173: -99 | AB173: -99 | AC173: -99 | AD173: -99 | AE173: -99 | AF173: -99 | AG173: -99 | AH173: -99 | AI173: -99 | AJ173: -99 | AK173: -99 | AL173: -99 | AM173: -99 | AN173: -99 | AO173: -99 | AP173: -99 | AQ173: -99 | AR173: -99 | AS173: -99 | AT173: -99 | AU173: -99 | AV173: -99 | AW173: -99 | AX173: -99 | AY173: -99 | AZ173: -99 | BA173: -99 | BB173: -99 | BC173: -99 | BD173: -99 | BE173: -99 | BF173: -99 | BG173: -99 | BH173: -99 | BI173: -99
A174: Dual Antenna | B174: S | C174: Unii 2ext | D174: 4 | E174: -99 | F174: -99 | G174: -99 | H174: -99 | I174: -99 | J174: -99 | K174: -99 | L174: -99 | M174: -99 | N174: -99 | O174: -99 | P174: -99 | Q174: -99 | R174: -99 | S174: -99 | T174: -99 | U174: -99 | V174: -99 | W174: -99 | X174: -99 | Y174: -99 | Z174: -99 | AA174: -99 | AB174: -99 | AC174: -99 | AD174: -99 | AE174: -99 | AF174: -99 | AG174: -99 | AH174: -99 | AI174: -99 | AJ174: -99 | AK174: -99 | AL174: -99 | AM174: -99 | AN174: -99 | AO174: -99 | AP174: -99 | AQ174: -99 | AR174: -99 | AS174: -99 | AT174: -99 | AU174: -99 | AV174: -99 | AW174: -99 | AX174: -99 | AY174: -99 | AZ174: -99 | BA174: -99 | BB174: -99 | BC174: -99 | BD174: -99 | BE174: -99 | BF174: -99 | BG174: -99 | BH174: -99 | BI174: -99
A175: Allowed Powers List | B175: S | C175: Unii 2ext | D175: 4 | E175: -99 | F175: -99 | G175: -99 | H175: -99 | I175: -99 | J175: -99 | K175: -99 | L175: -99 | M175: -99 | N175: -99 | O175: -99 | P175: -99 | Q175: -99 | R175: -99 | S175: -99 | T175: -99 | U175: -99 | V175: -99 | W175: -99 | X175: -99 | Y175: -99 | Z175: -99 | AA175: -99 | AB175: -99 | AC175: -99 | AD175: -99 | AE175: -99 | AF175: -99 | AG175: -99 | AH175: -99 | AI175: -99 | AJ175: -99 | AK175: -99 | AL175: -99 | AM175: -99 | AN175: -99 | AO175: -99 | AP175: -99 | AQ175: -99 | AR175: -99 | AS175: -99 | AT175: -99 | AU175: -99 | AV175: -99 | AW175: -99 | AX175: -99 | AY175: -99 | AZ175: -99 | BA175: -99 | BB175: -99 | BC175: -99 | BD175: -99 | BE175: -99 | BF175: -99 | BG175: -99 | BH175: -99 | BI175: -99
A176: Single Antenna | B176: S | C176: Unii 2ext | D176: 7 | E176: -99 | F176: -99 | G176: -99 | H176: -99 | I176: -99 | J176: -99 | K176: -99 | L176: -99 | M176: -99 | N176: -99 | O176: -99 | P176: -99 | Q176: -99 | R176: -99 | S176: -99 | T176: -99 | U176: -99 | V176: -99 | W176: -99 | X176: -99 | Y176: -99 | Z176: -99 | AA176: -99 | AB176: -99 | AC176: -99 | AD176: -99 | AE176: -99 | AF176: -99 | AG176: -99 | AH176: -99 | AI176: -99 | AJ176: -99 | AK176: -99 | AL176: -99 | AM176: -99 | AN176: -99 | AO176: -99 | AP176: -99 | AQ176: -99 | AR176: -99 | AS176: -99 | AT176: -99 | AU176: -99 | AV176: -99 | AW176: -99 | AX176: -99 | AY176: -99 | AZ176: -99 | BA176: -99 | BB176: -99 | BC176: -99 | BD176: -99 | BE176: -99 | BF176: -99 | BG176: -99 | BH176: -99 | BI176: -99
A177: Dual Antenna | B177: S | C177: Unii 2ext | D177: 7 | E177: -99 | F177: -99 | G177: -99 | H177: -99 | I177: -99 | J177: -99 | K177: -99 | L177: -99 | M177: -99 | N177: -99 | O177: -99 | P177: -99 | Q177: -99 | R177: -99 | S177: -99 | T177: -99 | U177: -99 | V177: -99 | W177: -99 | X177: -99 | Y177: -99 | Z177: -99 | AA177: -99 | AB177: -99 | AC177: -99 | AD177: -99 | AE177: -99 | AF177: -99 | AG177: -99 | AH177: -99 | AI177: -99 | AJ177: -99 | AK177: -99 | AL177: -99 | AM177: -99 | AN177: -99 | AO177: -99 | AP177: -99 | AQ177: -99 | AR177: -99 | AS177: -99 | AT177: -99 | AU177: -99 | AV177: -99 | AW177: -99 | AX177: -99 | AY177: -99 | AZ177: -99 | BA177: -99 | BB177: -99 | BC177: -99 | BD177: -99 | BE177: -99 | BF177: -99 | BG177: -99 | BH177: -99 | BI177: -99
A178: Allowed Powers List | B178: S | C178: Unii 2ext | D178: 7 | E178: -99 | F178: -99 | G178: -99 | H178: -99 | I178: -99 | J178: -99 | K178: -99 | L178: -99 | M178: -99 | N178: -99 | O178: -99 | P178: -99 | Q178: -99 | R178: -99 | S178: -99 | T178: -99 | U178: -99 | V178: -99 | W178: -99 | X178: -99 | Y178: -99 | Z178: -99 | AA178: -99 | AB178: -99 | AC178: -99 | AD178: -99 | AE178: -99 | AF178: -99 | AG178: -99 | AH178: -99 | AI178: -99 | AJ178: -99 | AK178: -99 | AL178: -99 | AM178: -99 | AN178: -99 | AO178: -99 | AP178: -99 | AQ178: -99 | AR178: -99 | AS178: -99 | AT178: -99 | AU178: -99 | AV178: -99 | AW178: -99 | AX178: -99 | AY178: -99 | AZ178: -99 | BA178: -99 | BB178: -99 | BC178: -99 | BD178: -99 | BE178: -99 | BF178: -99 | BG178: -99 | BH178: -99 | BI178: -99
A179: Single Antenna | B179: S | C179: Upper ISM | D179: 4 | E179: 0 | F179: 25 | G179: 25 | H179: 25 | I179: 25 | J179: 25 | K179: 24 | L179: 23 | M179: 22 | N179: 0 | O179: 0 | P179: 0 | Q179: 0 | R179: 0 | S179: 0 | T179: 0 | U179: 0 | V179: 24 | W179: 24 | X179: 24 | Y179: 24 | Z179: 24 | AA179: 23 | AB179: 22 | AC179: 20 | AD179: 0 | AE179: 0 | AF179: 0 | AG179: 0 | AH179: 0 | AI179: 0 | AJ179: 0 | AK179: 0 | AL179: 24 | AM179: 24 | AN179: 24 | AO179: 24 | AP179: 24 | AQ179: 23 | AR179: 22 | AS179: 20 | AT179: 0 | AU179: 0 | AV179: 0 | AW179: 0 | AX179: 0 | AY179: 0 | AZ179: 0 | BA179: 0 | BB179: 25 | BC179: 25 | BD179: 25 | BE179: 25 | BF179: 24 | BG179: 23 | BH179: 22 | BI179: 20
A180: Dual Antenna | B180: S | C180: Upper ISM | D180: 4 | E180: 0 | F180: 23 | G180: 23 | H180: 23 | I180: 23 | J180: 23 | K180: 23 | L180: 23 | M180: 22 | N180: 20 | O180: 20 | P180: 20 | Q180: 20 | R180: 20 | S180: 20 | T180: 20 | U180: 20 | V180: 23 | W180: 23 | X180: 23 | Y180: 23 | Z180: 23 | AA180: 23 | AB180: 22 | AC180: 20 | AD180: 23 | AE180: 23 | AF180: 23 | AG180: 23 | AH180: 23 | AI180: 23 | AJ180: 22 | AK180: 20 | AL180: 23 | AM180: 23 | AN180: 23 | AO180: 23 | AP180: 23 | AQ180: 23 | AR180: 22 | AS180: 20 | AT180: 23 | AU180: 23 | AV180: 23 | AW180: 23 | AX180: 23 | AY180: 23 | AZ180: 22 | BA180: 20 | BB180: 23 | BC180: 23 | BD180: 23 | BE180: 23 | BF180: 23 | BG180: 23 | BH180: 23 | BI180: 22
A181: Allowed Powers List | B181: S | C181: Upper ISM | D181: 4 | E181: 13 | F181: 16 | G181: 19 | H181: 22 | I181: 25 | J181: 0 | K181: 0 | L181: 0 | M181: 0 | N181: 0 | O181: 0 | P181: 0 | Q181: 0 | R181: 0 | S181: 0 | T181: 0 | U181: 0 | V181: 0 | W181: 0 | X181: 0 | Y181: 0 | Z181: 0 | AA181: 0 | AB181: 0 | AC181: 0 | AD181: 0 | AE181: 0 | AF181: 0 | AG181: 0 | AH181: 0 | AI181: 0 | AJ181: 0 | AK181: 0 | AL181: 0 | AM181: 0 | AN181: 0 | AO181: 0 | AP181: 0 | AQ181: 0 | AR181: 0 | AS181: 0 | AT181: 0 | AU181: 0 | AV181: 0 | AW181: 0 | AX181: 0 | AY181: 0 | AZ181: 0 | BA181: 0 | BB181: 0 | BC181: 0 | BD181: 0 | BE181: 0 | BF181: 0 | BG181: 0 | BH181: 0 | BI181: 0
A182: Single Antenna | B182: S | C182: Upper ISM | D182: 7 | E182: 0 | F182: 23 | G182: 23 | H182: 23 | I182: 23 | J182: 23 | K182: 23 | L182: 23 | M182: 22 | N182: 0 | O182: 0 | P182: 0 | Q182: 0 | R182: 0 | S182: 0 | T182: 0 | U182: 0 | V182: 23 | W182: 23 | X182: 23 | Y182: 23 | Z182: 23 | AA182: 23 | AB182: 22 | AC182: 20 | AD182: 0 | AE182: 0 | AF182: 0 | AG182: 0 | AH182: 0 | AI182: 0 | AJ182: 0 | AK182: 0 | AL182: 23 | AM182: 23 | AN182: 23 | AO182: 23 | AP182: 23 | AQ182: 23 | AR182: 22 | AS182: 20 | AT182: 0 | AU182: 0 | AV182: 0 | AW182: 0 | AX182: 0 | AY182: 0 | AZ182: 0 | BA182: 0 | BB182: 23 | BC182: 23 | BD182: 23 | BE182: 23 | BF182: 23 | BG182: 23 | BH182: 22 | BI182: 20
A183: Dual Antenna | B183: S | C183: Upper ISM | D183: 7 | E183: 0 | F183: 20 | G183: 20 | H183: 20 | I183: 20 | J183: 20 | K183: 20 | L183: 20 | M183: 20 | N183: 17 | O183: 17 | P183: 17 | Q183: 17 | R183: 17 | S183: 17 | T183: 17 | U183: 17 | V183: 20 | W183: 20 | X183: 20 | Y183: 20 | Z183: 20 | AA183: 20 | AB183: 20 | AC183: 20 | AD183: 20 | AE183: 20 | AF183: 20 | AG183: 20 | AH183: 20 | AI183: 20 | AJ183: 20 | AK183: 20 | AL183: 20 | AM183: 20 | AN183: 20 | AO183: 20 | AP183: 20 | AQ183: 20 | AR183: 20 | AS183: 20 | AT183: 20 | AU183: 20 | AV183: 20 | AW183: 20 | AX183: 20 | AY183: 20 | AZ183: 20 | BA183: 20 | BB183: 20 | BC183: 20 | BD183: 20 | BE183: 20 | BF183: 20 | BG183: 20 | BH183: 20 | BI183: 20
A184: Allowed Powers List | B184: S | C184: Upper ISM | D184: 7 | E184: 13 | F184: 16 | G184: 19 | H184: 22 | I184: 25 | J184: 0 | K184: 0 | L184: 0 | M184: 0 | N184: 0 | O184: 0 | P184: 0 | Q184: 0 | R184: 0 | S184: 0 | T184: 0 | U184: 0 | V184: 0 | W184: 0 | X184: 0 | Y184: 0 | Z184: 0 | AA184: 0 | AB184: 0 | AC184: 0 | AD184: 0 | AE184: 0 | AF184: 0 | AG184: 0 | AH184: 0 | AI184: 0 | AJ184: 0 | AK184: 0 | AL184: 0 | AM184: 0 | AN184: 0 | AO184: 0 | AP184: 0 | AQ184: 0 | AR184: 0 | AS184: 0 | AT184: 0 | AU184: 0 | AV184: 0 | AW184: 0 | AX184: 0 | AY184: 0 | AZ184: 0 | BA184: 0 | BB184: 0 | BC184: 0 | BD184: 0 | BE184: 0 | BF184: 0 | BG184: 0 | BH184: 0 | BI184: 0
A185: Single Antenna | B185: T | C185: Unii 2 | D185: 4 | E185: -99 | F185: -99 | G185: -99 | H185: -99 | I185: -99 | J185: -99 | K185: -99 | L185: -99 | M185: -99 | N185: -99 | O185: -99 | P185: -99 | Q185: -99 | R185: -99 | S185: -99 | T185: -99 | U185: -99 | V185: -99 | W185: -99 | X185: -99 | Y185: -99 | Z185: -99 | AA185: -99 | AB185: -99 | AC185: -99 | AD185: -99 | AE185: -99 | AF185: -99 | AG185: -99 | AH185: -99 | AI185: -99 | AJ185: -99 | AK185: -99 | AL185: -99 | AM185: -99 | AN185: -99 | AO185: -99 | AP185: -99 | AQ185: -99 | AR185: -99 | AS185: -99 | AT185: -99 | AU185: -99 | AV185: -99 | AW185: -99 | AX185: -99 | AY185: -99 | AZ185: -99 | BA185: -99 | BB185: -99 | BC185: -99 | BD185: -99 | BE185: -99 | BF185: -99 | BG185: -99 | BH185: -99 | BI185: -99
A186: Dual Antenna | B186: T | C186: Unii 2 | D186: 4 | E186: -99 | F186: -99 | G186: -99 | H186: -99 | I186: -99 | J186: -99 | K186: -99 | L186: -99 | M186: -99 | N186: -99 | O186: -99 | P186: -99 | Q186: -99 | R186: -99 | S186: -99 | T186: -99 | U186: -99 | V186: -99 | W186: -99 | X186: -99 | Y186: -99 | Z186: -99 | AA186: -99 | AB186: -99 | AC186: -99 | AD186: -99 | AE186: -99 | AF186: -99 | AG186: -99 | AH186: -99 | AI186: -99 | AJ186: -99 | AK186: -99 | AL186: -99 | AM186: -99 | AN186: -99 | AO186: -99 | AP186: -99 | AQ186: -99 | AR186: -99 | AS186: -99 | AT186: -99 | AU186: -99 | AV186: -99 | AW186: -99 | AX186: -99 | AY186: -99 | AZ186: -99 | BA186: -99 | BB186: -99 | BC186: -99 | BD186: -99 | BE186: -99 | BF186: -99 | BG186: -99 | BH186: -99 | BI186: -99
A187: Allowed Powers List | B187: T | C187: Unii 2 | D187: 4 | E187: -99 | F187: -99 | G187: -99 | H187: -99 | I187: -99 | J187: -99 | K187: -99 | L187: -99 | M187: -99 | N187: -99 | O187: -99 | P187: -99 | Q187: -99 | R187: -99 | S187: -99 | T187: -99 | U187: -99 | V187: -99 | W187: -99 | X187: -99 | Y187: -99 | Z187: -99 | AA187: -99 | AB187: -99 | AC187: -99 | AD187: -99 | AE187: -99 | AF187: -99 | AG187: -99 | AH187: -99 | AI187: -99 | AJ187: -99 | AK187: -99 | AL187: -99 | AM187: -99 | AN187: -99 | AO187: -99 | AP187: -99 | AQ187: -99 | AR187: -99 | AS187: -99 | AT187: -99 | AU187: -99 | AV187: -99 | AW187: -99 | AX187: -99 | AY187: -99 | AZ187: -99 | BA187: -99 | BB187: -99 | BC187: -99 | BD187: -99 | BE187: -99 | BF187: -99 | BG187: -99 | BH187: -99 | BI187: -99
A188: Single Antenna | B188: T | C188: Unii 2 | D188: 7 | E188: -99 | F188: -99 | G188: -99 | H188: -99 | I188: -99 | J188: -99 | K188: -99 | L188: -99 | M188: -99 | N188: -99 | O188: -99 | P188: -99 | Q188: -99 | R188: -99 | S188: -99 | T188: -99 | U188: -99 | V188: -99 | W188: -99 | X188: -99 | Y188: -99 | Z188: -99 | AA188: -99 | AB188: -99 | AC188: -99 | AD188: -99 | AE188: -99 | AF188: -99 | AG188: -99 | AH188: -99 | AI188: -99 | AJ188: -99 | AK188: -99 | AL188: -99 | AM188: -99 | AN188: -99 | AO188: -99 | AP188: -99 | AQ188: -99 | AR188: -99 | AS188: -99 | AT188: -99 | AU188: -99 | AV188: -99 | AW188: -99 | AX188: -99 | AY188: -99 | AZ188: -99 | BA188: -99 | BB188: -99 | BC188: -99 | BD188: -99 | BE188: -99 | BF188: -99 | BG188: -99 | BH188: -99 | BI188: -99
A189: Dual Antenna | B189: T | C189: Unii 2 | D189: 7 | E189: -99 | F189: -99 | G189: -99 | H189: -99 | I189: -99 | J189: -99 | K189: -99 | L189: -99 | M189: -99 | N189: -99 | O189: -99 | P189: -99 | Q189: -99 | R189: -99 | S189: -99 | T189: -99 | U189: -99 | V189: -99 | W189: -99 | X189: -99 | Y189: -99 | Z189: -99 | AA189: -99 | AB189: -99 | AC189: -99 | AD189: -99 | AE189: -99 | AF189: -99 | AG189: -99 | AH189: -99 | AI189: -99 | AJ189: -99 | AK189: -99 | AL189: -99 | AM189: -99 | AN189: -99 | AO189: -99 | AP189: -99 | AQ189: -99 | AR189: -99 | AS189: -99 | AT189: -99 | AU189: -99 | AV189: -99 | AW189: -99 | AX189: -99 | AY189: -99 | AZ189: -99 | BA189: -99 | BB189: -99 | BC189: -99 | BD189: -99 | BE189: -99 | BF189: -99 | BG189: -99 | BH189: -99 | BI189: -99
A190: Allowed Powers List | B190: T | C190: Unii 2 | D190: 7 | E190: -99 | F190: -99 | G190: -99 | H190: -99 | I190: -99 | J190: -99 | K190: -99 | L190: -99 | M190: -99 | N190: -99 | O190: -99 | P190: -99 | Q190: -99 | R190: -99 | S190: -99 | T190: -99 | U190: -99 | V190: -99 | W190: -99 | X190: -99 | Y190: -99 | Z190: -99 | AA190: -99 | AB190: -99 | AC190: -99 | AD190: -99 | AE190: -99 | AF190: -99 | AG190: -99 | AH190: -99 | AI190: -99 | AJ190: -99 | AK190: -99 | AL190: -99 | AM190: -99 | AN190: -99 | AO190: -99 | AP190: -99 | AQ190: -99 | AR190: -99 | AS190: -99 | AT190: -99 | AU190: -99 | AV190: -99 | AW190: -99 | AX190: -99 | AY190: -99 | AZ190: -99 | BA190: -99 | BB190: -99 | BC190: -99 | BD190: -99 | BE190: -99 | BF190: -99 | BG190: -99 | BH190: -99 | BI190: -99
A191: Single Antenna | B191: T | C191: Unii 2ext | D191: 4 | E191: 0 | F191: 23 | G191: 23 | H191: 23 | I191: 23 | J191: 23 | K191: 23 | L191: 23 | M191: 22 | N191: 0 | O191: 0 | P191: 0 | Q191: 0 | R191: 0 | S191: 0 | T191: 0 | U191: 0 | V191: 23 | W191: 23 | X191: 23 | Y191: 23 | Z191: 23 | AA191: 23 | AB191: 22 | AC191: 20 | AD191: 0 | AE191: 0 | AF191: 0 | AG191: 0 | AH191: 0 | AI191: 0 | AJ191: 0 | AK191: 0 | AL191: 23 | AM191: 23 | AN191: 23 | AO191: 23 | AP191: 23 | AQ191: 23 | AR191: 22 | AS191: 20 | AT191: 0 | AU191: 0 | AV191: 0 | AW191: 0 | AX191: 0 | AY191: 0 | AZ191: 0 | BA191: 0 | BB191: 23 | BC191: 23 | BD191: 23 | BE191: 23 | BF191: 23 | BG191: 23 | BH191: 22 | BI191: 20
A192: Dual Antenna | B192: T | C192: Unii 2ext | D192: 4 | E192: 0 | F192: 20 | G192: 20 | H192: 20 | I192: 20 | J192: 20 | K192: 20 | L192: 20 | M192: 20 | N192: 17 | O192: 17 | P192: 17 | Q192: 17 | R192: 17 | S192: 17 | T192: 17 | U192: 17 | V192: 20 | W192: 20 | X192: 20 | Y192: 20 | Z192: 20 | AA192: 20 | AB192: 20 | AC192: 20 | AD192: 20 | AE192: 20 | AF192: 20 | AG192: 20 | AH192: 20 | AI192: 20 | AJ192: 20 | AK192: 20 | AL192: 20 | AM192: 20 | AN192: 20 | AO192: 20 | AP192: 20 | AQ192: 20 | AR192: 20 | AS192: 20 | AT192: 20 | AU192: 20 | AV192: 20 | AW192: 20 | AX192: 20 | AY192: 20 | AZ192: 20 | BA192: 20 | BB192: 20 | BC192: 20 | BD192: 20 | BE192: 20 | BF192: 20 | BG192: 20 | BH192: 20 | BI192: 20
A193: Allowed Powers List | B193: T | C193: Unii 2ext | D193: 4 | E193: 7 | F193: 11 | G193: 17 | H193: 20 | I193: 23 | J193: 0 | K193: 0 | L193: 0 | M193: 0 | N193: 0 | O193: 0 | P193: 0 | Q193: 0 | R193: 0 | S193: 0 | T193: 0 | U193: 0 | V193: 0 | W193: 0 | X193: 0 | Y193: 0 | Z193: 0 | AA193: 0 | AB193: 0 | AC193: 0 | AD193: 0 | AE193: 0 | AF193: 0 | AG193: 0 | AH193: 0 | AI193: 0 | AJ193: 0 | AK193: 0 | AL193: 0 | AM193: 0 | AN193: 0 | AO193: 0 | AP193: 0 | AQ193: 0 | AR193: 0 | AS193: 0 | AT193: 0 | AU193: 0 | AV193: 0 | AW193: 0 | AX193: 0 | AY193: 0 | AZ193: 0 | BA193: 0 | BB193: 0 | BC193: 0 | BD193: 0 | BE193: 0 | BF193: 0 | BG193: 0 | BH193: 0 | BI193: 0
A194: Single Antenna | B194: T | C194: Unii 2ext | D194: 7 | E194: 0 | F194: 20 | G194: 20 | H194: 20 | I194: 20 | J194: 20 | K194: 20 | L194: 20 | M194: 20 | N194: 0 | O194: 0 | P194: 0 | Q194: 0 | R194: 0 | S194: 0 | T194: 0 | U194: 0 | V194: 20 | W194: 20 | X194: 20 | Y194: 20 | Z194: 20 | AA194: 20 | AB194: 20 | AC194: 20 | AD194: 0 | AE194: 0 | AF194: 0 | AG194: 0 | AH194: 0 | AI194: 0 | AJ194: 0 | AK194: 0 | AL194: 20 | AM194: 20 | AN194: 20 | AO194: 20 | AP194: 20 | AQ194: 20 | AR194: 20 | AS194: 20 | AT194: 0 | AU194: 0 | AV194: 0 | AW194: 0 | AX194: 0 | AY194: 0 | AZ194: 0 | BA194: 0 | BB194: 20 | BC194: 20 | BD194: 20 | BE194: 20 | BF194: 20 | BG194: 20 | BH194: 20 | BI194: 20
A195: Dual Antenna | B195: T | C195: Unii 2ext | D195: 7 | E195: 0 | F195: 17 | G195: 17 | H195: 17 | I195: 17 | J195: 17 | K195: 17 | L195: 17 | M195: 17 | N195: 14 | O195: 14 | P195: 14 | Q195: 14 | R195: 14 | S195: 14 | T195: 14 | U195: 14 | V195: 17 | W195: 17 | X195: 17 | Y195: 17 | Z195: 17 | AA195: 17 | AB195: 17 | AC195: 17 | AD195: 17 | AE195: 17 | AF195: 17 | AG195: 17 | AH195: 17 | AI195: 17 | AJ195: 17 | AK195: 17 | AL195: 17 | AM195: 17 | AN195: 17 | AO195: 17 | AP195: 17 | AQ195: 17 | AR195: 17 | AS195: 17 | AT195: 17 | AU195: 17 | AV195: 17 | AW195: 17 | AX195: 17 | AY195: 17 | AZ195: 17 | BA195: 17 | BB195: 17 | BC195: 17 | BD195: 17 | BE195: 17 | BF195: 17 | BG195: 17 | BH195: 17 | BI195: 17
A196: Allowed Powers List | B196: T | C196: Unii 2ext | D196: 7 | E196: 7 | F196: 11 | G196: 17 | H196: 20 | I196: 23 | J196: 0 | K196: 0 | L196: 0 | M196: 0 | N196: 0 | O196: 0 | P196: 0 | Q196: 0 | R196: 0 | S196: 0 | T196: 0 | U196: 0 | V196: 0 | W196: 0 | X196: 0 | Y196: 0 | Z196: 0 | AA196: 0 | AB196: 0 | AC196: 0 | AD196: 0 | AE196: 0 | AF196: 0 | AG196: 0 | AH196: 0 | AI196: 0 | AJ196: 0 | AK196: 0 | AL196: 0 | AM196: 0 | AN196: 0 | AO196: 0 | AP196: 0 | AQ196: 0 | AR196: 0 | AS196: 0 | AT196: 0 | AU196: 0 | AV196: 0 | AW196: 0 | AX196: 0 | AY196: 0 | AZ196: 0 | BA196: 0 | BB196: 0 | BC196: 0 | BD196: 0 | BE196: 0 | BF196: 0 | BG196: 0 | BH196: 0 | BI196: 0
A197: Single Antenna | B197: T | C197: Upper ISM | D197: 4 | E197: 0 | F197: 25 | G197: 25 | H197: 25 | I197: 25 | J197: 25 | K197: 24 | L197: 23 | M197: 22 | N197: 0 | O197: 0 | P197: 0 | Q197: 0 | R197: 0 | S197: 0 | T197: 0 | U197: 0 | V197: 24 | W197: 24 | X197: 24 | Y197: 24 | Z197: 24 | AA197: 23 | AB197: 22 | AC197: 20 | AD197: 0 | AE197: 0 | AF197: 0 | AG197: 0 | AH197: 0 | AI197: 0 | AJ197: 0 | AK197: 0 | AL197: 24 | AM197: 24 | AN197: 24 | AO197: 24 | AP197: 24 | AQ197: 23 | AR197: 22 | AS197: 20 | AT197: 0 | AU197: 0 | AV197: 0 | AW197: 0 | AX197: 0 | AY197: 0 | AZ197: 0 | BA197: 0 | BB197: 25 | BC197: 25 | BD197: 25 | BE197: 25 | BF197: 25 | BG197: 24 | BH197: 23 | BI197: 22
A198: Dual Antenna | B198: T | C198: Upper ISM | D198: 4 | E198: 0 | F198: 25 | G198: 25 | H198: 25 | I198: 25 | J198: 25 | K198: 24 | L198: 23 | M198: 22 | N198: 25 | O198: 25 | P198: 25 | Q198: 25 | R198: 25 | S198: 24 | T198: 23 | U198: 22 | V198: 24 | W198: 24 | X198: 24 | Y198: 24 | Z198: 24 | AA198: 23 | AB198: 22 | AC198: 20 | AD198: 24 | AE198: 24 | AF198: 24 | AG198: 24 | AH198: 24 | AI198: 23 | AJ198: 22 | AK198: 20 | AL198: 24 | AM198: 24 | AN198: 24 | AO198: 24 | AP198: 24 | AQ198: 23 | AR198: 22 | AS198: 20 | AT198: 24 | AU198: 24 | AV198: 24 | AW198: 24 | AX198: 24 | AY198: 23 | AZ198: 22 | BA198: 20 | BB198: 25 | BC198: 25 | BD198: 25 | BE198: 25 | BF198: 25 | BG198: 24 | BH198: 23 | BI198: 22
A199: Allowed Powers List | B199: T | C199: Upper ISM | D199: 4 | E199: 13 | F199: 16 | G199: 19 | H199: 22 | I199: 25 | J199: 0 | K199: 0 | L199: 0 | M199: 0 | N199: 0 | O199: 0 | P199: 0 | Q199: 0 | R199: 0 | S199: 0 | T199: 0 | U199: 0 | V199: 0 | W199: 0 | X199: 0 | Y199: 0 | Z199: 0 | AA199: 0 | AB199: 0 | AC199: 0 | AD199: 0 | AE199: 0 | AF199: 0 | AG199: 0 | AH199: 0 | AI199: 0 | AJ199: 0 | AK199: 0 | AL199: 0 | AM199: 0 | AN199: 0 | AO199: 0 | AP199: 0 | AQ199: 0 | AR199: 0 | AS199: 0 | AT199: 0 | AU199: 0 | AV199: 0 | AW199: 0 | AX199: 0 | AY199: 0 | AZ199: 0 | BA199: 0 | BB199: 0 | BC199: 0 | BD199: 0 | BE199: 0 | BF199: 0 | BG199: 0 | BH199: 0 | BI199: 0
A200: Single Antenna | B200: T | C200: Upper ISM | D200: 7 | E200: 0 | F200: 25 | G200: 25 | H200: 25 | I200: 25 | J200: 25 | K200: 24 | L200: 23 | M200: 22 | N200: 0 | O200: 0 | P200: 0 | Q200: 0 | R200: 0 | S200: 0 | T200: 0 | U200: 0 | V200: 24 | W200: 24 | X200: 24 | Y200: 24 | Z200: 24 | AA200: 23 | AB200: 22 | AC200: 20 | AD200: 0 | AE200: 0 | AF200: 0 | AG200: 0 | AH200: 0 | AI200: 0 | AJ200: 0 | AK200: 0 | AL200: 24 | AM200: 24 | AN200: 24 | AO200: 24 | AP200: 24 | AQ200: 23 | AR200: 22 | AS200: 20 | AT200: 0 | AU200: 0 | AV200: 0 | AW200: 0 | AX200: 0 | AY200: 0 | AZ200: 0 | BA200: 0 | BB200: 25 | BC200: 25 | BD200: 25 | BE200: 25 | BF200: 25 | BG200: 24 | BH200: 23 | BI200: 22
A201: Dual Antenna | B201: T | C201: Upper ISM | D201: 7 | E201: 0 | F201: 25 | G201: 25 | H201: 25 | I201: 25 | J201: 25 | K201: 24 | L201: 23 | M201: 22 | N201: 23 | O201: 23 | P201: 23 | Q201: 23 | R201: 23 | S201: 23 | T201: 23 | U201: 22 | V201: 24 | W201: 24 | X201: 24 | Y201: 24 | Z201: 24 | AA201: 23 | AB201: 22 | AC201: 20 | AD201: 24 | AE201: 24 | AF201: 24 | AG201: 24 | AH201: 24 | AI201: 23 | AJ201: 22 | AK201: 20 | AL201: 24 | AM201: 24 | AN201: 24 | AO201: 24 | AP201: 24 | AQ201: 23 | AR201: 22 | AS201: 20 | AT201: 24 | AU201: 24 | AV201: 24 | AW201: 24 | AX201: 24 | AY201: 23 | AZ201: 22 | BA201: 20 | BB201: 25 | BC201: 25 | BD201: 25 | BE201: 25 | BF201: 25 | BG201: 24 | BH201: 23 | BI201: 22
A202: Allowed Powers List | B202: T | C202: Upper ISM | D202: 7 | E202: 13 | F202: 16 | G202: 19 | H202: 22 | I202: 25 | J202: 0 | K202: 0 | L202: 0 | M202: 0 | N202: 0 | O202: 0 | P202: 0 | Q202: 0 | R202: 0 | S202: 0 | T202: 0 | U202: 0 | V202: 0 | W202: 0 | X202: 0 | Y202: 0 | Z202: 0 | AA202: 0 | AB202: 0 | AC202: 0 | AD202: 0 | AE202: 0 | AF202: 0 | AG202: 0 | AH202: 0 | AI202: 0 | AJ202: 0 | AK202: 0 | AL202: 0 | AM202: 0 | AN202: 0 | AO202: 0 | AP202: 0 | AQ202: 0 | AR202: 0 | AS202: 0 | AT202: 0 | AU202: 0 | AV202: 0 | AW202: 0 | AX202: 0 | AY202: 0 | AZ202: 0 | BA202: 0 | BB202: 0 | BC202: 0 | BD202: 0 | BE202: 0 | BF202: 0 | BG202: 0 | BH202: 0 | BI202: 0

Sheet 1552_5G_CA_PwrTable (hidden)
A1: DO NOT EDIT: | B1: This worksheet contain data for the "1552_5GHz_Client_Access" worksheet.
C3: SITE 1 | L3: Allowed Powers List for 1 Tx: | M3: =INDEX(A12:BI194,B9,9) ->  | P3: Final List
J4: Max Power (1 Tx) = | K4: =INDEX(A12:BI194,B8,E8) ->  | M4: =INDEX(A12:BI194,B9,8) ->  | P4: PL1 = | Q4: =K4+3 -> 
A5: Reg Domain index | B5: =#REF! ->  | J5: PL sequence = | K5: =MATCH(K4,M3:M10,-1) ->  | M5: =INDEX(A12:BI194,B9,7) ->  | P5: PL2 = | Q5: =INDEX(M3:M10,K5+1)+3 -> 
A6: Channel index | B6: =#REF! ->  | M6: =INDEX(A12:BI194,B9,6) ->  | P6: PL3 = | Q6: =INDEX(M3:M10,K5+2)+3 -> 
A7: Antenna gain index | B7: =#REF! ->  | D7: Rate index | E7: =#REF! ->  | M7: =INDEX(A12:BI194,B9,5) ->  | P7: PL4 = | Q7: =INDEX(M3:M10,K5+3)+3 -> 
A8: Max Pwr Row | B8: =-22+18*B5+6*B6+3*B7 ->  | D8: Rate Column | E8: =13+E7 ->  | M8: =INDEX(A12:BI194,B9,5) ->  | P8: PL5 = | Q8: =INDEX(M3:M10,K5+4)+3 -> 
A9: Allowed Pwr Row | B9: =B8+1 ->  | M9: =INDEX(A12:BI194,B9,5) -> 
M10: =INDEX(A12:BI194,B9,5) -> 
A12: Rate Type | E12: CCK | F12: OFDM | N12: LBF | V12: HT20 | AD12: HT20 | AL12: HT40 | AT12: HT40 | BB12: Non-HT40 Duplicate
A13: Rate Index | E13: 0 | F13: 0 | G13: 0 | H13: 0 | I13: 0 | J13: 0 | K13: 0 | L13: 0 | M13: 0 | N13: 1 | O13: 2 | P13: 3 | Q13: 4 | R13: 5 | S13: 6 | T13: 7 | U13: 8 | V13: 9 | W13: 10 | X13: 11 | Y13: 12 | Z13: 13 | AA13: 14 | AB13: 15 | AC13: 16 | AD13: 17 | AE13: 18 | AF13: 19 | AG13: 20 | AH13: 21 | AI13: 22 | AJ13: 23 | AK13: 24 | AL13: 25 | AM13: 26 | AN13: 27 | AO13: 28 | AP13: 29 | AQ13: 30 | AR13: 31 | AS13: 32 | AT13: 33 | AU13: 34 | AV13: 35 | AW13: 36 | AX13: 37 | AY13: 38 | AZ13: 39 | BA13: 40 | BB13: 0 | BC13: 0 | BD13: 0 | BE13: 0 | BF13: 0 | BG13: 0 | BH13: 0 | BI13: 0
B14: Reg Domain | C14: Channel | D14: Ant Gain | E14: ALL | F14: 6 | G14: 9 | H14: 12 | I14: 18 | J14: 24 | K14: 36 | L14: 48 | M14: 54 | N14: 6 | O14: 9 | P14: 12 | Q14: 18 | R14: 24 | S14: 36 | T14: 48 | U14: 54 | V14: M0 | W14: M1 | X14: M2 | Y14: M3 | Z14: M4 | AA14: M5 | AB14: M6 | AC14: M7 | AD14: M8 | AE14: M9 | AF14: M10 | AG14: M11 | AH14: M12 | AI14: M13 | AJ14: M14 | AK14: M15 | AL14: M0 | AM14: M1 | AN14: M2 | AO14: M3 | AP14: M4 | AQ14: M5 | AR14: M6 | AS14: M7 | AT14: M8 | AU14: M9 | AV14: M10 | AW14: M11 | AX14: M12 | AY14: M13 | AZ14: M14 | BA14: M15 | BB14: 6 | BC14: 9 | BD14: 12 | BE14: 18 | BF14: 24 | BG14: 36 | BH14: 48 | BI14: 54
A15: Single Antenna | B15: A | C15: Unii 2 | D15: 4 | E15: -99 | F15: -99 | G15: -99 | H15: -99 | I15: -99 | J15: -99 | K15: -99 | L15: -99 | M15: -99 | N15: -99 | O15: -99 | P15: -99 | Q15: -99 | R15: -99 | S15: -99 | T15: -99 | U15: -99 | V15: -99 | W15: -99 | X15: -99 | Y15: -99 | Z15: -99 | AA15: -99 | AB15: -99 | AC15: -99 | AD15: -99 | AE15: -99 | AF15: -99 | AG15: -99 | AH15: -99 | AI15: -99 | AJ15: -99 | AK15: -99 | AL15: -99 | AM15: -99 | AN15: -99 | AO15: -99 | AP15: -99 | AQ15: -99 | AR15: -99 | AS15: -99 | AT15: -99 | AU15: -99 | AV15: -99 | AW15: -99 | AX15: -99 | AY15: -99 | AZ15: -99 | BA15: -99 | BB15: -99 | BC15: -99 | BD15: -99 | BE15: -99 | BF15: -99 | BG15: -99 | BH15: -99 | BI15: -99
A16: Dual Antenna | B16: A | C16: Unii 2 | D16: 4 | E16: -99 | F16: -99 | G16: -99 | H16: -99 | I16: -99 | J16: -99 | K16: -99 | L16: -99 | M16: -99 | N16: -99 | O16: -99 | P16: -99 | Q16: -99 | R16: -99 | S16: -99 | T16: -99 | U16: -99 | V16: -99 | W16: -99 | X16: -99 | Y16: -99 | Z16: -99 | AA16: -99 | AB16: -99 | AC16: -99 | AD16: -99 | AE16: -99 | AF16: -99 | AG16: -99 | AH16: -99 | AI16: -99 | AJ16: -99 | AK16: -99 | AL16: -99 | AM16: -99 | AN16: -99 | AO16: -99 | AP16: -99 | AQ16: -99 | AR16: -99 | AS16: -99 | AT16: -99 | AU16: -99 | AV16: -99 | AW16: -99 | AX16: -99 | AY16: -99 | AZ16: -99 | BA16: -99 | BB16: -99 | BC16: -99 | BD16: -99 | BE16: -99 | BF16: -99 | BG16: -99 | BH16: -99 | BI16: -99
A17: Allowed Powers List | B17: A | C17: Unii 2 | D17: 4 | E17: -99 | F17: -99 | G17: -99 | H17: -99 | I17: -99 | J17: -99 | K17: -99 | L17: -99 | M17: -99 | N17: -99 | O17: -99 | P17: -99 | Q17: -99 | R17: -99 | S17: -99 | T17: -99 | U17: -99 | V17: -99 | W17: -99 | X17: -99 | Y17: -99 | Z17: -99 | AA17: -99 | AB17: -99 | AC17: -99 | AD17: -99 | AE17: -99 | AF17: -99 | AG17: -99 | AH17: -99 | AI17: -99 | AJ17: -99 | AK17: -99 | AL17: -99 | AM17: -99 | AN17: -99 | AO17: -99 | AP17: -99 | AQ17: -99 | AR17: -99 | AS17: -99 | AT17: -99 | AU17: -99 | AV17: -99 | AW17: -99 | AX17: -99 | AY17: -99 | AZ17: -99 | BA17: -99 | BB17: -99 | BC17: -99 | BD17: -99 | BE17: -99 | BF17: -99 | BG17: -99 | BH17: -99 | BI17: -99
A18: Single Antenna | B18: A | C18: Unii 2 | D18: 7 | E18: -99 | F18: -99 | G18: -99 | H18: -99 | I18: -99 | J18: -99 | K18: -99 | L18: -99 | M18: -99 | N18: -99 | O18: -99 | P18: -99 | Q18: -99 | R18: -99 | S18: -99 | T18: -99 | U18: -99 | V18: -99 | W18: -99 | X18: -99 | Y18: -99 | Z18: -99 | AA18: -99 | AB18: -99 | AC18: -99 | AD18: -99 | AE18: -99 | AF18: -99 | AG18: -99 | AH18: -99 | AI18: -99 | AJ18: -99 | AK18: -99 | AL18: -99 | AM18: -99 | AN18: -99 | AO18: -99 | AP18: -99 | AQ18: -99 | AR18: -99 | AS18: -99 | AT18: -99 | AU18: -99 | AV18: -99 | AW18: -99 | AX18: -99 | AY18: -99 | AZ18: -99 | BA18: -99 | BB18: -99 | BC18: -99 | BD18: -99 | BE18: -99 | BF18: -99 | BG18: -99 | BH18: -99 | BI18: -99
A19: Dual Antenna | B19: A | C19: Unii 2 | D19: 7 | E19: -99 | F19: -99 | G19: -99 | H19: -99 | I19: -99 | J19: -99 | K19: -99 | L19: -99 | M19: -99 | N19: -99 | O19: -99 | P19: -99 | Q19: -99 | R19: -99 | S19: -99 | T19: -99 | U19: -99 | V19: -99 | W19: -99 | X19: -99 | Y19: -99 | Z19: -99 | AA19: -99 | AB19: -99 | AC19: -99 | AD19: -99 | AE19: -99 | AF19: -99 | AG19: -99 | AH19: -99 | AI19: -99 | AJ19: -99 | AK19: -99 | AL19: -99 | AM19: -99 | AN19: -99 | AO19: -99 | AP19: -99 | AQ19: -99 | AR19: -99 | AS19: -99 | AT19: -99 | AU19: -99 | AV19: -99 | AW19: -99 | AX19: -99 | AY19: -99 | AZ19: -99 | BA19: -99 | BB19: -99 | BC19: -99 | BD19: -99 | BE19: -99 | BF19: -99 | BG19: -99 | BH19: -99 | BI19: -99
A20: Allowed Powers List | B20: A | C20: Unii 2 | D20: 7 | E20: -99 | F20: -99 | G20: -99 | H20: -99 | I20: -99 | J20: -99 | K20: -99 | L20: -99 | M20: -99 | N20: -99 | O20: -99 | P20: -99 | Q20: -99 | R20: -99 | S20: -99 | T20: -99 | U20: -99 | V20: -99 | W20: -99 | X20: -99 | Y20: -99 | Z20: -99 | AA20: -99 | AB20: -99 | AC20: -99 | AD20: -99 | AE20: -99 | AF20: -99 | AG20: -99 | AH20: -99 | AI20: -99 | AJ20: -99 | AK20: -99 | AL20: -99 | AM20: -99 | AN20: -99 | AO20: -99 | AP20: -99 | AQ20: -99 | AR20: -99 | AS20: -99 | AT20: -99 | AU20: -99 | AV20: -99 | AW20: -99 | AX20: -99 | AY20: -99 | AZ20: -99 | BA20: -99 | BB20: -99 | BC20: -99 | BD20: -99 | BE20: -99 | BF20: -99 | BG20: -99 | BH20: -99 | BI20: -99
A21: Single Antenna | B21: A | C21: Unii 2ext | D21: 4 | E21: -99 | F21: -99 | G21: -99 | H21: -99 | I21: -99 | J21: -99 | K21: -99 | L21: -99 | M21: -99 | N21: -99 | O21: -99 | P21: -99 | Q21: -99 | R21: -99 | S21: -99 | T21: -99 | U21: -99 | V21: -99 | W21: -99 | X21: -99 | Y21: -99 | Z21: -99 | AA21: -99 | AB21: -99 | AC21: -99 | AD21: -99 | AE21: -99 | AF21: -99 | AG21: -99 | AH21: -99 | AI21: -99 | AJ21: -99 | AK21: -99 | AL21: -99 | AM21: -99 | AN21: -99 | AO21: -99 | AP21: -99 | AQ21: -99 | AR21: -99 | AS21: -99 | AT21: -99 | AU21: -99 | AV21: -99 | AW21: -99 | AX21: -99 | AY21: -99 | AZ21: -99 | BA21: -99 | BB21: -99 | BC21: -99 | BD21: -99 | BE21: -99 | BF21: -99 | BG21: -99 | BH21: -99 | BI21: -99
A22: Dual Antenna | B22: A | C22: Unii 2ext | D22: 4 | E22: -99 | F22: -99 | G22: -99 | H22: -99 | I22: -99 | J22: -99 | K22: -99 | L22: -99 | M22: -99 | N22: -99 | O22: -99 | P22: -99 | Q22: -99 | R22: -99 | S22: -99 | T22: -99 | U22: -99 | V22: -99 | W22: -99 | X22: -99 | Y22: -99 | Z22: -99 | AA22: -99 | AB22: -99 | AC22: -99 | AD22: -99 | AE22: -99 | AF22: -99 | AG22: -99 | AH22: -99 | AI22: -99 | AJ22: -99 | AK22: -99 | AL22: -99 | AM22: -99 | AN22: -99 | AO22: -99 | AP22: -99 | AQ22: -99 | AR22: -99 | AS22: -99 | AT22: -99 | AU22: -99 | AV22: -99 | AW22: -99 | AX22: -99 | AY22: -99 | AZ22: -99 | BA22: -99 | BB22: -99 | BC22: -99 | BD22: -99 | BE22: -99 | BF22: -99 | BG22: -99 | BH22: -99 | BI22: -99
A23: Allowed Powers List | B23: A | C23: Unii 2ext | D23: 4 | E23: -99 | F23: -99 | G23: -99 | H23: -99 | I23: -99 | J23: -99 | K23: -99 | L23: -99 | M23: -99 | N23: -99 | O23: -99 | P23: -99 | Q23: -99 | R23: -99 | S23: -99 | T23: -99 | U23: -99 | V23: -99 | W23: -99 | X23: -99 | Y23: -99 | Z23: -99 | AA23: -99 | AB23: -99 | AC23: -99 | AD23: -99 | AE23: -99 | AF23: -99 | AG23: -99 | AH23: -99 | AI23: -99 | AJ23: -99 | AK23: -99 | AL23: -99 | AM23: -99 | AN23: -99 | AO23: -99 | AP23: -99 | AQ23: -99 | AR23: -99 | AS23: -99 | AT23: -99 | AU23: -99 | AV23: -99 | AW23: -99 | AX23: -99 | AY23: -99 | AZ23: -99 | BA23: -99 | BB23: -99 | BC23: -99 | BD23: -99 | BE23: -99 | BF23: -99 | BG23: -99 | BH23: -99 | BI23: -99
A24: Single Antenna | B24: A | C24: Unii 2ext | D24: 7 | E24: -99 | F24: -99 | G24: -99 | H24: -99 | I24: -99 | J24: -99 | K24: -99 | L24: -99 | M24: -99 | N24: -99 | O24: -99 | P24: -99 | Q24: -99 | R24: -99 | S24: -99 | T24: -99 | U24: -99 | V24: -99 | W24: -99 | X24: -99 | Y24: -99 | Z24: -99 | AA24: -99 | AB24: -99 | AC24: -99 | AD24: -99 | AE24: -99 | AF24: -99 | AG24: -99 | AH24: -99 | AI24: -99 | AJ24: -99 | AK24: -99 | AL24: -99 | AM24: -99 | AN24: -99 | AO24: -99 | AP24: -99 | AQ24: -99 | AR24: -99 | AS24: -99 | AT24: -99 | AU24: -99 | AV24: -99 | AW24: -99 | AX24: -99 | AY24: -99 | AZ24: -99 | BA24: -99 | BB24: -99 | BC24: -99 | BD24: -99 | BE24: -99 | BF24: -99 | BG24: -99 | BH24: -99 | BI24: -99
A25: Dual Antenna | B25: A | C25: Unii 2ext | D25: 7 | E25: -99 | F25: -99 | G25: -99 | H25: -99 | I25: -99 | J25: -99 | K25: -99 | L25: -99 | M25: -99 | N25: -99 | O25: -99 | P25: -99 | Q25: -99 | R25: -99 | S25: -99 | T25: -99 | U25: -99 | V25: -99 | W25: -99 | X25: -99 | Y25: -99 | Z25: -99 | AA25: -99 | AB25: -99 | AC25: -99 | AD25: -99 | AE25: -99 | AF25: -99 | AG25: -99 | AH25: -99 | AI25: -99 | AJ25: -99 | AK25: -99 | AL25: -99 | AM25: -99 | AN25: -99 | AO25: -99 | AP25: -99 | AQ25: -99 | AR25: -99 | AS25: -99 | AT25: -99 | AU25: -99 | AV25: -99 | AW25: -99 | AX25: -99 | AY25: -99 | AZ25: -99 | BA25: -99 | BB25: -99 | BC25: -99 | BD25: -99 | BE25: -99 | BF25: -99 | BG25: -99 | BH25: -99 | BI25: -99
A26: Allowed Powers List | B26: A | C26: Unii 2ext | D26: 7 | E26: -99 | F26: -99 | G26: -99 | H26: -99 | I26: -99 | J26: -99 | K26: -99 | L26: -99 | M26: -99 | N26: -99 | O26: -99 | P26: -99 | Q26: -99 | R26: -99 | S26: -99 | T26: -99 | U26: -99 | V26: -99 | W26: -99 | X26: -99 | Y26: -99 | Z26: -99 | AA26: -99 | AB26: -99 | AC26: -99 | AD26: -99 | AE26: -99 | AF26: -99 | AG26: -99 | AH26: -99 | AI26: -99 | AJ26: -99 | AK26: -99 | AL26: -99 | AM26: -99 | AN26: -99 | AO26: -99 | AP26: -99 | AQ26: -99 | AR26: -99 | AS26: -99 | AT26: -99 | AU26: -99 | AV26: -99 | AW26: -99 | AX26: -99 | AY26: -99 | AZ26: -99 | BA26: -99 | BB26: -99 | BC26: -99 | BD26: -99 | BE26: -99 | BF26: -99 | BG26: -99 | BH26: -99 | BI26: -99
A27: Single Antenna | B27: A | C27: Upper ISM | D27: 4 | E27: 0 | F27: 25 | G27: 25 | H27: 25 | I27: 25 | J27: 25 | K27: 24 | L27: 23 | M27: 22 | N27: 0 | O27: 0 | P27: 0 | Q27: 0 | R27: 0 | S27: 0 | T27: 0 | U27: 0 | V27: 24 | W27: 24 | X27: 24 | Y27: 24 | Z27: 24 | AA27: 23 | AB27: 22 | AC27: 20 | AD27: 0 | AE27: 0 | AF27: 0 | AG27: 0 | AH27: 0 | AI27: 0 | AJ27: 0 | AK27: 0 | AL27: 24 | AM27: 24 | AN27: 24 | AO27: 24 | AP27: 24 | AQ27: 23 | AR27: 22 | AS27: 20 | AT27: 0 | AU27: 0 | AV27: 0 | AW27: 0 | AX27: 0 | AY27: 0 | AZ27: 0 | BA27: 0 | BB27: 25 | BC27: 25 | BD27: 25 | BE27: 25 | BF27: 25 | BG27: 24 | BH27: 23 | BI27: 22
A28: Dual Antenna | B28: A | C28: Upper ISM | D28: 4 | E28: 0 | F28: 25 | G28: 25 | H28: 25 | I28: 25 | J28: 25 | K28: 24 | L28: 23 | M28: 22 | N28: 25 | O28: 25 | P28: 25 | Q28: 25 | R28: 25 | S28: 24 | T28: 23 | U28: 22 | V28: 24 | W28: 24 | X28: 24 | Y28: 24 | Z28: 24 | AA28: 23 | AB28: 22 | AC28: 20 | AD28: 24 | AE28: 24 | AF28: 24 | AG28: 24 | AH28: 24 | AI28: 23 | AJ28: 22 | AK28: 20 | AL28: 24 | AM28: 24 | AN28: 24 | AO28: 24 | AP28: 24 | AQ28: 23 | AR28: 22 | AS28: 20 | AT28: 24 | AU28: 24 | AV28: 24 | AW28: 24 | AX28: 24 | AY28: 23 | AZ28: 22 | BA28: 20 | BB28: 25 | BC28: 25 | BD28: 25 | BE28: 25 | BF28: 25 | BG28: 24 | BH28: 23 | BI28: 22
A29: Allowed Powers List | B29: A | C29: Upper ISM | D29: 4 | E29: 13 | F29: 16 | G29: 19 | H29: 22 | I29: 25 | J29: 0 | K29: 0 | L29: 0 | M29: 0 | N29: 0 | O29: 0 | P29: 0 | Q29: 0 | R29: 0 | S29: 0 | T29: 0 | U29: 0 | V29: 0 | W29: 0 | X29: 0 | Y29: 0 | Z29: 0 | AA29: 0 | AB29: 0 | AC29: 0 | AD29: 0 | AE29: 0 | AF29: 0 | AG29: 0 | AH29: 0 | AI29: 0 | AJ29: 0 | AK29: 0 | AL29: 0 | AM29: 0 | AN29: 0 | AO29: 0 | AP29: 0 | AQ29: 0 | AR29: 0 | AS29: 0 | AT29: 0 | AU29: 0 | AV29: 0 | AW29: 0 | AX29: 0 | AY29: 0 | AZ29: 0 | BA29: 0 | BB29: 0 | BC29: 0 | BD29: 0 | BE29: 0 | BF29: 0 | BG29: 0 | BH29: 0 | BI29: 0
A30: Single Antenna | B30: A | C30: Upper ISM | D30: 7 | E30: 0 | F30: 25 | G30: 25 | H30: 25 | I30: 25 | J30: 25 | K30: 24 | L30: 23 | M30: 22 | N30: 0 | O30: 0 | P30: 0 | Q30: 0 | R30: 0 | S30: 0 | T30: 0 | U30: 0 | V30: 24 | W30: 24 | X30: 24 | Y30: 24 | Z30: 24 | AA30: 23 | AB30: 22 | AC30: 20 | AD30: 0 | AE30: 0 | AF30: 0 | AG30: 0 | AH30: 0 | AI30: 0 | AJ30: 0 | AK30: 0 | AL30: 24 | AM30: 24 | AN30: 24 | AO30: 24 | AP30: 24 | AQ30: 23 | AR30: 22 | AS30: 20 | AT30: 0 | AU30: 0 | AV30: 0 | AW30: 0 | AX30: 0 | AY30: 0 | AZ30: 0 | BA30: 0 | BB30: 25 | BC30: 25 | BD30: 25 | BE30: 25 | BF30: 25 | BG30: 24 | BH30: 23 | BI30: 22
A31: Dual Antenna | B31: A | C31: Upper ISM | D31: 7 | E31: 0 | F31: 25 | G31: 25 | H31: 25 | I31: 25 | J31: 25 | K31: 24 | L31: 23 | M31: 22 | N31: 23 | O31: 23 | P31: 23 | Q31: 23 | R31: 23 | S31: 23 | T31: 23 | U31: 22 | V31: 24 | W31: 24 | X31: 24 | Y31: 24 | Z31: 24 | AA31: 23 | AB31: 22 | AC31: 20 | AD31: 24 | AE31: 24 | AF31: 24 | AG31: 24 | AH31: 24 | AI31: 23 | AJ31: 22 | AK31: 20 | AL31: 24 | AM31: 24 | AN31: 24 | AO31: 24 | AP31: 24 | AQ31: 23 | AR31: 22 | AS31: 20 | AT31: 24 | AU31: 24 | AV31: 24 | AW31: 24 | AX31: 24 | AY31: 23 | AZ31: 22 | BA31: 20 | BB31: 25 | BC31: 25 | BD31: 25 | BE31: 25 | BF31: 25 | BG31: 24 | BH31: 23 | BI31: 22
A32: Allowed Powers List | B32: A | C32: Upper ISM | D32: 7 | E32: 13 | F32: 16 | G32: 19 | H32: 22 | I32: 25 | J32: 0 | K32: 0 | L32: 0 | M32: 0 | N32: 0 | O32: 0 | P32: 0 | Q32: 0 | R32: 0 | S32: 0 | T32: 0 | U32: 0 | V32: 0 | W32: 0 | X32: 0 | Y32: 0 | Z32: 0 | AA32: 0 | AB32: 0 | AC32: 0 | AD32: 0 | AE32: 0 | AF32: 0 | AG32: 0 | AH32: 0 | AI32: 0 | AJ32: 0 | AK32: 0 | AL32: 0 | AM32: 0 | AN32: 0 | AO32: 0 | AP32: 0 | AQ32: 0 | AR32: 0 | AS32: 0 | AT32: 0 | AU32: 0 | AV32: 0 | AW32: 0 | AX32: 0 | AY32: 0 | AZ32: 0 | BA32: 0 | BB32: 0 | BC32: 0 | BD32: 0 | BE32: 0 | BF32: 0 | BG32: 0 | BH32: 0 | BI32: 0
A33: Single Antenna | B33: C | C33: Unii 2 | D33: 4 | E33: -99 | F33: -99 | G33: -99 | H33: -99 | I33: -99 | J33: -99 | K33: -99 | L33: -99 | M33: -99 | N33: -99 | O33: -99 | P33: -99 | Q33: -99 | R33: -99 | S33: -99 | T33: -99 | U33: -99 | V33: -99 | W33: -99 | X33: -99 | Y33: -99 | Z33: -99 | AA33: -99 | AB33: -99 | AC33: -99 | AD33: -99 | AE33: -99 | AF33: -99 | AG33: -99 | AH33: -99 | AI33: -99 | AJ33: -99 | AK33: -99 | AL33: -99 | AM33: -99 | AN33: -99 | AO33: -99 | AP33: -99 | AQ33: -99 | AR33: -99 | AS33: -99 | AT33: -99 | AU33: -99 | AV33: -99 | AW33: -99 | AX33: -99 | AY33: -99 | AZ33: -99 | BA33: -99 | BB33: -99 | BC33: -99 | BD33: -99 | BE33: -99 | BF33: -99 | BG33: -99 | BH33: -99 | BI33: -99
A34: Dual Antenna | B34: C | C34: Unii 2 | D34: 4 | E34: -99 | F34: -99 | G34: -99 | H34: -99 | I34: -99 | J34: -99 | K34: -99 | L34: -99 | M34: -99 | N34: -99 | O34: -99 | P34: -99 | Q34: -99 | R34: -99 | S34: -99 | T34: -99 | U34: -99 | V34: -99 | W34: -99 | X34: -99 | Y34: -99 | Z34: -99 | AA34: -99 | AB34: -99 | AC34: -99 | AD34: -99 | AE34: -99 | AF34: -99 | AG34: -99 | AH34: -99 | AI34: -99 | AJ34: -99 | AK34: -99 | AL34: -99 | AM34: -99 | AN34: -99 | AO34: -99 | AP34: -99 | AQ34: -99 | AR34: -99 | AS34: -99 | AT34: -99 | AU34: -99 | AV34: -99 | AW34: -99 | AX34: -99 | AY34: -99 | AZ34: -99 | BA34: -99 | BB34: -99 | BC34: -99 | BD34: -99 | BE34: -99 | BF34: -99 | BG34: -99 | BH34: -99 | BI34: -99
A35: Allowed Powers List | B35: C | C35: Unii 2 | D35: 4 | E35: -99 | F35: -99 | G35: -99 | H35: -99 | I35: -99 | J35: -99 | K35: -99 | L35: -99 | M35: -99 | N35: -99 | O35: -99 | P35: -99 | Q35: -99 | R35: -99 | S35: -99 | T35: -99 | U35: -99 | V35: -99 | W35: -99 | X35: -99 | Y35: -99 | Z35: -99 | AA35: -99 | AB35: -99 | AC35: -99 | AD35: -99 | AE35: -99 | AF35: -99 | AG35: -99 | AH35: -99 | AI35: -99 | AJ35: -99 | AK35: -99 | AL35: -99 | AM35: -99 | AN35: -99 | AO35: -99 | AP35: -99 | AQ35: -99 | AR35: -99 | AS35: -99 | AT35: -99 | AU35: -99 | AV35: -99 | AW35: -99 | AX35: -99 | AY35: -99 | AZ35: -99 | BA35: -99 | BB35: -99 | BC35: -99 | BD35: -99 | BE35: -99 | BF35: -99 | BG35: -99 | BH35: -99 | BI35: -99
A36: Single Antenna | B36: C | C36: Unii 2 | D36: 7 | E36: -99 | F36: -99 | G36: -99 | H36: -99 | I36: -99 | J36: -99 | K36: -99 | L36: -99 | M36: -99 | N36: -99 | O36: -99 | P36: -99 | Q36: -99 | R36: -99 | S36: -99 | T36: -99 | U36: -99 | V36: -99 | W36: -99 | X36: -99 | Y36: -99 | Z36: -99 | AA36: -99 | AB36: -99 | AC36: -99 | AD36: -99 | AE36: -99 | AF36: -99 | AG36: -99 | AH36: -99 | AI36: -99 | AJ36: -99 | AK36: -99 | AL36: -99 | AM36: -99 | AN36: -99 | AO36: -99 | AP36: -99 | AQ36: -99 | AR36: -99 | AS36: -99 | AT36: -99 | AU36: -99 | AV36: -99 | AW36: -99 | AX36: -99 | AY36: -99 | AZ36: -99 | BA36: -99 | BB36: -99 | BC36: -99 | BD36: -99 | BE36: -99 | BF36: -99 | BG36: -99 | BH36: -99 | BI36: -99
A37: Dual Antenna | B37: C | C37: Unii 2 | D37: 7 | E37: -99 | F37: -99 | G37: -99 | H37: -99 | I37: -99 | J37: -99 | K37: -99 | L37: -99 | M37: -99 | N37: -99 | O37: -99 | P37: -99 | Q37: -99 | R37: -99 | S37: -99 | T37: -99 | U37: -99 | V37: -99 | W37: -99 | X37: -99 | Y37: -99 | Z37: -99 | AA37: -99 | AB37: -99 | AC37: -99 | AD37: -99 | AE37: -99 | AF37: -99 | AG37: -99 | AH37: -99 | AI37: -99 | AJ37: -99 | AK37: -99 | AL37: -99 | AM37: -99 | AN37: -99 | AO37: -99 | AP37: -99 | AQ37: -99 | AR37: -99 | AS37: -99 | AT37: -99 | AU37: -99 | AV37: -99 | AW37: -99 | AX37: -99 | AY37: -99 | AZ37: -99 | BA37: -99 | BB37: -99 | BC37: -99 | BD37: -99 | BE37: -99 | BF37: -99 | BG37: -99 | BH37: -99 | BI37: -99
A38: Allowed Powers List | B38: C | C38: Unii 2 | D38: 7 | E38: -99 | F38: -99 | G38: -99 | H38: -99 | I38: -99 | J38: -99 | K38: -99 | L38: -99 | M38: -99 | N38: -99 | O38: -99 | P38: -99 | Q38: -99 | R38: -99 | S38: -99 | T38: -99 | U38: -99 | V38: -99 | W38: -99 | X38: -99 | Y38: -99 | Z38: -99 | AA38: -99 | AB38: -99 | AC38: -99 | AD38: -99 | AE38: -99 | AF38: -99 | AG38: -99 | AH38: -99 | AI38: -99 | AJ38: -99 | AK38: -99 | AL38: -99 | AM38: -99 | AN38: -99 | AO38: -99 | AP38: -99 | AQ38: -99 | AR38: -99 | AS38: -99 | AT38: -99 | AU38: -99 | AV38: -99 | AW38: -99 | AX38: -99 | AY38: -99 | AZ38: -99 | BA38: -99 | BB38: -99 | BC38: -99 | BD38: -99 | BE38: -99 | BF38: -99 | BG38: -99 | BH38: -99 | BI38: -99
A39: Single Antenna | B39: C | C39: Unii 2ext | D39: 4 | E39: -99 | F39: -99 | G39: -99 | H39: -99 | I39: -99 | J39: -99 | K39: -99 | L39: -99 | M39: -99 | N39: -99 | O39: -99 | P39: -99 | Q39: -99 | R39: -99 | S39: -99 | T39: -99 | U39: -99 | V39: -99 | W39: -99 | X39: -99 | Y39: -99 | Z39: -99 | AA39: -99 | AB39: -99 | AC39: -99 | AD39: -99 | AE39: -99 | AF39: -99 | AG39: -99 | AH39: -99 | AI39: -99 | AJ39: -99 | AK39: -99 | AL39: -99 | AM39: -99 | AN39: -99 | AO39: -99 | AP39: -99 | AQ39: -99 | AR39: -99 | AS39: -99 | AT39: -99 | AU39: -99 | AV39: -99 | AW39: -99 | AX39: -99 | AY39: -99 | AZ39: -99 | BA39: -99 | BB39: -99 | BC39: -99 | BD39: -99 | BE39: -99 | BF39: -99 | BG39: -99 | BH39: -99 | BI39: -99
A40: Dual Antenna | B40: C | C40: Unii 2ext | D40: 4 | E40: -99 | F40: -99 | G40: -99 | H40: -99 | I40: -99 | J40: -99 | K40: -99 | L40: -99 | M40: -99 | N40: -99 | O40: -99 | P40: -99 | Q40: -99 | R40: -99 | S40: -99 | T40: -99 | U40: -99 | V40: -99 | W40: -99 | X40: -99 | Y40: -99 | Z40: -99 | AA40: -99 | AB40: -99 | AC40: -99 | AD40: -99 | AE40: -99 | AF40: -99 | AG40: -99 | AH40: -99 | AI40: -99 | AJ40: -99 | AK40: -99 | AL40: -99 | AM40: -99 | AN40: -99 | AO40: -99 | AP40: -99 | AQ40: -99 | AR40: -99 | AS40: -99 | AT40: -99 | AU40: -99 | AV40: -99 | AW40: -99 | AX40: -99 | AY40: -99 | AZ40: -99 | BA40: -99 | BB40: -99 | BC40: -99 | BD40: -99 | BE40: -99 | BF40: -99 | BG40: -99 | BH40: -99 | BI40: -99
A41: Allowed Powers List | B41: C | C41: Unii 2ext | D41: 4 | E41: -99 | F41: -99 | G41: -99 | H41: -99 | I41: -99 | J41: -99 | K41: -99 | L41: -99 | M41: -99 | N41: -99 | O41: -99 | P41: -99 | Q41: -99 | R41: -99 | S41: -99 | T41: -99 | U41: -99 | V41: -99 | W41: -99 | X41: -99 | Y41: -99 | Z41: -99 | AA41: -99 | AB41: -99 | AC41: -99 | AD41: -99 | AE41: -99 | AF41: -99 | AG41: -99 | AH41: -99 | AI41: -99 | AJ41: -99 | AK41: -99 | AL41: -99 | AM41: -99 | AN41: -99 | AO41: -99 | AP41: -99 | AQ41: -99 | AR41: -99 | AS41: -99 | AT41: -99 | AU41: -99 | AV41: -99 | AW41: -99 | AX41: -99 | AY41: -99 | AZ41: -99 | BA41: -99 | BB41: -99 | BC41: -99 | BD41: -99 | BE41: -99 | BF41: -99 | BG41: -99 | BH41: -99 | BI41: -99
A42: Single Antenna | B42: C | C42: Unii 2ext | D42: 7 | E42: -99 | F42: -99 | G42: -99 | H42: -99 | I42: -99 | J42: -99 | K42: -99 | L42: -99 | M42: -99 | N42: -99 | O42: -99 | P42: -99 | Q42: -99 | R42: -99 | S42: -99 | T42: -99 | U42: -99 | V42: -99 | W42: -99 | X42: -99 | Y42: -99 | Z42: -99 | AA42: -99 | AB42: -99 | AC42: -99 | AD42: -99 | AE42: -99 | AF42: -99 | AG42: -99 | AH42: -99 | AI42: -99 | AJ42: -99 | AK42: -99 | AL42: -99 | AM42: -99 | AN42: -99 | AO42: -99 | AP42: -99 | AQ42: -99 | AR42: -99 | AS42: -99 | AT42: -99 | AU42: -99 | AV42: -99 | AW42: -99 | AX42: -99 | AY42: -99 | AZ42: -99 | BA42: -99 | BB42: -99 | BC42: -99 | BD42: -99 | BE42: -99 | BF42: -99 | BG42: -99 | BH42: -99 | BI42: -99
A43: Dual Antenna | B43: C | C43: Unii 2ext | D43: 7 | E43: -99 | F43: -99 | G43: -99 | H43: -99 | I43: -99 | J43: -99 | K43: -99 | L43: -99 | M43: -99 | N43: -99 | O43: -99 | P43: -99 | Q43: -99 | R43: -99 | S43: -99 | T43: -99 | U43: -99 | V43: -99 | W43: -99 | X43: -99 | Y43: -99 | Z43: -99 | AA43: -99 | AB43: -99 | AC43: -99 | AD43: -99 | AE43: -99 | AF43: -99 | AG43: -99 | AH43: -99 | AI43: -99 | AJ43: -99 | AK43: -99 | AL43: -99 | AM43: -99 | AN43: -99 | AO43: -99 | AP43: -99 | AQ43: -99 | AR43: -99 | AS43: -99 | AT43: -99 | AU43: -99 | AV43: -99 | AW43: -99 | AX43: -99 | AY43: -99 | AZ43: -99 | BA43: -99 | BB43: -99 | BC43: -99 | BD43: -99 | BE43: -99 | BF43: -99 | BG43: -99 | BH43: -99 | BI43: -99
A44: Allowed Powers List | B44: C | C44: Unii 2ext | D44: 7 | E44: -99 | F44: -99 | G44: -99 | H44: -99 | I44: -99 | J44: -99 | K44: -99 | L44: -99 | M44: -99 | N44: -99 | O44: -99 | P44: -99 | Q44: -99 | R44: -99 | S44: -99 | T44: -99 | U44: -99 | V44: -99 | W44: -99 | X44: -99 | Y44: -99 | Z44: -99 | AA44: -99 | AB44: -99 | AC44: -99 | AD44: -99 | AE44: -99 | AF44: -99 | AG44: -99 | AH44: -99 | AI44: -99 | AJ44: -99 | AK44: -99 | AL44: -99 | AM44: -99 | AN44: -99 | AO44: -99 | AP44: -99 | AQ44: -99 | AR44: -99 | AS44: -99 | AT44: -99 | AU44: -99 | AV44: -99 | AW44: -99 | AX44: -99 | AY44: -99 | AZ44: -99 | BA44: -99 | BB44: -99 | BC44: -99 | BD44: -99 | BE44: -99 | BF44: -99 | BG44: -99 | BH44: -99 | BI44: -99
A45: Single Antenna | B45: C | C45: Upper ISM | D45: 4 | E45: 0 | F45: 25 | G45: 25 | H45: 25 | I45: 25 | J45: 25 | K45: 24 | L45: 23 | M45: 22 | N45: 0 | O45: 0 | P45: 0 | Q45: 0 | R45: 0 | S45: 0 | T45: 0 | U45: 0 | V45: 24 | W45: 24 | X45: 24 | Y45: 23 | Z45: 23 | AA45: 23 | AB45: 22 | AC45: 20 | AD45: 0 | AE45: 0 | AF45: 0 | AG45: 0 | AH45: 0 | AI45: 0 | AJ45: 0 | AK45: 0 | AL45: 23 | AM45: 23 | AN45: 23 | AO45: 23 | AP45: 23 | AQ45: 23 | AR45: 22 | AS45: 20 | AT45: 0 | AU45: 0 | AV45: 0 | AW45: 0 | AX45: 0 | AY45: 0 | AZ45: 0 | BA45: 0 | BB45: 25 | BC45: 25 | BD45: 25 | BE45: 25 | BF45: 25 | BG45: 24 | BH45: 23 | BI45: 22
A46: Dual Antenna | B46: C | C46: Upper ISM | D46: 4 | E46: 0 | F46: 23 | G46: 23 | H46: 23 | I46: 23 | J46: 23 | K46: 23 | L46: 23 | M46: 22 | N46: 20 | O46: 20 | P46: 20 | Q46: 20 | R46: 20 | S46: 20 | T46: 20 | U46: 20 | V46: 23 | W46: 23 | X46: 23 | Y46: 23 | Z46: 23 | AA46: 23 | AB46: 22 | AC46: 20 | AD46: 23 | AE46: 23 | AF46: 23 | AG46: 23 | AH46: 23 | AI46: 23 | AJ46: 22 | AK46: 20 | AL46: 23 | AM46: 23 | AN46: 23 | AO46: 23 | AP46: 23 | AQ46: 23 | AR46: 22 | AS46: 20 | AT46: 23 | AU46: 23 | AV46: 23 | AW46: 23 | AX46: 23 | AY46: 23 | AZ46: 22 | BA46: 20 | BB46: 23 | BC46: 23 | BD46: 23 | BE46: 23 | BF46: 23 | BG46: 23 | BH46: 23 | BI46: 22
A47: Allowed Powers List | B47: C | C47: Upper ISM | D47: 4 | E47: 13 | F47: 16 | G47: 19 | H47: 22 | I47: 25 | J47: 0 | K47: 0 | L47: 0 | M47: 0 | N47: 0 | O47: 0 | P47: 0 | Q47: 0 | R47: 0 | S47: 0 | T47: 0 | U47: 0 | V47: 0 | W47: 0 | X47: 0 | Y47: 0 | Z47: 0 | AA47: 0 | AB47: 0 | AC47: 0 | AD47: 0 | AE47: 0 | AF47: 0 | AG47: 0 | AH47: 0 | AI47: 0 | AJ47: 0 | AK47: 0 | AL47: 0 | AM47: 0 | AN47: 0 | AO47: 0 | AP47: 0 | AQ47: 0 | AR47: 0 | AS47: 0 | AT47: 0 | AU47: 0 | AV47: 0 | AW47: 0 | AX47: 0 | AY47: 0 | AZ47: 0 | BA47: 0 | BB47: 0 | BC47: 0 | BD47: 0 | BE47: 0 | BF47: 0 | BG47: 0 | BH47: 0 | BI47: 0
A48: Single Antenna | B48: C | C48: Upper ISM | D48: 7 | E48: 0 | F48: 23 | G48: 23 | H48: 23 | I48: 23 | J48: 23 | K48: 23 | L48: 23 | M48: 22 | N48: 0 | O48: 0 | P48: 0 | Q48: 0 | R48: 0 | S48: 0 | T48: 0 | U48: 0 | V48: 23 | W48: 23 | X48: 23 | Y48: 23 | Z48: 23 | AA48: 23 | AB48: 22 | AC48: 20 | AD48: 0 | AE48: 0 | AF48: 0 | AG48: 0 | AH48: 0 | AI48: 0 | AJ48: 0 | AK48: 0 | AL48: 23 | AM48: 23 | AN48: 23 | AO48: 23 | AP48: 23 | AQ48: 23 | AR48: 22 | AS48: 20 | AT48: 0 | AU48: 0 | AV48: 0 | AW48: 0 | AX48: 0 | AY48: 0 | AZ48: 0 | BA48: 0 | BB48: 23 | BC48: 23 | BD48: 23 | BE48: 23 | BF48: 23 | BG48: 23 | BH48: 22 | BI48: 20
A49: Dual Antenna | B49: C | C49: Upper ISM | D49: 7 | E49: 0 | F49: 20 | G49: 20 | H49: 20 | I49: 20 | J49: 20 | K49: 20 | L49: 20 | M49: 20 | N49: 17 | O49: 17 | P49: 17 | Q49: 17 | R49: 17 | S49: 17 | T49: 17 | U49: 17 | V49: 20 | W49: 20 | X49: 20 | Y49: 20 | Z49: 20 | AA49: 20 | AB49: 20 | AC49: 20 | AD49: 20 | AE49: 20 | AF49: 20 | AG49: 20 | AH49: 20 | AI49: 20 | AJ49: 20 | AK49: 20 | AL49: 20 | AM49: 20 | AN49: 20 | AO49: 20 | AP49: 20 | AQ49: 20 | AR49: 20 | AS49: 20 | AT49: 20 | AU49: 20 | AV49: 20 | AW49: 20 | AX49: 20 | AY49: 20 | AZ49: 20 | BA49: 20 | BB49: 20 | BC49: 20 | BD49: 20 | BE49: 20 | BF49: 20 | BG49: 20 | BH49: 20 | BI49: 20
A50: Allowed Powers List | B50: C | C50: Upper ISM | D50: 7 | E50: 13 | F50: 16 | G50: 19 | H50: 22 | I50: 25 | J50: 0 | K50: 0 | L50: 0 | M50: 0 | N50: 0 | O50: 0 | P50: 0 | Q50: 0 | R50: 0 | S50: 0 | T50: 0 | U50: 0 | V50: 0 | W50: 0 | X50: 0 | Y50: 0 | Z50: 0 | AA50: 0 | AB50: 0 | AC50: 0 | AD50: 0 | AE50: 0 | AF50: 0 | AG50: 0 | AH50: 0 | AI50: 0 | AJ50: 0 | AK50: 0 | AL50: 0 | AM50: 0 | AN50: 0 | AO50: 0 | AP50: 0 | AQ50: 0 | AR50: 0 | AS50: 0 | AT50: 0 | AU50: 0 | AV50: 0 | AW50: 0 | AX50: 0 | AY50: 0 | AZ50: 0 | BA50: 0 | BB50: 0 | BC50: 0 | BD50: 0 | BE50: 0 | BF50: 0 | BG50: 0 | BH50: 0 | BI50: 0
A51: Single Antenna | B51: E | C51: Unii 2 | D51: 4 | E51: -99 | F51: -99 | G51: -99 | H51: -99 | I51: -99 | J51: -99 | K51: -99 | L51: -99 | M51: -99 | N51: -99 | O51: -99 | P51: -99 | Q51: -99 | R51: -99 | S51: -99 | T51: -99 | U51: -99 | V51: -99 | W51: -99 | X51: -99 | Y51: -99 | Z51: -99 | AA51: -99 | AB51: -99 | AC51: -99 | AD51: -99 | AE51: -99 | AF51: -99 | AG51: -99 | AH51: -99 | AI51: -99 | AJ51: -99 | AK51: -99 | AL51: -99 | AM51: -99 | AN51: -99 | AO51: -99 | AP51: -99 | AQ51: -99 | AR51: -99 | AS51: -99 | AT51: -99 | AU51: -99 | AV51: -99 | AW51: -99 | AX51: -99 | AY51: -99 | AZ51: -99 | BA51: -99 | BB51: -99 | BC51: -99 | BD51: -99 | BE51: -99 | BF51: -99 | BG51: -99 | BH51: -99 | BI51: -99
A52: Dual Antenna | B52: E | C52: Unii 2 | D52: 4 | E52: -99 | F52: -99 | G52: -99 | H52: -99 | I52: -99 | J52: -99 | K52: -99 | L52: -99 | M52: -99 | N52: -99 | O52: -99 | P52: -99 | Q52: -99 | R52: -99 | S52: -99 | T52: -99 | U52: -99 | V52: -99 | W52: -99 | X52: -99 | Y52: -99 | Z52: -99 | AA52: -99 | AB52: -99 | AC52: -99 | AD52: -99 | AE52: -99 | AF52: -99 | AG52: -99 | AH52: -99 | AI52: -99 | AJ52: -99 | AK52: -99 | AL52: -99 | AM52: -99 | AN52: -99 | AO52: -99 | AP52: -99 | AQ52: -99 | AR52: -99 | AS52: -99 | AT52: -99 | AU52: -99 | AV52: -99 | AW52: -99 | AX52: -99 | AY52: -99 | AZ52: -99 | BA52: -99 | BB52: -99 | BC52: -99 | BD52: -99 | BE52: -99 | BF52: -99 | BG52: -99 | BH52: -99 | BI52: -99
A53: Allowed Powers List | B53: E | C53: Unii 2 | D53: 4 | E53: -99 | F53: -99 | G53: -99 | H53: -99 | I53: -99 | J53: -99 | K53: -99 | L53: -99 | M53: -99 | N53: -99 | O53: -99 | P53: -99 | Q53: -99 | R53: -99 | S53: -99 | T53: -99 | U53: -99 | V53: -99 | W53: -99 | X53: -99 | Y53: -99 | Z53: -99 | AA53: -99 | AB53: -99 | AC53: -99 | AD53: -99 | AE53: -99 | AF53: -99 | AG53: -99 | AH53: -99 | AI53: -99 | AJ53: -99 | AK53: -99 | AL53: -99 | AM53: -99 | AN53: -99 | AO53: -99 | AP53: -99 | AQ53: -99 | AR53: -99 | AS53: -99 | AT53: -99 | AU53: -99 | AV53: -99 | AW53: -99 | AX53: -99 | AY53: -99 | AZ53: -99 | BA53: -99 | BB53: -99 | BC53: -99 | BD53: -99 | BE53: -99 | BF53: -99 | BG53: -99 | BH53: -99 | BI53: -99
A54: Single Antenna | B54: E | C54: Unii 2 | D54: 7 | E54: -99 | F54: -99 | G54: -99 | H54: -99 | I54: -99 | J54: -99 | K54: -99 | L54: -99 | M54: -99 | N54: -99 | O54: -99 | P54: -99 | Q54: -99 | R54: -99 | S54: -99 | T54: -99 | U54: -99 | V54: -99 | W54: -99 | X54: -99 | Y54: -99 | Z54: -99 | AA54: -99 | AB54: -99 | AC54: -99 | AD54: -99 | AE54: -99 | AF54: -99 | AG54: -99 | AH54: -99 | AI54: -99 | AJ54: -99 | AK54: -99 | AL54: -99 | AM54: -99 | AN54: -99 | AO54: -99 | AP54: -99 | AQ54: -99 | AR54: -99 | AS54: -99 | AT54: -99 | AU54: -99 | AV54: -99 | AW54: -99 | AX54: -99 | AY54: -99 | AZ54: -99 | BA54: -99 | BB54: -99 | BC54: -99 | BD54: -99 | BE54: -99 | BF54: -99 | BG54: -99 | BH54: -99 | BI54: -99
A55: Dual Antenna | B55: E | C55: Unii 2 | D55: 7 | E55: -99 | F55: -99 | G55: -99 | H55: -99 | I55: -99 | J55: -99 | K55: -99 | L55: -99 | M55: -99 | N55: -99 | O55: -99 | P55: -99 | Q55: -99 | R55: -99 | S55: -99 | T55: -99 | U55: -99 | V55: -99 | W55: -99 | X55: -99 | Y55: -99 | Z55: -99 | AA55: -99 | AB55: -99 | AC55: -99 | AD55: -99 | AE55: -99 | AF55: -99 | AG55: -99 | AH55: -99 | AI55: -99 | AJ55: -99 | AK55: -99 | AL55: -99 | AM55: -99 | AN55: -99 | AO55: -99 | AP55: -99 | AQ55: -99 | AR55: -99 | AS55: -99 | AT55: -99 | AU55: -99 | AV55: -99 | AW55: -99 | AX55: -99 | AY55: -99 | AZ55: -99 | BA55: -99 | BB55: -99 | BC55: -99 | BD55: -99 | BE55: -99 | BF55: -99 | BG55: -99 | BH55: -99 | BI55: -99
A56: Allowed Powers List | B56: E | C56: Unii 2 | D56: 7 | E56: -99 | F56: -99 | G56: -99 | H56: -99 | I56: -99 | J56: -99 | K56: -99 | L56: -99 | M56: -99 | N56: -99 | O56: -99 | P56: -99 | Q56: -99 | R56: -99 | S56: -99 | T56: -99 | U56: -99 | V56: -99 | W56: -99 | X56: -99 | Y56: -99 | Z56: -99 | AA56: -99 | AB56: -99 | AC56: -99 | AD56: -99 | AE56: -99 | AF56: -99 | AG56: -99 | AH56: -99 | AI56: -99 | AJ56: -99 | AK56: -99 | AL56: -99 | AM56: -99 | AN56: -99 | AO56: -99 | AP56: -99 | AQ56: -99 | AR56: -99 | AS56: -99 | AT56: -99 | AU56: -99 | AV56: -99 | AW56: -99 | AX56: -99 | AY56: -99 | AZ56: -99 | BA56: -99 | BB56: -99 | BC56: -99 | BD56: -99 | BE56: -99 | BF56: -99 | BG56: -99 | BH56: -99 | BI56: -99
A57: Single Antenna | B57: E | C57: Unii 2ext | D57: 4 | E57: 0 | F57: 23 | G57: 23 | H57: 23 | I57: 23 | J57: 23 | K57: 23 | L57: 23 | M57: 22 | N57: 0 | O57: 0 | P57: 0 | Q57: 0 | R57: 0 | S57: 0 | T57: 0 | U57: 0 | V57: 23 | W57: 23 | X57: 23 | Y57: 23 | Z57: 23 | AA57: 23 | AB57: 22 | AC57: 20 | AD57: 0 | AE57: 0 | AF57: 0 | AG57: 0 | AH57: 0 | AI57: 0 | AJ57: 0 | AK57: 0 | AL57: 23 | AM57: 23 | AN57: 23 | AO57: 23 | AP57: 23 | AQ57: 23 | AR57: 22 | AS57: 20 | AT57: 0 | AU57: 0 | AV57: 0 | AW57: 0 | AX57: 0 | AY57: 0 | AZ57: 0 | BA57: 0 | BB57: 23 | BC57: 23 | BD57: 23 | BE57: 23 | BF57: 23 | BG57: 23 | BH57: 23 | BI57: 22
A58: Dual Antenna | B58: E | C58: Unii 2ext | D58: 4 | E58: 0 | F58: 22 | G58: 22 | H58: 22 | I58: 22 | J58: 22 | K58: 22 | L58: 22 | M58: 22 | N58: 19 | O58: 19 | P58: 19 | Q58: 19 | R58: 19 | S58: 19 | T58: 19 | U58: 19 | V58: 22 | W58: 22 | X58: 22 | Y58: 22 | Z58: 22 | AA58: 22 | AB58: 22 | AC58: 20 | AD58: 22 | AE58: 22 | AF58: 22 | AG58: 22 | AH58: 22 | AI58: 22 | AJ58: 22 | AK58: 20 | AL58: 23 | AM58: 23 | AN58: 23 | AO58: 23 | AP58: 23 | AQ58: 23 | AR58: 22 | AS58: 20 | AT58: 23 | AU58: 23 | AV58: 23 | AW58: 23 | AX58: 23 | AY58: 23 | AZ58: 22 | BA58: 20 | BB58: 23 | BC58: 23 | BD58: 23 | BE58: 23 | BF58: 23 | BG58: 23 | BH58: 23 | BI58: 22
A59: Allowed Powers List | B59: E | C59: Unii 2ext | D59: 4 | E59: 7 | F59: 11 | G59: 17 | H59: 20 | I59: 23 | J59: 0 | K59: 0 | L59: 0 | M59: 0 | N59: 0 | O59: 0 | P59: 0 | Q59: 0 | R59: 0 | S59: 0 | T59: 0 | U59: 0 | V59: 0 | W59: 0 | X59: 0 | Y59: 0 | Z59: 0 | AA59: 0 | AB59: 0 | AC59: 0 | AD59: 0 | AE59: 0 | AF59: 0 | AG59: 0 | AH59: 0 | AI59: 0 | AJ59: 0 | AK59: 0 | AL59: 0 | AM59: 0 | AN59: 0 | AO59: 0 | AP59: 0 | AQ59: 0 | AR59: 0 | AS59: 0 | AT59: 0 | AU59: 0 | AV59: 0 | AW59: 0 | AX59: 0 | AY59: 0 | AZ59: 0 | BA59: 0 | BB59: 0 | BC59: 0 | BD59: 0 | BE59: 0 | BF59: 0 | BG59: 0 | BH59: 0 | BI59: 0
A60: Single Antenna | B60: E | C60: Unii 2ext | D60: 7 | E60: 0 | F60: 22 | G60: 22 | H60: 22 | I60: 22 | J60: 22 | K60: 22 | L60: 22 | M60: 22 | N60: 0 | O60: 0 | P60: 0 | Q60: 0 | R60: 0 | S60: 0 | T60: 0 | U60: 0 | V60: 22 | W60: 22 | X60: 22 | Y60: 22 | Z60: 22 | AA60: 22 | AB60: 22 | AC60: 20 | AD60: 0 | AE60: 0 | AF60: 0 | AG60: 0 | AH60: 0 | AI60: 0 | AJ60: 0 | AK60: 0 | AL60: 23 | AM60: 23 | AN60: 23 | AO60: 23 | AP60: 23 | AQ60: 23 | AR60: 22 | AS60: 20 | AT60: 0 | AU60: 0 | AV60: 0 | AW60: 0 | AX60: 0 | AY60: 0 | AZ60: 0 | BA60: 0 | BB60: 23 | BC60: 23 | BD60: 23 | BE60: 23 | BF60: 23 | BG60: 23 | BH60: 23 | BI60: 22
A61: Dual Antenna | B61: E | C61: Unii 2ext | D61: 7 | E61: 0 | F61: 19 | G61: 19 | H61: 19 | I61: 19 | J61: 19 | K61: 19 | L61: 19 | M61: 19 | N61: 16 | O61: 16 | P61: 16 | Q61: 16 | R61: 16 | S61: 16 | T61: 16 | U61: 16 | V61: 19 | W61: 19 | X61: 19 | Y61: 19 | Z61: 19 | AA61: 19 | AB61: 19 | AC61: 19 | AD61: 19 | AE61: 19 | AF61: 19 | AG61: 19 | AH61: 19 | AI61: 19 | AJ61: 19 | AK61: 19 | AL61: 20 | AM61: 20 | AN61: 20 | AO61: 20 | AP61: 20 | AQ61: 20 | AR61: 20 | AS61: 20 | AT61: 20 | AU61: 20 | AV61: 20 | AW61: 20 | AX61: 20 | AY61: 20 | AZ61: 20 | BA61: 20 | BB61: 20 | BC61: 20 | BD61: 20 | BE61: 20 | BF61: 20 | BG61: 20 | BH61: 20 | BI61: 20
A62: Allowed Powers List | B62: E | C62: Unii 2ext | D62: 7 | E62: 7 | F62: 11 | G62: 17 | H62: 20 | I62: 23 | J62: 0 | K62: 0 | L62: 0 | M62: 0 | N62: 0 | O62: 0 | P62: 0 | Q62: 0 | R62: 0 | S62: 0 | T62: 0 | U62: 0 | V62: 0 | W62: 0 | X62: 0 | Y62: 0 | Z62: 0 | AA62: 0 | AB62: 0 | AC62: 0 | AD62: 0 | AE62: 0 | AF62: 0 | AG62: 0 | AH62: 0 | AI62: 0 | AJ62: 0 | AK62: 0 | AL62: 0 | AM62: 0 | AN62: 0 | AO62: 0 | AP62: 0 | AQ62: 0 | AR62: 0 | AS62: 0 | AT62: 0 | AU62: 0 | AV62: 0 | AW62: 0 | AX62: 0 | AY62: 0 | AZ62: 0 | BA62: 0 | BB62: 0 | BC62: 0 | BD62: 0 | BE62: 0 | BF62: 0 | BG62: 0 | BH62: 0 | BI62: 0
A63: Single Antenna | B63: E | C63: Upper ISM | D63: 4 | E63: -99 | F63: -99 | G63: -99 | H63: -99 | I63: -99 | J63: -99 | K63: -99 | L63: -99 | M63: -99 | N63: -99 | O63: -99 | P63: -99 | Q63: -99 | R63: -99 | S63: -99 | T63: -99 | U63: -99 | V63: -99 | W63: -99 | X63: -99 | Y63: -99 | Z63: -99 | AA63: -99 | AB63: -99 | AC63: -99 | AD63: -99 | AE63: -99 | AF63: -99 | AG63: -99 | AH63: -99 | AI63: -99 | AJ63: -99 | AK63: -99 | AL63: -99 | AM63: -99 | AN63: -99 | AO63: -99 | AP63: -99 | AQ63: -99 | AR63: -99 | AS63: -99 | AT63: -99 | AU63: -99 | AV63: -99 | AW63: -99 | AX63: -99 | AY63: -99 | AZ63: -99 | BA63: -99 | BB63: -99 | BC63: -99 | BD63: -99 | BE63: -99 | BF63: -99 | BG63: -99 | BH63: -99 | BI63: -99
A64: Dual Antenna | B64: E | C64: Upper ISM | D64: 4 | E64: -99 | F64: -99 | G64: -99 | H64: -99 | I64: -99 | J64: -99 | K64: -99 | L64: -99 | M64: -99 | N64: -99 | O64: -99 | P64: -99 | Q64: -99 | R64: -99 | S64: -99 | T64: -99 | U64: -99 | V64: -99 | W64: -99 | X64: -99 | Y64: -99 | Z64: -99 | AA64: -99 | AB64: -99 | AC64: -99 | AD64: -99 | AE64: -99 | AF64: -99 | AG64: -99 | AH64: -99 | AI64: -99 | AJ64: -99 | AK64: -99 | AL64: -99 | AM64: -99 | AN64: -99 | AO64: -99 | AP64: -99 | AQ64: -99 | AR64: -99 | AS64: -99 | AT64: -99 | AU64: -99 | AV64: -99 | AW64: -99 | AX64: -99 | AY64: -99 | AZ64: -99 | BA64: -99 | BB64: -99 | BC64: -99 | BD64: -99 | BE64: -99 | BF64: -99 | BG64: -99 | BH64: -99 | BI64: -99
A65: Allowed Powers List | B65: E | C65: Upper ISM | D65: 4 | E65: -99 | F65: -99 | G65: -99 | H65: -99 | I65: -99 | J65: -99 | K65: -99 | L65: -99 | M65: -99 | N65: -99 | O65: -99 | P65: -99 | Q65: -99 | R65: -99 | S65: -99 | T65: -99 | U65: -99 | V65: -99 | W65: -99 | X65: -99 | Y65: -99 | Z65: -99 | AA65: -99 | AB65: -99 | AC65: -99 | AD65: -99 | AE65: -99 | AF65: -99 | AG65: -99 | AH65: -99 | AI65: -99 | AJ65: -99 | AK65: -99 | AL65: -99 | AM65: -99 | AN65: -99 | AO65: -99 | AP65: -99 | AQ65: -99 | AR65: -99 | AS65: -99 | AT65: -99 | AU65: -99 | AV65: -99 | AW65: -99 | AX65: -99 | AY65: -99 | AZ65: -99 | BA65: -99 | BB65: -99 | BC65: -99 | BD65: -99 | BE65: -99 | BF65: -99 | BG65: -99 | BH65: -99 | BI65: -99
A66: Single Antenna | B66: E | C66: Upper ISM | D66: 7 | E66: -99 | F66: -99 | G66: -99 | H66: -99 | I66: -99 | J66: -99 | K66: -99 | L66: -99 | M66: -99 | N66: -99 | O66: -99 | P66: -99 | Q66: -99 | R66: -99 | S66: -99 | T66: -99 | U66: -99 | V66: -99 | W66: -99 | X66: -99 | Y66: -99 | Z66: -99 | AA66: -99 | AB66: -99 | AC66: -99 | AD66: -99 | AE66: -99 | AF66: -99 | AG66: -99 | AH66: -99 | AI66: -99 | AJ66: -99 | AK66: -99 | AL66: -99 | AM66: -99 | AN66: -99 | AO66: -99 | AP66: -99 | AQ66: -99 | AR66: -99 | AS66: -99 | AT66: -99 | AU66: -99 | AV66: -99 | AW66: -99 | AX66: -99 | AY66: -99 | AZ66: -99 | BA66: -99 | BB66: -99 | BC66: -99 | BD66: -99 | BE66: -99 | BF66: -99 | BG66: -99 | BH66: -99 | BI66: -99
A67: Dual Antenna | B67: E | C67: Upper ISM | D67: 7 | E67: -99 | F67: -99 | G67: -99 | H67: -99 | I67: -99 | J67: -99 | K67: -99 | L67: -99 | M67: -99 | N67: -99 | O67: -99 | P67: -99 | Q67: -99 | R67: -99 | S67: -99 | T67: -99 | U67: -99 | V67: -99 | W67: -99 | X67: -99 | Y67: -99 | Z67: -99 | AA67: -99 | AB67: -99 | AC67: -99 | AD67: -99 | AE67: -99 | AF67: -99 | AG67: -99 | AH67: -99 | AI67: -99 | AJ67: -99 | AK67: -99 | AL67: -99 | AM67: -99 | AN67: -99 | AO67: -99 | AP67: -99 | AQ67: -99 | AR67: -99 | AS67: -99 | AT67: -99 | AU67: -99 | AV67: -99 | AW67: -99 | AX67: -99 | AY67: -99 | AZ67: -99 | BA67: -99 | BB67: -99 | BC67: -99 | BD67: -99 | BE67: -99 | BF67: -99 | BG67: -99 | BH67: -99 | BI67: -99
A68: Allowed Powers List | B68: E | C68: Upper ISM | D68: 7 | E68: -99 | F68: -99 | G68: -99 | H68: -99 | I68: -99 | J68: -99 | K68: -99 | L68: -99 | M68: -99 | N68: -99 | O68: -99 | P68: -99 | Q68: -99 | R68: -99 | S68: -99 | T68: -99 | U68: -99 | V68: -99 | W68: -99 | X68: -99 | Y68: -99 | Z68: -99 | AA68: -99 | AB68: -99 | AC68: -99 | AD68: -99 | AE68: -99 | AF68: -99 | AG68: -99 | AH68: -99 | AI68: -99 | AJ68: -99 | AK68: -99 | AL68: -99 | AM68: -99 | AN68: -99 | AO68: -99 | AP68: -99 | AQ68: -99 | AR68: -99 | AS68: -99 | AT68: -99 | AU68: -99 | AV68: -99 | AW68: -99 | AX68: -99 | AY68: -99 | AZ68: -99 | BA68: -99 | BB68: -99 | BC68: -99 | BD68: -99 | BE68: -99 | BF68: -99 | BG68: -99 | BH68: -99 | BI68: -99
A69: Single Antenna | B69: K | C69: Unii 2 | D69: 4 | E69: 0 | F69: 22 | G69: 22 | H69: 22 | I69: 22 | J69: 22 | K69: 22 | L69: 22 | M69: 22 | N69: 0 | O69: 0 | P69: 0 | Q69: 0 | R69: 0 | S69: 0 | T69: 0 | U69: 0 | V69: 22 | W69: 22 | X69: 22 | Y69: 22 | Z69: 22 | AA69: 22 | AB69: 22 | AC69: 20 | AD69: 0 | AE69: 0 | AF69: 0 | AG69: 0 | AH69: 0 | AI69: 0 | AJ69: 0 | AK69: 0 | AL69: 22 | AM69: 22 | AN69: 22 | AO69: 22 | AP69: 22 | AQ69: 22 | AR69: 22 | AS69: 20 | AT69: 0 | AU69: 0 | AV69: 0 | AW69: 0 | AX69: 0 | AY69: 0 | AZ69: 0 | BA69: 0 | BB69: 22 | BC69: 22 | BD69: 22 | BE69: 22 | BF69: 22 | BG69: 22 | BH69: 22 | BI69: 20
A70: Dual Antenna | B70: K | C70: Unii 2 | D70: 4 | E70: 0 | F70: 19 | G70: 19 | H70: 19 | I70: 19 | J70: 19 | K70: 19 | L70: 19 | M70: 19 | N70: 16 | O70: 16 | P70: 16 | Q70: 16 | R70: 16 | S70: 16 | T70: 16 | U70: 16 | V70: 19 | W70: 19 | X70: 19 | Y70: 19 | Z70: 19 | AA70: 19 | AB70: 19 | AC70: 19 | AD70: 19 | AE70: 19 | AF70: 19 | AG70: 19 | AH70: 19 | AI70: 19 | AJ70: 19 | AK70: 19 | AL70: 19 | AM70: 19 | AN70: 19 | AO70: 19 | AP70: 19 | AQ70: 19 | AR70: 19 | AS70: 19 | AT70: 19 | AU70: 19 | AV70: 19 | AW70: 19 | AX70: 19 | AY70: 19 | AZ70: 19 | BA70: 19 | BB70: 19 | BC70: 19 | BD70: 19 | BE70: 19 | BF70: 19 | BG70: 19 | BH70: 19 | BI70: 19
A71: Allowed Powers List | B71: K | C71: Unii 2 | D71: 4 | E71: 7 | F71: 11 | G71: 17 | H71: 20 | I71: 23 | J71: 0 | K71: 0 | L71: 0 | M71: 0 | N71: 0 | O71: 0 | P71: 0 | Q71: 0 | R71: 0 | S71: 0 | T71: 0 | U71: 0 | V71: 0 | W71: 0 | X71: 0 | Y71: 0 | Z71: 0 | AA71: 0 | AB71: 0 | AC71: 0 | AD71: 0 | AE71: 0 | AF71: 0 | AG71: 0 | AH71: 0 | AI71: 0 | AJ71: 0 | AK71: 0 | AL71: 0 | AM71: 0 | AN71: 0 | AO71: 0 | AP71: 0 | AQ71: 0 | AR71: 0 | AS71: 0 | AT71: 0 | AU71: 0 | AV71: 0 | AW71: 0 | AX71: 0 | AY71: 0 | AZ71: 0 | BA71: 0 | BB71: 0 | BC71: 0 | BD71: 0 | BE71: 0 | BF71: 0 | BG71: 0 | BH71: 0 | BI71: 0
A72: Single Antenna | B72: K | C72: Unii 2 | D72: 7 | E72: 0 | F72: 19 | G72: 19 | H72: 19 | I72: 19 | J72: 19 | K72: 19 | L72: 19 | M72: 19 | N72: 0 | O72: 0 | P72: 0 | Q72: 0 | R72: 0 | S72: 0 | T72: 0 | U72: 0 | V72: 19 | W72: 19 | X72: 19 | Y72: 19 | Z72: 19 | AA72: 19 | AB72: 19 | AC72: 19 | AD72: 0 | AE72: 0 | AF72: 0 | AG72: 0 | AH72: 0 | AI72: 0 | AJ72: 0 | AK72: 0 | AL72: 19 | AM72: 19 | AN72: 19 | AO72: 19 | AP72: 19 | AQ72: 19 | AR72: 19 | AS72: 19 | AT72: 0 | AU72: 0 | AV72: 0 | AW72: 0 | AX72: 0 | AY72: 0 | AZ72: 0 | BA72: 0 | BB72: 19 | BC72: 19 | BD72: 19 | BE72: 19 | BF72: 19 | BG72: 19 | BH72: 19 | BI72: 19
A73: Dual Antenna | B73: K | C73: Unii 2 | D73: 7 | E73: 0 | F73: 16 | G73: 16 | H73: 16 | I73: 16 | J73: 16 | K73: 16 | L73: 16 | M73: 16 | N73: 13 | O73: 13 | P73: 13 | Q73: 13 | R73: 13 | S73: 13 | T73: 13 | U73: 13 | V73: 16 | W73: 16 | X73: 16 | Y73: 16 | Z73: 16 | AA73: 16 | AB73: 16 | AC73: 16 | AD73: 16 | AE73: 16 | AF73: 16 | AG73: 16 | AH73: 16 | AI73: 16 | AJ73: 16 | AK73: 16 | AL73: 16 | AM73: 16 | AN73: 16 | AO73: 16 | AP73: 16 | AQ73: 16 | AR73: 16 | AS73: 16 | AT73: 16 | AU73: 16 | AV73: 16 | AW73: 16 | AX73: 16 | AY73: 16 | AZ73: 16 | BA73: 16 | BB73: 16 | BC73: 16 | BD73: 16 | BE73: 16 | BF73: 16 | BG73: 16 | BH73: 16 | BI73: 16
A74: Allowed Powers List | B74: K | C74: Unii 2 | D74: 7 | E74: 7 | F74: 11 | G74: 17 | H74: 20 | I74: 23 | J74: 0 | K74: 0 | L74: 0 | M74: 0 | N74: 0 | O74: 0 | P74: 0 | Q74: 0 | R74: 0 | S74: 0 | T74: 0 | U74: 0 | V74: 0 | W74: 0 | X74: 0 | Y74: 0 | Z74: 0 | AA74: 0 | AB74: 0 | AC74: 0 | AD74: 0 | AE74: 0 | AF74: 0 | AG74: 0 | AH74: 0 | AI74: 0 | AJ74: 0 | AK74: 0 | AL74: 0 | AM74: 0 | AN74: 0 | AO74: 0 | AP74: 0 | AQ74: 0 | AR74: 0 | AS74: 0 | AT74: 0 | AU74: 0 | AV74: 0 | AW74: 0 | AX74: 0 | AY74: 0 | AZ74: 0 | BA74: 0 | BB74: 0 | BC74: 0 | BD74: 0 | BE74: 0 | BF74: 0 | BG74: 0 | BH74: 0 | BI74: 0
A75: Single Antenna | B75: K | C75: Unii 2ext | D75: 4 | E75: 0 | F75: 22 | G75: 22 | H75: 22 | I75: 22 | J75: 22 | K75: 22 | L75: 22 | M75: 22 | N75: 0 | O75: 0 | P75: 0 | Q75: 0 | R75: 0 | S75: 0 | T75: 0 | U75: 0 | V75: 22 | W75: 22 | X75: 22 | Y75: 22 | Z75: 22 | AA75: 22 | AB75: 22 | AC75: 20 | AD75: 0 | AE75: 0 | AF75: 0 | AG75: 0 | AH75: 0 | AI75: 0 | AJ75: 0 | AK75: 0 | AL75: 22 | AM75: 22 | AN75: 22 | AO75: 22 | AP75: 22 | AQ75: 22 | AR75: 22 | AS75: 20 | AT75: 0 | AU75: 0 | AV75: 0 | AW75: 0 | AX75: 0 | AY75: 0 | AZ75: 0 | BA75: 0 | BB75: 22 | BC75: 22 | BD75: 22 | BE75: 22 | BF75: 22 | BG75: 22 | BH75: 22 | BI75: 20
A76: Dual Antenna | B76: K | C76: Unii 2ext | D76: 4 | E76: 0 | F76: 19 | G76: 19 | H76: 19 | I76: 19 | J76: 19 | K76: 19 | L76: 19 | M76: 19 | N76: 16 | O76: 16 | P76: 16 | Q76: 16 | R76: 16 | S76: 16 | T76: 16 | U76: 16 | V76: 19 | W76: 19 | X76: 19 | Y76: 19 | Z76: 19 | AA76: 19 | AB76: 19 | AC76: 19 | AD76: 19 | AE76: 19 | AF76: 19 | AG76: 19 | AH76: 19 | AI76: 19 | AJ76: 19 | AK76: 19 | AL76: 19 | AM76: 19 | AN76: 19 | AO76: 19 | AP76: 19 | AQ76: 19 | AR76: 19 | AS76: 19 | AT76: 19 | AU76: 19 | AV76: 19 | AW76: 19 | AX76: 19 | AY76: 19 | AZ76: 19 | BA76: 19 | BB76: 19 | BC76: 19 | BD76: 19 | BE76: 19 | BF76: 19 | BG76: 19 | BH76: 19 | BI76: 19
A77: Allowed Powers List | B77: K | C77: Unii 2ext | D77: 4 | E77: 7 | F77: 11 | G77: 17 | H77: 20 | I77: 23 | J77: 0 | K77: 0 | L77: 0 | M77: 0 | N77: 0 | O77: 0 | P77: 0 | Q77: 0 | R77: 0 | S77: 0 | T77: 0 | U77: 0 | V77: 0 | W77: 0 | X77: 0 | Y77: 0 | Z77: 0 | AA77: 0 | AB77: 0 | AC77: 0 | AD77: 0 | AE77: 0 | AF77: 0 | AG77: 0 | AH77: 0 | AI77: 0 | AJ77: 0 | AK77: 0 | AL77: 0 | AM77: 0 | AN77: 0 | AO77: 0 | AP77: 0 | AQ77: 0 | AR77: 0 | AS77: 0 | AT77: 0 | AU77: 0 | AV77: 0 | AW77: 0 | AX77: 0 | AY77: 0 | AZ77: 0 | BA77: 0 | BB77: 0 | BC77: 0 | BD77: 0 | BE77: 0 | BF77: 0 | BG77: 0 | BH77: 0 | BI77: 0
A78: Single Antenna | B78: K | C78: Unii 2ext | D78: 7 | E78: 0 | F78: 19 | G78: 19 | H78: 19 | I78: 19 | J78: 19 | K78: 19 | L78: 19 | M78: 19 | N78: 0 | O78: 0 | P78: 0 | Q78: 0 | R78: 0 | S78: 0 | T78: 0 | U78: 0 | V78: 19 | W78: 19 | X78: 19 | Y78: 19 | Z78: 19 | AA78: 19 | AB78: 19 | AC78: 19 | AD78: 0 | AE78: 0 | AF78: 0 | AG78: 0 | AH78: 0 | AI78: 0 | AJ78: 0 | AK78: 0 | AL78: 19 | AM78: 19 | AN78: 19 | AO78: 19 | AP78: 19 | AQ78: 19 | AR78: 19 | AS78: 19 | AT78: 0 | AU78: 0 | AV78: 0 | AW78: 0 | AX78: 0 | AY78: 0 | AZ78: 0 | BA78: 0 | BB78: 19 | BC78: 19 | BD78: 19 | BE78: 19 | BF78: 19 | BG78: 19 | BH78: 19 | BI78: 19
A79: Dual Antenna | B79: K | C79: Unii 2ext | D79: 7 | E79: 0 | F79: 16 | G79: 16 | H79: 16 | I79: 16 | J79: 16 | K79: 16 | L79: 16 | M79: 16 | N79: 13 | O79: 13 | P79: 13 | Q79: 13 | R79: 13 | S79: 13 | T79: 13 | U79: 13 | V79: 16 | W79: 16 | X79: 16 | Y79: 16 | Z79: 16 | AA79: 16 | AB79: 16 | AC79: 16 | AD79: 16 | AE79: 16 | AF79: 16 | AG79: 16 | AH79: 16 | AI79: 16 | AJ79: 16 | AK79: 16 | AL79: 16 | AM79: 16 | AN79: 16 | AO79: 16 | AP79: 16 | AQ79: 16 | AR79: 16 | AS79: 16 | AT79: 16 | AU79: 16 | AV79: 16 | AW79: 16 | AX79: 16 | AY79: 16 | AZ79: 16 | BA79: 16 | BB79: 16 | BC79: 16 | BD79: 16 | BE79: 16 | BF79: 16 | BG79: 16 | BH79: 16 | BI79: 16
A80: Allowed Powers List | B80: K | C80: Unii 2ext | D80: 7 | E80: 7 | F80: 11 | G80: 17 | H80: 20 | I80: 23 | J80: 0 | K80: 0 | L80: 0 | M80: 0 | N80: 0 | O80: 0 | P80: 0 | Q80: 0 | R80: 0 | S80: 0 | T80: 0 | U80: 0 | V80: 0 | W80: 0 | X80: 0 | Y80: 0 | Z80: 0 | AA80: 0 | AB80: 0 | AC80: 0 | AD80: 0 | AE80: 0 | AF80: 0 | AG80: 0 | AH80: 0 | AI80: 0 | AJ80: 0 | AK80: 0 | AL80: 0 | AM80: 0 | AN80: 0 | AO80: 0 | AP80: 0 | AQ80: 0 | AR80: 0 | AS80: 0 | AT80: 0 | AU80: 0 | AV80: 0 | AW80: 0 | AX80: 0 | AY80: 0 | AZ80: 0 | BA80: 0 | BB80: 0 | BC80: 0 | BD80: 0 | BE80: 0 | BF80: 0 | BG80: 0 | BH80: 0 | BI80: 0
A81: Single Antenna | B81: K | C81: Upper ISM | D81: 4 | E81: 0 | F81: 19 | G81: 19 | H81: 19 | I81: 19 | J81: 19 | K81: 19 | L81: 19 | M81: 19 | N81: 0 | O81: 0 | P81: 0 | Q81: 0 | R81: 0 | S81: 0 | T81: 0 | U81: 0 | V81: 19 | W81: 19 | X81: 19 | Y81: 19 | Z81: 19 | AA81: 19 | AB81: 19 | AC81: 19 | AD81: 0 | AE81: 0 | AF81: 0 | AG81: 0 | AH81: 0 | AI81: 0 | AJ81: 0 | AK81: 0 | AL81: 19 | AM81: 19 | AN81: 19 | AO81: 19 | AP81: 19 | AQ81: 19 | AR81: 19 | AS81: 19 | AT81: 0 | AU81: 0 | AV81: 0 | AW81: 0 | AX81: 0 | AY81: 0 | AZ81: 0 | BA81: 0 | BB81: 19 | BC81: 19 | BD81: 19 | BE81: 19 | BF81: 19 | BG81: 19 | BH81: 19 | BI81: 19
A82: Dual Antenna | B82: K | C82: Upper ISM | D82: 4 | E82: 0 | F82: 19 | G82: 19 | H82: 19 | I82: 19 | J82: 19 | K82: 19 | L82: 19 | M82: 19 | N82: 18 | O82: 18 | P82: 18 | Q82: 18 | R82: 18 | S82: 18 | T82: 18 | U82: 18 | V82: 19 | W82: 19 | X82: 19 | Y82: 19 | Z82: 19 | AA82: 19 | AB82: 19 | AC82: 19 | AD82: 19 | AE82: 19 | AF82: 19 | AG82: 19 | AH82: 19 | AI82: 19 | AJ82: 19 | AK82: 19 | AL82: 19 | AM82: 19 | AN82: 19 | AO82: 19 | AP82: 19 | AQ82: 19 | AR82: 19 | AS82: 19 | AT82: 19 | AU82: 19 | AV82: 19 | AW82: 19 | AX82: 19 | AY82: 19 | AZ82: 19 | BA82: 19 | BB82: 19 | BC82: 19 | BD82: 19 | BE82: 19 | BF82: 19 | BG82: 19 | BH82: 19 | BI82: 19
A83: Allowed Powers List | B83: K | C83: Upper ISM | D83: 4 | E83: 13 | F83: 16 | G83: 19 | H83: 22 | I83: 25 | J83: 0 | K83: 0 | L83: 0 | M83: 0 | N83: 0 | O83: 0 | P83: 0 | Q83: 0 | R83: 0 | S83: 0 | T83: 0 | U83: 0 | V83: 0 | W83: 0 | X83: 0 | Y83: 0 | Z83: 0 | AA83: 0 | AB83: 0 | AC83: 0 | AD83: 0 | AE83: 0 | AF83: 0 | AG83: 0 | AH83: 0 | AI83: 0 | AJ83: 0 | AK83: 0 | AL83: 0 | AM83: 0 | AN83: 0 | AO83: 0 | AP83: 0 | AQ83: 0 | AR83: 0 | AS83: 0 | AT83: 0 | AU83: 0 | AV83: 0 | AW83: 0 | AX83: 0 | AY83: 0 | AZ83: 0 | BA83: 0 | BB83: 0 | BC83: 0 | BD83: 0 | BE83: 0 | BF83: 0 | BG83: 0 | BH83: 0 | BI83: 0
A84: Single Antenna | B84: K | C84: Upper ISM | D84: 7 | E84: 0 | F84: 19 | G84: 19 | H84: 19 | I84: 19 | J84: 19 | K84: 19 | L84: 19 | M84: 19 | N84: 0 | O84: 0 | P84: 0 | Q84: 0 | R84: 0 | S84: 0 | T84: 0 | U84: 0 | V84: 19 | W84: 19 | X84: 19 | Y84: 19 | Z84: 19 | AA84: 19 | AB84: 19 | AC84: 19 | AD84: 0 | AE84: 0 | AF84: 0 | AG84: 0 | AH84: 0 | AI84: 0 | AJ84: 0 | AK84: 0 | AL84: 19 | AM84: 19 | AN84: 19 | AO84: 19 | AP84: 19 | AQ84: 19 | AR84: 19 | AS84: 19 | AT84: 0 | AU84: 0 | AV84: 0 | AW84: 0 | AX84: 0 | AY84: 0 | AZ84: 0 | BA84: 0 | BB84: 19 | BC84: 19 | BD84: 19 | BE84: 19 | BF84: 19 | BG84: 19 | BH84: 19 | BI84: 19
A85: Dual Antenna | B85: K | C85: Upper ISM | D85: 7 | E85: 0 | F85: 18 | G85: 18 | H85: 18 | I85: 18 | J85: 18 | K85: 18 | L85: 18 | M85: 18 | N85: 15 | O85: 15 | P85: 15 | Q85: 15 | R85: 15 | S85: 15 | T85: 15 | U85: 15 | V85: 18 | W85: 18 | X85: 18 | Y85: 18 | Z85: 18 | AA85: 18 | AB85: 18 | AC85: 18 | AD85: 18 | AE85: 18 | AF85: 18 | AG85: 18 | AH85: 18 | AI85: 18 | AJ85: 18 | AK85: 18 | AL85: 18 | AM85: 18 | AN85: 18 | AO85: 18 | AP85: 18 | AQ85: 18 | AR85: 18 | AS85: 18 | AT85: 18 | AU85: 18 | AV85: 18 | AW85: 18 | AX85: 18 | AY85: 18 | AZ85: 18 | BA85: 18 | BB85: 18 | BC85: 18 | BD85: 18 | BE85: 18 | BF85: 18 | BG85: 18 | BH85: 18 | BI85: 18
A86: Allowed Powers List | B86: K | C86: Upper ISM | D86: 7 | E86: 13 | F86: 16 | G86: 19 | H86: 22 | I86: 25 | J86: 0 | K86: 0 | L86: 0 | M86: 0 | N86: 0 | O86: 0 | P86: 0 | Q86: 0 | R86: 0 | S86: 0 | T86: 0 | U86: 0 | V86: 0 | W86: 0 | X86: 0 | Y86: 0 | Z86: 0 | AA86: 0 | AB86: 0 | AC86: 0 | AD86: 0 | AE86: 0 | AF86: 0 | AG86: 0 | AH86: 0 | AI86: 0 | AJ86: 0 | AK86: 0 | AL86: 0 | AM86: 0 | AN86: 0 | AO86: 0 | AP86: 0 | AQ86: 0 | AR86: 0 | AS86: 0 | AT86: 0 | AU86: 0 | AV86: 0 | AW86: 0 | AX86: 0 | AY86: 0 | AZ86: 0 | BA86: 0 | BB86: 0 | BC86: 0 | BD86: 0 | BE86: 0 | BF86: 0 | BG86: 0 | BH86: 0 | BI86: 0
A87: Single Antenna | B87: M | C87: Unii 2 | D87: 4 | E87: -99 | F87: -99 | G87: -99 | H87: -99 | I87: -99 | J87: -99 | K87: -99 | L87: -99 | M87: -99 | N87: -99 | O87: -99 | P87: -99 | Q87: -99 | R87: -99 | S87: -99 | T87: -99 | U87: -99 | V87: -99 | W87: -99 | X87: -99 | Y87: -99 | Z87: -99 | AA87: -99 | AB87: -99 | AC87: -99 | AD87: -99 | AE87: -99 | AF87: -99 | AG87: -99 | AH87: -99 | AI87: -99 | AJ87: -99 | AK87: -99 | AL87: -99 | AM87: -99 | AN87: -99 | AO87: -99 | AP87: -99 | AQ87: -99 | AR87: -99 | AS87: -99 | AT87: -99 | AU87: -99 | AV87: -99 | AW87: -99 | AX87: -99 | AY87: -99 | AZ87: -99 | BA87: -99 | BB87: -99 | BC87: -99 | BD87: -99 | BE87: -99 | BF87: -99 | BG87: -99 | BH87: -99 | BI87: -99
A88: Dual Antenna | B88: M | C88: Unii 2 | D88: 4 | E88: -99 | F88: -99 | G88: -99 | H88: -99 | I88: -99 | J88: -99 | K88: -99 | L88: -99 | M88: -99 | N88: -99 | O88: -99 | P88: -99 | Q88: -99 | R88: -99 | S88: -99 | T88: -99 | U88: -99 | V88: -99 | W88: -99 | X88: -99 | Y88: -99 | Z88: -99 | AA88: -99 | AB88: -99 | AC88: -99 | AD88: -99 | AE88: -99 | AF88: -99 | AG88: -99 | AH88: -99 | AI88: -99 | AJ88: -99 | AK88: -99 | AL88: -99 | AM88: -99 | AN88: -99 | AO88: -99 | AP88: -99 | AQ88: -99 | AR88: -99 | AS88: -99 | AT88: -99 | AU88: -99 | AV88: -99 | AW88: -99 | AX88: -99 | AY88: -99 | AZ88: -99 | BA88: -99 | BB88: -99 | BC88: -99 | BD88: -99 | BE88: -99 | BF88: -99 | BG88: -99 | BH88: -99 | BI88: -99
A89: Allowed Powers List | B89: M | C89: Unii 2 | D89: 4 | E89: -99 | F89: -99 | G89: -99 | H89: -99 | I89: -99 | J89: -99 | K89: -99 | L89: -99 | M89: -99 | N89: -99 | O89: -99 | P89: -99 | Q89: -99 | R89: -99 | S89: -99 | T89: -99 | U89: -99 | V89: -99 | W89: -99 | X89: -99 | Y89: -99 | Z89: -99 | AA89: -99 | AB89: -99 | AC89: -99 | AD89: -99 | AE89: -99 | AF89: -99 | AG89: -99 | AH89: -99 | AI89: -99 | AJ89: -99 | AK89: -99 | AL89: -99 | AM89: -99 | AN89: -99 | AO89: -99 | AP89: -99 | AQ89: -99 | AR89: -99 | AS89: -99 | AT89: -99 | AU89: -99 | AV89: -99 | AW89: -99 | AX89: -99 | AY89: -99 | AZ89: -99 | BA89: -99 | BB89: -99 | BC89: -99 | BD89: -99 | BE89: -99 | BF89: -99 | BG89: -99 | BH89: -99 | BI89: -99
A90: Single Antenna | B90: M | C90: Unii 2 | D90: 7 | E90: -99 | F90: -99 | G90: -99 | H90: -99 | I90: -99 | J90: -99 | K90: -99 | L90: -99 | M90: -99 | N90: -99 | O90: -99 | P90: -99 | Q90: -99 | R90: -99 | S90: -99 | T90: -99 | U90: -99 | V90: -99 | W90: -99 | X90: -99 | Y90: -99 | Z90: -99 | AA90: -99 | AB90: -99 | AC90: -99 | AD90: -99 | AE90: -99 | AF90: -99 | AG90: -99 | AH90: -99 | AI90: -99 | AJ90: -99 | AK90: -99 | AL90: -99 | AM90: -99 | AN90: -99 | AO90: -99 | AP90: -99 | AQ90: -99 | AR90: -99 | AS90: -99 | AT90: -99 | AU90: -99 | AV90: -99 | AW90: -99 | AX90: -99 | AY90: -99 | AZ90: -99 | BA90: -99 | BB90: -99 | BC90: -99 | BD90: -99 | BE90: -99 | BF90: -99 | BG90: -99 | BH90: -99 | BI90: -99
A91: Dual Antenna | B91: M | C91: Unii 2 | D91: 7 | E91: -99 | F91: -99 | G91: -99 | H91: -99 | I91: -99 | J91: -99 | K91: -99 | L91: -99 | M91: -99 | N91: -99 | O91: -99 | P91: -99 | Q91: -99 | R91: -99 | S91: -99 | T91: -99 | U91: -99 | V91: -99 | W91: -99 | X91: -99 | Y91: -99 | Z91: -99 | AA91: -99 | AB91: -99 | AC91: -99 | AD91: -99 | AE91: -99 | AF91: -99 | AG91: -99 | AH91: -99 | AI91: -99 | AJ91: -99 | AK91: -99 | AL91: -99 | AM91: -99 | AN91: -99 | AO91: -99 | AP91: -99 | AQ91: -99 | AR91: -99 | AS91: -99 | AT91: -99 | AU91: -99 | AV91: -99 | AW91: -99 | AX91: -99 | AY91: -99 | AZ91: -99 | BA91: -99 | BB91: -99 | BC91: -99 | BD91: -99 | BE91: -99 | BF91: -99 | BG91: -99 | BH91: -99 | BI91: -99
A92: Allowed Powers List | B92: M | C92: Unii 2 | D92: 7 | E92: -99 | F92: -99 | G92: -99 | H92: -99 | I92: -99 | J92: -99 | K92: -99 | L92: -99 | M92: -99 | N92: -99 | O92: -99 | P92: -99 | Q92: -99 | R92: -99 | S92: -99 | T92: -99 | U92: -99 | V92: -99 | W92: -99 | X92: -99 | Y92: -99 | Z92: -99 | AA92: -99 | AB92: -99 | AC92: -99 | AD92: -99 | AE92: -99 | AF92: -99 | AG92: -99 | AH92: -99 | AI92: -99 | AJ92: -99 | AK92: -99 | AL92: -99 | AM92: -99 | AN92: -99 | AO92: -99 | AP92: -99 | AQ92: -99 | AR92: -99 | AS92: -99 | AT92: -99 | AU92: -99 | AV92: -99 | AW92: -99 | AX92: -99 | AY92: -99 | AZ92: -99 | BA92: -99 | BB92: -99 | BC92: -99 | BD92: -99 | BE92: -99 | BF92: -99 | BG92: -99 | BH92: -99 | BI92: -99
A93: Single Antenna | B93: M | C93: Unii 2ext | D93: 4 | E93: 0 | F93: 23 | G93: 23 | H93: 23 | I93: 23 | J93: 23 | K93: 23 | L93: 23 | M93: 22 | N93: 0 | O93: 0 | P93: 0 | Q93: 0 | R93: 0 | S93: 0 | T93: 0 | U93: 0 | V93: 23 | W93: 23 | X93: 23 | Y93: 23 | Z93: 23 | AA93: 23 | AB93: 22 | AC93: 20 | AD93: 0 | AE93: 0 | AF93: 0 | AG93: 0 | AH93: 0 | AI93: 0 | AJ93: 0 | AK93: 0 | AL93: 23 | AM93: 23 | AN93: 23 | AO93: 23 | AP93: 23 | AQ93: 23 | AR93: 22 | AS93: 20 | AT93: 0 | AU93: 0 | AV93: 0 | AW93: 0 | AX93: 0 | AY93: 0 | AZ93: 0 | BA93: 0 | BB93: 23 | BC93: 23 | BD93: 23 | BE93: 23 | BF93: 23 | BG93: 23 | BH93: 23 | BI93: 22
A94: Dual Antenna | B94: M | C94: Unii 2ext | D94: 4 | E94: 0 | F94: 22 | G94: 22 | H94: 22 | I94: 22 | J94: 22 | K94: 22 | L94: 22 | M94: 22 | N94: 19 | O94: 19 | P94: 19 | Q94: 19 | R94: 19 | S94: 19 | T94: 19 | U94: 19 | V94: 22 | W94: 22 | X94: 22 | Y94: 22 | Z94: 22 | AA94: 22 | AB94: 22 | AC94: 20 | AD94: 22 | AE94: 22 | AF94: 22 | AG94: 22 | AH94: 22 | AI94: 22 | AJ94: 22 | AK94: 20 | AL94: 23 | AM94: 23 | AN94: 23 | AO94: 23 | AP94: 23 | AQ94: 23 | AR94: 22 | AS94: 20 | AT94: 23 | AU94: 23 | AV94: 23 | AW94: 23 | AX94: 23 | AY94: 23 | AZ94: 22 | BA94: 20 | BB94: 23 | BC94: 23 | BD94: 23 | BE94: 23 | BF94: 23 | BG94: 23 | BH94: 23 | BI94: 22
A95: Allowed Powers List | B95: M | C95: Unii 2ext | D95: 4 | E95: 7 | F95: 11 | G95: 17 | H95: 20 | I95: 23 | J95: 0 | K95: 0 | L95: 0 | M95: 0 | N95: 0 | O95: 0 | P95: 0 | Q95: 0 | R95: 0 | S95: 0 | T95: 0 | U95: 0 | V95: 0 | W95: 0 | X95: 0 | Y95: 0 | Z95: 0 | AA95: 0 | AB95: 0 | AC95: 0 | AD95: 0 | AE95: 0 | AF95: 0 | AG95: 0 | AH95: 0 | AI95: 0 | AJ95: 0 | AK95: 0 | AL95: 0 | AM95: 0 | AN95: 0 | AO95: 0 | AP95: 0 | AQ95: 0 | AR95: 0 | AS95: 0 | AT95: 0 | AU95: 0 | AV95: 0 | AW95: 0 | AX95: 0 | AY95: 0 | AZ95: 0 | BA95: 0 | BB95: 0 | BC95: 0 | BD95: 0 | BE95: 0 | BF95: 0 | BG95: 0 | BH95: 0 | BI95: 0
A96: Single Antenna | B96: M | C96: Unii 2ext | D96: 7 | E96: 0 | F96: 22 | G96: 22 | H96: 22 | I96: 22 | J96: 22 | K96: 22 | L96: 22 | M96: 22 | N96: 0 | O96: 0 | P96: 0 | Q96: 0 | R96: 0 | S96: 0 | T96: 0 | U96: 0 | V96: 22 | W96: 22 | X96: 22 | Y96: 22 | Z96: 22 | AA96: 22 | AB96: 22 | AC96: 20 | AD96: 0 | AE96: 0 | AF96: 0 | AG96: 0 | AH96: 0 | AI96: 0 | AJ96: 0 | AK96: 0 | AL96: 23 | AM96: 23 | AN96: 23 | AO96: 23 | AP96: 23 | AQ96: 23 | AR96: 22 | AS96: 20 | AT96: 0 | AU96: 0 | AV96: 0 | AW96: 0 | AX96: 0 | AY96: 0 | AZ96: 0 | BA96: 0 | BB96: 20 | BC96: 20 | BD96: 20 | BE96: 20 | BF96: 20 | BG96: 20 | BH96: 20 | BI96: 20
A97: Dual Antenna | B97: M | C97: Unii 2ext | D97: 7 | E97: 0 | F97: 19 | G97: 19 | H97: 19 | I97: 19 | J97: 19 | K97: 19 | L97: 19 | M97: 19 | N97: 16 | O97: 16 | P97: 16 | Q97: 16 | R97: 16 | S97: 16 | T97: 16 | U97: 16 | V97: 19 | W97: 19 | X97: 19 | Y97: 19 | Z97: 19 | AA97: 19 | AB97: 19 | AC97: 19 | AD97: 19 | AE97: 19 | AF97: 19 | AG97: 19 | AH97: 19 | AI97: 19 | AJ97: 19 | AK97: 19 | AL97: 20 | AM97: 20 | AN97: 20 | AO97: 20 | AP97: 20 | AQ97: 20 | AR97: 20 | AS97: 20 | AT97: 20 | AU97: 20 | AV97: 20 | AW97: 20 | AX97: 20 | AY97: 20 | AZ97: 20 | BA97: 20 | BB97: 20 | BC97: 20 | BD97: 20 | BE97: 20 | BF97: 20 | BG97: 20 | BH97: 20 | BI97: 20
A98: Allowed Powers List | B98: M | C98: Unii 2ext | D98: 7 | E98: 7 | F98: 11 | G98: 17 | H98: 20 | I98: 23 | J98: 0 | K98: 0 | L98: 0 | M98: 0 | N98: 0 | O98: 0 | P98: 0 | Q98: 0 | R98: 0 | S98: 0 | T98: 0 | U98: 0 | V98: 0 | W98: 0 | X98: 0 | Y98: 0 | Z98: 0 | AA98: 0 | AB98: 0 | AC98: 0 | AD98: 0 | AE98: 0 | AF98: 0 | AG98: 0 | AH98: 0 | AI98: 0 | AJ98: 0 | AK98: 0 | AL98: 0 | AM98: 0 | AN98: 0 | AO98: 0 | AP98: 0 | AQ98: 0 | AR98: 0 | AS98: 0 | AT98: 0 | AU98: 0 | AV98: 0 | AW98: 0 | AX98: 0 | AY98: 0 | AZ98: 0 | BA98: 0 | BB98: 0 | BC98: 0 | BD98: 0 | BE98: 0 | BF98: 0 | BG98: 0 | BH98: 0 | BI98: 0
A99: Single Antenna | B99: M | C99: Upper ISM | D99: 4 | E99: 0 | F99: 25 | G99: 25 | H99: 25 | I99: 25 | J99: 25 | K99: 24 | L99: 23 | M99: 22 | N99: 0 | O99: 0 | P99: 0 | Q99: 0 | R99: 0 | S99: 0 | T99: 0 | U99: 0 | V99: 24 | W99: 24 | X99: 24 | Y99: 24 | Z99: 24 | AA99: 23 | AB99: 22 | AC99: 20 | AD99: 0 | AE99: 0 | AF99: 0 | AG99: 0 | AH99: 0 | AI99: 0 | AJ99: 0 | AK99: 0 | AL99: 23 | AM99: 23 | AN99: 23 | AO99: 23 | AP99: 23 | AQ99: 23 | AR99: 22 | AS99: 20 | AT99: 0 | AU99: 0 | AV99: 0 | AW99: 0 | AX99: 0 | AY99: 0 | AZ99: 0 | BA99: 0 | BB99: 23 | BC99: 23 | BD99: 23 | BE99: 23 | BF99: 23 | BG99: 23 | BH99: 23 | BI99: 22
A100: Dual Antenna | B100: M | C100: Upper ISM | D100: 4 | E100: 0 | F100: 23 | G100: 23 | H100: 23 | I100: 23 | J100: 23 | K100: 23 | L100: 23 | M100: 22 | N100: 20 | O100: 20 | P100: 20 | Q100: 20 | R100: 20 | S100: 20 | T100: 20 | U100: 20 | V100: 23 | W100: 23 | X100: 23 | Y100: 23 | Z100: 23 | AA100: 23 | AB100: 22 | AC100: 20 | AD100: 23 | AE100: 23 | AF100: 23 | AG100: 23 | AH100: 23 | AI100: 23 | AJ100: 22 | AK100: 20 | AL100: 23 | AM100: 23 | AN100: 23 | AO100: 23 | AP100: 23 | AQ100: 23 | AR100: 22 | AS100: 20 | AT100: 23 | AU100: 23 | AV100: 23 | AW100: 23 | AX100: 23 | AY100: 23 | AZ100: 22 | BA100: 20 | BB100: 23 | BC100: 23 | BD100: 23 | BE100: 23 | BF100: 23 | BG100: 23 | BH100: 23 | BI100: 22
A101: Allowed Powers List | B101: M | C101: Upper ISM | D101: 4 | E101: 13 | F101: 16 | G101: 19 | H101: 22 | I101: 25 | J101: 0 | K101: 0 | L101: 0 | M101: 0 | N101: 0 | O101: 0 | P101: 0 | Q101: 0 | R101: 0 | S101: 0 | T101: 0 | U101: 0 | V101: 0 | W101: 0 | X101: 0 | Y101: 0 | Z101: 0 | AA101: 0 | AB101: 0 | AC101: 0 | AD101: 0 | AE101: 0 | AF101: 0 | AG101: 0 | AH101: 0 | AI101: 0 | AJ101: 0 | AK101: 0 | AL101: 0 | AM101: 0 | AN101: 0 | AO101: 0 | AP101: 0 | AQ101: 0 | AR101: 0 | AS101: 0 | AT101: 0 | AU101: 0 | AV101: 0 | AW101: 0 | AX101: 0 | AY101: 0 | AZ101: 0 | BA101: 0 | BB101: 0 | BC101: 0 | BD101: 0 | BE101: 0 | BF101: 0 | BG101: 0 | BH101: 0 | BI101: 0
A102: Single Antenna | B102: M | C102: Upper ISM | D102: 7 | E102: 0 | F102: 23 | G102: 23 | H102: 23 | I102: 23 | J102: 23 | K102: 23 | L102: 23 | M102: 22 | N102: 0 | O102: 0 | P102: 0 | Q102: 0 | R102: 0 | S102: 0 | T102: 0 | U102: 0 | V102: 23 | W102: 23 | X102: 23 | Y102: 23 | Z102: 23 | AA102: 23 | AB102: 22 | AC102: 20 | AD102: 0 | AE102: 0 | AF102: 0 | AG102: 0 | AH102: 0 | AI102: 0 | AJ102: 0 | AK102: 0 | AL102: 23 | AM102: 23 | AN102: 23 | AO102: 23 | AP102: 23 | AQ102: 23 | AR102: 22 | AS102: 20 | AT102: 0 | AU102: 0 | AV102: 0 | AW102: 0 | AX102: 0 | AY102: 0 | AZ102: 0 | BA102: 0 | BB102: 20 | BC102: 20 | BD102: 20 | BE102: 20 | BF102: 20 | BG102: 20 | BH102: 20 | BI102: 20
A103: Dual Antenna | B103: M | C103: Upper ISM | D103: 7 | E103: 0 | F103: 20 | G103: 20 | H103: 20 | I103: 20 | J103: 20 | K103: 20 | L103: 20 | M103: 20 | N103: 17 | O103: 17 | P103: 17 | Q103: 17 | R103: 17 | S103: 17 | T103: 17 | U103: 17 | V103: 20 | W103: 20 | X103: 20 | Y103: 20 | Z103: 20 | AA103: 20 | AB103: 20 | AC103: 20 | AD103: 20 | AE103: 20 | AF103: 20 | AG103: 20 | AH103: 20 | AI103: 20 | AJ103: 20 | AK103: 20 | AL103: 20 | AM103: 20 | AN103: 20 | AO103: 20 | AP103: 20 | AQ103: 20 | AR103: 20 | AS103: 20 | AT103: 20 | AU103: 20 | AV103: 20 | AW103: 20 | AX103: 20 | AY103: 20 | AZ103: 20 | BA103: 20 | BB103: 20 | BC103: 20 | BD103: 20 | BE103: 20 | BF103: 20 | BG103: 20 | BH103: 20 | BI103: 20
A104: Allowed Powers List | B104: M | C104: Upper ISM | D104: 7 | E104: 13 | F104: 16 | G104: 19 | H104: 22 | I104: 25 | J104: 0 | K104: 0 | L104: 0 | M104: 0 | N104: 0 | O104: 0 | P104: 0 | Q104: 0 | R104: 0 | S104: 0 | T104: 0 | U104: 0 | V104: 0 | W104: 0 | X104: 0 | Y104: 0 | Z104: 0 | AA104: 0 | AB104: 0 | AC104: 0 | AD104: 0 | AE104: 0 | AF104: 0 | AG104: 0 | AH104: 0 | AI104: 0 | AJ104: 0 | AK104: 0 | AL104: 0 | AM104: 0 | AN104: 0 | AO104: 0 | AP104: 0 | AQ104: 0 | AR104: 0 | AS104: 0 | AT104: 0 | AU104: 0 | AV104: 0 | AW104: 0 | AX104: 0 | AY104: 0 | AZ104: 0 | BA104: 0 | BB104: 0 | BC104: 0 | BD104: 0 | BE104: 0 | BF104: 0 | BG104: 0 | BH104: 0 | BI104: 0
A105: Single Antenna | B105: N | C105: Unii 2 | D105: 4 | E105: -99 | F105: -99 | G105: -99 | H105: -99 | I105: -99 | J105: -99 | K105: -99 | L105: -99 | M105: -99 | N105: -99 | O105: -99 | P105: -99 | Q105: -99 | R105: -99 | S105: -99 | T105: -99 | U105: -99 | V105: -99 | W105: -99 | X105: -99 | Y105: -99 | Z105: -99 | AA105: -99 | AB105: -99 | AC105: -99 | AD105: -99 | AE105: -99 | AF105: -99 | AG105: -99 | AH105: -99 | AI105: -99 | AJ105: -99 | AK105: -99 | AL105: -99 | AM105: -99 | AN105: -99 | AO105: -99 | AP105: -99 | AQ105: -99 | AR105: -99 | AS105: -99 | AT105: -99 | AU105: -99 | AV105: -99 | AW105: -99 | AX105: -99 | AY105: -99 | AZ105: -99 | BA105: -99 | BB105: -99 | BC105: -99 | BD105: -99 | BE105: -99 | BF105: -99 | BG105: -99 | BH105: -99 | BI105: -99
A106: Dual Antenna | B106: N | C106: Unii 2 | D106: 4 | E106: -99 | F106: -99 | G106: -99 | H106: -99 | I106: -99 | J106: -99 | K106: -99 | L106: -99 | M106: -99 | N106: -99 | O106: -99 | P106: -99 | Q106: -99 | R106: -99 | S106: -99 | T106: -99 | U106: -99 | V106: -99 | W106: -99 | X106: -99 | Y106: -99 | Z106: -99 | AA106: -99 | AB106: -99 | AC106: -99 | AD106: -99 | AE106: -99 | AF106: -99 | AG106: -99 | AH106: -99 | AI106: -99 | AJ106: -99 | AK106: -99 | AL106: -99 | AM106: -99 | AN106: -99 | AO106: -99 | AP106: -99 | AQ106: -99 | AR106: -99 | AS106: -99 | AT106: -99 | AU106: -99 | AV106: -99 | AW106: -99 | AX106: -99 | AY106: -99 | AZ106: -99 | BA106: -99 | BB106: -99 | BC106: -99 | BD106: -99 | BE106: -99 | BF106: -99 | BG106: -99 | BH106: -99 | BI106: -99
A107: Allowed Powers List | B107: N | C107: Unii 2 | D107: 4 | E107: -99 | F107: -99 | G107: -99 | H107: -99 | I107: -99 | J107: -99 | K107: -99 | L107: -99 | M107: -99 | N107: -99 | O107: -99 | P107: -99 | Q107: -99 | R107: -99 | S107: -99 | T107: -99 | U107: -99 | V107: -99 | W107: -99 | X107: -99 | Y107: -99 | Z107: -99 | AA107: -99 | AB107: -99 | AC107: -99 | AD107: -99 | AE107: -99 | AF107: -99 | AG107: -99 | AH107: -99 | AI107: -99 | AJ107: -99 | AK107: -99 | AL107: -99 | AM107: -99 | AN107: -99 | AO107: -99 | AP107: -99 | AQ107: -99 | AR107: -99 | AS107: -99 | AT107: -99 | AU107: -99 | AV107: -99 | AW107: -99 | AX107: -99 | AY107: -99 | AZ107: -99 | BA107: -99 | BB107: -99 | BC107: -99 | BD107: -99 | BE107: -99 | BF107: -99 | BG107: -99 | BH107: -99 | BI107: -99
A108: Single Antenna | B108: N | C108: Unii 2 | D108: 7 | E108: -99 | F108: -99 | G108: -99 | H108: -99 | I108: -99 | J108: -99 | K108: -99 | L108: -99 | M108: -99 | N108: -99 | O108: -99 | P108: -99 | Q108: -99 | R108: -99 | S108: -99 | T108: -99 | U108: -99 | V108: -99 | W108: -99 | X108: -99 | Y108: -99 | Z108: -99 | AA108: -99 | AB108: -99 | AC108: -99 | AD108: -99 | AE108: -99 | AF108: -99 | AG108: -99 | AH108: -99 | AI108: -99 | AJ108: -99 | AK108: -99 | AL108: -99 | AM108: -99 | AN108: -99 | AO108: -99 | AP108: -99 | AQ108: -99 | AR108: -99 | AS108: -99 | AT108: -99 | AU108: -99 | AV108: -99 | AW108: -99 | AX108: -99 | AY108: -99 | AZ108: -99 | BA108: -99 | BB108: -99 | BC108: -99 | BD108: -99 | BE108: -99 | BF108: -99 | BG108: -99 | BH108: -99 | BI108: -99
A109: Dual Antenna | B109: N | C109: Unii 2 | D109: 7 | E109: -99 | F109: -99 | G109: -99 | H109: -99 | I109: -99 | J109: -99 | K109: -99 | L109: -99 | M109: -99 | N109: -99 | O109: -99 | P109: -99 | Q109: -99 | R109: -99 | S109: -99 | T109: -99 | U109: -99 | V109: -99 | W109: -99 | X109: -99 | Y109: -99 | Z109: -99 | AA109: -99 | AB109: -99 | AC109: -99 | AD109: -99 | AE109: -99 | AF109: -99 | AG109: -99 | AH109: -99 | AI109: -99 | AJ109: -99 | AK109: -99 | AL109: -99 | AM109: -99 | AN109: -99 | AO109: -99 | AP109: -99 | AQ109: -99 | AR109: -99 | AS109: -99 | AT109: -99 | AU109: -99 | AV109: -99 | AW109: -99 | AX109: -99 | AY109: -99 | AZ109: -99 | BA109: -99 | BB109: -99 | BC109: -99 | BD109: -99 | BE109: -99 | BF109: -99 | BG109: -99 | BH109: -99 | BI109: -99
A110: Allowed Powers List | B110: N | C110: Unii 2 | D110: 7 | E110: -99 | F110: -99 | G110: -99 | H110: -99 | I110: -99 | J110: -99 | K110: -99 | L110: -99 | M110: -99 | N110: -99 | O110: -99 | P110: -99 | Q110: -99 | R110: -99 | S110: -99 | T110: -99 | U110: -99 | V110: -99 | W110: -99 | X110: -99 | Y110: -99 | Z110: -99 | AA110: -99 | AB110: -99 | AC110: -99 | AD110: -99 | AE110: -99 | AF110: -99 | AG110: -99 | AH110: -99 | AI110: -99 | AJ110: -99 | AK110: -99 | AL110: -99 | AM110: -99 | AN110: -99 | AO110: -99 | AP110: -99 | AQ110: -99 | AR110: -99 | AS110: -99 | AT110: -99 | AU110: -99 | AV110: -99 | AW110: -99 | AX110: -99 | AY110: -99 | AZ110: -99 | BA110: -99 | BB110: -99 | BC110: -99 | BD110: -99 | BE110: -99 | BF110: -99 | BG110: -99 | BH110: -99 | BI110: -99
A111: Single Antenna | B111: N | C111: Unii 2ext | D111: 4 | E111: -99 | F111: -99 | G111: -99 | H111: -99 | I111: -99 | J111: -99 | K111: -99 | L111: -99 | M111: -99 | N111: -99 | O111: -99 | P111: -99 | Q111: -99 | R111: -99 | S111: -99 | T111: -99 | U111: -99 | V111: -99 | W111: -99 | X111: -99 | Y111: -99 | Z111: -99 | AA111: -99 | AB111: -99 | AC111: -99 | AD111: -99 | AE111: -99 | AF111: -99 | AG111: -99 | AH111: -99 | AI111: -99 | AJ111: -99 | AK111: -99 | AL111: -99 | AM111: -99 | AN111: -99 | AO111: -99 | AP111: -99 | AQ111: -99 | AR111: -99 | AS111: -99 | AT111: -99 | AU111: -99 | AV111: -99 | AW111: -99 | AX111: -99 | AY111: -99 | AZ111: -99 | BA111: -99 | BB111: -99 | BC111: -99 | BD111: -99 | BE111: -99 | BF111: -99 | BG111: -99 | BH111: -99 | BI111: -99
A112: Dual Antenna | B112: N | C112: Unii 2ext | D112: 4 | E112: -99 | F112: -99 | G112: -99 | H112: -99 | I112: -99 | J112: -99 | K112: -99 | L112: -99 | M112: -99 | N112: -99 | O112: -99 | P112: -99 | Q112: -99 | R112: -99 | S112: -99 | T112: -99 | U112: -99 | V112: -99 | W112: -99 | X112: -99 | Y112: -99 | Z112: -99 | AA112: -99 | AB112: -99 | AC112: -99 | AD112: -99 | AE112: -99 | AF112: -99 | AG112: -99 | AH112: -99 | AI112: -99 | AJ112: -99 | AK112: -99 | AL112: -99 | AM112: -99 | AN112: -99 | AO112: -99 | AP112: -99 | AQ112: -99 | AR112: -99 | AS112: -99 | AT112: -99 | AU112: -99 | AV112: -99 | AW112: -99 | AX112: -99 | AY112: -99 | AZ112: -99 | BA112: -99 | BB112: -99 | BC112: -99 | BD112: -99 | BE112: -99 | BF112: -99 | BG112: -99 | BH112: -99 | BI112: -99
A113: Allowed Powers List | B113: N | C113: Unii 2ext | D113: 4 | E113: -99 | F113: -99 | G113: -99 | H113: -99 | I113: -99 | J113: -99 | K113: -99 | L113: -99 | M113: -99 | N113: -99 | O113: -99 | P113: -99 | Q113: -99 | R113: -99 | S113: -99 | T113: -99 | U113: -99 | V113: -99 | W113: -99 | X113: -99 | Y113: -99 | Z113: -99 | AA113: -99 | AB113: -99 | AC113: -99 | AD113: -99 | AE113: -99 | AF113: -99 | AG113: -99 | AH113: -99 | AI113: -99 | AJ113: -99 | AK113: -99 | AL113: -99 | AM113: -99 | AN113: -99 | AO113: -99 | AP113: -99 | AQ113: -99 | AR113: -99 | AS113: -99 | AT113: -99 | AU113: -99 | AV113: -99 | AW113: -99 | AX113: -99 | AY113: -99 | AZ113: -99 | BA113: -99 | BB113: -99 | BC113: -99 | BD113: -99 | BE113: -99 | BF113: -99 | BG113: -99 | BH113: -99 | BI113: -99
A114: Single Antenna | B114: N | C114: Unii 2ext | D114: 7 | E114: -99 | F114: -99 | G114: -99 | H114: -99 | I114: -99 | J114: -99 | K114: -99 | L114: -99 | M114: -99 | N114: -99 | O114: -99 | P114: -99 | Q114: -99 | R114: -99 | S114: -99 | T114: -99 | U114: -99 | V114: -99 | W114: -99 | X114: -99 | Y114: -99 | Z114: -99 | AA114: -99 | AB114: -99 | AC114: -99 | AD114: -99 | AE114: -99 | AF114: -99 | AG114: -99 | AH114: -99 | AI114: -99 | AJ114: -99 | AK114: -99 | AL114: -99 | AM114: -99 | AN114: -99 | AO114: -99 | AP114: -99 | AQ114: -99 | AR114: -99 | AS114: -99 | AT114: -99 | AU114: -99 | AV114: -99 | AW114: -99 | AX114: -99 | AY114: -99 | AZ114: -99 | BA114: -99 | BB114: -99 | BC114: -99 | BD114: -99 | BE114: -99 | BF114: -99 | BG114: -99 | BH114: -99 | BI114: -99
A115: Dual Antenna | B115: N | C115: Unii 2ext | D115: 7 | E115: -99 | F115: -99 | G115: -99 | H115: -99 | I115: -99 | J115: -99 | K115: -99 | L115: -99 | M115: -99 | N115: -99 | O115: -99 | P115: -99 | Q115: -99 | R115: -99 | S115: -99 | T115: -99 | U115: -99 | V115: -99 | W115: -99 | X115: -99 | Y115: -99 | Z115: -99 | AA115: -99 | AB115: -99 | AC115: -99 | AD115: -99 | AE115: -99 | AF115: -99 | AG115: -99 | AH115: -99 | AI115: -99 | AJ115: -99 | AK115: -99 | AL115: -99 | AM115: -99 | AN115: -99 | AO115: -99 | AP115: -99 | AQ115: -99 | AR115: -99 | AS115: -99 | AT115: -99 | AU115: -99 | AV115: -99 | AW115: -99 | AX115: -99 | AY115: -99 | AZ115: -99 | BA115: -99 | BB115: -99 | BC115: -99 | BD115: -99 | BE115: -99 | BF115: -99 | BG115: -99 | BH115: -99 | BI115: -99
A116: Allowed Powers List | B116: N | C116: Unii 2ext | D116: 7 | E116: -99 | F116: -99 | G116: -99 | H116: -99 | I116: -99 | J116: -99 | K116: -99 | L116: -99 | M116: -99 | N116: -99 | O116: -99 | P116: -99 | Q116: -99 | R116: -99 | S116: -99 | T116: -99 | U116: -99 | V116: -99 | W116: -99 | X116: -99 | Y116: -99 | Z116: -99 | AA116: -99 | AB116: -99 | AC116: -99 | AD116: -99 | AE116: -99 | AF116: -99 | AG116: -99 | AH116: -99 | AI116: -99 | AJ116: -99 | AK116: -99 | AL116: -99 | AM116: -99 | AN116: -99 | AO116: -99 | AP116: -99 | AQ116: -99 | AR116: -99 | AS116: -99 | AT116: -99 | AU116: -99 | AV116: -99 | AW116: -99 | AX116: -99 | AY116: -99 | AZ116: -99 | BA116: -99 | BB116: -99 | BC116: -99 | BD116: -99 | BE116: -99 | BF116: -99 | BG116: -99 | BH116: -99 | BI116: -99
A117: Single Antenna | B117: N | C117: Upper ISM | D117: 4 | E117: 0 | F117: 25 | G117: 25 | H117: 25 | I117: 25 | J117: 25 | K117: 24 | L117: 23 | M117: 22 | N117: 0 | O117: 0 | P117: 0 | Q117: 0 | R117: 0 | S117: 0 | T117: 0 | U117: 0 | V117: 24 | W117: 24 | X117: 24 | Y117: 24 | Z117: 24 | AA117: 23 | AB117: 22 | AC117: 20 | AD117: 0 | AE117: 0 | AF117: 0 | AG117: 0 | AH117: 0 | AI117: 0 | AJ117: 0 | AK117: 0 | AL117: 24 | AM117: 24 | AN117: 24 | AO117: 24 | AP117: 24 | AQ117: 23 | AR117: 22 | AS117: 20 | AT117: 0 | AU117: 0 | AV117: 0 | AW117: 0 | AX117: 0 | AY117: 0 | AZ117: 0 | BA117: 0 | BB117: 25 | BC117: 25 | BD117: 25 | BE117: 25 | BF117: 25 | BG117: 24 | BH117: 23 | BI117: 22
A118: Dual Antenna | B118: N | C118: Upper ISM | D118: 4 | E118: 0 | F118: 25 | G118: 25 | H118: 25 | I118: 25 | J118: 25 | K118: 24 | L118: 23 | M118: 22 | N118: 25 | O118: 25 | P118: 25 | Q118: 25 | R118: 25 | S118: 24 | T118: 23 | U118: 22 | V118: 24 | W118: 24 | X118: 24 | Y118: 24 | Z118: 24 | AA118: 23 | AB118: 22 | AC118: 20 | AD118: 24 | AE118: 24 | AF118: 24 | AG118: 24 | AH118: 24 | AI118: 23 | AJ118: 22 | AK118: 20 | AL118: 24 | AM118: 24 | AN118: 24 | AO118: 24 | AP118: 24 | AQ118: 23 | AR118: 22 | AS118: 20 | AT118: 24 | AU118: 24 | AV118: 24 | AW118: 24 | AX118: 24 | AY118: 23 | AZ118: 22 | BA118: 20 | BB118: 25 | BC118: 25 | BD118: 25 | BE118: 25 | BF118: 25 | BG118: 24 | BH118: 23 | BI118: 22
A119: Allowed Powers List | B119: N | C119: Upper ISM | D119: 4 | E119: 13 | F119: 16 | G119: 19 | H119: 22 | I119: 25 | J119: 0 | K119: 0 | L119: 0 | M119: 0 | N119: 0 | O119: 0 | P119: 0 | Q119: 0 | R119: 0 | S119: 0 | T119: 0 | U119: 0 | V119: 0 | W119: 0 | X119: 0 | Y119: 0 | Z119: 0 | AA119: 0 | AB119: 0 | AC119: 0 | AD119: 0 | AE119: 0 | AF119: 0 | AG119: 0 | AH119: 0 | AI119: 0 | AJ119: 0 | AK119: 0 | AL119: 0 | AM119: 0 | AN119: 0 | AO119: 0 | AP119: 0 | AQ119: 0 | AR119: 0 | AS119: 0 | AT119: 0 | AU119: 0 | AV119: 0 | AW119: 0 | AX119: 0 | AY119: 0 | AZ119: 0 | BA119: 0 | BB119: 0 | BC119: 0 | BD119: 0 | BE119: 0 | BF119: 0 | BG119: 0 | BH119: 0 | BI119: 0
A120: Single Antenna | B120: N | C120: Upper ISM | D120: 7 | E120: 0 | F120: 25 | G120: 25 | H120: 25 | I120: 25 | J120: 25 | K120: 24 | L120: 23 | M120: 22 | N120: 0 | O120: 0 | P120: 0 | Q120: 0 | R120: 0 | S120: 0 | T120: 0 | U120: 0 | V120: 24 | W120: 24 | X120: 24 | Y120: 24 | Z120: 24 | AA120: 23 | AB120: 22 | AC120: 20 | AD120: 0 | AE120: 0 | AF120: 0 | AG120: 0 | AH120: 0 | AI120: 0 | AJ120: 0 | AK120: 0 | AL120: 24 | AM120: 24 | AN120: 24 | AO120: 24 | AP120: 24 | AQ120: 23 | AR120: 22 | AS120: 20 | AT120: 0 | AU120: 0 | AV120: 0 | AW120: 0 | AX120: 0 | AY120: 0 | AZ120: 0 | BA120: 0 | BB120: 25 | BC120: 25 | BD120: 25 | BE120: 25 | BF120: 25 | BG120: 24 | BH120: 23 | BI120: 22
A121: Dual Antenna | B121: N | C121: Upper ISM | D121: 7 | E121: 0 | F121: 25 | G121: 25 | H121: 25 | I121: 25 | J121: 25 | K121: 24 | L121: 23 | M121: 22 | N121: 23 | O121: 23 | P121: 23 | Q121: 23 | R121: 23 | S121: 23 | T121: 23 | U121: 22 | V121: 24 | W121: 24 | X121: 24 | Y121: 24 | Z121: 24 | AA121: 23 | AB121: 22 | AC121: 20 | AD121: 24 | AE121: 24 | AF121: 24 | AG121: 24 | AH121: 24 | AI121: 23 | AJ121: 22 | AK121: 20 | AL121: 24 | AM121: 24 | AN121: 24 | AO121: 24 | AP121: 24 | AQ121: 23 | AR121: 22 | AS121: 20 | AT121: 24 | AU121: 24 | AV121: 24 | AW121: 24 | AX121: 24 | AY121: 23 | AZ121: 22 | BA121: 20 | BB121: 25 | BC121: 25 | BD121: 25 | BE121: 25 | BF121: 25 | BG121: 24 | BH121: 23 | BI121: 22
A122: Allowed Powers List | B122: N | C122: Upper ISM | D122: 7 | E122: 13 | F122: 16 | G122: 19 | H122: 22 | I122: 25 | J122: 0 | K122: 0 | L122: 0 | M122: 0 | N122: 0 | O122: 0 | P122: 0 | Q122: 0 | R122: 0 | S122: 0 | T122: 0 | U122: 0 | V122: 0 | W122: 0 | X122: 0 | Y122: 0 | Z122: 0 | AA122: 0 | AB122: 0 | AC122: 0 | AD122: 0 | AE122: 0 | AF122: 0 | AG122: 0 | AH122: 0 | AI122: 0 | AJ122: 0 | AK122: 0 | AL122: 0 | AM122: 0 | AN122: 0 | AO122: 0 | AP122: 0 | AQ122: 0 | AR122: 0 | AS122: 0 | AT122: 0 | AU122: 0 | AV122: 0 | AW122: 0 | AX122: 0 | AY122: 0 | AZ122: 0 | BA122: 0 | BB122: 0 | BC122: 0 | BD122: 0 | BE122: 0 | BF122: 0 | BG122: 0 | BH122: 0 | BI122: 0
A123: Single Antenna | B123: Q | C123: Unii 2 | D123: 4 | E123: -99 | F123: -99 | G123: -99 | H123: -99 | I123: -99 | J123: -99 | K123: -99 | L123: -99 | M123: -99 | N123: -99 | O123: -99 | P123: -99 | Q123: -99 | R123: -99 | S123: -99 | T123: -99 | U123: -99 | V123: -99 | W123: -99 | X123: -99 | Y123: -99 | Z123: -99 | AA123: -99 | AB123: -99 | AC123: -99 | AD123: -99 | AE123: -99 | AF123: -99 | AG123: -99 | AH123: -99 | AI123: -99 | AJ123: -99 | AK123: -99 | AL123: -99 | AM123: -99 | AN123: -99 | AO123: -99 | AP123: -99 | AQ123: -99 | AR123: -99 | AS123: -99 | AT123: -99 | AU123: -99 | AV123: -99 | AW123: -99 | AX123: -99 | AY123: -99 | AZ123: -99 | BA123: -99 | BB123: -99 | BC123: -99 | BD123: -99 | BE123: -99 | BF123: -99 | BG123: -99 | BH123: -99 | BI123: -99
A124: Dual Antenna | B124: Q | C124: Unii 2 | D124: 4 | E124: -99 | F124: -99 | G124: -99 | H124: -99 | I124: -99 | J124: -99 | K124: -99 | L124: -99 | M124: -99 | N124: -99 | O124: -99 | P124: -99 | Q124: -99 | R124: -99 | S124: -99 | T124: -99 | U124: -99 | V124: -99 | W124: -99 | X124: -99 | Y124: -99 | Z124: -99 | AA124: -99 | AB124: -99 | AC124: -99 | AD124: -99 | AE124: -99 | AF124: -99 | AG124: -99 | AH124: -99 | AI124: -99 | AJ124: -99 | AK124: -99 | AL124: -99 | AM124: -99 | AN124: -99 | AO124: -99 | AP124: -99 | AQ124: -99 | AR124: -99 | AS124: -99 | AT124: -99 | AU124: -99 | AV124: -99 | AW124: -99 | AX124: -99 | AY124: -99 | AZ124: -99 | BA124: -99 | BB124: -99 | BC124: -99 | BD124: -99 | BE124: -99 | BF124: -99 | BG124: -99 | BH124: -99 | BI124: -99
A125: Allowed Powers List | B125: Q | C125: Unii 2 | D125: 4 | E125: -99 | F125: -99 | G125: -99 | H125: -99 | I125: -99 | J125: -99 | K125: -99 | L125: -99 | M125: -99 | N125: -99 | O125: -99 | P125: -99 | Q125: -99 | R125: -99 | S125: -99 | T125: -99 | U125: -99 | V125: -99 | W125: -99 | X125: -99 | Y125: -99 | Z125: -99 | AA125: -99 | AB125: -99 | AC125: -99 | AD125: -99 | AE125: -99 | AF125: -99 | AG125: -99 | AH125: -99 | AI125: -99 | AJ125: -99 | AK125: -99 | AL125: -99 | AM125: -99 | AN125: -99 | AO125: -99 | AP125: -99 | AQ125: -99 | AR125: -99 | AS125: -99 | AT125: -99 | AU125: -99 | AV125: -99 | AW125: -99 | AX125: -99 | AY125: -99 | AZ125: -99 | BA125: -99 | BB125: -99 | BC125: -99 | BD125: -99 | BE125: -99 | BF125: -99 | BG125: -99 | BH125: -99 | BI125: -99
A126: Single Antenna | B126: Q | C126: Unii 2 | D126: 7 | E126: -99 | F126: -99 | G126: -99 | H126: -99 | I126: -99 | J126: -99 | K126: -99 | L126: -99 | M126: -99 | N126: -99 | O126: -99 | P126: -99 | Q126: -99 | R126: -99 | S126: -99 | T126: -99 | U126: -99 | V126: -99 | W126: -99 | X126: -99 | Y126: -99 | Z126: -99 | AA126: -99 | AB126: -99 | AC126: -99 | AD126: -99 | AE126: -99 | AF126: -99 | AG126: -99 | AH126: -99 | AI126: -99 | AJ126: -99 | AK126: -99 | AL126: -99 | AM126: -99 | AN126: -99 | AO126: -99 | AP126: -99 | AQ126: -99 | AR126: -99 | AS126: -99 | AT126: -99 | AU126: -99 | AV126: -99 | AW126: -99 | AX126: -99 | AY126: -99 | AZ126: -99 | BA126: -99 | BB126: -99 | BC126: -99 | BD126: -99 | BE126: -99 | BF126: -99 | BG126: -99 | BH126: -99 | BI126: -99
A127: Dual Antenna | B127: Q | C127: Unii 2 | D127: 7 | E127: -99 | F127: -99 | G127: -99 | H127: -99 | I127: -99 | J127: -99 | K127: -99 | L127: -99 | M127: -99 | N127: -99 | O127: -99 | P127: -99 | Q127: -99 | R127: -99 | S127: -99 | T127: -99 | U127: -99 | V127: -99 | W127: -99 | X127: -99 | Y127: -99 | Z127: -99 | AA127: -99 | AB127: -99 | AC127: -99 | AD127: -99 | AE127: -99 | AF127: -99 | AG127: -99 | AH127: -99 | AI127: -99 | AJ127: -99 | AK127: -99 | AL127: -99 | AM127: -99 | AN127: -99 | AO127: -99 | AP127: -99 | AQ127: -99 | AR127: -99 | AS127: -99 | AT127: -99 | AU127: -99 | AV127: -99 | AW127: -99 | AX127: -99 | AY127: -99 | AZ127: -99 | BA127: -99 | BB127: -99 | BC127: -99 | BD127: -99 | BE127: -99 | BF127: -99 | BG127: -99 | BH127: -99 | BI127: -99
A128: Allowed Powers List | B128: Q | C128: Unii 2 | D128: 7 | E128: -99 | F128: -99 | G128: -99 | H128: -99 | I128: -99 | J128: -99 | K128: -99 | L128: -99 | M128: -99 | N128: -99 | O128: -99 | P128: -99 | Q128: -99 | R128: -99 | S128: -99 | T128: -99 | U128: -99 | V128: -99 | W128: -99 | X128: -99 | Y128: -99 | Z128: -99 | AA128: -99 | AB128: -99 | AC128: -99 | AD128: -99 | AE128: -99 | AF128: -99 | AG128: -99 | AH128: -99 | AI128: -99 | AJ128: -99 | AK128: -99 | AL128: -99 | AM128: -99 | AN128: -99 | AO128: -99 | AP128: -99 | AQ128: -99 | AR128: -99 | AS128: -99 | AT128: -99 | AU128: -99 | AV128: -99 | AW128: -99 | AX128: -99 | AY128: -99 | AZ128: -99 | BA128: -99 | BB128: -99 | BC128: -99 | BD128: -99 | BE128: -99 | BF128: -99 | BG128: -99 | BH128: -99 | BI128: -99
A129: Single Antenna | B129: Q | C129: Unii 2ext | D129: 4 | E129: 0 | F129: 22 | G129: 22 | H129: 22 | I129: 22 | J129: 22 | K129: 22 | L129: 22 | M129: 22 | N129: 0 | O129: 0 | P129: 0 | Q129: 0 | R129: 0 | S129: 0 | T129: 0 | U129: 0 | V129: 22 | W129: 22 | X129: 22 | Y129: 22 | Z129: 22 | AA129: 22 | AB129: 22 | AC129: 20 | AD129: 0 | AE129: 0 | AF129: 0 | AG129: 0 | AH129: 0 | AI129: 0 | AJ129: 0 | AK129: 0 | AL129: 22 | AM129: 22 | AN129: 22 | AO129: 22 | AP129: 22 | AQ129: 22 | AR129: 22 | AS129: 20 | AT129: 0 | AU129: 0 | AV129: 0 | AW129: 0 | AX129: 0 | AY129: 0 | AZ129: 0 | BA129: 0 | BB129: 22 | BC129: 22 | BD129: 22 | BE129: 22 | BF129: 22 | BG129: 22 | BH129: 22 | BI129: 20
A130: Dual Antenna | B130: Q | C130: Unii 2ext | D130: 4 | E130: 0 | F130: 19 | G130: 19 | H130: 19 | I130: 19 | J130: 19 | K130: 19 | L130: 19 | M130: 19 | N130: 16 | O130: 16 | P130: 16 | Q130: 16 | R130: 16 | S130: 16 | T130: 16 | U130: 16 | V130: 19 | W130: 19 | X130: 19 | Y130: 19 | Z130: 19 | AA130: 19 | AB130: 19 | AC130: 19 | AD130: 19 | AE130: 19 | AF130: 19 | AG130: 19 | AH130: 19 | AI130: 19 | AJ130: 19 | AK130: 19 | AL130: 19 | AM130: 19 | AN130: 19 | AO130: 19 | AP130: 19 | AQ130: 19 | AR130: 19 | AS130: 19 | AT130: 19 | AU130: 19 | AV130: 19 | AW130: 19 | AX130: 19 | AY130: 19 | AZ130: 19 | BA130: 19 | BB130: 19 | BC130: 19 | BD130: 19 | BE130: 19 | BF130: 19 | BG130: 19 | BH130: 19 | BI130: 19
A131: Allowed Powers List | B131: Q | C131: Unii 2ext | D131: 4 | E131: 7 | F131: 11 | G131: 17 | H131: 20 | I131: 23 | J131: 0 | K131: 0 | L131: 0 | M131: 0 | N131: 0 | O131: 0 | P131: 0 | Q131: 0 | R131: 0 | S131: 0 | T131: 0 | U131: 0 | V131: 0 | W131: 0 | X131: 0 | Y131: 0 | Z131: 0 | AA131: 0 | AB131: 0 | AC131: 0 | AD131: 0 | AE131: 0 | AF131: 0 | AG131: 0 | AH131: 0 | AI131: 0 | AJ131: 0 | AK131: 0 | AL131: 0 | AM131: 0 | AN131: 0 | AO131: 0 | AP131: 0 | AQ131: 0 | AR131: 0 | AS131: 0 | AT131: 0 | AU131: 0 | AV131: 0 | AW131: 0 | AX131: 0 | AY131: 0 | AZ131: 0 | BA131: 0 | BB131: 0 | BC131: 0 | BD131: 0 | BE131: 0 | BF131: 0 | BG131: 0 | BH131: 0 | BI131: 0
A132: Single Antenna | B132: Q | C132: Unii 2ext | D132: 7 | E132: 0 | F132: 19 | G132: 19 | H132: 19 | I132: 19 | J132: 19 | K132: 19 | L132: 19 | M132: 19 | N132: 0 | O132: 0 | P132: 0 | Q132: 0 | R132: 0 | S132: 0 | T132: 0 | U132: 0 | V132: 19 | W132: 19 | X132: 19 | Y132: 19 | Z132: 19 | AA132: 19 | AB132: 19 | AC132: 19 | AD132: 0 | AE132: 0 | AF132: 0 | AG132: 0 | AH132: 0 | AI132: 0 | AJ132: 0 | AK132: 0 | AL132: 19 | AM132: 19 | AN132: 19 | AO132: 19 | AP132: 19 | AQ132: 19 | AR132: 19 | AS132: 19 | AT132: 0 | AU132: 0 | AV132: 0 | AW132: 0 | AX132: 0 | AY132: 0 | AZ132: 0 | BA132: 0 | BB132: 19 | BC132: 19 | BD132: 19 | BE132: 19 | BF132: 19 | BG132: 19 | BH132: 19 | BI132: 19
A133: Dual Antenna | B133: Q | C133: Unii 2ext | D133: 7 | E133: 0 | F133: 16 | G133: 16 | H133: 16 | I133: 16 | J133: 16 | K133: 16 | L133: 16 | M133: 16 | N133: 13 | O133: 13 | P133: 13 | Q133: 13 | R133: 13 | S133: 13 | T133: 13 | U133: 13 | V133: 16 | W133: 16 | X133: 16 | Y133: 16 | Z133: 16 | AA133: 16 | AB133: 16 | AC133: 16 | AD133: 16 | AE133: 16 | AF133: 16 | AG133: 16 | AH133: 16 | AI133: 16 | AJ133: 16 | AK133: 16 | AL133: 16 | AM133: 16 | AN133: 16 | AO133: 16 | AP133: 16 | AQ133: 16 | AR133: 16 | AS133: 16 | AT133: 16 | AU133: 16 | AV133: 16 | AW133: 16 | AX133: 16 | AY133: 16 | AZ133: 16 | BA133: 16 | BB133: 16 | BC133: 16 | BD133: 16 | BE133: 16 | BF133: 16 | BG133: 16 | BH133: 16 | BI133: 16
A134: Allowed Powers List | B134: Q | C134: Unii 2ext | D134: 7 | E134: 7 | F134: 11 | G134: 17 | H134: 20 | I134: 23 | J134: 0 | K134: 0 | L134: 0 | M134: 0 | N134: 0 | O134: 0 | P134: 0 | Q134: 0 | R134: 0 | S134: 0 | T134: 0 | U134: 0 | V134: 0 | W134: 0 | X134: 0 | Y134: 0 | Z134: 0 | AA134: 0 | AB134: 0 | AC134: 0 | AD134: 0 | AE134: 0 | AF134: 0 | AG134: 0 | AH134: 0 | AI134: 0 | AJ134: 0 | AK134: 0 | AL134: 0 | AM134: 0 | AN134: 0 | AO134: 0 | AP134: 0 | AQ134: 0 | AR134: 0 | AS134: 0 | AT134: 0 | AU134: 0 | AV134: 0 | AW134: 0 | AX134: 0 | AY134: 0 | AZ134: 0 | BA134: 0 | BB134: 0 | BC134: 0 | BD134: 0 | BE134: 0 | BF134: 0 | BG134: 0 | BH134: 0 | BI134: 0
A135: Single Antenna | B135: Q | C135: Upper ISM | D135: 4 | E135: -99 | F135: -99 | G135: -99 | H135: -99 | I135: -99 | J135: -99 | K135: -99 | L135: -99 | M135: -99 | N135: -99 | O135: -99 | P135: -99 | Q135: -99 | R135: -99 | S135: -99 | T135: -99 | U135: -99 | V135: -99 | W135: -99 | X135: -99 | Y135: -99 | Z135: -99 | AA135: -99 | AB135: -99 | AC135: -99 | AD135: -99 | AE135: -99 | AF135: -99 | AG135: -99 | AH135: -99 | AI135: -99 | AJ135: -99 | AK135: -99 | AL135: -99 | AM135: -99 | AN135: -99 | AO135: -99 | AP135: -99 | AQ135: -99 | AR135: -99 | AS135: -99 | AT135: -99 | AU135: -99 | AV135: -99 | AW135: -99 | AX135: -99 | AY135: -99 | AZ135: -99 | BA135: -99 | BB135: -99 | BC135: -99 | BD135: -99 | BE135: -99 | BF135: -99 | BG135: -99 | BH135: -99 | BI135: -99
A136: Dual Antenna | B136: Q | C136: Upper ISM | D136: 4 | E136: -99 | F136: -99 | G136: -99 | H136: -99 | I136: -99 | J136: -99 | K136: -99 | L136: -99 | M136: -99 | N136: -99 | O136: -99 | P136: -99 | Q136: -99 | R136: -99 | S136: -99 | T136: -99 | U136: -99 | V136: -99 | W136: -99 | X136: -99 | Y136: -99 | Z136: -99 | AA136: -99 | AB136: -99 | AC136: -99 | AD136: -99 | AE136: -99 | AF136: -99 | AG136: -99 | AH136: -99 | AI136: -99 | AJ136: -99 | AK136: -99 | AL136: -99 | AM136: -99 | AN136: -99 | AO136: -99 | AP136: -99 | AQ136: -99 | AR136: -99 | AS136: -99 | AT136: -99 | AU136: -99 | AV136: -99 | AW136: -99 | AX136: -99 | AY136: -99 | AZ136: -99 | BA136: -99 | BB136: -99 | BC136: -99 | BD136: -99 | BE136: -99 | BF136: -99 | BG136: -99 | BH136: -99 | BI136: -99
A137: Allowed Powers List | B137: Q | C137: Upper ISM | D137: 4 | E137: -99 | F137: -99 | G137: -99 | H137: -99 | I137: -99 | J137: -99 | K137: -99 | L137: -99 | M137: -99 | N137: -99 | O137: -99 | P137: -99 | Q137: -99 | R137: -99 | S137: -99 | T137: -99 | U137: -99 | V137: -99 | W137: -99 | X137: -99 | Y137: -99 | Z137: -99 | AA137: -99 | AB137: -99 | AC137: -99 | AD137: -99 | AE137: -99 | AF137: -99 | AG137: -99 | AH137: -99 | AI137: -99 | AJ137: -99 | AK137: -99 | AL137: -99 | AM137: -99 | AN137: -99 | AO137: -99 | AP137: -99 | AQ137: -99 | AR137: -99 | AS137: -99 | AT137: -99 | AU137: -99 | AV137: -99 | AW137: -99 | AX137: -99 | AY137: -99 | AZ137: -99 | BA137: -99 | BB137: -99 | BC137: -99 | BD137: -99 | BE137: -99 | BF137: -99 | BG137: -99 | BH137: -99 | BI137: -99
A138: Single Antenna | B138: Q | C138: Upper ISM | D138: 7 | E138: -99 | F138: -99 | G138: -99 | H138: -99 | I138: -99 | J138: -99 | K138: -99 | L138: -99 | M138: -99 | N138: -99 | O138: -99 | P138: -99 | Q138: -99 | R138: -99 | S138: -99 | T138: -99 | U138: -99 | V138: -99 | W138: -99 | X138: -99 | Y138: -99 | Z138: -99 | AA138: -99 | AB138: -99 | AC138: -99 | AD138: -99 | AE138: -99 | AF138: -99 | AG138: -99 | AH138: -99 | AI138: -99 | AJ138: -99 | AK138: -99 | AL138: -99 | AM138: -99 | AN138: -99 | AO138: -99 | AP138: -99 | AQ138: -99 | AR138: -99 | AS138: -99 | AT138: -99 | AU138: -99 | AV138: -99 | AW138: -99 | AX138: -99 | AY138: -99 | AZ138: -99 | BA138: -99 | BB138: -99 | BC138: -99 | BD138: -99 | BE138: -99 | BF138: -99 | BG138: -99 | BH138: -99 | BI138: -99
A139: Dual Antenna | B139: Q | C139: Upper ISM | D139: 7 | E139: -99 | F139: -99 | G139: -99 | H139: -99 | I139: -99 | J139: -99 | K139: -99 | L139: -99 | M139: -99 | N139: -99 | O139: -99 | P139: -99 | Q139: -99 | R139: -99 | S139: -99 | T139: -99 | U139: -99 | V139: -99 | W139: -99 | X139: -99 | Y139: -99 | Z139: -99 | AA139: -99 | AB139: -99 | AC139: -99 | AD139: -99 | AE139: -99 | AF139: -99 | AG139: -99 | AH139: -99 | AI139: -99 | AJ139: -99 | AK139: -99 | AL139: -99 | AM139: -99 | AN139: -99 | AO139: -99 | AP139: -99 | AQ139: -99 | AR139: -99 | AS139: -99 | AT139: -99 | AU139: -99 | AV139: -99 | AW139: -99 | AX139: -99 | AY139: -99 | AZ139: -99 | BA139: -99 | BB139: -99 | BC139: -99 | BD139: -99 | BE139: -99 | BF139: -99 | BG139: -99 | BH139: -99 | BI139: -99
A140: Allowed Powers List | B140: Q | C140: Upper ISM | D140: 7 | E140: -99 | F140: -99 | G140: -99 | H140: -99 | I140: -99 | J140: -99 | K140: -99 | L140: -99 | M140: -99 | N140: -99 | O140: -99 | P140: -99 | Q140: -99 | R140: -99 | S140: -99 | T140: -99 | U140: -99 | V140: -99 | W140: -99 | X140: -99 | Y140: -99 | Z140: -99 | AA140: -99 | AB140: -99 | AC140: -99 | AD140: -99 | AE140: -99 | AF140: -99 | AG140: -99 | AH140: -99 | AI140: -99 | AJ140: -99 | AK140: -99 | AL140: -99 | AM140: -99 | AN140: -99 | AO140: -99 | AP140: -99 | AQ140: -99 | AR140: -99 | AS140: -99 | AT140: -99 | AU140: -99 | AV140: -99 | AW140: -99 | AX140: -99 | AY140: -99 | AZ140: -99 | BA140: -99 | BB140: -99 | BC140: -99 | BD140: -99 | BE140: -99 | BF140: -99 | BG140: -99 | BH140: -99 | BI140: -99
A141: Single Antenna | B141: R | C141: Unii 2 | D141: 4 | E141: 0 | F141: 19 | G141: 19 | H141: 19 | I141: 19 | J141: 19 | K141: 19 | L141: 19 | M141: 19 | N141: 0 | O141: 0 | P141: 0 | Q141: 0 | R141: 0 | S141: 0 | T141: 0 | U141: 0 | V141: 19 | W141: 19 | X141: 19 | Y141: 19 | Z141: 19 | AA141: 19 | AB141: 19 | AC141: 19 | AD141: 0 | AE141: 0 | AF141: 0 | AG141: 0 | AH141: 0 | AI141: 0 | AJ141: 0 | AK141: 0 | AL141: 19 | AM141: 19 | AN141: 19 | AO141: 19 | AP141: 19 | AQ141: 19 | AR141: 19 | AS141: 19 | AT141: 0 | AU141: 0 | AV141: 0 | AW141: 0 | AX141: 0 | AY141: 0 | AZ141: 0 | BA141: 0 | BB141: 19 | BC141: 19 | BD141: 19 | BE141: 19 | BF141: 19 | BG141: 19 | BH141: 19 | BI141: 19
A142: Dual Antenna | B142: R | C142: Unii 2 | D142: 4 | E142: 0 | F142: 17 | G142: 17 | H142: 17 | I142: 17 | J142: 17 | K142: 17 | L142: 17 | M142: 17 | N142: 17 | O142: 17 | P142: 17 | Q142: 17 | R142: 17 | S142: 17 | T142: 17 | U142: 17 | V142: 17 | W142: 17 | X142: 17 | Y142: 17 | Z142: 17 | AA142: 17 | AB142: 17 | AC142: 17 | AD142: 17 | AE142: 17 | AF142: 17 | AG142: 17 | AH142: 17 | AI142: 17 | AJ142: 17 | AK142: 17 | AL142: 17 | AM142: 17 | AN142: 17 | AO142: 17 | AP142: 17 | AQ142: 17 | AR142: 17 | AS142: 17 | AT142: 17 | AU142: 17 | AV142: 17 | AW142: 17 | AX142: 17 | AY142: 17 | AZ142: 17 | BA142: 17 | BB142: 17 | BC142: 17 | BD142: 17 | BE142: 17 | BF142: 17 | BG142: 17 | BH142: 17 | BI142: 17
A143: Allowed Powers List | B143: R | C143: Unii 2 | D143: 4 | E143: 7 | F143: 11 | G143: 17 | H143: 20 | I143: 23 | J143: 0 | K143: 0 | L143: 0 | M143: 0 | N143: 0 | O143: 0 | P143: 0 | Q143: 0 | R143: 0 | S143: 0 | T143: 0 | U143: 0 | V143: 0 | W143: 0 | X143: 0 | Y143: 0 | Z143: 0 | AA143: 0 | AB143: 0 | AC143: 0 | AD143: 0 | AE143: 0 | AF143: 0 | AG143: 0 | AH143: 0 | AI143: 0 | AJ143: 0 | AK143: 0 | AL143: 0 | AM143: 0 | AN143: 0 | AO143: 0 | AP143: 0 | AQ143: 0 | AR143: 0 | AS143: 0 | AT143: 0 | AU143: 0 | AV143: 0 | AW143: 0 | AX143: 0 | AY143: 0 | AZ143: 0 | BA143: 0 | BB143: 0 | BC143: 0 | BD143: 0 | BE143: 0 | BF143: 0 | BG143: 0 | BH143: 0 | BI143: 0
A144: Single Antenna | B144: R | C144: Unii 2 | D144: 7 | E144: 0 | F144: 19 | G144: 19 | H144: 19 | I144: 19 | J144: 19 | K144: 19 | L144: 19 | M144: 19 | N144: 0 | O144: 0 | P144: 0 | Q144: 0 | R144: 0 | S144: 0 | T144: 0 | U144: 0 | V144: 19 | W144: 19 | X144: 19 | Y144: 19 | Z144: 19 | AA144: 19 | AB144: 19 | AC144: 19 | AD144: 0 | AE144: 0 | AF144: 0 | AG144: 0 | AH144: 0 | AI144: 0 | AJ144: 0 | AK144: 0 | AL144: 19 | AM144: 19 | AN144: 19 | AO144: 19 | AP144: 19 | AQ144: 19 | AR144: 19 | AS144: 19 | AT144: 0 | AU144: 0 | AV144: 0 | AW144: 0 | AX144: 0 | AY144: 0 | AZ144: 0 | BA144: 0 | BB144: 19 | BC144: 19 | BD144: 19 | BE144: 19 | BF144: 19 | BG144: 19 | BH144: 19 | BI144: 19
A145: Dual Antenna | B145: R | C145: Unii 2 | D145: 7 | E145: 0 | F145: 17 | G145: 17 | H145: 17 | I145: 17 | J145: 17 | K145: 17 | L145: 17 | M145: 17 | N145: 17 | O145: 17 | P145: 17 | Q145: 17 | R145: 17 | S145: 17 | T145: 17 | U145: 17 | V145: 17 | W145: 17 | X145: 17 | Y145: 17 | Z145: 17 | AA145: 17 | AB145: 17 | AC145: 17 | AD145: 17 | AE145: 17 | AF145: 17 | AG145: 17 | AH145: 17 | AI145: 17 | AJ145: 17 | AK145: 17 | AL145: 17 | AM145: 17 | AN145: 17 | AO145: 17 | AP145: 17 | AQ145: 17 | AR145: 17 | AS145: 17 | AT145: 17 | AU145: 17 | AV145: 17 | AW145: 17 | AX145: 17 | AY145: 17 | AZ145: 17 | BA145: 17 | BB145: 17 | BC145: 17 | BD145: 17 | BE145: 17 | BF145: 17 | BG145: 17 | BH145: 17 | BI145: 17
A146: Allowed Powers List | B146: R | C146: Unii 2 | D146: 7 | E146: 7 | F146: 11 | G146: 17 | H146: 20 | I146: 23 | J146: 0 | K146: 0 | L146: 0 | M146: 0 | N146: 0 | O146: 0 | P146: 0 | Q146: 0 | R146: 0 | S146: 0 | T146: 0 | U146: 0 | V146: 0 | W146: 0 | X146: 0 | Y146: 0 | Z146: 0 | AA146: 0 | AB146: 0 | AC146: 0 | AD146: 0 | AE146: 0 | AF146: 0 | AG146: 0 | AH146: 0 | AI146: 0 | AJ146: 0 | AK146: 0 | AL146: 0 | AM146: 0 | AN146: 0 | AO146: 0 | AP146: 0 | AQ146: 0 | AR146: 0 | AS146: 0 | AT146: 0 | AU146: 0 | AV146: 0 | AW146: 0 | AX146: 0 | AY146: 0 | AZ146: 0 | BA146: 0 | BB146: 0 | BC146: 0 | BD146: 0 | BE146: 0 | BF146: 0 | BG146: 0 | BH146: 0 | BI146: 0
A147: Single Antenna | B147: R | C147: Unii 2ext | D147: 4 | E147: 0 | F147: 23 | G147: 23 | H147: 23 | I147: 23 | J147: 23 | K147: 23 | L147: 23 | M147: 22 | N147: 0 | O147: 0 | P147: 0 | Q147: 0 | R147: 0 | S147: 0 | T147: 0 | U147: 0 | V147: 23 | W147: 23 | X147: 23 | Y147: 23 | Z147: 23 | AA147: 23 | AB147: 22 | AC147: 20 | AD147: 0 | AE147: 0 | AF147: 0 | AG147: 0 | AH147: 0 | AI147: 0 | AJ147: 0 | AK147: 0 | AL147: 23 | AM147: 23 | AN147: 23 | AO147: 23 | AP147: 23 | AQ147: 23 | AR147: 22 | AS147: 20 | AT147: 0 | AU147: 0 | AV147: 0 | AW147: 0 | AX147: 0 | AY147: 0 | AZ147: 0 | BA147: 0 | BB147: 23 | BC147: 23 | BD147: 23 | BE147: 23 | BF147: 23 | BG147: 23 | BH147: 23 | BI147: 22
A148: Dual Antenna | B148: R | C148: Unii 2ext | D148: 4 | E148: 0 | F148: 23 | G148: 23 | H148: 23 | I148: 23 | J148: 23 | K148: 23 | L148: 23 | M148: 22 | N148: 23 | O148: 23 | P148: 23 | Q148: 23 | R148: 23 | S148: 23 | T148: 23 | U148: 22 | V148: 23 | W148: 23 | X148: 23 | Y148: 23 | Z148: 23 | AA148: 23 | AB148: 22 | AC148: 20 | AD148: 23 | AE148: 23 | AF148: 23 | AG148: 23 | AH148: 23 | AI148: 23 | AJ148: 22 | AK148: 20 | AL148: 23 | AM148: 23 | AN148: 23 | AO148: 23 | AP148: 23 | AQ148: 23 | AR148: 22 | AS148: 20 | AT148: 23 | AU148: 23 | AV148: 23 | AW148: 23 | AX148: 23 | AY148: 23 | AZ148: 22 | BA148: 20 | BB148: 23 | BC148: 23 | BD148: 23 | BE148: 23 | BF148: 23 | BG148: 23 | BH148: 23 | BI148: 22
A149: Allowed Powers List | B149: R | C149: Unii 2ext | D149: 4 | E149: 7 | F149: 11 | G149: 17 | H149: 20 | I149: 23 | J149: 0 | K149: 0 | L149: 0 | M149: 0 | N149: 0 | O149: 0 | P149: 0 | Q149: 0 | R149: 0 | S149: 0 | T149: 0 | U149: 0 | V149: 0 | W149: 0 | X149: 0 | Y149: 0 | Z149: 0 | AA149: 0 | AB149: 0 | AC149: 0 | AD149: 0 | AE149: 0 | AF149: 0 | AG149: 0 | AH149: 0 | AI149: 0 | AJ149: 0 | AK149: 0 | AL149: 0 | AM149: 0 | AN149: 0 | AO149: 0 | AP149: 0 | AQ149: 0 | AR149: 0 | AS149: 0 | AT149: 0 | AU149: 0 | AV149: 0 | AW149: 0 | AX149: 0 | AY149: 0 | AZ149: 0 | BA149: 0 | BB149: 0 | BC149: 0 | BD149: 0 | BE149: 0 | BF149: 0 | BG149: 0 | BH149: 0 | BI149: 0
A150: Single Antenna | B150: R | C150: Unii 2ext | D150: 7 | E150: 0 | F150: 23 | G150: 23 | H150: 23 | I150: 23 | J150: 23 | K150: 23 | L150: 23 | M150: 22 | N150: 0 | O150: 0 | P150: 0 | Q150: 0 | R150: 0 | S150: 0 | T150: 0 | U150: 0 | V150: 23 | W150: 23 | X150: 23 | Y150: 23 | Z150: 23 | AA150: 23 | AB150: 22 | AC150: 20 | AD150: 0 | AE150: 0 | AF150: 0 | AG150: 0 | AH150: 0 | AI150: 0 | AJ150: 0 | AK150: 0 | AL150: 23 | AM150: 23 | AN150: 23 | AO150: 23 | AP150: 23 | AQ150: 23 | AR150: 22 | AS150: 20 | AT150: 0 | AU150: 0 | AV150: 0 | AW150: 0 | AX150: 0 | AY150: 0 | AZ150: 0 | BA150: 0 | BB150: 23 | BC150: 23 | BD150: 23 | BE150: 23 | BF150: 23 | BG150: 23 | BH150: 23 | BI150: 22
A151: Dual Antenna | B151: R | C151: Unii 2ext | D151: 7 | E151: 0 | F151: 23 | G151: 23 | H151: 23 | I151: 23 | J151: 23 | K151: 23 | L151: 23 | M151: 22 | N151: 23 | O151: 23 | P151: 23 | Q151: 23 | R151: 23 | S151: 23 | T151: 23 | U151: 22 | V151: 23 | W151: 23 | X151: 23 | Y151: 23 | Z151: 23 | AA151: 23 | AB151: 22 | AC151: 20 | AD151: 23 | AE151: 23 | AF151: 23 | AG151: 23 | AH151: 23 | AI151: 23 | AJ151: 22 | AK151: 20 | AL151: 23 | AM151: 23 | AN151: 23 | AO151: 23 | AP151: 23 | AQ151: 23 | AR151: 22 | AS151: 20 | AT151: 23 | AU151: 23 | AV151: 23 | AW151: 23 | AX151: 23 | AY151: 23 | AZ151: 22 | BA151: 20 | BB151: 23 | BC151: 23 | BD151: 23 | BE151: 23 | BF151: 23 | BG151: 23 | BH151: 23 | BI151: 22
A152: Allowed Powers List | B152: R | C152: Unii 2ext | D152: 7 | E152: 7 | F152: 11 | G152: 17 | H152: 20 | I152: 23 | J152: 0 | K152: 0 | L152: 0 | M152: 0 | N152: 0 | O152: 0 | P152: 0 | Q152: 0 | R152: 0 | S152: 0 | T152: 0 | U152: 0 | V152: 0 | W152: 0 | X152: 0 | Y152: 0 | Z152: 0 | AA152: 0 | AB152: 0 | AC152: 0 | AD152: 0 | AE152: 0 | AF152: 0 | AG152: 0 | AH152: 0 | AI152: 0 | AJ152: 0 | AK152: 0 | AL152: 0 | AM152: 0 | AN152: 0 | AO152: 0 | AP152: 0 | AQ152: 0 | AR152: 0 | AS152: 0 | AT152: 0 | AU152: 0 | AV152: 0 | AW152: 0 | AX152: 0 | AY152: 0 | AZ152: 0 | BA152: 0 | BB152: 0 | BC152: 0 | BD152: 0 | BE152: 0 | BF152: 0 | BG152: 0 | BH152: 0 | BI152: 0
A153: Single Antenna | B153: R | C153: Upper ISM | D153: 4 | E153: 0 | F153: 25 | G153: 25 | H153: 25 | I153: 25 | J153: 25 | K153: 24 | L153: 23 | M153: 22 | N153: 0 | O153: 0 | P153: 0 | Q153: 0 | R153: 0 | S153: 0 | T153: 0 | U153: 0 | V153: 24 | W153: 24 | X153: 24 | Y153: 24 | Z153: 24 | AA153: 23 | AB153: 22 | AC153: 20 | AD153: 0 | AE153: 0 | AF153: 0 | AG153: 0 | AH153: 0 | AI153: 0 | AJ153: 0 | AK153: 0 | AL153: 24 | AM153: 24 | AN153: 24 | AO153: 24 | AP153: 24 | AQ153: 23 | AR153: 22 | AS153: 20 | AT153: 0 | AU153: 0 | AV153: 0 | AW153: 0 | AX153: 0 | AY153: 0 | AZ153: 0 | BA153: 0 | BB153: 25 | BC153: 25 | BD153: 25 | BE153: 25 | BF153: 25 | BG153: 24 | BH153: 23 | BI153: 22
A154: Dual Antenna | B154: R | C154: Upper ISM | D154: 4 | E154: 0 | F154: 25 | G154: 25 | H154: 25 | I154: 25 | J154: 25 | K154: 24 | L154: 23 | M154: 22 | N154: 25 | O154: 25 | P154: 25 | Q154: 25 | R154: 25 | S154: 24 | T154: 23 | U154: 22 | V154: 24 | W154: 24 | X154: 24 | Y154: 24 | Z154: 24 | AA154: 23 | AB154: 22 | AC154: 20 | AD154: 24 | AE154: 24 | AF154: 24 | AG154: 24 | AH154: 24 | AI154: 23 | AJ154: 22 | AK154: 20 | AL154: 24 | AM154: 24 | AN154: 24 | AO154: 24 | AP154: 24 | AQ154: 23 | AR154: 22 | AS154: 20 | AT154: 24 | AU154: 24 | AV154: 24 | AW154: 24 | AX154: 24 | AY154: 23 | AZ154: 22 | BA154: 20 | BB154: 25 | BC154: 25 | BD154: 25 | BE154: 25 | BF154: 25 | BG154: 24 | BH154: 23 | BI154: 22
A155: Allowed Powers List | B155: R | C155: Upper ISM | D155: 4 | E155: 13 | F155: 16 | G155: 19 | H155: 22 | I155: 25 | J155: 0 | K155: 0 | L155: 0 | M155: 0 | N155: 0 | O155: 0 | P155: 0 | Q155: 0 | R155: 0 | S155: 0 | T155: 0 | U155: 0 | V155: 0 | W155: 0 | X155: 0 | Y155: 0 | Z155: 0 | AA155: 0 | AB155: 0 | AC155: 0 | AD155: 0 | AE155: 0 | AF155: 0 | AG155: 0 | AH155: 0 | AI155: 0 | AJ155: 0 | AK155: 0 | AL155: 0 | AM155: 0 | AN155: 0 | AO155: 0 | AP155: 0 | AQ155: 0 | AR155: 0 | AS155: 0 | AT155: 0 | AU155: 0 | AV155: 0 | AW155: 0 | AX155: 0 | AY155: 0 | AZ155: 0 | BA155: 0 | BB155: 0 | BC155: 0 | BD155: 0 | BE155: 0 | BF155: 0 | BG155: 0 | BH155: 0 | BI155: 0
A156: Single Antenna | B156: R | C156: Upper ISM | D156: 7 | E156: 0 | F156: 25 | G156: 25 | H156: 25 | I156: 25 | J156: 25 | K156: 24 | L156: 23 | M156: 22 | N156: 0 | O156: 0 | P156: 0 | Q156: 0 | R156: 0 | S156: 0 | T156: 0 | U156: 0 | V156: 24 | W156: 24 | X156: 24 | Y156: 24 | Z156: 24 | AA156: 23 | AB156: 22 | AC156: 20 | AD156: 0 | AE156: 0 | AF156: 0 | AG156: 0 | AH156: 0 | AI156: 0 | AJ156: 0 | AK156: 0 | AL156: 24 | AM156: 24 | AN156: 24 | AO156: 24 | AP156: 24 | AQ156: 23 | AR156: 22 | AS156: 20 | AT156: 0 | AU156: 0 | AV156: 0 | AW156: 0 | AX156: 0 | AY156: 0 | AZ156: 0 | BA156: 0 | BB156: 25 | BC156: 25 | BD156: 25 | BE156: 25 | BF156: 25 | BG156: 24 | BH156: 23 | BI156: 22
A157: Dual Antenna | B157: R | C157: Upper ISM | D157: 7 | E157: 0 | F157: 25 | G157: 25 | H157: 25 | I157: 25 | J157: 25 | K157: 24 | L157: 23 | M157: 22 | N157: 25 | O157: 25 | P157: 25 | Q157: 25 | R157: 25 | S157: 24 | T157: 23 | U157: 22 | V157: 24 | W157: 24 | X157: 24 | Y157: 24 | Z157: 24 | AA157: 23 | AB157: 22 | AC157: 20 | AD157: 24 | AE157: 24 | AF157: 24 | AG157: 24 | AH157: 24 | AI157: 23 | AJ157: 22 | AK157: 20 | AL157: 24 | AM157: 24 | AN157: 24 | AO157: 24 | AP157: 24 | AQ157: 23 | AR157: 22 | AS157: 20 | AT157: 24 | AU157: 24 | AV157: 24 | AW157: 24 | AX157: 24 | AY157: 23 | AZ157: 22 | BA157: 20 | BB157: 25 | BC157: 25 | BD157: 25 | BE157: 25 | BF157: 25 | BG157: 24 | BH157: 23 | BI157: 22
A158: Allowed Powers List | B158: R | C158: Upper ISM | D158: 7 | E158: 13 | F158: 16 | G158: 19 | H158: 22 | I158: 25 | J158: 0 | K158: 0 | L158: 0 | M158: 0 | N158: 0 | O158: 0 | P158: 0 | Q158: 0 | R158: 0 | S158: 0 | T158: 0 | U158: 0 | V158: 0 | W158: 0 | X158: 0 | Y158: 0 | Z158: 0 | AA158: 0 | AB158: 0 | AC158: 0 | AD158: 0 | AE158: 0 | AF158: 0 | AG158: 0 | AH158: 0 | AI158: 0 | AJ158: 0 | AK158: 0 | AL158: 0 | AM158: 0 | AN158: 0 | AO158: 0 | AP158: 0 | AQ158: 0 | AR158: 0 | AS158: 0 | AT158: 0 | AU158: 0 | AV158: 0 | AW158: 0 | AX158: 0 | AY158: 0 | AZ158: 0 | BA158: 0 | BB158: 0 | BC158: 0 | BD158: 0 | BE158: 0 | BF158: 0 | BG158: 0 | BH158: 0 | BI158: 0
A159: Single Antenna | B159: S | C159: Unii 2 | D159: 4 | E159: -99 | F159: -99 | G159: -99 | H159: -99 | I159: -99 | J159: -99 | K159: -99 | L159: -99 | M159: -99 | N159: -99 | O159: -99 | P159: -99 | Q159: -99 | R159: -99 | S159: -99 | T159: -99 | U159: -99 | V159: -99 | W159: -99 | X159: -99 | Y159: -99 | Z159: -99 | AA159: -99 | AB159: -99 | AC159: -99 | AD159: -99 | AE159: -99 | AF159: -99 | AG159: -99 | AH159: -99 | AI159: -99 | AJ159: -99 | AK159: -99 | AL159: -99 | AM159: -99 | AN159: -99 | AO159: -99 | AP159: -99 | AQ159: -99 | AR159: -99 | AS159: -99 | AT159: -99 | AU159: -99 | AV159: -99 | AW159: -99 | AX159: -99 | AY159: -99 | AZ159: -99 | BA159: -99 | BB159: -99 | BC159: -99 | BD159: -99 | BE159: -99 | BF159: -99 | BG159: -99 | BH159: -99 | BI159: -99
A160: Dual Antenna | B160: S | C160: Unii 2 | D160: 4 | E160: -99 | F160: -99 | G160: -99 | H160: -99 | I160: -99 | J160: -99 | K160: -99 | L160: -99 | M160: -99 | N160: -99 | O160: -99 | P160: -99 | Q160: -99 | R160: -99 | S160: -99 | T160: -99 | U160: -99 | V160: -99 | W160: -99 | X160: -99 | Y160: -99 | Z160: -99 | AA160: -99 | AB160: -99 | AC160: -99 | AD160: -99 | AE160: -99 | AF160: -99 | AG160: -99 | AH160: -99 | AI160: -99 | AJ160: -99 | AK160: -99 | AL160: -99 | AM160: -99 | AN160: -99 | AO160: -99 | AP160: -99 | AQ160: -99 | AR160: -99 | AS160: -99 | AT160: -99 | AU160: -99 | AV160: -99 | AW160: -99 | AX160: -99 | AY160: -99 | AZ160: -99 | BA160: -99 | BB160: -99 | BC160: -99 | BD160: -99 | BE160: -99 | BF160: -99 | BG160: -99 | BH160: -99 | BI160: -99
A161: Allowed Powers List | B161: S | C161: Unii 2 | D161: 4 | E161: -99 | F161: -99 | G161: -99 | H161: -99 | I161: -99 | J161: -99 | K161: -99 | L161: -99 | M161: -99 | N161: -99 | O161: -99 | P161: -99 | Q161: -99 | R161: -99 | S161: -99 | T161: -99 | U161: -99 | V161: -99 | W161: -99 | X161: -99 | Y161: -99 | Z161: -99 | AA161: -99 | AB161: -99 | AC161: -99 | AD161: -99 | AE161: -99 | AF161: -99 | AG161: -99 | AH161: -99 | AI161: -99 | AJ161: -99 | AK161: -99 | AL161: -99 | AM161: -99 | AN161: -99 | AO161: -99 | AP161: -99 | AQ161: -99 | AR161: -99 | AS161: -99 | AT161: -99 | AU161: -99 | AV161: -99 | AW161: -99 | AX161: -99 | AY161: -99 | AZ161: -99 | BA161: -99 | BB161: -99 | BC161: -99 | BD161: -99 | BE161: -99 | BF161: -99 | BG161: -99 | BH161: -99 | BI161: -99
A162: Single Antenna | B162: S | C162: Unii 2 | D162: 7 | E162: -99 | F162: -99 | G162: -99 | H162: -99 | I162: -99 | J162: -99 | K162: -99 | L162: -99 | M162: -99 | N162: -99 | O162: -99 | P162: -99 | Q162: -99 | R162: -99 | S162: -99 | T162: -99 | U162: -99 | V162: -99 | W162: -99 | X162: -99 | Y162: -99 | Z162: -99 | AA162: -99 | AB162: -99 | AC162: -99 | AD162: -99 | AE162: -99 | AF162: -99 | AG162: -99 | AH162: -99 | AI162: -99 | AJ162: -99 | AK162: -99 | AL162: -99 | AM162: -99 | AN162: -99 | AO162: -99 | AP162: -99 | AQ162: -99 | AR162: -99 | AS162: -99 | AT162: -99 | AU162: -99 | AV162: -99 | AW162: -99 | AX162: -99 | AY162: -99 | AZ162: -99 | BA162: -99 | BB162: -99 | BC162: -99 | BD162: -99 | BE162: -99 | BF162: -99 | BG162: -99 | BH162: -99 | BI162: -99
A163: Dual Antenna | B163: S | C163: Unii 2 | D163: 7 | E163: -99 | F163: -99 | G163: -99 | H163: -99 | I163: -99 | J163: -99 | K163: -99 | L163: -99 | M163: -99 | N163: -99 | O163: -99 | P163: -99 | Q163: -99 | R163: -99 | S163: -99 | T163: -99 | U163: -99 | V163: -99 | W163: -99 | X163: -99 | Y163: -99 | Z163: -99 | AA163: -99 | AB163: -99 | AC163: -99 | AD163: -99 | AE163: -99 | AF163: -99 | AG163: -99 | AH163: -99 | AI163: -99 | AJ163: -99 | AK163: -99 | AL163: -99 | AM163: -99 | AN163: -99 | AO163: -99 | AP163: -99 | AQ163: -99 | AR163: -99 | AS163: -99 | AT163: -99 | AU163: -99 | AV163: -99 | AW163: -99 | AX163: -99 | AY163: -99 | AZ163: -99 | BA163: -99 | BB163: -99 | BC163: -99 | BD163: -99 | BE163: -99 | BF163: -99 | BG163: -99 | BH163: -99 | BI163: -99
A164: Allowed Powers List | B164: S | C164: Unii 2 | D164: 7 | E164: -99 | F164: -99 | G164: -99 | H164: -99 | I164: -99 | J164: -99 | K164: -99 | L164: -99 | M164: -99 | N164: -99 | O164: -99 | P164: -99 | Q164: -99 | R164: -99 | S164: -99 | T164: -99 | U164: -99 | V164: -99 | W164: -99 | X164: -99 | Y164: -99 | Z164: -99 | AA164: -99 | AB164: -99 | AC164: -99 | AD164: -99 | AE164: -99 | AF164: -99 | AG164: -99 | AH164: -99 | AI164: -99 | AJ164: -99 | AK164: -99 | AL164: -99 | AM164: -99 | AN164: -99 | AO164: -99 | AP164: -99 | AQ164: -99 | AR164: -99 | AS164: -99 | AT164: -99 | AU164: -99 | AV164: -99 | AW164: -99 | AX164: -99 | AY164: -99 | AZ164: -99 | BA164: -99 | BB164: -99 | BC164: -99 | BD164: -99 | BE164: -99 | BF164: -99 | BG164: -99 | BH164: -99 | BI164: -99
A165: Single Antenna | B165: S | C165: Unii 2ext | D165: 4 | E165: -99 | F165: -99 | G165: -99 | H165: -99 | I165: -99 | J165: -99 | K165: -99 | L165: -99 | M165: -99 | N165: -99 | O165: -99 | P165: -99 | Q165: -99 | R165: -99 | S165: -99 | T165: -99 | U165: -99 | V165: -99 | W165: -99 | X165: -99 | Y165: -99 | Z165: -99 | AA165: -99 | AB165: -99 | AC165: -99 | AD165: -99 | AE165: -99 | AF165: -99 | AG165: -99 | AH165: -99 | AI165: -99 | AJ165: -99 | AK165: -99 | AL165: -99 | AM165: -99 | AN165: -99 | AO165: -99 | AP165: -99 | AQ165: -99 | AR165: -99 | AS165: -99 | AT165: -99 | AU165: -99 | AV165: -99 | AW165: -99 | AX165: -99 | AY165: -99 | AZ165: -99 | BA165: -99 | BB165: -99 | BC165: -99 | BD165: -99 | BE165: -99 | BF165: -99 | BG165: -99 | BH165: -99 | BI165: -99
A166: Dual Antenna | B166: S | C166: Unii 2ext | D166: 4 | E166: -99 | F166: -99 | G166: -99 | H166: -99 | I166: -99 | J166: -99 | K166: -99 | L166: -99 | M166: -99 | N166: -99 | O166: -99 | P166: -99 | Q166: -99 | R166: -99 | S166: -99 | T166: -99 | U166: -99 | V166: -99 | W166: -99 | X166: -99 | Y166: -99 | Z166: -99 | AA166: -99 | AB166: -99 | AC166: -99 | AD166: -99 | AE166: -99 | AF166: -99 | AG166: -99 | AH166: -99 | AI166: -99 | AJ166: -99 | AK166: -99 | AL166: -99 | AM166: -99 | AN166: -99 | AO166: -99 | AP166: -99 | AQ166: -99 | AR166: -99 | AS166: -99 | AT166: -99 | AU166: -99 | AV166: -99 | AW166: -99 | AX166: -99 | AY166: -99 | AZ166: -99 | BA166: -99 | BB166: -99 | BC166: -99 | BD166: -99 | BE166: -99 | BF166: -99 | BG166: -99 | BH166: -99 | BI166: -99
A167: Allowed Powers List | B167: S | C167: Unii 2ext | D167: 4 | E167: -99 | F167: -99 | G167: -99 | H167: -99 | I167: -99 | J167: -99 | K167: -99 | L167: -99 | M167: -99 | N167: -99 | O167: -99 | P167: -99 | Q167: -99 | R167: -99 | S167: -99 | T167: -99 | U167: -99 | V167: -99 | W167: -99 | X167: -99 | Y167: -99 | Z167: -99 | AA167: -99 | AB167: -99 | AC167: -99 | AD167: -99 | AE167: -99 | AF167: -99 | AG167: -99 | AH167: -99 | AI167: -99 | AJ167: -99 | AK167: -99 | AL167: -99 | AM167: -99 | AN167: -99 | AO167: -99 | AP167: -99 | AQ167: -99 | AR167: -99 | AS167: -99 | AT167: -99 | AU167: -99 | AV167: -99 | AW167: -99 | AX167: -99 | AY167: -99 | AZ167: -99 | BA167: -99 | BB167: -99 | BC167: -99 | BD167: -99 | BE167: -99 | BF167: -99 | BG167: -99 | BH167: -99 | BI167: -99
A168: Single Antenna | B168: S | C168: Unii 2ext | D168: 7 | E168: -99 | F168: -99 | G168: -99 | H168: -99 | I168: -99 | J168: -99 | K168: -99 | L168: -99 | M168: -99 | N168: -99 | O168: -99 | P168: -99 | Q168: -99 | R168: -99 | S168: -99 | T168: -99 | U168: -99 | V168: -99 | W168: -99 | X168: -99 | Y168: -99 | Z168: -99 | AA168: -99 | AB168: -99 | AC168: -99 | AD168: -99 | AE168: -99 | AF168: -99 | AG168: -99 | AH168: -99 | AI168: -99 | AJ168: -99 | AK168: -99 | AL168: -99 | AM168: -99 | AN168: -99 | AO168: -99 | AP168: -99 | AQ168: -99 | AR168: -99 | AS168: -99 | AT168: -99 | AU168: -99 | AV168: -99 | AW168: -99 | AX168: -99 | AY168: -99 | AZ168: -99 | BA168: -99 | BB168: -99 | BC168: -99 | BD168: -99 | BE168: -99 | BF168: -99 | BG168: -99 | BH168: -99 | BI168: -99
A169: Dual Antenna | B169: S | C169: Unii 2ext | D169: 7 | E169: -99 | F169: -99 | G169: -99 | H169: -99 | I169: -99 | J169: -99 | K169: -99 | L169: -99 | M169: -99 | N169: -99 | O169: -99 | P169: -99 | Q169: -99 | R169: -99 | S169: -99 | T169: -99 | U169: -99 | V169: -99 | W169: -99 | X169: -99 | Y169: -99 | Z169: -99 | AA169: -99 | AB169: -99 | AC169: -99 | AD169: -99 | AE169: -99 | AF169: -99 | AG169: -99 | AH169: -99 | AI169: -99 | AJ169: -99 | AK169: -99 | AL169: -99 | AM169: -99 | AN169: -99 | AO169: -99 | AP169: -99 | AQ169: -99 | AR169: -99 | AS169: -99 | AT169: -99 | AU169: -99 | AV169: -99 | AW169: -99 | AX169: -99 | AY169: -99 | AZ169: -99 | BA169: -99 | BB169: -99 | BC169: -99 | BD169: -99 | BE169: -99 | BF169: -99 | BG169: -99 | BH169: -99 | BI169: -99
A170: Allowed Powers List | B170: S | C170: Unii 2ext | D170: 7 | E170: -99 | F170: -99 | G170: -99 | H170: -99 | I170: -99 | J170: -99 | K170: -99 | L170: -99 | M170: -99 | N170: -99 | O170: -99 | P170: -99 | Q170: -99 | R170: -99 | S170: -99 | T170: -99 | U170: -99 | V170: -99 | W170: -99 | X170: -99 | Y170: -99 | Z170: -99 | AA170: -99 | AB170: -99 | AC170: -99 | AD170: -99 | AE170: -99 | AF170: -99 | AG170: -99 | AH170: -99 | AI170: -99 | AJ170: -99 | AK170: -99 | AL170: -99 | AM170: -99 | AN170: -99 | AO170: -99 | AP170: -99 | AQ170: -99 | AR170: -99 | AS170: -99 | AT170: -99 | AU170: -99 | AV170: -99 | AW170: -99 | AX170: -99 | AY170: -99 | AZ170: -99 | BA170: -99 | BB170: -99 | BC170: -99 | BD170: -99 | BE170: -99 | BF170: -99 | BG170: -99 | BH170: -99 | BI170: -99
A171: Single Antenna | B171: S | C171: Upper ISM | D171: 4 | E171: 0 | F171: 25 | G171: 25 | H171: 25 | I171: 25 | J171: 25 | K171: 24 | L171: 23 | M171: 22 | N171: 0 | O171: 0 | P171: 0 | Q171: 0 | R171: 0 | S171: 0 | T171: 0 | U171: 0 | V171: 24 | W171: 24 | X171: 24 | Y171: 24 | Z171: 24 | AA171: 23 | AB171: 22 | AC171: 20 | AD171: 0 | AE171: 0 | AF171: 0 | AG171: 0 | AH171: 0 | AI171: 0 | AJ171: 0 | AK171: 0 | AL171: 24 | AM171: 24 | AN171: 24 | AO171: 24 | AP171: 24 | AQ171: 23 | AR171: 22 | AS171: 20 | AT171: 0 | AU171: 0 | AV171: 0 | AW171: 0 | AX171: 0 | AY171: 0 | AZ171: 0 | BA171: 0 | BB171: 25 | BC171: 25 | BD171: 25 | BE171: 25 | BF171: 24 | BG171: 23 | BH171: 22 | BI171: 20
A172: Dual Antenna | B172: S | C172: Upper ISM | D172: 4 | E172: 0 | F172: 23 | G172: 23 | H172: 23 | I172: 23 | J172: 23 | K172: 23 | L172: 23 | M172: 22 | N172: 20 | O172: 20 | P172: 20 | Q172: 20 | R172: 20 | S172: 20 | T172: 20 | U172: 20 | V172: 23 | W172: 23 | X172: 23 | Y172: 23 | Z172: 23 | AA172: 23 | AB172: 22 | AC172: 20 | AD172: 23 | AE172: 23 | AF172: 23 | AG172: 23 | AH172: 23 | AI172: 23 | AJ172: 22 | AK172: 20 | AL172: 23 | AM172: 23 | AN172: 23 | AO172: 23 | AP172: 23 | AQ172: 23 | AR172: 22 | AS172: 20 | AT172: 23 | AU172: 23 | AV172: 23 | AW172: 23 | AX172: 23 | AY172: 23 | AZ172: 22 | BA172: 20 | BB172: 23 | BC172: 23 | BD172: 23 | BE172: 23 | BF172: 23 | BG172: 23 | BH172: 23 | BI172: 22
A173: Allowed Powers List | B173: S | C173: Upper ISM | D173: 4 | E173: 13 | F173: 16 | G173: 19 | H173: 22 | I173: 25 | J173: 0 | K173: 0 | L173: 0 | M173: 0 | N173: 0 | O173: 0 | P173: 0 | Q173: 0 | R173: 0 | S173: 0 | T173: 0 | U173: 0 | V173: 0 | W173: 0 | X173: 0 | Y173: 0 | Z173: 0 | AA173: 0 | AB173: 0 | AC173: 0 | AD173: 0 | AE173: 0 | AF173: 0 | AG173: 0 | AH173: 0 | AI173: 0 | AJ173: 0 | AK173: 0 | AL173: 0 | AM173: 0 | AN173: 0 | AO173: 0 | AP173: 0 | AQ173: 0 | AR173: 0 | AS173: 0 | AT173: 0 | AU173: 0 | AV173: 0 | AW173: 0 | AX173: 0 | AY173: 0 | AZ173: 0 | BA173: 0 | BB173: 0 | BC173: 0 | BD173: 0 | BE173: 0 | BF173: 0 | BG173: 0 | BH173: 0 | BI173: 0
A174: Single Antenna | B174: S | C174: Upper ISM | D174: 7 | E174: 0 | F174: 23 | G174: 23 | H174: 23 | I174: 23 | J174: 23 | K174: 23 | L174: 23 | M174: 22 | N174: 0 | O174: 0 | P174: 0 | Q174: 0 | R174: 0 | S174: 0 | T174: 0 | U174: 0 | V174: 23 | W174: 23 | X174: 23 | Y174: 23 | Z174: 23 | AA174: 23 | AB174: 22 | AC174: 20 | AD174: 0 | AE174: 0 | AF174: 0 | AG174: 0 | AH174: 0 | AI174: 0 | AJ174: 0 | AK174: 0 | AL174: 23 | AM174: 23 | AN174: 23 | AO174: 23 | AP174: 23 | AQ174: 23 | AR174: 22 | AS174: 20 | AT174: 0 | AU174: 0 | AV174: 0 | AW174: 0 | AX174: 0 | AY174: 0 | AZ174: 0 | BA174: 0 | BB174: 23 | BC174: 23 | BD174: 23 | BE174: 23 | BF174: 23 | BG174: 23 | BH174: 22 | BI174: 20
A175: Dual Antenna | B175: S | C175: Upper ISM | D175: 7 | E175: 0 | F175: 20 | G175: 20 | H175: 20 | I175: 20 | J175: 20 | K175: 20 | L175: 20 | M175: 20 | N175: 17 | O175: 17 | P175: 17 | Q175: 17 | R175: 17 | S175: 17 | T175: 17 | U175: 17 | V175: 20 | W175: 20 | X175: 20 | Y175: 20 | Z175: 20 | AA175: 20 | AB175: 20 | AC175: 20 | AD175: 20 | AE175: 20 | AF175: 20 | AG175: 20 | AH175: 20 | AI175: 20 | AJ175: 20 | AK175: 20 | AL175: 20 | AM175: 20 | AN175: 20 | AO175: 20 | AP175: 20 | AQ175: 20 | AR175: 20 | AS175: 20 | AT175: 20 | AU175: 20 | AV175: 20 | AW175: 20 | AX175: 20 | AY175: 20 | AZ175: 20 | BA175: 20 | BB175: 20 | BC175: 20 | BD175: 20 | BE175: 20 | BF175: 20 | BG175: 20 | BH175: 20 | BI175: 20
A176: Allowed Powers List | B176: S | C176: Upper ISM | D176: 7 | E176: 13 | F176: 16 | G176: 19 | H176: 22 | I176: 25 | J176: 0 | K176: 0 | L176: 0 | M176: 0 | N176: 0 | O176: 0 | P176: 0 | Q176: 0 | R176: 0 | S176: 0 | T176: 0 | U176: 0 | V176: 0 | W176: 0 | X176: 0 | Y176: 0 | Z176: 0 | AA176: 0 | AB176: 0 | AC176: 0 | AD176: 0 | AE176: 0 | AF176: 0 | AG176: 0 | AH176: 0 | AI176: 0 | AJ176: 0 | AK176: 0 | AL176: 0 | AM176: 0 | AN176: 0 | AO176: 0 | AP176: 0 | AQ176: 0 | AR176: 0 | AS176: 0 | AT176: 0 | AU176: 0 | AV176: 0 | AW176: 0 | AX176: 0 | AY176: 0 | AZ176: 0 | BA176: 0 | BB176: 0 | BC176: 0 | BD176: 0 | BE176: 0 | BF176: 0 | BG176: 0 | BH176: 0 | BI176: 0
A177: Single Antenna | B177: T | C177: Unii 2 | D177: 4 | E177: -99 | F177: -99 | G177: -99 | H177: -99 | I177: -99 | J177: -99 | K177: -99 | L177: -99 | M177: -99 | N177: -99 | O177: -99 | P177: -99 | Q177: -99 | R177: -99 | S177: -99 | T177: -99 | U177: -99 | V177: -99 | W177: -99 | X177: -99 | Y177: -99 | Z177: -99 | AA177: -99 | AB177: -99 | AC177: -99 | AD177: -99 | AE177: -99 | AF177: -99 | AG177: -99 | AH177: -99 | AI177: -99 | AJ177: -99 | AK177: -99 | AL177: -99 | AM177: -99 | AN177: -99 | AO177: -99 | AP177: -99 | AQ177: -99 | AR177: -99 | AS177: -99 | AT177: -99 | AU177: -99 | AV177: -99 | AW177: -99 | AX177: -99 | AY177: -99 | AZ177: -99 | BA177: -99 | BB177: -99 | BC177: -99 | BD177: -99 | BE177: -99 | BF177: -99 | BG177: -99 | BH177: -99 | BI177: -99
A178: Dual Antenna | B178: T | C178: Unii 2 | D178: 4 | E178: -99 | F178: -99 | G178: -99 | H178: -99 | I178: -99 | J178: -99 | K178: -99 | L178: -99 | M178: -99 | N178: -99 | O178: -99 | P178: -99 | Q178: -99 | R178: -99 | S178: -99 | T178: -99 | U178: -99 | V178: -99 | W178: -99 | X178: -99 | Y178: -99 | Z178: -99 | AA178: -99 | AB178: -99 | AC178: -99 | AD178: -99 | AE178: -99 | AF178: -99 | AG178: -99 | AH178: -99 | AI178: -99 | AJ178: -99 | AK178: -99 | AL178: -99 | AM178: -99 | AN178: -99 | AO178: -99 | AP178: -99 | AQ178: -99 | AR178: -99 | AS178: -99 | AT178: -99 | AU178: -99 | AV178: -99 | AW178: -99 | AX178: -99 | AY178: -99 | AZ178: -99 | BA178: -99 | BB178: -99 | BC178: -99 | BD178: -99 | BE178: -99 | BF178: -99 | BG178: -99 | BH178: -99 | BI178: -99
A179: Allowed Powers List | B179: T | C179: Unii 2 | D179: 4 | E179: -99 | F179: -99 | G179: -99 | H179: -99 | I179: -99 | J179: -99 | K179: -99 | L179: -99 | M179: -99 | N179: -99 | O179: -99 | P179: -99 | Q179: -99 | R179: -99 | S179: -99 | T179: -99 | U179: -99 | V179: -99 | W179: -99 | X179: -99 | Y179: -99 | Z179: -99 | AA179: -99 | AB179: -99 | AC179: -99 | AD179: -99 | AE179: -99 | AF179: -99 | AG179: -99 | AH179: -99 | AI179: -99 | AJ179: -99 | AK179: -99 | AL179: -99 | AM179: -99 | AN179: -99 | AO179: -99 | AP179: -99 | AQ179: -99 | AR179: -99 | AS179: -99 | AT179: -99 | AU179: -99 | AV179: -99 | AW179: -99 | AX179: -99 | AY179: -99 | AZ179: -99 | BA179: -99 | BB179: -99 | BC179: -99 | BD179: -99 | BE179: -99 | BF179: -99 | BG179: -99 | BH179: -99 | BI179: -99
A180: Single Antenna | B180: T | C180: Unii 2 | D180: 7 | E180: -99 | F180: -99 | G180: -99 | H180: -99 | I180: -99 | J180: -99 | K180: -99 | L180: -99 | M180: -99 | N180: -99 | O180: -99 | P180: -99 | Q180: -99 | R180: -99 | S180: -99 | T180: -99 | U180: -99 | V180: -99 | W180: -99 | X180: -99 | Y180: -99 | Z180: -99 | AA180: -99 | AB180: -99 | AC180: -99 | AD180: -99 | AE180: -99 | AF180: -99 | AG180: -99 | AH180: -99 | AI180: -99 | AJ180: -99 | AK180: -99 | AL180: -99 | AM180: -99 | AN180: -99 | AO180: -99 | AP180: -99 | AQ180: -99 | AR180: -99 | AS180: -99 | AT180: -99 | AU180: -99 | AV180: -99 | AW180: -99 | AX180: -99 | AY180: -99 | AZ180: -99 | BA180: -99 | BB180: -99 | BC180: -99 | BD180: -99 | BE180: -99 | BF180: -99 | BG180: -99 | BH180: -99 | BI180: -99
A181: Dual Antenna | B181: T | C181: Unii 2 | D181: 7 | E181: -99 | F181: -99 | G181: -99 | H181: -99 | I181: -99 | J181: -99 | K181: -99 | L181: -99 | M181: -99 | N181: -99 | O181: -99 | P181: -99 | Q181: -99 | R181: -99 | S181: -99 | T181: -99 | U181: -99 | V181: -99 | W181: -99 | X181: -99 | Y181: -99 | Z181: -99 | AA181: -99 | AB181: -99 | AC181: -99 | AD181: -99 | AE181: -99 | AF181: -99 | AG181: -99 | AH181: -99 | AI181: -99 | AJ181: -99 | AK181: -99 | AL181: -99 | AM181: -99 | AN181: -99 | AO181: -99 | AP181: -99 | AQ181: -99 | AR181: -99 | AS181: -99 | AT181: -99 | AU181: -99 | AV181: -99 | AW181: -99 | AX181: -99 | AY181: -99 | AZ181: -99 | BA181: -99 | BB181: -99 | BC181: -99 | BD181: -99 | BE181: -99 | BF181: -99 | BG181: -99 | BH181: -99 | BI181: -99
A182: Allowed Powers List | B182: T | C182: Unii 2 | D182: 7 | E182: -99 | F182: -99 | G182: -99 | H182: -99 | I182: -99 | J182: -99 | K182: -99 | L182: -99 | M182: -99 | N182: -99 | O182: -99 | P182: -99 | Q182: -99 | R182: -99 | S182: -99 | T182: -99 | U182: -99 | V182: -99 | W182: -99 | X182: -99 | Y182: -99 | Z182: -99 | AA182: -99 | AB182: -99 | AC182: -99 | AD182: -99 | AE182: -99 | AF182: -99 | AG182: -99 | AH182: -99 | AI182: -99 | AJ182: -99 | AK182: -99 | AL182: -99 | AM182: -99 | AN182: -99 | AO182: -99 | AP182: -99 | AQ182: -99 | AR182: -99 | AS182: -99 | AT182: -99 | AU182: -99 | AV182: -99 | AW182: -99 | AX182: -99 | AY182: -99 | AZ182: -99 | BA182: -99 | BB182: -99 | BC182: -99 | BD182: -99 | BE182: -99 | BF182: -99 | BG182: -99 | BH182: -99 | BI182: -99
A183: Single Antenna | B183: T | C183: Unii 2ext | D183: 4 | E183: 0 | F183: 23 | G183: 23 | H183: 23 | I183: 23 | J183: 23 | K183: 23 | L183: 23 | M183: 22 | N183: 0 | O183: 0 | P183: 0 | Q183: 0 | R183: 0 | S183: 0 | T183: 0 | U183: 0 | V183: 23 | W183: 23 | X183: 23 | Y183: 23 | Z183: 23 | AA183: 23 | AB183: 22 | AC183: 20 | AD183: 0 | AE183: 0 | AF183: 0 | AG183: 0 | AH183: 0 | AI183: 0 | AJ183: 0 | AK183: 0 | AL183: 23 | AM183: 23 | AN183: 23 | AO183: 23 | AP183: 23 | AQ183: 23 | AR183: 22 | AS183: 20 | AT183: 0 | AU183: 0 | AV183: 0 | AW183: 0 | AX183: 0 | AY183: 0 | AZ183: 0 | BA183: 0 | BB183: 23 | BC183: 23 | BD183: 23 | BE183: 23 | BF183: 23 | BG183: 23 | BH183: 22 | BI183: 20
A184: Dual Antenna | B184: T | C184: Unii 2ext | D184: 4 | E184: 0 | F184: 20 | G184: 20 | H184: 20 | I184: 20 | J184: 20 | K184: 20 | L184: 20 | M184: 20 | N184: 17 | O184: 17 | P184: 17 | Q184: 17 | R184: 17 | S184: 17 | T184: 17 | U184: 17 | V184: 20 | W184: 20 | X184: 20 | Y184: 20 | Z184: 20 | AA184: 20 | AB184: 20 | AC184: 20 | AD184: 20 | AE184: 20 | AF184: 20 | AG184: 20 | AH184: 20 | AI184: 20 | AJ184: 20 | AK184: 20 | AL184: 20 | AM184: 20 | AN184: 20 | AO184: 20 | AP184: 20 | AQ184: 20 | AR184: 20 | AS184: 20 | AT184: 20 | AU184: 20 | AV184: 20 | AW184: 20 | AX184: 20 | AY184: 20 | AZ184: 20 | BA184: 20 | BB184: 20 | BC184: 20 | BD184: 20 | BE184: 20 | BF184: 20 | BG184: 20 | BH184: 20 | BI184: 20
A185: Allowed Powers List | B185: T | C185: Unii 2ext | D185: 4 | E185: 7 | F185: 11 | G185: 17 | H185: 20 | I185: 23 | J185: 0 | K185: 0 | L185: 0 | M185: 0 | N185: 0 | O185: 0 | P185: 0 | Q185: 0 | R185: 0 | S185: 0 | T185: 0 | U185: 0 | V185: 0 | W185: 0 | X185: 0 | Y185: 0 | Z185: 0 | AA185: 0 | AB185: 0 | AC185: 0 | AD185: 0 | AE185: 0 | AF185: 0 | AG185: 0 | AH185: 0 | AI185: 0 | AJ185: 0 | AK185: 0 | AL185: 0 | AM185: 0 | AN185: 0 | AO185: 0 | AP185: 0 | AQ185: 0 | AR185: 0 | AS185: 0 | AT185: 0 | AU185: 0 | AV185: 0 | AW185: 0 | AX185: 0 | AY185: 0 | AZ185: 0 | BA185: 0 | BB185: 0 | BC185: 0 | BD185: 0 | BE185: 0 | BF185: 0 | BG185: 0 | BH185: 0 | BI185: 0
A186: Single Antenna | B186: T | C186: Unii 2ext | D186: 7 | E186: 0 | F186: 20 | G186: 20 | H186: 20 | I186: 20 | J186: 20 | K186: 20 | L186: 20 | M186: 20 | N186: 0 | O186: 0 | P186: 0 | Q186: 0 | R186: 0 | S186: 0 | T186: 0 | U186: 0 | V186: 20 | W186: 20 | X186: 20 | Y186: 20 | Z186: 20 | AA186: 20 | AB186: 20 | AC186: 20 | AD186: 0 | AE186: 0 | AF186: 0 | AG186: 0 | AH186: 0 | AI186: 0 | AJ186: 0 | AK186: 0 | AL186: 20 | AM186: 20 | AN186: 20 | AO186: 20 | AP186: 20 | AQ186: 20 | AR186: 20 | AS186: 20 | AT186: 0 | AU186: 0 | AV186: 0 | AW186: 0 | AX186: 0 | AY186: 0 | AZ186: 0 | BA186: 0 | BB186: 20 | BC186: 20 | BD186: 20 | BE186: 20 | BF186: 20 | BG186: 20 | BH186: 20 | BI186: 20
A187: Dual Antenna | B187: T | C187: Unii 2ext | D187: 7 | E187: 0 | F187: 17 | G187: 17 | H187: 17 | I187: 17 | J187: 17 | K187: 17 | L187: 17 | M187: 17 | N187: 14 | O187: 14 | P187: 14 | Q187: 14 | R187: 14 | S187: 14 | T187: 14 | U187: 14 | V187: 17 | W187: 17 | X187: 17 | Y187: 17 | Z187: 17 | AA187: 17 | AB187: 17 | AC187: 17 | AD187: 17 | AE187: 17 | AF187: 17 | AG187: 17 | AH187: 17 | AI187: 17 | AJ187: 17 | AK187: 17 | AL187: 17 | AM187: 17 | AN187: 17 | AO187: 17 | AP187: 17 | AQ187: 17 | AR187: 17 | AS187: 17 | AT187: 17 | AU187: 17 | AV187: 17 | AW187: 17 | AX187: 17 | AY187: 17 | AZ187: 17 | BA187: 17 | BB187: 17 | BC187: 17 | BD187: 17 | BE187: 17 | BF187: 17 | BG187: 17 | BH187: 17 | BI187: 17
A188: Allowed Powers List | B188: T | C188: Unii 2ext | D188: 7 | E188: 7 | F188: 11 | G188: 17 | H188: 20 | I188: 23 | J188: 0 | K188: 0 | L188: 0 | M188: 0 | N188: 0 | O188: 0 | P188: 0 | Q188: 0 | R188: 0 | S188: 0 | T188: 0 | U188: 0 | V188: 0 | W188: 0 | X188: 0 | Y188: 0 | Z188: 0 | AA188: 0 | AB188: 0 | AC188: 0 | AD188: 0 | AE188: 0 | AF188: 0 | AG188: 0 | AH188: 0 | AI188: 0 | AJ188: 0 | AK188: 0 | AL188: 0 | AM188: 0 | AN188: 0 | AO188: 0 | AP188: 0 | AQ188: 0 | AR188: 0 | AS188: 0 | AT188: 0 | AU188: 0 | AV188: 0 | AW188: 0 | AX188: 0 | AY188: 0 | AZ188: 0 | BA188: 0 | BB188: 0 | BC188: 0 | BD188: 0 | BE188: 0 | BF188: 0 | BG188: 0 | BH188: 0 | BI188: 0
A189: Single Antenna | B189: T | C189: Upper ISM | D189: 4 | E189: 0 | F189: 25 | G189: 25 | H189: 25 | I189: 25 | J189: 25 | K189: 24 | L189: 23 | M189: 22 | N189: 0 | O189: 0 | P189: 0 | Q189: 0 | R189: 0 | S189: 0 | T189: 0 | U189: 0 | V189: 24 | W189: 24 | X189: 24 | Y189: 24 | Z189: 24 | AA189: 23 | AB189: 22 | AC189: 20 | AD189: 0 | AE189: 0 | AF189: 0 | AG189: 0 | AH189: 0 | AI189: 0 | AJ189: 0 | AK189: 0 | AL189: 24 | AM189: 24 | AN189: 24 | AO189: 24 | AP189: 24 | AQ189: 23 | AR189: 22 | AS189: 20 | AT189: 0 | AU189: 0 | AV189: 0 | AW189: 0 | AX189: 0 | AY189: 0 | AZ189: 0 | BA189: 0 | BB189: 25 | BC189: 25 | BD189: 25 | BE189: 25 | BF189: 25 | BG189: 24 | BH189: 23 | BI189: 22
A190: Dual Antenna | B190: T | C190: Upper ISM | D190: 4 | E190: 0 | F190: 25 | G190: 25 | H190: 25 | I190: 25 | J190: 25 | K190: 24 | L190: 23 | M190: 22 | N190: 25 | O190: 25 | P190: 25 | Q190: 25 | R190: 25 | S190: 24 | T190: 23 | U190: 22 | V190: 24 | W190: 24 | X190: 24 | Y190: 24 | Z190: 24 | AA190: 23 | AB190: 22 | AC190: 20 | AD190: 24 | AE190: 24 | AF190: 24 | AG190: 24 | AH190: 24 | AI190: 23 | AJ190: 22 | AK190: 20 | AL190: 24 | AM190: 24 | AN190: 24 | AO190: 24 | AP190: 24 | AQ190: 23 | AR190: 22 | AS190: 20 | AT190: 24 | AU190: 24 | AV190: 24 | AW190: 24 | AX190: 24 | AY190: 23 | AZ190: 22 | BA190: 20 | BB190: 25 | BC190: 25 | BD190: 25 | BE190: 25 | BF190: 25 | BG190: 24 | BH190: 23 | BI190: 22
A191: Allowed Powers List | B191: T | C191: Upper ISM | D191: 4 | E191: 13 | F191: 16 | G191: 19 | H191: 22 | I191: 25 | J191: 0 | K191: 0 | L191: 0 | M191: 0 | N191: 0 | O191: 0 | P191: 0 | Q191: 0 | R191: 0 | S191: 0 | T191: 0 | U191: 0 | V191: 0 | W191: 0 | X191: 0 | Y191: 0 | Z191: 0 | AA191: 0 | AB191: 0 | AC191: 0 | AD191: 0 | AE191: 0 | AF191: 0 | AG191: 0 | AH191: 0 | AI191: 0 | AJ191: 0 | AK191: 0 | AL191: 0 | AM191: 0 | AN191: 0 | AO191: 0 | AP191: 0 | AQ191: 0 | AR191: 0 | AS191: 0 | AT191: 0 | AU191: 0 | AV191: 0 | AW191: 0 | AX191: 0 | AY191: 0 | AZ191: 0 | BA191: 0 | BB191: 0 | BC191: 0 | BD191: 0 | BE191: 0 | BF191: 0 | BG191: 0 | BH191: 0 | BI191: 0
A192: Single Antenna | B192: T | C192: Upper ISM | D192: 7 | E192: 0 | F192: 25 | G192: 25 | H192: 25 | I192: 25 | J192: 25 | K192: 24 | L192: 23 | M192: 22 | N192: 0 | O192: 0 | P192: 0 | Q192: 0 | R192: 0 | S192: 0 | T192: 0 | U192: 0 | V192: 24 | W192: 24 | X192: 24 | Y192: 24 | Z192: 24 | AA192: 23 | AB192: 22 | AC192: 20 | AD192: 0 | AE192: 0 | AF192: 0 | AG192: 0 | AH192: 0 | AI192: 0 | AJ192: 0 | AK192: 0 | AL192: 24 | AM192: 24 | AN192: 24 | AO192: 24 | AP192: 24 | AQ192: 23 | AR192: 22 | AS192: 20 | AT192: 0 | AU192: 0 | AV192: 0 | AW192: 0 | AX192: 0 | AY192: 0 | AZ192: 0 | BA192: 0 | BB192: 25 | BC192: 25 | BD192: 25 | BE192: 25 | BF192: 25 | BG192: 24 | BH192: 23 | BI192: 22
A193: Dual Antenna | B193: T | C193: Upper ISM | D193: 7 | E193: 0 | F193: 25 | G193: 25 | H193: 25 | I193: 25 | J193: 25 | K193: 24 | L193: 23 | M193: 22 | N193: 23 | O193: 23 | P193: 23 | Q193: 23 | R193: 23 | S193: 23 | T193: 23 | U193: 22 | V193: 24 | W193: 24 | X193: 24 | Y193: 24 | Z193: 24 | AA193: 23 | AB193: 22 | AC193: 20 | AD193: 24 | AE193: 24 | AF193: 24 | AG193: 24 | AH193: 24 | AI193: 23 | AJ193: 22 | AK193: 20 | AL193: 24 | AM193: 24 | AN193: 24 | AO193: 24 | AP193: 24 | AQ193: 23 | AR193: 22 | AS193: 20 | AT193: 24 | AU193: 24 | AV193: 24 | AW193: 24 | AX193: 24 | AY193: 23 | AZ193: 22 | BA193: 20 | BB193: 25 | BC193: 25 | BD193: 25 | BE193: 25 | BF193: 25 | BG193: 24 | BH193: 23 | BI193: 22
A194: Allowed Powers List | B194: T | C194: Upper ISM | D194: 7 | E194: 13 | F194: 16 | G194: 19 | H194: 22 | I194: 25 | J194: 0 | K194: 0 | L194: 0 | M194: 0 | N194: 0 | O194: 0 | P194: 0 | Q194: 0 | R194: 0 | S194: 0 | T194: 0 | U194: 0 | V194: 0 | W194: 0 | X194: 0 | Y194: 0 | Z194: 0 | AA194: 0 | AB194: 0 | AC194: 0 | AD194: 0 | AE194: 0 | AF194: 0 | AG194: 0 | AH194: 0 | AI194: 0 | AJ194: 0 | AK194: 0 | AL194: 0 | AM194: 0 | AN194: 0 | AO194: 0 | AP194: 0 | AQ194: 0 | AR194: 0 | AS194: 0 | AT194: 0 | AU194: 0 | AV194: 0 | AW194: 0 | AX194: 0 | AY194: 0 | AZ194: 0 | BA194: 0 | BB194: 0 | BC194: 0 | BD194: 0 | BE194: 0 | BF194: 0 | BG194: 0 | BH194: 0 | BI194: 0

Sheet Cover - Guidelines
C2: Version 1.33
C3: Revised May 17th 2013
C4: Malcolm Smith (mmsmith@cisco.com)
A6: AP36/26/16/3500p/15xx Indoor/outdoor Capacity/Coverage Calculator
A7: For Cisco Aironet Systems
A9: Models Supported: | C9: Cisco Aironet 36xx/26xx/16xx/35xxp/15xx Series
A11: What's new in v1.3.7 | C11: 802.11ac (3600 3rd radio), 1530
C12: removed HD and voice/video call metrics
C13: arbitrary mesh combinations
C14: 20Mhz 11n 5GHz, 20/40/80Mhz 11ac 5Ghz
C15: Non-standard TXP for external PA (e.g. DAS)
A17: Directions for use. | B17: 1 | C17: Select "Client_Access_&_Mesh" tab to configure 2.4GHz & 5Ghz radios of indoor (AP), outdoor (OAP) and mesh (MAP/RAP) radios (both P2MP and P2P backhaul). NOTE that there are 3 radios - a 2GHz radio that supports 20MHz (802.11n), a 5GHz radio that supports 20/40MHz (802.11n) and a 5GHz radio that supportd 20/40/80MHz (802.11n/ac). Not all radios will apply to all products as will be reflected by the inability to select things such as antenna gain, etc. IGNORE results for radios not part of the product selected.
B19: 2 | C19: Select regulatory domain for your country - FCC & ETSI has the most precise adherence - be careful to check EIRP, channels and TXP against local regulatory
B21: 3 | C21: Select AP (site 1) and client/MAP (site 2) for each radio (see 1). Popular devices like iPhone or Android are available as well as a Generic 3x3:3 device
B23: 4 | C23: Select minimum data rate (and channel bandwidth) @ cell-edge (e.g. MCS0-20 is MCS0 20MHz channel MCS0-40 is MCS0 in 40MHz channel and MCS0-1-80 is MCS 0 of 1st spatial-stream of 80MHz channel - 802.11ac)) - DO NOT SELECT 'Future' MCSs. For a coverage-based design (e.g. outdoor), choose the lowest MCS and for a capacity-based design (indoor) choose the highest MCS. NOTE the 'Actual' data-rate box which is the minimum of the selected, max of the AP and max of the client.
B25: 5 | C25: Select antenna used on each site for each radio (2.4 & 5GHz). If using something other than Cisco/Aironet antennas, enter the gain factor in dBi. Client devices only have integrated antennas.
